Workbook

Sheet charts
B2: TAB: CHARTS
D4: Canadian | E4: US | F4: Tenor | G4: Description
B5: Selected curves | D5: =calc!D15 -> C10110Y | E5: =calc!D17 -> USGG10YR | F5: =calc!M13 -> 10 | G5: =OFFSET(calc!J22, calc!D14, 0) -> Sovereign 10-year curve

Sheet swap
B2: TAB: SWAP CALCULATION RESULTS
B4: =_xll.AC.finance.irb.get(calc!E15, "", ) -> java.util.ArrayList@Sun, 24 Jun 2018 23:12:40:653..1613056796533532848 | D4: =_xll.AC.data.size(B4, 1) -> 249 | E4: =_xll.AC.data.size(B4, 2) -> 2 | F4: =_xll.AC.finance.irb.get(calc!E17, "", ) -> java.util.ArrayList@Sun, 24 Jun 2018 23:12:40:361..7224949093794615933 | H4: =_xll.AC.data.size(F4, 1) -> 249 | I4: =_xll.AC.data.size(F4, 2) -> 2
B5: =_xll.AC.finance.irb.get(calc!E16, "", ) -> java.util.ArrayList@Sun, 24 Jun 2018 23:12:46:996..3047706345090518360 | D5: =_xll.AC.data.size(B5, 1) -> 249 | E5: =_xll.AC.data.size(B5, 2) -> 2
B8: =calc!D15 -> C10110Y | D8: =B8 & " (CAD-to-USD)" -> C10110Y (CAD-to-USD) | F8: =calc!D17 -> USGG10YR
B9: Date | C9: CAD Yield | D9: Date | E9: Swapped CAD Yield | F9: =H9 -> Date | G9: =I9 -> USD Yield | H9: Date | I9: USD Yield | K9: Date | L9: Swap Premium | M9: Country Premium
B10: =_xll.AC.data._get(B4, "", 0) -> 2017-12-29 | D10: =_xll.AC.data._get(B5, "", 0) -> 2017-12-29 | F10: =B10 -> 2017-12-29 | G10: =IF(ISERROR(VLOOKUP(B10, $H$10:$I$1000, 2, FALSE)), "", VLOOKUP(B10, $H$10:$I$1000, 2, FALSE)) ->  | H10: =_xll.AC.data._get(F4, "", 0) -> 2017-12-28 | I10: 2.4305 | K10: =B10 -> 2017-12-29 | L10: =IF(OR(C10="", E10=""), "", C10-E10) ->  | M10: =IF(OR(E10="", G10=""), "", E10-G10) -> 
B11: 2017-12-28 | C11: 2.131530584 | D11: 2017-12-28 | E11: 2.197683033 | F11: =B11 -> 2017-12-28 | G11: =IF(ISERROR(VLOOKUP(B11, $H$10:$I$1000, 2, FALSE)), "", VLOOKUP(B11, $H$10:$I$1000, 2, FALSE)) -> 2.4305 | H11: 2017-12-27 | I11: 2.4107 | K11: =B11 -> 2017-12-28 | L11: =IF(OR(C11="", E11=""), "", C11-E11) -> -0.06615244902 | M11: =IF(OR(E11="", G11=""), "", E11-G11) -> -0.2328169667
B12: 2017-12-27 | C12: 2.10747079 | D12: 2017-12-27 | E12: 2.202614128 | F12: 2017-12-27 | G12: 2.4107 | H12: 2017-12-26 | I12: 2.4756 | K12: 2017-12-27 | L12: -0.09514333869 | M12: -0.2080858717
B13: 2017-12-22 | C13: 2.173065043 | D13: 2017-12-22 | E13: 2.293804322 | F13: 2017-12-22 | G13: 2.481 | H13: 2017-12-22 | I13: 2.481 | K13: 2017-12-22 | L13: -0.1207392788 | M13: -0.1871956778
B14: 2017-12-21 | C14: 2.180466403 | D14: 2017-12-21 | E14: 2.300997706 | F14: 2017-12-21 | G14: 2.4826 | H14: 2017-12-21 | I14: 2.4826 | K14: 2017-12-21 | L14: -0.1205313033 | M14: -0.1816022935
B15: 2017-12-20 | C15: 2.187882716 | D15: 2017-12-20 | E15: 2.360598965 | F15: 2017-12-20 | G15: 2.497 | H15: 2017-12-20 | I15: 2.497 | K15: 2017-12-20 | L15: -0.1727162488 | M15: -0.136401035
B16: 2017-12-19 | C16: 2.146212227 | D16: 2017-12-19 | E16: 2.33429377 | F16: 2017-12-19 | G16: 2.4644 | H16: 2017-12-19 | I16: 2.4644 | K16: 2017-12-19 | L16: -0.1880815428 | M16: -0.1301062302
B17: 2017-12-18 | C17: 2.087223138 | D17: 2017-12-18 | E17: 2.29504396 | F17: 2017-12-18 | G17: 2.3942 | H17: 2017-12-18 | I17: 2.3942 | K17: 2017-12-18 | L17: -0.2078208224 | M17: -0.09915604008
B18: 2017-12-15 | C18: 2.05318904 | D18: 2017-12-15 | E18: 2.249745606 | F18: 2017-12-15 | G18: 2.353 | H18: 2017-12-15 | I18: 2.353 | K18: 2017-12-15 | L18: -0.1965565656 | M18: -0.1032543944
B19: 2017-12-14 | C19: 2.078243795 | D19: 2017-12-14 | E19: 2.25812883 | F19: 2017-12-14 | G19: 2.3493 | H19: 2017-12-14 | I19: 2.3493 | K19: 2017-12-14 | L19: -0.1798850357 | M19: -0.09117116962
B20: 2017-12-13 | C20: 2.052440395 | D20: 2017-12-13 | E20: 2.238329703 | F20: 2017-12-13 | G20: 2.3422 | H20: 2017-12-13 | I20: 2.3422 | K20: 2017-12-13 | L20: -0.1858893085 | M20: -0.1038702967
B21: 2017-12-12 | C21: 2.112122157 | D21: 2017-12-12 | E21: 2.331779571 | F21: 2017-12-12 | G21: 2.4011 | H21: 2017-12-12 | I21: 2.4011 | K21: 2017-12-12 | L21: -0.2196574139 | M21: -0.06932042919
B22: 2017-12-11 | C22: 2.085736273 | D22: 2017-12-11 | E22: 2.278859256 | F22: 2017-12-11 | G22: 2.3886 | H22: 2017-12-11 | I22: 2.3886 | K22: 2017-12-11 | L22: -0.1931229829 | M22: -0.109740744
B23: 2017-12-08 | C23: 2.080074902 | D23: 2017-12-08 | E23: 2.270860263 | F23: 2017-12-08 | G23: 2.376 | H23: 2017-12-08 | I23: 2.376 | K23: 2017-12-08 | L23: -0.1907853609 | M23: -0.1051397372
B24: 2017-12-07 | C24: 2.065225403 | D24: 2017-12-07 | E24: 2.257173986 | F24: 2017-12-07 | G24: 2.3634 | H24: 2017-12-07 | I24: 2.3634 | K24: 2017-12-07 | L24: -0.1919485827 | M24: -0.1062260144
B25: 2017-12-06 | C25: 2.033154036 | D25: 2017-12-06 | E25: 2.191718002 | F25: 2017-12-06 | G25: 2.3385 | H25: 2017-12-06 | I25: 2.3385 | K25: 2017-12-06 | L25: -0.1585639658 | M25: -0.1467819979
B26: 2017-12-05 | C26: 2.060694419 | D26: 2017-12-05 | E26: 2.198872959 | F26: 2017-12-05 | G26: 2.3509 | H26: 2017-12-05 | I26: 2.3509 | K26: 2017-12-05 | L26: -0.1381785399 | M26: -0.1520270412
B27: 2017-12-04 | C27: 2.075319471 | D27: 2017-12-04 | E27: 2.193970025 | F27: 2017-12-04 | G27: 2.3723 | H27: 2017-12-04 | I27: 2.3723 | K27: 2017-12-04 | L27: -0.1186505542 | M27: -0.1783299749
B28: 2017-12-01 | C28: 2.038812528 | D28: 2017-12-01 | E28: 2.133219444 | F28: 2017-12-01 | G28: 2.3615 | H28: 2017-12-01 | I28: 2.3615 | K28: 2017-12-01 | L28: -0.09440691611 | M28: -0.2282805563
B29: 2017-11-30 | C29: 2.106219904 | D29: 2017-11-30 | E29: 2.292963978 | F29: 2017-11-30 | G29: 2.4097 | H29: 2017-11-30 | I29: 2.4097 | K29: 2017-11-30 | L29: -0.186744074 | M29: -0.1167360224
B30: 2017-11-29 | C30: 2.080972813 | D30: 2017-11-29 | E30: 2.243906396 | F30: 2017-11-29 | G30: 2.3882 | H30: 2017-11-29 | I30: 2.3882 | K30: 2017-11-29 | L30: -0.1629335829 | M30: -0.1442936039
B31: 2017-11-28 | C31: 2.029366091 | D31: 2017-11-28 | E31: 2.183602737 | F31: 2017-11-28 | G31: 2.3277 | H31: 2017-11-28 | I31: 2.3277 | K31: 2017-11-28 | L31: -0.1542366463 | M31: -0.1440972628
B32: 2017-11-27 | C32: 2.030793424 | D32: 2017-11-27 | E32: 2.166173488 | F32: 2017-11-27 | G32: 2.3277 | H32: 2017-11-27 | I32: 2.3277 | K32: 2017-11-27 | L32: -0.1353800635 | M32: -0.1615265124
B33: 2017-11-24 | D33: 2017-11-24 | F33: 2017-11-24 | G33: 2.3418 | H33: 2017-11-24 | I33: 2.3418 | K33: 2017-11-24
B34: 2017-11-23 | C34: 2.038628668 | D34: 2017-11-23 | E34: 2.157964352 | F34: 2017-11-23 | H34: 2017-11-22 | I34: 2.3187 | K34: 2017-11-23 | L34: -0.1193356837
B35: 2017-11-22 | C35: 2.037784498 | D35: 2017-11-22 | E35: 2.144985686 | F35: 2017-11-22 | G35: 2.3187 | H35: 2017-11-21 | I35: 2.3559 | K35: 2017-11-22 | L35: -0.1072011877 | M35: -0.1737143143
B36: 2017-11-21 | C36: 2.079761559 | D36: 2017-11-21 | E36: 2.204994071 | F36: 2017-11-21 | G36: 2.3559 | H36: 2017-11-20 | I36: 2.3666 | K36: 2017-11-21 | L36: -0.1252325121 | M36: -0.1509059292
B37: 2017-11-20 | C37: 2.071997014 | D37: 2017-11-20 | E37: 2.153734492 | F37: 2017-11-20 | G37: 2.3666 | H37: 2017-11-17 | I37: 2.3435 | K37: 2017-11-20 | L37: -0.0817374777 | M37: -0.212865508
B38: 2017-11-17 | C38: 2.042969104 | D38: 2017-11-17 | E38: 2.121992055 | F38: 2017-11-17 | G38: 2.3435 | H38: 2017-11-16 | I38: 2.3753 | K38: 2017-11-17 | L38: -0.07902295106 | M38: -0.2215079454
B39: 2017-11-16 | C39: 2.069622105 | D39: 2017-11-16 | E39: 2.1468388 | F39: 2017-11-16 | G39: 2.3753 | H39: 2017-11-15 | I39: 2.3222 | K39: 2017-11-16 | L39: -0.07721669484 | M39: -0.2284612004
B40: 2017-11-15 | C40: 2.007678959 | D40: 2017-11-15 | E40: 2.084845388 | F40: 2017-11-15 | G40: 2.3222 | H40: 2017-11-14 | I40: 2.3717 | K40: 2017-11-15 | L40: -0.07716642901 | M40: -0.2373546118
B41: 2017-11-14 | C41: 2.055832129 | D41: 2017-11-14 | E41: 2.127703825 | F41: 2017-11-14 | G41: 2.3717 | H41: 2017-11-13 | I41: 2.4055 | K41: 2017-11-14 | L41: -0.07187169617 | M41: -0.243996175
B42: 2017-11-10 | C42: 2.075537723 | D42: 2017-11-10 | E42: 2.153286825 | F42: 2017-11-10 | G42: 2.3984 | H42: 2017-11-10 | I42: 2.3984 | K42: 2017-11-10 | L42: -0.07774910239 | M42: -0.2451131749
B43: 2017-11-09 | C43: 2.031041407 | D43: 2017-11-09 | E43: 2.100240455 | F43: 2017-11-09 | G43: 2.3416 | H43: 2017-11-09 | I43: 2.3416 | K43: 2017-11-09 | L43: -0.06919904819 | M43: -0.2413595449
B44: 2017-11-08 | C44: 2.017205426 | D44: 2017-11-08 | E44: 2.095392879 | F44: 2017-11-08 | G44: 2.3343 | H44: 2017-11-08 | I44: 2.3343 | K44: 2017-11-08 | L44: -0.07818745315 | M44: -0.2389071212
B45: 2017-11-07 | C45: 1.988532924 | D45: 2017-11-07 | E45: 2.059695239 | F45: 2017-11-07 | G45: 2.3145 | H45: 2017-11-07 | I45: 2.3145 | K45: 2017-11-07 | L45: -0.07116231557 | M45: -0.2548047605
B46: 2017-11-06 | C46: 2.012183475 | D46: 2017-11-06 | E46: 2.067910059 | F46: 2017-11-06 | G46: 2.3163 | H46: 2017-11-06 | I46: 2.3163 | K46: 2017-11-06 | L46: -0.05572658401 | M46: -0.2483899409
B47: 2017-11-03 | C47: 2.023224754 | D47: 2017-11-03 | E47: 2.065564086 | F47: 2017-11-03 | G47: 2.3325 | H47: 2017-11-03 | I47: 2.3325 | K47: 2017-11-03 | L47: -0.04233933143 | M47: -0.2669359141
B48: 2017-11-02 | C48: 2.048371137 | D48: 2017-11-02 | E48: 2.112335387 | F48: 2017-11-02 | G48: 2.345 | H48: 2017-11-02 | I48: 2.345 | K48: 2017-11-02 | L48: -0.06396425063 | M48: -0.2326646126
B49: 2017-11-01 | C49: 2.060432278 | D49: 2017-11-01 | E49: 2.123775348 | F49: 2017-11-01 | G49: 2.3721 | H49: 2017-11-01 | I49: 2.3721 | K49: 2017-11-01 | L49: -0.06334307053 | M49: -0.2483246519
B50: 2017-10-31 | C50: 2.051167573 | D50: 2017-10-31 | E50: 2.117531626 | F50: 2017-10-31 | G50: 2.3793 | H50: 2017-10-31 | I50: 2.3793 | K50: 2017-10-31 | L50: -0.06636405321 | M50: -0.2617683738
B51: 2017-10-30 | C51: 2.049410661 | D51: 2017-10-30 | E51: 2.113352106 | F51: 2017-10-30 | G51: 2.3684 | H51: 2017-10-30 | I51: 2.3684 | K51: 2017-10-30 | L51: -0.06394144484 | M51: -0.255047894
B52: 2017-10-27 | C52: 2.110347325 | D52: 2017-10-27 | E52: 2.20571782 | F52: 2017-10-27 | G52: 2.4064 | H52: 2017-10-27 | I52: 2.4064 | K52: 2017-10-27 | L52: -0.09537049489 | M52: -0.2006821801
B53: 2017-10-26 | C53: 2.156674568 | D53: 2017-10-26 | E53: 2.254615853 | F53: 2017-10-26 | G53: 2.4609 | H53: 2017-10-26 | I53: 2.4609 | K53: 2017-10-26 | L53: -0.09794128522 | M53: -0.2062841469
B54: 2017-10-25 | C54: 2.158032618 | D54: 2017-10-25 | E54: 2.246189883 | F54: 2017-10-25 | G54: 2.4317 | H54: 2017-10-25 | I54: 2.4317 | K54: 2017-10-25 | L54: -0.08815726473 | M54: -0.1855101168
B55: 2017-10-24 | C55: 2.117781885 | D55: 2017-10-24 | E55: 2.144972312 | F55: 2017-10-24 | G55: 2.4189 | H55: 2017-10-24 | I55: 2.4189 | K55: 2017-10-24 | L55: -0.02719042713 | M55: -0.2739276881
B56: 2017-10-23 | C56: 2.0817128 | D56: 2017-10-23 | E56: 2.106215558 | F56: 2017-10-23 | G56: 2.3664 | H56: 2017-10-23 | I56: 2.3664 | K56: 2017-10-23 | L56: -0.02450275772 | M56: -0.260184442
B57: 2017-10-20 | C57: 2.088038655 | D57: 2017-10-20 | E57: 2.114800243 | F57: 2017-10-20 | G57: 2.3845 | H57: 2017-10-20 | I57: 2.3845 | K57: 2017-10-20 | L57: -0.02676158748 | M57: -0.2696997575
B58: 2017-10-19 | C58: 2.029112357 | D58: 2017-10-19 | E58: 2.010900296 | F58: 2017-10-19 | G58: 2.3178 | H58: 2017-10-19 | I58: 2.3178 | K58: 2017-10-19 | L58: 0.01821206111 | M58: -0.3068997039
B59: 2017-10-18 | C59: 2.035041503 | D59: 2017-10-18 | E59: 2.012860853 | F59: 2017-10-18 | G59: 2.3465 | H59: 2017-10-18 | I59: 2.3465 | K59: 2017-10-18 | L59: 0.02218065085 | M59: -0.3336391474
B60: 2017-10-17 | D60: 2017-10-17 | F60: 2017-10-17 | G60: 2.2998 | H60: 2017-10-17 | I60: 2.2998 | K60: 2017-10-17
B61: 2017-10-16 | C61: 1.999470704 | D61: 2017-10-16 | E61: 1.945791248 | F61: 2017-10-16 | G61: 2.3034 | H61: 2017-10-16 | I61: 2.3034 | K61: 2017-10-16 | L61: 0.05367945539 | M61: -0.3576087515
B62: 2017-10-13 | C62: 1.975321233 | D62: 2017-10-13 | E62: 1.889761631 | F62: 2017-10-13 | G62: 2.273 | H62: 2017-10-13 | I62: 2.273 | K62: 2017-10-13 | L62: 0.08555960119 | M62: -0.3832383687
B63: 2017-10-12 | C63: 2.030873959 | D63: 2017-10-12 | E63: 1.948498342 | F63: 2017-10-12 | G63: 2.3177 | H63: 2017-10-12 | I63: 2.3177 | K63: 2017-10-12 | L63: 0.08237561709 | M63: -0.369201658
B64: 2017-10-11 | C64: 2.055724764 | D64: 2017-10-11 | E64: 1.978266385 | F64: 2017-10-11 | G64: 2.3481 | H64: 2017-10-11 | I64: 2.3481 | K64: 2017-10-11 | L64: 0.07745837899 | M64: -0.3698336152
B65: 2017-10-10 | C65: 2.078686114 | D65: 2017-10-10 | E65: 2.009346854 | F65: 2017-10-10 | G65: 2.3607 | H65: 2017-10-10 | I65: 2.3607 | K65: 2017-10-10 | L65: 0.06933926075 | M65: -0.3513531464
B66: 2017-10-06 | D66: 2017-10-06 | F66: 2017-10-06 | G66: 2.3589 | H66: 2017-10-06 | I66: 2.3589 | K66: 2017-10-06
B67: 2017-10-05 | C67: 2.087172203 | D67: 2017-10-05 | E67: 2.039953759 | F67: 2017-10-05 | G67: 2.348 | H67: 2017-10-05 | I67: 2.348 | K67: 2017-10-05 | L67: 0.04721844386 | M67: -0.3080462407
B68: 2017-10-04 | C68: 2.08544902 | D68: 2017-10-04 | E68: 2.016839591 | F68: 2017-10-04 | G68: 2.3229 | H68: 2017-10-04 | I68: 2.3229 | K68: 2017-10-04 | L68: 0.06860942865 | M68: -0.3060604089
B69: 2017-10-03 | C69: 2.073172904 | D69: 2017-10-03 | E69: 1.991392515 | F69: 2017-10-03 | G69: 2.3229 | H69: 2017-10-03 | I69: 2.3229 | K69: 2017-10-03 | L69: 0.08178038879 | M69: -0.3315074846
B70: 2017-10-02 | C70: 2.088644737 | D70: 2017-10-02 | E70: 2.016237362 | F70: 2017-10-02 | G70: 2.3408 | H70: 2017-10-02 | I70: 2.3408 | K70: 2017-10-02 | L70: 0.07240737539 | M70: -0.324562638
B71: 2017-09-29 | C71: 2.078590415 | D71: 2017-09-29 | E71: 2.020344052 | F71: 2017-09-29 | G71: 2.3336 | H71: 2017-09-29 | I71: 2.3336 | K71: 2017-09-29 | L71: 0.05824636264 | M71: -0.3132559475
B72: 2017-09-28 | C72: 2.070273038 | D72: 2017-09-28 | E72: 1.976693158 | F72: 2017-09-28 | G72: 2.3085 | H72: 2017-09-28 | I72: 2.3085 | K72: 2017-09-28 | L72: 0.0935798797 | M72: -0.331806842
B73: 2017-09-27 | D73: 2017-09-27 | F73: 2017-09-27 | G73: 2.3103 | H73: 2017-09-27 | I73: 2.3103 | K73: 2017-09-27
B74: 2017-09-26 | C74: 1.973164083 | D74: 2017-09-26 | E74: 1.811964283 | F74: 2017-09-26 | G74: 2.2357 | H74: 2017-09-26 | I74: 2.2357 | K74: 2017-09-26 | L74: 0.1611997994 | M74: -0.4237357168
B75: 2017-09-25 | C75: 1.972860636 | D75: 2017-09-25 | E75: 1.82675332 | F75: =B75 -> 2017-09-25 | G75: =IF(ISERROR(VLOOKUP(B75, $H$10:$I$1000, 2, FALSE)), "", VLOOKUP(B75, $H$10:$I$1000, 2, FALSE)) -> 2.2198 | H75: 2017-09-25 | I75: 2.2198 | K75: =B75 -> 2017-09-25 | L75: =IF(OR(C75="", E75=""), "", C75-E75) -> 0.146107316 | M75: =IF(OR(E75="", G75=""), "", E75-G75) -> -0.3930466795
B76: 2017-09-22 | C76: 2.007950079 | D76: 2017-09-22 | E76: 1.871283434 | F76: 2017-09-22 | G76: 2.2499 | H76: 2017-09-22 | I76: 2.2499 | K76: 2017-09-22 | L76: 0.1366666442 | M76: -0.3786165657
B77: 2017-09-21 | C77: 2.029774956 | D77: 2017-09-21 | E77: 1.901418168 | F77: 2017-09-21 | G77: 2.2765 | H77: 2017-09-21 | I77: 2.2765 | K77: 2017-09-21 | L77: 0.1283567885 | M77: -0.3750818325
B78: 2017-09-20 | C78: 2.016175499 | D78: 2017-09-20 | E78: 1.897839355 | F78: 2017-09-20 | G78: 2.2676 | H78: 2017-09-20 | I78: 2.2676 | K78: 2017-09-20 | L78: 0.118336144 | M78: -0.3697606453
B79: 2017-09-19 | C79: 2.00673389 | D79: 2017-09-19 | E79: 1.878540439 | F79: 2017-09-19 | G79: 2.2446 | H79: 2017-09-19 | I79: 2.2446 | K79: 2017-09-19 | L79: 0.1281934514 | M79: -0.3660595615
B80: 2017-09-18 | C80: 1.952086075 | D80: 2017-09-18 | E80: 1.800820496 | F80: 2017-09-18 | G80: 2.2287 | H80: 2017-09-18 | I80: 2.2287 | K80: 2017-09-18 | L80: 0.1512655793 | M80: -0.4278795039
B81: 2017-09-15 | C81: 1.940561735 | D81: 2017-09-15 | E81: 1.76830051 | F81: 2017-09-15 | G81: 2.2023 | H81: 2017-09-15 | I81: 2.2023 | K81: 2017-09-15 | L81: 0.1722612247 | M81: -0.4339994897
B82: 2017-09-14 | C82: 1.920310784 | D82: 2017-09-14 | E82: 1.751179673 | F82: 2017-09-14 | G82: 2.1847 | H82: 2017-09-14 | I82: 2.1847 | K82: 2017-09-14 | L82: 0.1691311111 | M82: -0.4335203267
B83: 2017-09-13 | C83: 1.909334115 | D83: 2017-09-13 | E83: 1.723852997 | F83: 2017-09-13 | G83: 2.1883 | H83: 2017-09-13 | I83: 2.1883 | K83: 2017-09-13 | L83: 0.1854811182 | M83: -0.4644470035
B84: 2017-09-12 | C84: 1.886240917 | D84: 2017-09-12 | E84: 1.701151471 | F84: 2017-09-12 | G84: 2.1672 | H84: 2017-09-12 | I84: 2.1672 | K84: 2017-09-12 | L84: 0.1850894464 | M84: -0.4660485293
B85: 2017-09-11 | C85: 1.852871329 | D85: 2017-09-11 | E85: 1.651747392 | F85: 2017-09-11 | G85: 2.1306 | H85: 2017-09-11 | I85: 2.1306 | K85: 2017-09-11 | L85: 0.2011239369 | M85: -0.4788526076
B86: 2017-09-08 | C86: 1.769802748 | D86: 2017-09-08 | E86: 1.51989288 | F86: 2017-09-08 | G86: 2.0507 | H86: 2017-09-08 | I86: 2.0507 | K86: 2017-09-08 | L86: 0.2499098675 | M86: -0.5308071199
B87: 2017-09-07 | C87: 1.740818873 | D87: 2017-09-07 | E87: 1.516412913 | F87: 2017-09-07 | G87: 2.0387 | H87: 2017-09-07 | I87: 2.0387 | K87: 2017-09-07 | L87: 0.2244059604 | M87: -0.522287087
B88: 2017-09-06 | D88: 2017-09-06 | F88: 2017-09-06 | G88: 2.1046 | H88: 2017-09-06 | I88: 2.1046 | K88: 2017-09-06
B89: 2017-09-05 | C89: 1.729121447 | D89: 2017-09-05 | E89: 1.571389543 | F89: 2017-09-05 | G89: 2.0596 | H89: 2017-09-05 | I89: 2.0596 | K89: 2017-09-05 | L89: 0.1577319034 | M89: -0.4882104567
B90: 2017-09-01 | C90: 1.842256008 | D90: 2017-09-01 | E90: 1.735927716 | F90: 2017-09-01 | G90: 2.1657 | H90: 2017-09-01 | I90: 2.1657 | K90: 2017-09-01 | L90: 0.1063282919 | M90: -0.4297722842
B91: 2017-08-31 | D91: 2017-08-31 | F91: 2017-08-31 | G91: 2.117 | H91: 2017-08-31 | I91: 2.117 | K91: 2017-08-31
B92: 2017-08-30 | C92: 1.829452407 | D92: 2017-08-30 | E92: 1.784866275 | F92: 2017-08-30 | G92: 2.1309 | H92: 2017-08-30 | I92: 2.1309 | K92: 2017-08-30 | L92: 0.04458613163 | M92: -0.3460337249
B93: 2017-08-29 | C93: 1.79537574 | D93: 2017-08-29 | E93: 1.72168284 | F93: 2017-08-29 | G93: 2.1292 | H93: 2017-08-29 | I93: 2.1292 | K93: 2017-08-29 | L93: 0.07369289934 | M93: -0.4075171595
B94: 2017-08-28 | C94: 1.857734905 | D94: 2017-08-28 | E94: 1.815522402 | F94: 2017-08-28 | G94: 2.1571 | H94: 2017-08-28 | I94: 2.1571 | K94: 2017-08-28 | L94: 0.04221250253 | M94: -0.3415775978
B95: 2017-08-25 | D95: 2017-08-25 | F95: 2017-08-25 | G95: 2.1659 | H95: 2017-08-25 | I95: 2.1659 | K95: 2017-08-25
B96: 2017-08-24 | C96: 1.915023492 | D96: 2017-08-24 | E96: 1.904114356 | F96: 2017-08-24 | G96: 2.1939 | H96: 2017-08-24 | I96: 2.1939 | K96: 2017-08-24 | L96: 0.0109091354 | M96: -0.2897856436
B97: 2017-08-23 | C97: 1.903888195 | D97: 2017-08-23 | E97: 1.885530963 | F97: 2017-08-23 | G97: 2.166 | H97: 2017-08-23 | I97: 2.166 | K97: 2017-08-23 | L97: 0.0183572319 | M97: -0.2804690366
B98: 2017-08-22 | C98: 1.952678758 | D98: 2017-08-22 | E98: 1.946536392 | F98: 2017-08-22 | G98: 2.2131 | H98: 2017-08-22 | I98: 2.2131 | K98: 2017-08-22 | L98: 0.006142366688 | M98: -0.2665636083
B99: 2017-08-21 | C99: 1.917418757 | D99: 2017-08-21 | E99: 1.91292104 | F99: 2017-08-21 | G99: 2.1817 | H99: 2017-08-21 | I99: 2.1817 | K99: 2017-08-21 | L99: 0.004497716522 | M99: -0.2687789599
B100: 2017-08-18 | C100: 1.918944919 | D100: 2017-08-18 | E100: 1.93104554 | F100: 2017-08-18 | G100: 2.1939 | H100: 2017-08-18 | I100: 2.1939 | K100: 2017-08-18 | L100: -0.01210062095 | M100: -0.2628544601
B101: 2017-08-17 | C101: 1.893516428 | D101: 2017-08-17 | E101: 1.90438728 | F101: 2017-08-17 | G101: 2.1853 | H101: 2017-08-17 | I101: 2.1853 | K101: 2017-08-17 | L101: -0.01087085247 | M101: -0.2809127197
B102: 2017-08-16 | C102: 1.932209113 | D102: 2017-08-16 | E102: 1.960275368 | F102: 2017-08-16 | G102: 2.222 | H102: 2017-08-16 | I102: 2.222 | K102: 2017-08-16 | L102: -0.02806625484 | M102: -0.2617246324
B103: 2017-08-15 | C103: 1.984635104 | D103: 2017-08-15 | E103: 2.032062878 | F103: 2017-08-15 | G103: 2.2728 | H103: 2017-08-15 | I103: 2.2728 | K103: 2017-08-15 | L103: -0.04742777426 | M103: -0.2407371217
B104: 2017-08-14 | C104: 1.923734433 | D104: 2017-08-14 | E104: 1.93521958 | F104: 2017-08-14 | G104: 2.2185 | H104: 2017-08-14 | I104: 2.2185 | K104: 2017-08-14 | L104: -0.01148514636 | M104: -0.2832804203
B105: 2017-08-11 | C105: 1.893259549 | D105: 2017-08-11 | E105: 1.898139052 | F105: 2017-08-11 | G105: 2.1888 | H105: 2017-08-11 | I105: 2.1888 | K105: 2017-08-11 | L105: -0.004879503409 | M105: -0.2906609476
B106: 2017-08-10 | C106: 1.904114726 | D106: 2017-08-10 | E106: 1.92171697 | F106: 2017-08-10 | G106: 2.1975 | H106: 2017-08-10 | I106: 2.1975 | K106: 2017-08-10 | L106: -0.01760224351 | M106: -0.2757830305
B107: 2017-08-09 | C107: 1.962359875 | D107: 2017-08-09 | E107: 1.982821811 | F107: 2017-08-09 | G107: 2.2476 | H107: 2017-08-09 | I107: 2.2476 | K107: 2017-08-09 | L107: -0.02046193513 | M107: -0.2647781894
B108: 2017-08-08 | C108: 1.95605801 | D108: 2017-08-08 | E108: 1.939951117 | F108: 2017-08-08 | G108: 2.2619 | H108: 2017-08-08 | I108: 2.2619 | K108: 2017-08-08 | L108: 0.01610689315 | M108: -0.3219488831
B109: 2017-08-04 | C109: 1.995170367 | D109: 2017-08-04 | E109: 2.027708467 | F109: 2017-08-04 | G109: 2.262 | H109: 2017-08-07 | I109: 2.253 | K109: 2017-08-04 | L109: -0.0325381003 | M109: -0.2342915327
B110: 2017-08-03 | C110: 1.947576305 | D110: 2017-08-03 | E110: 1.961212513 | F110: 2017-08-03 | G110: 2.2212 | H110: 2017-08-04 | I110: 2.262 | K110: 2017-08-03 | L110: -0.01363620841 | M110: -0.2599874869
B111: 2017-08-02 | C111: 1.990384772 | D111: 2017-08-02 | E111: 2.006038771 | F111: 2017-08-02 | G111: 2.271 | H111: 2017-08-03 | I111: 2.2212 | K111: 2017-08-02 | L111: -0.01565399947 | M111: -0.2649612289
B112: 2017-08-01 | C112: 1.976696417 | D112: 2017-08-01 | E112: 1.964050283 | F112: 2017-08-01 | G112: 2.2532 | H112: 2017-08-02 | I112: 2.271 | K112: 2017-08-01 | L112: 0.01264613313 | M112: -0.2891497166
B113: 2017-07-31 | C113: 2.025675613 | D113: 2017-07-31 | E113: 1.958893239 | F113: 2017-07-31 | G113: 2.2942 | H113: 2017-08-01 | I113: 2.2532 | K113: 2017-07-31 | L113: 0.06678237401 | M113: -0.3353067612
B114: 2017-07-28 | C114: 2.009315389 | D114: 2017-07-28 | E114: 1.965962309 | F114: 2017-07-28 | G114: 2.2889 | H114: 2017-07-31 | I114: 2.2942 | K114: 2017-07-28 | L114: 0.04335307987 | M114: -0.3229376908
B115: 2017-07-27 | C115: 2.026360232 | D115: 2017-07-27 | E115: 2.018995659 | F115: 2017-07-27 | G115: 2.3103 | H115: 2017-07-28 | I115: 2.2889 | K115: 2017-07-27 | L115: 0.007364573036 | M115: -0.2913043408
B116: 2017-07-26 | C116: 1.995956266 | D116: 2017-07-26 | E116: 1.995109688 | F116: 2017-07-26 | G116: 2.2872 | H116: 2017-07-27 | I116: 2.3103 | K116: 2017-07-26 | L116: 0.0008465785902 | M116: -0.2920903121
B117: 2017-07-25 | C117: 2.03693929 | D117: 2017-07-25 | E117: 2.017317454 | F117: 2017-07-25 | G117: 2.3354 | H117: 2017-07-26 | I117: 2.2872 | K117: 2017-07-25 | L117: 0.01962183606 | M117: -0.3180825461
B118: 2017-07-24 | C118: 1.94137219 | D118: 2017-07-24 | E118: 1.931609467 | F118: 2017-07-24 | G118: 2.2552 | H118: 2017-07-25 | I118: 2.3354 | K118: 2017-07-24 | L118: 0.009762722392 | M118: -0.3235905329
B119: 2017-07-21 | C119: 1.927831131 | D119: 2017-07-21 | E119: 1.938915909 | F119: 2017-07-21 | G119: 2.2375 | H119: 2017-07-24 | I119: 2.2552 | K119: 2017-07-21 | L119: -0.01108477865 | M119: -0.2985840907
B120: 2017-07-20 | C120: 1.941730436 | D120: 2017-07-20 | E120: 1.961571701 | F120: 2017-07-20 | G120: 2.2589 | H120: 2017-07-21 | I120: 2.2375 | K120: 2017-07-20 | L120: -0.01984126532 | M120: -0.2973282986
B121: 2017-07-19 | C121: 1.932363956 | D121: 2017-07-19 | E121: 1.937551407 | F121: 2017-07-19 | G121: 2.2696 | H121: 2017-07-20 | I121: 2.2589 | K121: 2017-07-19 | L121: -0.005187451177 | M121: -0.3320485931
B122: 2017-07-18 | C122: 1.91536183 | D122: 2017-07-18 | E122: 1.939446539 | F122: 2017-07-18 | G122: 2.259 | H122: 2017-07-19 | I122: 2.2696 | K122: 2017-07-18 | L122: -0.02408470918 | M122: -0.3195534609
B123: 2017-07-17 | C123: 1.950317631 | D123: 2017-07-17 | E123: 1.978894766 | F123: 2017-07-17 | G123: 2.3141 | H123: 2017-07-18 | I123: 2.259 | K123: 2017-07-17 | L123: -0.02857713504 | M123: -0.3352052338
B124: 2017-07-14 | C124: 1.983192151 | D124: 2017-07-14 | E124: 2.042586081 | F124: 2017-07-14 | G124: 2.3319 | H124: 2017-07-17 | I124: 2.3141 | K124: 2017-07-14 | L124: -0.05939393026 | M124: -0.2893139187
B125: 2017-07-13 | C125: 1.998231747 | D125: 2017-07-13 | E125: 2.058563303 | F125: 2017-07-13 | G125: 2.3444 | H125: 2017-07-14 | I125: 2.3319 | K125: 2017-07-13 | L125: -0.06033155647 | M125: -0.2858366968
B126: 2017-07-12 | C126: 1.982153881 | D126: 2017-07-12 | E126: 2.05454721 | F126: 2017-07-12 | G126: 2.3177 | H126: 2017-07-13 | I126: 2.3444 | K126: 2017-07-12 | L126: -0.07239332855 | M126: -0.2631527901
B127: 2017-07-11 | C127: 2.018568612 | D127: 2017-07-11 | E127: 2.147020715 | F127: 2017-07-11 | G127: 2.3605 | H127: 2017-07-12 | I127: 2.3177 | K127: 2017-07-11 | L127: -0.1284521024 | M127: -0.2134792854
B128: 2017-07-10 | C128: 2.035552459 | D128: 2017-07-10 | E128: 2.15512287 | F128: 2017-07-10 | G128: 2.373 | H128: 2017-07-11 | I128: 2.3605 | K128: 2017-07-10 | L128: -0.1195704108 | M128: -0.2178771298
B129: 2017-07-07 | C129: 2.053280061 | D129: 2017-07-07 | E129: 2.201136453 | F129: 2017-07-07 | G129: 2.3856 | H129: 2017-07-10 | I129: 2.373 | K129: 2017-07-07 | L129: -0.1478563915 | M129: -0.1844635471
B130: 2017-07-06 | C130: 2.035910112 | D130: 2017-07-06 | E130: 2.214943637 | F130: 2017-07-06 | G130: 2.3659 | H130: 2017-07-07 | I130: 2.3856 | K130: 2017-07-06 | L130: -0.1790335253 | M130: -0.1509563627
B131: 2017-07-05 | C131: 2.00608344 | D131: 2017-07-05 | E131: 2.183408827 | F131: 2017-07-05 | G131: 2.3232 | H131: 2017-07-06 | I131: 2.3659 | K131: 2017-07-05 | L131: -0.1773253865 | M131: -0.1397911732
B132: 2017-07-04 | C132: 1.999477653 | D132: 2017-07-04 | E132: 2.127586786 | F132: 2017-07-04 | H132: 2017-07-05 | I132: 2.3232 | K132: 2017-07-04 | L132: -0.1281091333
B133: 2017-06-30 | C133: 1.982815839 | D133: 2017-06-30 | E133: 2.173945325 | F133: 2017-06-30 | G133: 2.3037 | H133: 2017-07-03 | I133: 2.3499 | K133: 2017-06-30 | L133: -0.1911294861 | M133: -0.1297546746
B134: 2017-06-29 | C134: 1.936665274 | D134: 2017-06-29 | E134: 2.145968613 | F134: 2017-06-29 | G134: 2.2666 | H134: 2017-06-30 | I134: 2.3037 | K134: 2017-06-29 | L134: -0.2093033398 | M134: -0.1206313866
B135: 2017-06-28 | C135: 1.869029092 | D135: 2017-06-28 | E135: 2.096189385 | F135: 2017-06-28 | G135: 2.2279 | H135: 2017-06-29 | I135: 2.2666 | K135: 2017-06-28 | L135: -0.2271602935 | M135: -0.1317106147
B136: 2017-06-27 | C136: 1.837323 | D136: 2017-06-27 | E136: 2.084114621 | F136: 2017-06-27 | G136: 2.2051 | H136: 2017-06-28 | I136: 2.2279 | K136: 2017-06-27 | L136: -0.2467916219 | M136: -0.1209853786
B137: 2017-06-26 | C137: 1.755321865 | D137: 2017-06-26 | E137: 2.032044943 | F137: 2017-06-26 | G137: 2.137 | H137: 2017-06-27 | I137: 2.2051 | K137: 2017-06-26 | L137: -0.2767230787 | M137: -0.1049550567
B138: 2017-06-23 | C138: 1.757155736 | D138: 2017-06-23 | E138: 2.017103768 | F138: 2017-06-23 | G138: 2.1423 | H138: 2017-06-26 | I138: 2.137 | K138: 2017-06-23 | L138: -0.2599480326 | M138: -0.1251962319
B139: 2017-06-22 | C139: 1.735022936 | D139: 2017-06-22 | E139: 1.959517367 | F139: =B139 -> 2017-06-22 | G139: =IF(ISERROR(VLOOKUP(B139, $H$10:$I$1000, 2, FALSE)), "", VLOOKUP(B139, $H$10:$I$1000, 2, FALSE)) -> 2.1477 | H139: 2017-06-23 | I139: 2.1423 | K139: =B139 -> 2017-06-22 | L139: =IF(OR(C139="", E139=""), "", C139-E139) -> -0.2244944306 | M139: =IF(OR(E139="", G139=""), "", E139-G139) -> -0.1881826331
B140: 2017-06-21 | C140: 1.775890311 | D140: 2017-06-21 | E140: 2.043217279 | F140: 2017-06-21 | G140: 2.1634 | H140: 2017-06-22 | I140: 2.1477 | K140: 2017-06-21 | L140: -0.267326969 | M140: -0.1201827205
B141: 2017-06-20 | C141: 1.785236853 | D141: 2017-06-20 | E141: 2.052960223 | F141: 2017-06-20 | G141: 2.1565 | H141: 2017-06-21 | I141: 2.1634 | K141: 2017-06-20 | L141: -0.2677233693 | M141: -0.1035397772
B142: 2017-06-19 | C142: 1.841352191 | D142: 2017-06-19 | E142: 2.119357599 | F142: 2017-06-19 | G142: 2.1879 | H142: 2017-06-20 | I142: 2.1565 | K142: 2017-06-19 | L142: -0.2780054082 | M142: -0.06854240106
B143: 2017-06-16 | C143: 1.781208967 | D143: 2017-06-16 | E143: 2.028587548 | F143: 2017-06-16 | G143: 2.1514 | H143: 2017-06-19 | I143: 2.1879 | K143: 2017-06-16 | L143: -0.2473785812 | M143: -0.1228124521
B144: 2017-06-15 | C144: 1.792692948 | D144: 2017-06-15 | E144: 2.05032508 | F144: 2017-06-15 | G144: 2.1637 | H144: 2017-06-16 | I144: 2.1514 | K144: 2017-06-15 | L144: -0.2576321328 | M144: -0.1133749197
B145: 2017-06-14 | C145: 1.789979346 | D145: 2017-06-14 | E145: 2.06728275 | F145: 2017-06-14 | G145: 2.1256 | H145: 2017-06-15 | I145: 2.1637 | K145: 2017-06-14 | L145: -0.2773034041 | M145: -0.05831724993
B146: 2017-06-13 | C146: 1.870187416 | D146: 2017-06-13 | E146: 2.162033562 | F146: 2017-06-13 | G146: 2.2109 | H146: 2017-06-14 | I146: 2.1256 | K146: 2017-06-13 | L146: -0.2918461466 | M146: -0.04886643787
B147: 2017-06-12 | C147: 1.862540424 | D147: 2017-06-12 | E147: 2.219162389 | F147: 2017-06-12 | G147: 2.2145 | H147: 2017-06-13 | I147: 2.2109 | K147: 2017-06-12 | L147: -0.3566219646 | M147: 0.004662388681
B148: 2017-06-09 | C148: 1.876977371 | D148: 2017-06-09 | E148: 2.311164887 | F148: 2017-06-09 | G148: 2.2005 | H148: 2017-06-12 | I148: 2.2145 | K148: 2017-06-09 | L148: -0.4341875154 | M148: 0.1106648867
B149: 2017-06-08 | C149: 1.872123726 | D149: 2017-06-08 | E149: 2.307754508 | F149: 2017-06-08 | G149: 2.1885 | H149: 2017-06-09 | I149: 2.2005 | K149: 2017-06-08 | L149: -0.4356307827 | M149: 0.1192545084
B150: 2017-06-07 | C150: 1.851812831 | D150: 2017-06-07 | E150: 2.28011029 | F150: 2017-06-07 | G150: 2.1729 | H150: 2017-06-08 | I150: 2.1885 | K150: 2017-06-07 | L150: -0.4282974587 | M150: 0.1072102901
B151: 2017-06-06 | C151: 1.812134199 | D151: 2017-06-06 | E151: 2.212351065 | F151: 2017-06-06 | G151: 2.1451 | H151: 2017-06-07 | I151: 2.1729 | K151: 2017-06-06 | L151: -0.4002168653 | M151: 0.06725106452
B152: 2017-06-05 | C152: 1.829114713 | D152: 2017-06-05 | E152: 2.233406153 | F152: 2017-06-05 | G152: 2.1817 | H152: 2017-06-06 | I152: 2.1451 | K152: 2017-06-05 | L152: -0.4042914409 | M152: 0.05170615347
B153: 2017-06-02 | C153: 1.791631924 | D153: 2017-06-02 | E153: 2.17380696 | F153: 2017-06-02 | G153: 2.1591 | H153: 2017-06-05 | I153: 2.1817 | K153: 2017-06-02 | L153: -0.3821750355 | M153: 0.01470696001
B154: 2017-06-01 | C154: 1.848066204 | D154: 2017-06-01 | E154: 2.254621711 | F154: 2017-06-01 | G154: 2.2114 | H154: 2017-06-02 | I154: 2.1591 | K154: 2017-06-01 | L154: -0.4065555068 | M154: 0.04322171116
B155: 2017-05-31 | C155: 1.819092245 | D155: 2017-05-31 | E155: 2.210952377 | F155: 2017-05-31 | G155: 2.2028 | H155: 2017-06-01 | I155: 2.2114 | K155: 2017-05-31 | L155: -0.3918601314 | M155: 0.008152376509
B156: 2017-05-30 | C156: 1.85013509 | D156: 2017-05-30 | E156: 2.269400835 | F156: 2017-05-30 | G156: 2.2098 | H156: 2017-05-31 | I156: 2.2028 | K156: 2017-05-30 | L156: -0.4192657453 | M156: 0.05960083507
B157: 2017-05-29 | C157: 1.908423716 | D157: 2017-05-29 | E157: 2.395623813 | F157: 2017-05-29 | H157: 2017-05-30 | I157: 2.2098 | K157: 2017-05-29 | L157: -0.4872000971
B158: 2017-05-26 | C158: 1.899414845 | D158: 2017-05-26 | E158: 2.341272284 | F158: 2017-05-26 | G158: 2.2465 | H158: 2017-05-26 | I158: 2.2465 | K158: 2017-05-26 | L158: -0.4418574387 | M158: 0.09477228373
B159: 2017-05-25 | C159: 1.910644877 | D159: 2017-05-25 | E159: 2.355863065 | F159: 2017-05-25 | G159: 2.2554 | H159: 2017-05-25 | I159: 2.2554 | K159: 2017-05-25 | L159: -0.4452181881 | M159: 0.1004630649
B160: 2017-05-24 | C160: 1.946289739 | D160: 2017-05-24 | E160: 2.391483373 | F160: 2017-05-24 | G160: 2.2502 | H160: 2017-05-24 | I160: 2.2502 | K160: 2017-05-24 | L160: -0.4451936338 | M160: 0.1412833729
B161: 2017-05-23 | C161: 1.94403365 | D161: 2017-05-23 | E161: 2.37064112 | F161: 2017-05-23 | G161: 2.2799 | H161: 2017-05-23 | I161: 2.2799 | K161: 2017-05-23 | L161: -0.4266074698 | M161: 0.09074111968
B162: 2017-05-19 | C162: 1.910932887 | D162: 2017-05-19 | E162: 2.332566583 | F162: 2017-05-19 | G162: 2.2346 | H162: 2017-05-22 | I162: 2.2537 | K162: 2017-05-19 | L162: -0.421633696 | M162: 0.09796658271
B163: 2017-05-18 | C163: 1.897394693 | D163: 2017-05-18 | E163: 2.32923326 | F163: 2017-05-18 | G163: 2.2294 | H163: 2017-05-19 | I163: 2.2346 | K163: 2017-05-18 | L163: -0.4318385674 | M163: 0.09983326038
B164: 2017-05-17 | C164: 1.893827175 | D164: 2017-05-17 | E164: 2.320470896 | F164: 2017-05-17 | G164: 2.2243 | H164: 2017-05-18 | I164: 2.2294 | K164: 2017-05-17 | L164: -0.4266437205 | M164: 0.09617089588
B165: 2017-05-16 | C165: 2.01027922 | D165: 2017-05-16 | E165: 2.434442096 | F165: 2017-05-16 | G165: 2.3257 | H165: 2017-05-17 | I165: 2.2243 | K165: 2017-05-16 | L165: -0.4241628754 | M165: 0.1087420956
B166: 2017-05-15 | C166: 2.028923731 | D166: 2017-05-15 | E166: 2.446969608 | F166: 2017-05-15 | G166: 2.3433 | H166: 2017-05-16 | I166: 2.3257 | K166: 2017-05-15 | L166: -0.418045877 | M166: 0.1036696075
B167: 2017-05-12 | C167: 2.017298607 | D167: 2017-05-12 | E167: 2.448510841 | F167: 2017-05-12 | G167: 2.3257 | H167: 2017-05-15 | I167: 2.3433 | K167: 2017-05-12 | L167: -0.4312122348 | M167: 0.1228108413
B168: 2017-05-11 | C168: 2.072871724 | D168: 2017-05-11 | E168: 2.525960928 | F168: 2017-05-11 | G168: 2.3874 | H168: 2017-05-12 | I168: 2.3257 | K168: 2017-05-11 | L168: -0.4530892033 | M168: 0.1385609277
B169: 2017-05-10 | C169: 2.076002868 | D169: 2017-05-10 | E169: 2.500868277 | F169: 2017-05-10 | G169: 2.4141 | H169: 2017-05-11 | I169: 2.3874 | K169: 2017-05-10 | L169: -0.4248654095 | M169: 0.08676827717
B170: 2017-05-09 | C170: 2.063404585 | D170: 2017-05-09 | E170: 2.499241137 | F170: 2017-05-09 | G170: 2.3977 | H170: 2017-05-10 | I170: 2.4141 | K170: 2017-05-09 | L170: -0.4358365519 | M170: 0.1015411373
B171: 2017-05-08 | C171: 2.052884336 | D171: 2017-05-08 | E171: 2.509460924 | F171: 2017-05-08 | G171: 2.3868 | H171: 2017-05-09 | I171: 2.3977 | K171: 2017-05-08 | L171: -0.4565765883 | M171: 0.1226609242
B172: 2017-05-05 | C172: 2.01105166 | D172: 2017-05-05 | E172: 2.464544944 | F172: 2017-05-05 | G172: 2.3487 | H172: 2017-05-08 | I172: 2.3868 | K172: 2017-05-05 | L172: -0.4534932838 | M172: 0.1158449443
B173: 2017-05-04 | C173: 2.011950045 | D173: 2017-05-04 | E173: 2.480201553 | F173: 2017-05-04 | G173: 2.3541 | H173: 2017-05-05 | I173: 2.3487 | K173: 2017-05-04 | L173: -0.4682515088 | M173: 0.1261015534
B174: 2017-05-03 | C174: 1.980392835 | D174: 2017-05-03 | E174: 2.405223073 | F174: 2017-05-03 | G174: 2.318 | H174: 2017-05-04 | I174: 2.3541 | K174: 2017-05-03 | L174: -0.4248302382 | M174: 0.08722307306
B175: 2017-05-02 | C175: 1.964876079 | D175: 2017-05-02 | E175: 2.400864793 | F175: 2017-05-02 | G175: 2.2803 | H175: 2017-05-03 | I175: 2.318 | K175: 2017-05-02 | L175: -0.4359887145 | M175: 0.1205647935
B176: 2017-05-01 | C176: 2.002730259 | D176: 2017-05-01 | E176: 2.417242395 | F176: 2017-05-01 | G176: 2.318 | H176: 2017-05-02 | I176: 2.2803 | K176: 2017-05-01 | L176: -0.414512136 | M176: 0.09924239534
B177: 2017-04-28 | C177: 1.963314868 | D177: 2017-04-28 | E177: 2.376695235 | F177: 2017-04-28 | G177: 2.2802 | H177: 2017-05-01 | I177: 2.318 | K177: 2017-04-28 | L177: -0.4133803668 | M177: 0.09649523462
B178: 2017-04-27 | C178: 2.003934886 | D178: 2017-04-27 | E178: 2.414650087 | F178: 2017-04-27 | G178: 2.2946 | H178: 2017-04-28 | I178: 2.2802 | K178: 2017-04-27 | L178: -0.4107152014 | M178: 0.1200500872
B179: 2017-04-26 | C179: 2.024702005 | D179: 2017-04-26 | E179: 2.466113141 | F179: 2017-04-26 | G179: 2.3035 | H179: 2017-04-27 | I179: 2.2946 | K179: 2017-04-26 | L179: -0.4414111357 | M179: 0.162613141
B180: 2017-04-25 | C180: 2.092798205 | D180: 2017-04-25 | E180: 2.552770752 | F180: 2017-04-25 | G180: 2.3322 | H180: 2017-04-26 | I180: 2.3035 | K180: 2017-04-25 | L180: -0.4599725465 | M180: 0.2205707518
B181: 2017-04-24 | C181: 2.037443117 | D181: 2017-04-24 | E181: 2.478216561 | F181: 2017-04-24 | G181: 2.273 | H181: 2017-04-25 | I181: 2.3322 | K181: 2017-04-24 | L181: -0.4407734445 | M181: 0.2052165614
B182: 2017-04-21 | C182: 1.985246929 | D182: 2017-04-21 | E182: 2.401253877 | F182: 2017-04-21 | G182: 2.248 | H182: 2017-04-24 | I182: 2.273 | K182: 2017-04-21 | L182: -0.4160069481 | M182: 0.1532538768
B183: 2017-04-20 | C183: 1.991393533 | D183: 2017-04-20 | E183: 2.386199277 | F183: 2017-04-20 | G183: 2.232 | H183: 2017-04-21 | I183: 2.248 | K183: 2017-04-20 | L183: -0.3948057442 | M183: 0.154199277
B184: 2017-04-19 | C184: 1.954666572 | D184: 2017-04-19 | E184: 2.333156036 | F184: 2017-04-19 | G184: 2.2143 | H184: 2017-04-20 | I184: 2.232 | K184: 2017-04-19 | L184: -0.378489464 | M184: 0.1188560358
B185: 2017-04-18 | C185: 1.923125303 | D185: 2017-04-18 | E185: 2.297843511 | F185: 2017-04-18 | G185: 2.1682 | H185: 2017-04-19 | I185: 2.2143 | K185: 2017-04-18 | L185: -0.3747182073 | M185: 0.1296435105
B186: 2017-04-17 | C186: 2.009138934 | D186: 2017-04-17 | E186: 2.391524573 | F186: 2017-04-17 | G186: 2.2498 | H186: 2017-04-18 | I186: 2.1682 | K186: 2017-04-17 | L186: -0.3823856384 | M186: 0.1417245728
B187: 2017-04-13 | C187: 1.977056469 | D187: 2017-04-13 | E187: 2.344171121 | F187: 2017-04-13 | G187: 2.2374 | H187: 2017-04-17 | I187: 2.2498 | K187: 2017-04-13 | L187: -0.3671146522 | M187: 0.1067711209
B188: 2017-04-12 | C188: 1.99019496 | D188: 2017-04-12 | E188: 2.345895562 | F188: 2017-04-12 | G188: 2.2392 | H188: 2017-04-13 | I188: 2.2374 | K188: 2017-04-12 | L188: -0.3557006019 | M188: 0.1066955623
B189: 2017-04-11 | C189: 2.04117107 | D189: 2017-04-11 | E189: 2.420482776 | F189: 2017-04-11 | G189: 2.2962 | H189: 2017-04-12 | I189: 2.2392 | K189: 2017-04-11 | L189: -0.3793117058 | M189: 0.1242827761
B190: 2017-04-10 | C190: 2.093598971 | D190: 2017-04-10 | E190: 2.477454006 | F190: 2017-04-10 | G190: 2.3661 | H190: 2017-04-11 | I190: 2.2962 | K190: 2017-04-10 | L190: -0.3838550354 | M190: 0.1113540063
B191: 2017-04-07 | C191: 2.118772611 | D191: 2017-04-07 | E191: 2.536871594 | F191: 2017-04-07 | G191: 2.3822 | H191: 2017-04-10 | I191: 2.3661 | K191: 2017-04-07 | L191: -0.4180989828 | M191: 0.1546715937
B192: 2017-04-06 | C192: 2.064467408 | D192: 2017-04-06 | E192: 2.465231317 | F192: 2017-04-06 | G192: 2.3408 | H192: 2017-04-07 | I192: 2.3822 | K192: 2017-04-06 | L192: -0.4007639089 | M192: 0.1244313167
B193: 2017-04-05 | C193: 2.059758294 | D193: 2017-04-05 | E193: 2.447772609 | F193: 2017-04-05 | G193: 2.3354 | H193: 2017-04-06 | I193: 2.3408 | K193: 2017-04-05 | L193: -0.3880143147 | M193: 0.1123726087
B194: 2017-04-04 | C194: 2.100725726 | D194: 2017-04-04 | E194: 2.514075348 | F194: 2017-04-04 | G194: 2.3605 | H194: 2017-04-05 | I194: 2.3354 | K194: 2017-04-04 | L194: -0.413349622 | M194: 0.153575348
B195: 2017-04-03 | C195: 2.1034414 | D195: 2017-04-03 | E195: 2.518340656 | F195: 2017-04-03 | G195: 2.3193 | H195: 2017-04-04 | I195: 2.3605 | K195: 2017-04-03 | L195: -0.4148992558 | M195: 0.1990406557
B196: 2017-03-31 | C196: 2.185905053 | D196: 2017-03-31 | E196: 2.628163452 | F196: 2017-03-31 | G196: 2.3874 | H196: 2017-04-03 | I196: 2.3193 | K196: 2017-03-31 | L196: -0.4422583981 | M196: 0.2407634515
B197: 2017-03-30 | C197: 2.19820168 | D197: 2017-03-30 | E197: 2.657100205 | F197: 2017-03-30 | G197: 2.4197 | H197: 2017-03-31 | I197: 2.3874 | K197: 2017-03-30 | L197: -0.4588985251 | M197: 0.2374002049
B198: 2017-03-29 | C198: 2.153956995 | D198: 2017-03-29 | E198: 2.603390273 | F198: 2017-03-29 | G198: 2.3765 | H198: 2017-03-30 | I198: 2.4197 | K198: 2017-03-29 | L198: -0.449433278 | M198: 0.2268902732
B199: 2017-03-28 | C199: 2.187599423 | D199: 2017-03-28 | E199: 2.639254861 | F199: 2017-03-28 | G199: 2.4178 | H199: 2017-03-29 | I199: 2.3765 | K199: 2017-03-28 | L199: -0.4516554384 | M199: 0.2214548611
B200: 2017-03-27 | C200: 2.155065346 | D200: 2017-03-27 | E200: 2.594742993 | F200: 2017-03-27 | G200: 2.3782 | H200: 2017-03-28 | I200: 2.4178 | K200: 2017-03-27 | L200: -0.439677647 | M200: 0.2165429926
B201: 2017-03-24 | C201: 2.196719616 | D201: 2017-03-24 | E201: 2.652733313 | F201: 2017-03-24 | G201: 2.4123 | H201: 2017-03-27 | I201: 2.3782 | K201: 2017-03-24 | L201: -0.4560136978 | M201: 0.2404333134
B202: 2017-03-23 | C202: 2.215932765 | D202: 2017-03-23 | E202: 2.637982636 | F202: 2017-03-23 | G202: 2.4194 | H202: 2017-03-24 | I202: 2.4123 | K202: 2017-03-23 | L202: -0.4220498713 | M202: 0.2185826365
B203: 2017-03-22 | C203: 2.194189449 | D203: 2017-03-22 | E203: 2.599769841 | F203: =B203 -> 2017-03-22 | G203: =IF(ISERROR(VLOOKUP(B203, $H$10:$I$1000, 2, FALSE)), "", VLOOKUP(B203, $H$10:$I$1000, 2, FALSE)) -> 2.405 | H203: 2017-03-23 | I203: 2.4194 | K203: =B203 -> 2017-03-22 | L203: =IF(OR(C203="", E203=""), "", C203-E203) -> -0.4055803917 | M203: =IF(OR(E203="", G203=""), "", E203-G203) -> 0.1947698409
B204: 2017-03-21 | C204: 2.221799583 | D204: 2017-03-21 | E204: 2.623824078 | F204: 2017-03-21 | G204: 2.4175 | H204: 2017-03-22 | I204: 2.405 | K204: 2017-03-21 | L204: -0.402024495 | M204: 0.2063240779
... 54 more rows

Sheet cf
B2: TAB: FX SWAP CASH FLOWS
B4: Date | C4: =curves!B11 -> 2017-12-28
B5: Tenor | C5: 10
B6: Yield | C6: =swap!C10 -> 
B7: Principal | C7: 10000000
B9: =_xll.AC.finance.swap.cf(C4, C5, C6, C7, calc!E7, calc!E10) -> java.lang.IllegalArgumentException: argument type mismatch | E9: =_xll.AC.data.size(B9, 1) -> -1 | F9: =_xll.AC.data.size(B9, 2) -> -1
E11: Leg 1: | F11: Leg 2: | G11: NPV:
E12: =calc!D7 -> CAD | F12: USD | G12: =SUM(G15:G102) -> 0
B13: Tenor | C13: Discount | D13: Fwd FX: S/Ft | E13: Payments (Rcv) | F13: Payments (Pay) | G13: Net Payment
B14: =_xll.AC.data._get(B9, "", 0) -> java.lang.IllegalArgumentException: argument type mismatch | C14: java.lang.IllegalArgumentException: argument type mismatch | D14: java.lang.IllegalArgumentException: argument type mismatch | E14: java.lang.IllegalArgumentException: argument type mismatch | F14: java.lang.IllegalArgumentException: argument type mismatch | G14: java.lang.IllegalArgumentException: argument type mismatch
B15: java.lang.IllegalArgumentException: argument type mismatch | C15: java.lang.IllegalArgumentException: argument type mismatch | D15: java.lang.IllegalArgumentException: argument type mismatch | E15: java.lang.IllegalArgumentException: argument type mismatch | F15: java.lang.IllegalArgumentException: argument type mismatch | G15: java.lang.IllegalArgumentException: argument type mismatch
B16: java.lang.IllegalArgumentException: argument type mismatch | C16: java.lang.IllegalArgumentException: argument type mismatch | D16: java.lang.IllegalArgumentException: argument type mismatch | E16: java.lang.IllegalArgumentException: argument type mismatch | F16: java.lang.IllegalArgumentException: argument type mismatch | G16: java.lang.IllegalArgumentException: argument type mismatch
B17: java.lang.IllegalArgumentException: argument type mismatch | C17: java.lang.IllegalArgumentException: argument type mismatch | D17: java.lang.IllegalArgumentException: argument type mismatch | E17: java.lang.IllegalArgumentException: argument type mismatch | F17: java.lang.IllegalArgumentException: argument type mismatch | G17: java.lang.IllegalArgumentException: argument type mismatch
B18: java.lang.IllegalArgumentException: argument type mismatch | C18: java.lang.IllegalArgumentException: argument type mismatch | D18: java.lang.IllegalArgumentException: argument type mismatch | E18: java.lang.IllegalArgumentException: argument type mismatch | F18: java.lang.IllegalArgumentException: argument type mismatch | G18: java.lang.IllegalArgumentException: argument type mismatch
B19: java.lang.IllegalArgumentException: argument type mismatch | C19: java.lang.IllegalArgumentException: argument type mismatch | D19: java.lang.IllegalArgumentException: argument type mismatch | E19: java.lang.IllegalArgumentException: argument type mismatch | F19: java.lang.IllegalArgumentException: argument type mismatch | G19: java.lang.IllegalArgumentException: argument type mismatch
B20: java.lang.IllegalArgumentException: argument type mismatch | C20: java.lang.IllegalArgumentException: argument type mismatch | D20: java.lang.IllegalArgumentException: argument type mismatch | E20: java.lang.IllegalArgumentException: argument type mismatch | F20: java.lang.IllegalArgumentException: argument type mismatch | G20: java.lang.IllegalArgumentException: argument type mismatch
B21: java.lang.IllegalArgumentException: argument type mismatch | C21: java.lang.IllegalArgumentException: argument type mismatch | D21: java.lang.IllegalArgumentException: argument type mismatch | E21: java.lang.IllegalArgumentException: argument type mismatch | F21: java.lang.IllegalArgumentException: argument type mismatch | G21: java.lang.IllegalArgumentException: argument type mismatch
B22: java.lang.IllegalArgumentException: argument type mismatch | C22: java.lang.IllegalArgumentException: argument type mismatch | D22: java.lang.IllegalArgumentException: argument type mismatch | E22: java.lang.IllegalArgumentException: argument type mismatch | F22: java.lang.IllegalArgumentException: argument type mismatch | G22: java.lang.IllegalArgumentException: argument type mismatch
B23: java.lang.IllegalArgumentException: argument type mismatch | C23: java.lang.IllegalArgumentException: argument type mismatch | D23: java.lang.IllegalArgumentException: argument type mismatch | E23: java.lang.IllegalArgumentException: argument type mismatch | F23: java.lang.IllegalArgumentException: argument type mismatch | G23: java.lang.IllegalArgumentException: argument type mismatch
B24: java.lang.IllegalArgumentException: argument type mismatch | C24: java.lang.IllegalArgumentException: argument type mismatch | D24: java.lang.IllegalArgumentException: argument type mismatch | E24: java.lang.IllegalArgumentException: argument type mismatch | F24: java.lang.IllegalArgumentException: argument type mismatch | G24: java.lang.IllegalArgumentException: argument type mismatch
B25: java.lang.IllegalArgumentException: argument type mismatch | C25: java.lang.IllegalArgumentException: argument type mismatch | D25: java.lang.IllegalArgumentException: argument type mismatch | E25: java.lang.IllegalArgumentException: argument type mismatch | F25: java.lang.IllegalArgumentException: argument type mismatch | G25: java.lang.IllegalArgumentException: argument type mismatch
B26: java.lang.IllegalArgumentException: argument type mismatch | C26: java.lang.IllegalArgumentException: argument type mismatch | D26: java.lang.IllegalArgumentException: argument type mismatch | E26: java.lang.IllegalArgumentException: argument type mismatch | F26: java.lang.IllegalArgumentException: argument type mismatch | G26: java.lang.IllegalArgumentException: argument type mismatch
B27: java.lang.IllegalArgumentException: argument type mismatch | C27: java.lang.IllegalArgumentException: argument type mismatch | D27: java.lang.IllegalArgumentException: argument type mismatch | E27: java.lang.IllegalArgumentException: argument type mismatch | F27: java.lang.IllegalArgumentException: argument type mismatch | G27: java.lang.IllegalArgumentException: argument type mismatch
B28: java.lang.IllegalArgumentException: argument type mismatch | C28: java.lang.IllegalArgumentException: argument type mismatch | D28: java.lang.IllegalArgumentException: argument type mismatch | E28: java.lang.IllegalArgumentException: argument type mismatch | F28: java.lang.IllegalArgumentException: argument type mismatch | G28: java.lang.IllegalArgumentException: argument type mismatch
B29: java.lang.IllegalArgumentException: argument type mismatch | C29: java.lang.IllegalArgumentException: argument type mismatch | D29: java.lang.IllegalArgumentException: argument type mismatch | E29: java.lang.IllegalArgumentException: argument type mismatch | F29: java.lang.IllegalArgumentException: argument type mismatch | G29: java.lang.IllegalArgumentException: argument type mismatch
B30: java.lang.IllegalArgumentException: argument type mismatch | C30: java.lang.IllegalArgumentException: argument type mismatch | D30: java.lang.IllegalArgumentException: argument type mismatch | E30: java.lang.IllegalArgumentException: argument type mismatch | F30: java.lang.IllegalArgumentException: argument type mismatch | G30: java.lang.IllegalArgumentException: argument type mismatch
B31: java.lang.IllegalArgumentException: argument type mismatch | C31: java.lang.IllegalArgumentException: argument type mismatch | D31: java.lang.IllegalArgumentException: argument type mismatch | E31: java.lang.IllegalArgumentException: argument type mismatch | F31: java.lang.IllegalArgumentException: argument type mismatch | G31: java.lang.IllegalArgumentException: argument type mismatch
B32: java.lang.IllegalArgumentException: argument type mismatch | C32: java.lang.IllegalArgumentException: argument type mismatch | D32: java.lang.IllegalArgumentException: argument type mismatch | E32: java.lang.IllegalArgumentException: argument type mismatch | F32: java.lang.IllegalArgumentException: argument type mismatch | G32: java.lang.IllegalArgumentException: argument type mismatch
B33: java.lang.IllegalArgumentException: argument type mismatch | C33: java.lang.IllegalArgumentException: argument type mismatch | D33: java.lang.IllegalArgumentException: argument type mismatch | E33: java.lang.IllegalArgumentException: argument type mismatch | F33: java.lang.IllegalArgumentException: argument type mismatch | G33: java.lang.IllegalArgumentException: argument type mismatch
B34: java.lang.IllegalArgumentException: argument type mismatch | C34: java.lang.IllegalArgumentException: argument type mismatch | D34: java.lang.IllegalArgumentException: argument type mismatch | E34: java.lang.IllegalArgumentException: argument type mismatch | F34: java.lang.IllegalArgumentException: argument type mismatch | G34: java.lang.IllegalArgumentException: argument type mismatch
B35: java.lang.IllegalArgumentException: argument type mismatch | C35: java.lang.IllegalArgumentException: argument type mismatch | D35: java.lang.IllegalArgumentException: argument type mismatch | E35: java.lang.IllegalArgumentException: argument type mismatch | F35: java.lang.IllegalArgumentException: argument type mismatch | G35: java.lang.IllegalArgumentException: argument type mismatch

Sheet calc
B2: TAB: CALCULATOR
B4: Description | E4: Name | F4: Object | I4: Size | L4: Key | M4: Value
B5: USD to CAD Swap | I5: # of dates | J5: # of series | L5: Parameters
B7: USD-to-CAD Forward rate | D7: =curves!C5 -> CAD | E7: =curves!B6 -> jeconkr.finance.FSTP.lib.model.fx.data.CurveFX@Sun, 24 Jun 2018 23:12:52:901..1325459906523674912 | I7: =_xll.AC.finance.irb.size(E7, 1) -> 260 | J7: =_xll.AC.finance.irb.size(E7, 2) -> 11 | L7: =config!E17 -> CRNCY_FROM | M7: CAD
B8: USD Float-to-Fixed swap curve | D8: =curves!P5 -> USSW | E8: =curves!O6 -> jeconkr.finance.FSTP.lib.model.swap.data.CurveSwap@Sun, 24 Jun 2018 23:12:52:905..514408064112231720 | I8: =_xll.AC.finance.irb.size(E8, 1) -> 258 | J8: =_xll.AC.finance.irb.size(E8, 2) -> 10 | L8: =config!E18 -> CRNCY_TO | M8: USD
L9: =config!E19 -> CPN_FREQ_FROM | M9: 2
B10: Risk-free discount factors based on USSW curve | D10: Discounts | E10: =_xll.AC.finance.discount.curve(D10, E8, 10) -> jeconkr.finance.FSTP.lib.discount.CurveDiscounts@Sun, 24 Jun 2018 23:12:52:913..4730464393693335641 | I10: =_xll.AC.finance.irb.size(E10, 1) -> 258 | J10: =_xll.AC.finance.irb.size(E10, 2) -> 21 | L10: =config!E20 -> CPN_FREQ_TO | M10: 2
L11: =config!E21 -> DAY_CNT_FROM | M11: =config!B27 -> ACT/365
B12: FX swap calculator | E12: =_xll.AC.finance.fx.swap(E7, E10) -> jeconkr.finance.FSTP.lib.model.swap.calculator.CalculatorSwapFX@Sun, 24 Jun 2018 23:12:52:933..3246472471170037881 | L12: =config!E22 -> DAY_CNT_TO | M12: =config!B24 -> 30/360
L13: =config!E23 -> TENOR | M13: =OFFSET(I22, D14, 0) -> 10
B14: Index of selected Canadian series | D14: 1
B15: Canadian series | D15: =OFFSET(D22, D14, 0) -> C10110Y | E15: =OFFSET(C22, D14, 0) -> jeconkr.finance.FSTP.lib.data.Series@Sun, 24 Jun 2018 23:12:52:810..6817710059887318416 | I15: =_xll.AC.finance.irb.size(E15, 1) -> 249
B16: Swapped Canadian series (CAD-to-USD) | E16: =_xll.AC.finance.swap.run(E12, E15, L16) -> jeconkr.finance.FSTP.lib.data.Series@Sun, 24 Jun 2018 23:13:36:644..3565185618953997103 | I16: =_xll.AC.finance.irb.size(E16, 1) -> 249 | L16: =_xll.AC.data.map(L7:L13, M7:M13) -> java.util.LinkedHashMap@Sun, 24 Jun 2018 23:12:31:595..2241333319074216444
B17: Matched US series | D17: =OFFSET(G22, D14, 0) -> USGG10YR | E17: =OFFSET(F22, D14, 0) -> jeconkr.finance.FSTP.lib.data.Series@Sun, 24 Jun 2018 23:12:52:817..4556854160855955323 | I17: =_xll.AC.finance.irb.size(E17, 1) -> 249
B20: Interest Rate Series
B22: # | C22: Canadian series | D22: Name | E22: Size | F22: Matching US Series | G22: =D22 -> Name | H22: =E22 -> Size | I22: Tenor | J22: Description
B23: 1 | C23: =_xll.AC.finance.irb.series(D23, YLDS!$E$6:$E$500, YLDS!$F$6:$F$500) -> jeconkr.finance.FSTP.lib.data.Series@Sun, 24 Jun 2018 23:12:52:810..6817710059887318416 | D23: =YLDS!E4 -> C10110Y | E23: =_xll.AC.finance.irb.size(C23, 1) -> 249 | F23: =_xll.AC.finance.irb.series(G23, YLDS!$G$6:$G$500, YLDS!$H$6:$H$500) -> jeconkr.finance.FSTP.lib.data.Series@Sun, 24 Jun 2018 23:12:52:817..4556854160855955323 | G23: =YLDS!G4 -> USGG10YR | H23: =_xll.AC.finance.irb.size(F23, 1) -> 249 | I23: 10 | J23: Sovereign 10-year curve
B24: =B23+1 -> 2 | C24: =_xll.AC.finance.irb.series(D24, YLDS!$L$6:$L$500, YLDS!$M$6:$M$500) -> jeconkr.finance.FSTP.lib.data.Series@Sun, 24 Jun 2018 23:12:52:823..8518553016921959180 | D24: =YLDS!L4 -> CDOR03 | E24: =_xll.AC.finance.irb.size(C24, 1) -> 249 | F24: =_xll.AC.finance.irb.series(G24, YLDS!$N$6:$N$500, YLDS!$O$6:$O$500) -> jeconkr.finance.FSTP.lib.data.Series@Sun, 24 Jun 2018 23:12:52:820..1732037304316708224 | G24: =YLDS!N4 -> US0003M | H24: =_xll.AC.finance.irb.size(F24, 1) -> 251 | I24: 0.25 | J24: Bankers' acceptance rate
B25: =B24+1 -> 3 | C25: =_xll.AC.finance.irb.series(D25, YLDS!$R$6:$R$500, YLDS!$S$6:$S$500) -> jeconkr.finance.FSTP.lib.data.Series@Sun, 24 Jun 2018 23:12:52:829..3834650042939182894 | D25: =YLDS!R4 -> CABROVER | E25: =_xll.AC.finance.irb.size(C25, 1) -> 249 | F25: =_xll.AC.finance.irb.series(G25, YLDS!$P$6:$P$500, YLDS!$Q$6:$Q$500) -> jeconkr.finance.FSTP.lib.data.Series@Sun, 24 Jun 2018 23:12:52:815..6928326777653383451 | G25: =YLDS!P4 -> FEDL01 | H25: =_xll.AC.finance.irb.size(F25, 1) -> 251 | I25: 0.01 | J25: BoC (Feds) overnight policy rate
B26: 4 | C26: =_xll.AC.finance.irb.series(D26, YLDS!$V$6:$V$500, YLDS!$W$6:$W$500) -> jeconkr.finance.FSTP.lib.data.Series@Sun, 24 Jun 2018 23:12:52:831..4398838867142991542 | D26: =YLDS!V4 -> PRIMCAN | E26: =_xll.AC.finance.irb.size(C26, 1) -> 249 | F26: =_xll.AC.finance.irb.series(G26, YLDS!$T$6:$T$500, YLDS!$U$6:$U$500) -> jeconkr.finance.FSTP.lib.data.Series@Sun, 24 Jun 2018 23:12:52:825..8048989904202195949 | G26: =YLDS!T4 -> PRIME | H26: =_xll.AC.finance.irb.size(F26, 1) -> 250 | I26: 1 | J26: Prime rate
B27: 5 | C27: =_xll.AC.finance.irb.series(D27, YLDS!$Z$6:$Z$500, YLDS!$AA$6:$AA$500) -> jeconkr.finance.FSTP.lib.data.Series@Sun, 24 Jun 2018 23:12:52:827..7405999716744352191 | D27: =YLDS!Z4 -> CANMORT5 | E27: =_xll.AC.finance.irb.size(C27, 1) -> 52 | F27: =_xll.AC.finance.irb.series(G27, YLDS!$AB$6:$AB$500, YLDS!$AC$6:$AC$500) -> jeconkr.finance.FSTP.lib.data.Series@Sun, 24 Jun 2018 23:12:52:828..7173457924805770237 | G27: =YLDS!AB4 -> MB301ARM | H27: =_xll.AC.finance.irb.size(F27, 1) -> 52 | I27: 5 | J27: Interest rate on residential real estate loans secured by mortgages

Sheet >FX
B2: TAB: TEMPLATE TESTING TAB (FX SWAP CALCULATOR OUTPUT)
B4: Ouput data frequency | E4: =config!B17 -> data-frequency | G4: =config!B18 -> daily-frequency | O4: Ouput data frequency | R4: =E4 -> data-frequency | T4: =G4 -> daily-frequency | AB4: Ouput data frequency | AE4: =R4 -> data-frequency | AG4: =T4 -> daily-frequency
B5: FX swap parameter | E5: =config!B13 -> fxswap-param | G5: =config!B14 -> fxswap-intercept | O5: FX swap parameter | R5: =E5 -> fxswap-param | T5: =config!B15 -> fxswap-slope | AB5: FX swap parameter | AE5: =R5 -> fxswap-param | AG5: =config!B16 -> fxswap-proxy
B6: =_xll.AC.finance.swap.get(calc!$E$12, G6, _xll.AC.data.map(E4:E5, G4:G5)) -> java.util.ArrayList@Sun, 24 Jun 2018 23:12:40:652..66045345841642510 | E6: =_xll.AC.data.size(B6, 1) -> 261 | F6: =_xll.AC.data.size(B6, 2) -> 12 | G6: =config!B8 -> fxswap-output | O6: =_xll.AC.finance.swap.get(calc!$E$12, T6, _xll.AC.data.map(R4:R5, T4:T5)) -> java.util.ArrayList@Sun, 24 Jun 2018 23:12:40:646..7478501541257397608 | R6: =_xll.AC.data.size(O6, 1) -> 261 | S6: =_xll.AC.data.size(O6, 2) -> 12 | T6: =G6 -> fxswap-output | AB6: =_xll.AC.finance.swap.get(calc!$E$12, AG6, _xll.AC.data.map(AE4:AE5, AG4:AG5)) -> java.util.ArrayList@Sun, 24 Jun 2018 23:12:40:649..5223736138620618077 | AE6: =_xll.AC.data.size(AB6, 1) -> 261 | AF6: =_xll.AC.data.size(AB6, 2) -> 12 | AG6: =G6 -> fxswap-output
B8: FX Swap Intercept Parameter | O8: FX Swap Slope Parameter | AB8: FX Swap Approximation
B9: =_xll.AC.data._get(B6, "", 0) -> Date | C9: 0 | D9: 1 | E9: 2 | F9: 3 | G9: 4 | H9: 5 | I9: 6 | J9: 7 | K9: 8 | L9: 9 | M9: 10 | O9: =_xll.AC.data._get(O6, "", 0) -> Date | P9: 0 | Q9: 1 | R9: 2 | S9: 3 | T9: 4 | U9: 5 | V9: 6 | W9: 7 | X9: 8 | Y9: 9 | Z9: 10 | AB9: =_xll.AC.data._get(AB6, "", 0) -> Date | AC9: 0 | AD9: 1 | AE9: 2 | AF9: 3 | AG9: 4 | AH9: 5 | AI9: 6 | AJ9: 7 | AK9: 8 | AL9: 9 | AM9: 10
B10: 2017-12-29 | C10: -0.303078514 | D10: -0.303078514 | E10: -0.2282795517 | F10: -0.209426584 | G10: -0.1569916044 | H10: -0.1173945945 | I10: -0.05859920796 | J10: -0.08009931149 | K10: -0.06389988188 | O10: 2017-12-29 | P10: 0.9969692149 | Q10: 0.9969692149 | R10: 0.9961859798 | S10: 0.9953359738 | T10: 0.9948933877 | U10: 0.994694367 | V10: 0.994939949 | W10: 0.9948111339 | X10: 0.9947667343 | AB10: 2017-12-29 | AC10: -0.303078514 | AD10: -0.303078514 | AE10: -0.2309563869 | AF10: -0.2144441017 | AG10: -0.1627746976 | AH10: -0.1232850749 | AI10: -0.06241002465 | AJ10: -0.08636273407 | AK10: -0.06987472894
B11: 2017-12-28 | C11: -0.353540175 | D11: -0.353540175 | E11: -0.2617634846 | F11: -0.2179223504 | G11: -0.1753172468 | H11: -0.1433540795 | I11: -0.0841523117 | J11: -0.1102051947 | K11: -0.09394110047 | L11: -0.06222501427 | M11: -0.05213747435 | O11: 2017-12-28 | P11: 0.9964645982 | Q11: 0.9964645982 | R11: 0.995596252 | S11: 0.9948531138 | T11: 0.9943436242 | U11: 0.9939898045 | V11: 0.9940901409 | W11: 0.9937733941 | X11: 0.99354783 | Y11: 0.9935726735 | Z11: 0.9936228408 | AB11: 2017-12-28 | AC11: -0.353540175 | AD11: -0.353540175 | AE11: -0.2648694745 | AF11: -0.223250623 | AG11: -0.181879851 | AH11: -0.1506521242 | AI11: -0.08969971725 | AJ11: -0.1189026685 | AK11: -0.1027954947 | AL11: -0.0691292355 | AM11: -0.05878693481
B12: 2017-12-27 | C12: -0.3708415646 | D12: -0.3708415646 | E12: -0.2756927987 | F12: -0.233432131 | G12: -0.2087555729 | H12: -0.1805667741 | I12: -0.1259720477 | J12: -0.1437784417 | K12: -0.1238271354 | L12: -0.0960685042 | M12: -0.07725845418 | O12: 2017-12-27 | P12: 0.9962915844 | Q12: 0.9962915844 | R12: 0.995369871 | S12: 0.994546073 | T12: 0.9937779489 | U12: 0.9931620584 | V12: 0.9929763167 | W12: 0.9924737467 | X12: 0.9921001295 | Y12: 0.9919338401 | Z12: 0.9918801554 | AB12: 2017-12-27 | AC12: -0.3708415646 | AD12: -0.3708415646 | AE12: -0.2789350531 | AF12: -0.2390802915 | AG12: -0.2164266038 | AH12: -0.1895755755 | AI12: -0.1341246863 | AJ12: -0.1549773024 | AK12: -0.1353689892 | AL12: -0.106603848 | AM12: -0.08702511671
B13: 2017-12-26 | C13: -0.3964688264 | D13: -0.3964688264 | E13: -0.3022884329 | F13: -0.2683532669 | G13: -0.2285139741 | H13: -0.1949238465 | I13: -0.1424057131 | J13: -0.1516865143 | K13: -0.131291547 | O13: 2017-12-26 | P13: 0.9960353117 | Q13: 0.9960353117 | R13: 0.9949743768 | S13: 0.99393054 | T13: 0.9931129829 | U13: 0.9924794328 | V13: 0.9922351463 | W13: 0.9917502596 | X13: 0.9913830811 | AB13: 2017-12-26 | AC13: -0.3964688264 | AD13: -0.3964688264 | AE13: -0.3058986257 | AF13: -0.2749202749 | AG13: -0.2371074354 | AH13: -0.204905159 | AI13: -0.1518720646 | AJ13: -0.1638497444 | AK13: -0.1438808291
B14: 2017-12-25 | O14: 2017-12-25 | AB14: 2017-12-25
B15: 2017-12-22 | C15: -0.3972817975 | D15: -0.3972817975 | E15: -0.3032322738 | F15: -0.2776259395 | G15: -0.2360847222 | H15: -0.2024485724 | I15: -0.1823309581 | J15: -0.1649340394 | K15: -0.1422923136 | L15: -0.1246305275 | M15: -0.09843115895 | O15: 2017-12-22 | P15: 0.996027182 | Q15: 0.996027182 | R15: 0.9949608152 | S15: 0.9938288751 | T15: 0.9929602218 | U15: 0.9922805309 | V15: 0.9916702237 | W15: 0.991127713 | X15: 0.9907215461 | Y15: 0.9904064449 | Z15: 0.9902746195 | AB15: 2017-12-22 | AC15: -0.3972817975 | AD15: -0.3972817975 | AE15: -0.3068577989 | AF15: -0.2844125058 | AG15: -0.2449871131 | AH15: -0.2128612198 | AI15: -0.1943321022 | AJ15: -0.1782734888 | AK15: -0.1560563349 | AL15: -0.1387464285 | AM15: -0.1113267426
B16: 2017-12-21 | C16: -0.3806122449 | D16: -0.3806122449 | E16: -0.2932816012 | F16: -0.2428121081 | G16: -0.2056268616 | H16: -0.1814842745 | I16: -0.1279637157 | J16: -0.153640428 | K16: -0.137385587 | L16: -0.1190934785 | M16: -0.1002018736 | O16: 2017-12-21 | P16: 0.9961938776 | Q16: 0.9961938776 | R16: 0.9951446675 | S16: 0.9943000586 | T16: 0.9936212861 | U16: 0.9930243035 | V16: 0.9928381455 | W16: 0.992253436 | X16: 0.9917675141 | Y16: 0.9914026869 | Z16: 0.9911649501 | AB16: 2017-12-21 | AC16: -0.3806122449 | AD16: -0.3806122449 | AE16: -0.2967511382 | AF16: -0.2487869343 | AG16: -0.2133979647 | AH16: -0.1908368757 | AI16: -0.1365195139 | AJ16: -0.1659959193 | AK16: -0.1506149742 | AL16: -0.1325689427 | AM16: -0.1132916894
B17: 2017-12-20 | C17: -0.3872224386 | D17: -0.3872224386 | E17: -0.3174195688 | F17: -0.2797233213 | G17: -0.2493741326 | H17: -0.2227952808 | I17: -0.1650422885 | J17: -0.194549761 | K17: -0.1817601127 | L17: -0.1659089204 | M17: -0.1462896954 | O17: 2017-12-20 | P17: 0.9961277756 | Q17: 0.9961277756 | R17: 0.9948704393 | S17: 0.9937474242 | T17: 0.9927663605 | U17: 0.9919211051 | V17: 0.9915383612 | W17: 0.9907188483 | X17: 0.9899667942 | Y17: 0.9893164453 | Z17: 0.9888051491 | AB17: 2017-12-20 | AC17: -0.3872224386 | AD17: -0.3872224386 | AE17: -0.3211233142 | AF17: -0.2864972074 | AG17: -0.2586959296 | AH17: -0.2342070755 | AI17: -0.1760751531 | AJ17: -0.2101803434 | AK17: -0.1992808004 | AL17: -0.1847116819 | AM17: -0.1654650305
B18: 2017-12-19 | C18: -0.4179220376 | D18: -0.4179220376 | E18: -0.3506572943 | F18: -0.3096009661 | G18: -0.2837419611 | H18: -0.2561678394 | I18: -0.197098798 | J18: -0.2246606494 | K18: -0.2060902414 | L18: -0.1815277624 | M18: -0.1586757924 | O18: 2017-12-19 | P18: 0.9958207796 | Q18: 0.9958207796 | R18: 0.9943835461 | S18: 0.9931215277 | T18: 0.9919497235 | U18: 0.9909286702 | V18: 0.990383391 | W18: 0.989418931 | X18: 0.9885753011 | Y18: 0.9879107207 | Z18: 0.9874027208 | AB18: 2017-12-19 | AC18: -0.4179220376 | AD18: -0.4179220376 | AE18: -0.3547213867 | AF18: -0.3170469894 | AG18: -0.294237541 | AH18: -0.2691573972 | AI18: -0.2101133905 | AJ18: -0.2424773558 | AK18: -0.2257033493 | AL18: -0.2018779202 | AM18: -0.1792618182
B19: 2017-12-18 | C19: -0.4550614212 | D19: -0.4550614212 | E19: -0.3679030757 | F19: -0.3289715147 | G19: -0.3013436303 | H19: -0.2779878997 | I19: -0.209329166 | J19: -0.2333896141 | K19: -0.2181445514 | L19: -0.1957435251 | M19: -0.1769249299 | O19: 2017-12-18 | P19: 0.9954493858 | Q19: 0.9954493858 | R19: 0.994023978 | S19: 0.9926868445 | T19: 0.991446074 | U19: 0.9903061089 | V19: 0.9897391186 | W19: 0.9887760146 | X19: 0.9878894696 | Y19: 0.9871560946 | Z19: 0.9865379953 | AB19: 2017-12-18 | AC19: -0.4550614212 | AD19: -0.4550614212 | AE19: -0.3721354343 | AF19: -0.3367466635 | AG19: -0.3122587946 | AH19: -0.2916983568 | AI19: -0.2228205005 | AJ19: -0.2514614391 | AK19: -0.2383338114 | AL19: -0.217056703 | AM19: -0.1991790064
B20: 2017-12-15 | C20: -0.4779263174 | D20: -0.4779263174 | E20: -0.3830272944 | F20: -0.3380439545 | G20: -0.3097435894 | H20: -0.2844071776 | I20: -0.2131119797 | J20: -0.2471257955 | K20: -0.2174055176 | L20: -0.1905441136 | M20: -0.1660246221 | O20: 2017-12-15 | P20: 0.9952207368 | Q20: 0.9952207368 | R20: 0.9937575341 | S20: 0.9924169286 | T20: 0.9911582369 | U20: 0.9900102924 | V20: 0.9894533546 | W20: 0.988394024 | X20: 0.987560883 | Y20: 0.9869145253 | Z20: 0.9864287129 | AB20: 2017-12-15 | AC20: -0.4779263174 | AD20: -0.4779263174 | AE20: -0.3874285707 | AF20: -0.346032524 | AG20: -0.3208907093 | AH20: -0.2982922189 | AI20: -0.2266810108 | AJ20: -0.265817628 | AK20: -0.2371724299 | AL20: -0.2109355715 | AM20: -0.186541817
B21: 2017-12-14 | C21: -0.4514339298 | D21: -0.4514339298 | E21: -0.3632220218 | F21: -0.3159509418 | G21: -0.2925496394 | H21: -0.2664255038 | I21: -0.2031696322 | J21: -0.2145033905 | K21: -0.1928314178 | L21: -0.1725655419 | M21: -0.1517503392 | O21: 2017-12-14 | P21: 0.9954856607 | Q21: 0.9954856607 | R21: 0.9940892781 | S21: 0.9928609504 | T21: 0.9916664691 | U21: 0.9906002305 | V21: 0.9900496882 | W21: 0.9892344306 | X21: 0.9885480895 | Y21: 0.9879804311 | Z21: 0.9875407035 | AB21: 2017-12-14 | AC21: -0.4514339298 | AD21: -0.4514339298 | AE21: -0.3673622801 | AF21: -0.3233858304 | AG21: -0.3030076196 | AH21: -0.2794349476 | AI21: -0.2160577835 | AJ21: -0.2308879497 | AK21: -0.2104797382 | AL21: -0.1910729576 | AM21: -0.1705377841
B22: 2017-12-13 | C22: -0.4530701412 | D22: -0.4530701412 | E22: -0.3869736269 | F22: -0.3336216593 | G22: -0.3075918254 | H22: -0.2799934117 | I22: -0.2164950539 | J22: -0.2367572796 | K22: -0.2067368821 | L22: -0.1796940418 | M22: -0.1564014574 | O22: 2017-12-13 | P22: 0.9954692986 | Q22: 0.9954692986 | R22: 0.9938444733 | S22: 0.9925205816 | T22: 0.9912592413 | U22: 0.9901367268 | V22: 0.9895268205 | W22: 0.9885602199 | X22: 0.9878130827 | Y22: 0.9872477961 | Z22: 0.9868259573 | AB22: 2017-12-13 | AC22: -0.4530701412 | AD22: -0.4530701412 | AE22: -0.3912624276 | AF22: -0.3413369912 | AG22: -0.318480063 | AH22: -0.293517959 | AI22: -0.2301832583 | AJ22: -0.2547841948 | AK22: -0.2256961863 | AL22: -0.1991376819 | AM22: -0.1760071563
B23: 2017-12-12 | C23: -0.4646354733 | D23: -0.4646354733 | E23: -0.4091242733 | F23: -0.3617139641 | G23: -0.328591346 | H23: -0.2974577328 | I23: -0.2787892032 | J23: -0.2533603928 | K23: -0.2288888096 | L23: -0.2049888808 | M23: -0.1853134514 | O23: 2017-12-12 | P23: 0.9953536453 | Q23: 0.9953536453 | R23: 0.9935642801 | S23: 0.992050415 | T23: 0.9906915722 | U23: 0.9895008808 | V23: 0.9883697996 | W23: 0.9873886678 | X23: 0.9865525043 | Y23: 0.9858593962 | Z23: 0.9852713512 | AB23: 2017-12-12 | AC23: -0.4646354733 | AD23: -0.4646354733 | AE23: -0.4137660069 | AF23: -0.3703005652 | AG23: -0.340613982 | AH23: -0.3123760818 | AI23: -0.2966364564 | AJ23: -0.2733784288 | AK23: -0.2505639089 | AL23: -0.2278106312 | AM23: -0.2090915221
B24: 2017-12-11 | C24: -0.4511512134 | D24: -0.4511512134 | E24: -0.3922728889 | F24: -0.3484037942 | G24: -0.319645986 | H24: -0.286390207 | I24: -0.215422618 | J24: -0.2299351077 | K24: -0.2045683555 | L24: -0.1879548467 | M24: -0.1625996988 | O24: 2017-12-11 | P24: 0.9954884879 | Q24: 0.9954884879 | R24: 0.9938007126 | S24: 0.9923427308 | T24: 0.9910027041 | U24: 0.9898632443 | V24: 0.9893041019 | W24: 0.9884318582 | X24: 0.987717615 | Y24: 0.987076839 | Z24: 0.9866058933 | AB24: 2017-12-11 | AC24: -0.4511512134 | AD24: -0.4511512134 | AE24: -0.3967109801 | AF24: -0.3566166437 | AG24: -0.331254948 | AH24: -0.3006511822 | AI24: -0.2294809461 | AJ24: -0.2480264537 | AK24: -0.2239195887 | AL24: -0.2087982489 | AM24: -0.1834295431
B25: 2017-12-08 | C25: -0.4457503113 | D25: -0.4457503113 | E25: -0.3817324668 | F25: -0.3338554141 | G25: -0.3024749944 | H25: -0.2722471741 | I25: -0.2300507236 | J25: -0.2261441103 | K25: -0.2049948403 | L25: -0.1814570041 | M25: -0.1609041277 | O25: 2017-12-08 | P25: 0.9955424969 | Q25: 0.9955424969 | R25: 0.9939334367 | S25: 0.9925774929 | T25: 0.9913522026 | U25: 0.9902871851 | V25: 0.9895173676 | W25: 0.9886549749 | X25: 0.9879115516 | Y25: 0.9873163706 | Z25: 0.9868414478 | AB25: 2017-12-08 | AC25: -0.4457503113 | AD25: -0.4457503113 | AE25: -0.386019026 | AF25: -0.3416860894 | AG25: -0.3133863412 | AH25: -0.2857189573 | AI25: -0.2447865096 | AJ25: -0.2438374916 | AK25: -0.2242577799 | AL25: -0.2014918131 | AM25: -0.1814242071
B26: 2017-12-07 | C26: -0.4496654738 | D26: -0.4496654738 | E26: -0.3854191569 | F26: -0.3370862772 | G26: -0.3026075113 | H26: -0.2786699566 | I26: -0.205707207 | J26: -0.229073217 | K26: -0.2083463544 | L26: -0.1838482637 | M26: -0.1622778459 | O26: 2017-12-07 | P26: 0.9955033453 | Q26: 0.9955033453 | R26: 0.9938768764 | S26: 0.9925072903 | T26: 0.991297639 | U26: 0.9901792329 | V26: 0.9896678563 | W26: 0.9887568552 | X26: 0.9879692852 | Y26: 0.9873452755 | Z26: 0.9868549182 | AB26: 2017-12-07 | AC26: -0.4496654738 | AD26: -0.4496654738 | AE26: -0.3897434737 | AF26: -0.3449727295 | AG26: -0.3135338656 | AH26: -0.2924319568 | AI26: -0.2190268477 | AJ26: -0.2468809038 | AK26: -0.2277584052 | AL26: -0.2040150924 | AM26: -0.1828414111
B27: 2017-12-06 | C27: -0.4381108765 | D27: -0.4381108765 | E27: -0.3808082396 | F27: -0.3232409978 | G27: -0.2865586236 | H27: -0.257757694 | I27: -0.1920251494 | J27: -0.2135510641 | K27: -0.1949074316 | L27: -0.1568682446 | M27: -0.1321643549 | O27: 2017-12-06 | P27: 0.9956188912 | Q27: 0.9956188912 | R27: 0.9939813771 | S27: 0.9927158098 | T27: 0.9916157717 | U27: 0.9906450726 | V27: 0.9901975084 | W27: 0.9893711239 | X27: 0.9886475025 | Y27: 0.9882238801 | Z27: 0.9879548323 | AB27: 2017-12-06 | AC27: -0.4381108765 | AD27: -0.4381108765 | AE27: -0.385055986 | AF27: -0.3308035313 | AG27: -0.2968860071 | AH27: -0.2704399606 | AI27: -0.2043407495 | AJ27: -0.2300140398 | AK27: -0.2128940094 | AL27: -0.1740110429 | AM27: -0.1488545918
B28: 2017-12-05 | C28: -0.390040186 | D28: -0.390040186 | E28: -0.3238787826 | F28: -0.29500834 | G28: -0.2626982483 | H28: -0.2313572762 | I28: -0.1723250021 | J28: -0.1909329933 | K28: -0.1734535194 | L28: -0.1393029559 | M28: -0.1145613153 | O28: 2017-12-05 | P28: 0.9960995981 | Q28: 0.9960995981 | R28: 0.9947923765 | S28: 0.9935436096 | T28: 0.9924809427 | U28: 0.9916074951 | V28: 0.991204692 | W28: 0.9904689402 | X28: 0.9898322967 | Y28: 0.9894640915 | Z28: 0.9892593956 | AB28: 2017-12-05 | AC28: -0.390040186 | AD28: -0.390040186 | AE28: -0.3275397998 | AF28: -0.3019112962 | AG28: -0.2721673415 | AH28: -0.24276436 | AI28: -0.183382738 | AJ28: -0.2056841672 | AK28: -0.1894757246 | AL28: -0.1545162186 | AM28: -0.1290264639
B29: 2017-12-04 | C29: -0.3542965359 | D29: -0.3542965359 | E29: -0.2969609723 | F29: -0.2693186428 | G29: -0.2379121184 | H29: -0.2061425387 | I29: -0.1550775731 | J29: -0.1686391247 | K29: -0.1500213755 | L29: -0.121196702 | M29: -0.0977356694 | O29: 2017-12-04 | P29: 0.9964570346 | Q29: 0.9964570346 | R29: 0.9952418391 | S29: 0.9941027159 | T29: 0.9931517607 | U29: 0.9924010053 | V29: 0.9920449727 | W29: 0.9914185063 | X29: 0.9909047082 | Y29: 0.9906076468 | Z29: 0.9904671055 | AB29: 2017-12-04 | AC29: -0.3542965359 | AD29: -0.3542965359 | AE29: -0.3003009784 | AF29: -0.2756215431 | AG29: -0.2465109011 | AH29: -0.2163527535 | AI29: -0.1650712036 | AJ29: -0.1818003923 | AK29: -0.164081321 | AL29: -0.1345940115 | AM29: -0.1102430872
B30: 2017-12-01 | C30: -0.3510445408 | D30: -0.3510445408 | E30: -0.3100576021 | F30: -0.2768991388 | G30: -0.2466278061 | H30: -0.2205935381 | I30: -0.1612680398 | J30: -0.1729313045 | K30: -0.1463523753 | L30: -0.1184755802 | M30: -0.07419730668 | O30: 2017-12-01 | P30: 0.9964895546 | Q30: 0.9964895546 | R30: 0.9951278784 | S30: 0.9939508088 | T30: 0.9929504282 | U30: 0.9920951478 | V30: 0.9917263781 | W30: 0.9911003656 | X30: 0.9906601923 | Y30: 0.9904155871 | Z30: 0.9905262398 | AB30: 2017-12-01 | AC30: -0.3510445408 | AD30: -0.3510445408 | AE30: -0.3134593564 | AF30: -0.2832876367 | AG30: -0.2554112296 | AH30: -0.2313398641 | AI30: -0.1715393768 | AJ30: -0.1862961397 | AK30: -0.1599883975 | AL30: -0.1314648354 | AM30: -0.08372030304
B31: 2017-11-30 | C31: -0.458478716 | D31: -0.458478716 | E31: -0.4142265885 | F31: -0.3720603519 | G31: -0.3292210066 | H31: -0.3010600397 | I31: -0.2599672505 | J31: -0.2461230579 | K31: -0.2190327968 | L31: -0.1846062216 | M31: -0.1545228217 | O31: 2017-11-30 | P31: 0.9954152128 | Q31: 0.9954152128 | R31: 0.9935450451 | S31: 0.9919350963 | T31: 0.9905985279 | U31: 0.9893905826 | V31: 0.9884636696 | W31: 0.987541707 | X31: 0.9867849028 | Y31: 0.9862692161 | Z31: 0.9859477721 | AB31: 2017-11-30 | AC31: -0.458478716 | AD31: -0.458478716 | AE31: -0.418803632 | AF31: -0.3807349239 | AG31: -0.3411619246 | AH31: -0.3160175577 | AI31: -0.2767127104 | AJ31: -0.2656237661 | AK31: -0.2399484245 | AL31: -0.2054310984 | AM31: -0.1747413234
B32: 2017-11-29 | C32: -0.4376991838 | D32: -0.4376991838 | E32: -0.3832777987 | F32: -0.3381617139 | G32: -0.3084774254 | H32: -0.2719783678 | I32: -0.2167226984 | J32: -0.225888384 | K32: -0.2010145067 | L32: -0.16317578 | M32: -0.1345528497 | O32: 2017-11-29 | P32: 0.9956230082 | Q32: 0.9956230082 | R32: 0.9939593129 | S32: 0.9925528712 | T32: 0.9912746002 | U32: 0.9902277036 | V32: 0.9895998272 | W32: 0.9887292514 | X32: 0.9880168239 | Y32: 0.9875915773 | Z32: 0.9873520868 | AB32: 2017-11-29 | AC32: -0.4376991838 | AD32: -0.4376991838 | AE32: -0.3874587442 | AF32: -0.3459290631 | AG32: -0.3194442408 | AH32: -0.285339237 | AI32: -0.2306299868 | AJ32: -0.2435129119 | AK32: -0.2199129856 | AL32: -0.1813856142 | AM32: -0.151987503
B33: 2017-11-28 | C33: -0.4349590324 | D33: -0.4349590324 | E33: -0.3776278855 | F33: -0.3369563183 | G33: -0.3000050165 | H33: -0.267112598 | I33: -0.2226384914 | J33: -0.2133139086 | K33: -0.1844297014 | L33: -0.1445450634 | M33: -0.1277542892 | O33: 2017-11-28 | P33: 0.9956504097 | Q33: 0.9956504097 | R33: 0.9940299049 | S33: 0.9926133295 | T33: 0.9914061158 | U33: 0.9903844027 | V33: 0.9896758257 | W33: 0.9889227524 | X33: 0.988355563 | Y33: 0.988084283 | Z33: 0.9878721726 | AB33: 2017-11-28 | AC33: -0.4349590324 | AD33: -0.4349590324 | AE33: -0.3816882423 | AF33: -0.3445333082 | AG33: -0.310455626 | AH33: -0.2799082816 | AI33: -0.23646963 | AJ33: -0.2295441372 | AK33: -0.2013745917 | AL33: -0.1602991525 | AM33: -0.1438064922
B34: 2017-11-27 | C34: -0.4286944945 | D34: -0.4286944945 | E34: -0.3775651645 | F34: -0.3147440611 | G34: -0.2772869876 | H34: -0.2398783341 | I34: -0.187655834 | J34: -0.1893747621 | K34: -0.1620059655 | L34: -0.1343557206 | M34: -0.1115928171 | O34: 2017-11-27 | P34: 0.9957130551 | Q34: 0.9957130551 | R34: 0.9940622021 | S34: 0.9928564876 | T34: 0.9918165998 | U34: 0.9909878639 | V34: 0.990532008 | W34: 0.9899031665 | X34: 0.9894460721 | Y34: 0.9891668339 | Z34: 0.9890187713 | AB34: 2017-11-27 | AC34: -0.4286944945 | AD34: -0.4286944945 | AE34: -0.3816115262 | AF34: -0.3218639438 | AG34: -0.2869836787 | AH34: -0.2513187879 | AI34: -0.199388415 | AJ34: -0.2037404417 | AK34: -0.176907938 | AL34: -0.1489160912 | AM34: -0.1256117151
B35: 2017-11-24 | C35: -0.4169288861 | D35: -0.4169288861 | E35: -0.371868416 | F35: -0.3176681443 | G35: -0.2798002048 | H35: -0.2492810346 | I35: -0.195893609 | J35: -0.1958587433 | O35: 2017-11-24 | P35: 0.9958307111 | Q35: 0.9958307111 | R35: 0.9941783958 | S35: 0.9929052599 | T35: 0.9918282368 | U35: 0.9909029312 | V35: 0.990377762 | W35: 0.9897037337 | AB35: 2017-11-24 | AC35: -0.4169288861 | AD35: -0.4169288861 | AE35: -0.3758636993 | AF35: -0.3248954173 | AG35: -0.2896250699 | AH35: -0.2612736098 | AI35: -0.2082343798 | AJ35: -0.210918153 | AL35: -0.1595700669 | AM35: -0.1323143088
B36: 2017-11-23 | C36: -0.4087941477 | D36: -0.4087941477 | E36: -0.3500585717 | F36: -0.3179512012 | G36: -0.260332685 | H36: -0.225114492 | I36: -0.1858408086 | J36: -0.1814867436 | K36: -0.1272837105 | L36: -0.1172161685 | M36: -0.09750904844 | O36: 2017-11-23 | P36: 0.9959120585 | Q36: 0.9959120585 | R36: 0.9944373686 | S36: 0.9930774558 | T36: 0.9921531995 | U36: 0.9914066848 | V36: 0.9909031327 | W36: 0.9903025357 | X36: 0.9901441892 | Y36: 0.9899650515 | Z36: 0.9898855441 | AB36: 2017-11-23 | AC36: -0.4087941477 | AD36: -0.4087941477 | AE36: -0.3538076818 | AF36: -0.3250545156 | AG36: -0.2694145045 | AH36: -0.2359094674 | AI36: -0.1974242979 | AJ36: -0.1953745395 | AK36: -0.1391164531 | AL36: -0.1299373126 | AM36: -0.1097991678
B37: 2017-11-22 | C37: -0.3978418399 | D37: -0.3978418399 | E37: -0.3413512691 | F37: -0.2897360689 | G37: -0.2566912649 | H37: -0.215172183 | I37: -0.1720016884 | J37: -0.1569757784 | K37: -0.1257789587 | L37: -0.1108360876 | M37: -0.08685826931 | O37: 2017-11-22 | P37: 0.9960215816 | Q37: 0.9960215816 | R37: 0.9945796701 | S37: 0.9934546316 | T37: 0.9924754408 | U37: 0.9917662303 | V37: 0.9913439658 | W37: 0.9909285184 | X37: 0.9907136485 | Y37: 0.9905406865 | Z37: 0.9905160587 | AB37: 2017-11-22 | AC37: -0.3978418399 | AD37: -0.3978418399 | AE37: -0.3449949184 | AF37: -0.2962453666 | AG37: -0.2656081703 | AH37: -0.2254948189 | AI37: -0.1827140122 | AJ37: -0.1690178014 | AK37: -0.1374147564 | AL37: -0.1228628125 | AM37: -0.09778264218
B38: 2017-11-21 | C38: -0.4116450149 | D38: -0.4116450149 | E38: -0.3684081036 | F38: -0.3320085205 | G38: -0.290485953 | H38: -0.252002571 | I38: -0.1909962047 | J38: -0.1867519818 | K38: -0.1604020872 | L38: -0.1270023361 | M38: -0.1010938574 | O38: 2017-11-21 | P38: 0.9958835499 | Q38: 0.9958835499 | R38: 0.9942392863 | S38: 0.992802768 | T38: 0.9916431817 | U38: 0.9907248284 | V38: 0.9902752867 | W38: 0.9897042052 | X38: 0.9892840522 | Y38: 0.9890918908 | Z38: 0.9890527348 | AB38: 2017-11-21 | AC38: -0.4116450149 | AD38: -0.4116450149 | AE38: -0.3724261718 | AF38: -0.3396245167 | AG38: -0.3008343735 | AH38: -0.264361652 | AI38: -0.2031998591 | AJ38: -0.2013327168 | AK38: -0.1754455352 | AL38: -0.1410868162 | AM38: -0.1140599455
B39: 2017-11-20 | C39: -0.3892355694 | D39: -0.3892355694 | E39: -0.3370342662 | F39: -0.2951541161 | G39: -0.2509750831 | H39: -0.2143057731 | I39: -0.1728470106 | J39: -0.159032152 | K39: -0.1288805014 | L39: -0.08817854636 | M39: -0.06222670335 | O39: 2017-11-20 | P39: 0.9961076443 | Q39: 0.9961076443 | R39: 0.9946659725 | S39: 0.9934581287 | T39: 0.9925339504 | U39: 0.9918208142 | V39: 0.9913800348 | W39: 0.9909376113 | X39: 0.9906889809 | Y39: 0.9907410639 | Z39: 0.9909409565 | AB39: 2017-11-20 | AC39: -0.3892355694 | AD39: -0.3892355694 | AE39: -0.3406738973 | AF39: -0.3018723909 | AG39: -0.2598841977 | AH39: -0.2247993774 | AI39: -0.1838250427 | AJ39: -0.1714836492 | AK39: -0.1410512442 | AL39: -0.09806973533 | AM39: -0.07029998065
B40: 2017-11-17 | C40: -0.3785160229 | D40: -0.3785160229 | E40: -0.3161498294 | F40: -0.2729987568 | G40: -0.2299583118 | H40: -0.1943585292 | I40: -0.1393064638 | J40: -0.1393258484 | K40: -0.1189056322 | L40: -0.08674855544 | M40: -0.06146527577 | O40: 2017-11-17 | P40: 0.9962148398 | Q40: 0.9962148398 | R40: 0.9949289645 | S40: 0.993856941 | T40: 0.9930465476 | U40: 0.9924349098 | V40: 0.9922321541 | W40: 0.9918735702 | X40: 0.9916180953 | Y40: 0.9915927339 | Z40: 0.9917258525 | AB40: 2017-11-17 | AC40: -0.3785160229 | AD40: -0.3785160229 | AE40: -0.3195185307 | AF40: -0.279108884 | AG40: -0.2379986596 | AH40: -0.20375901 | AI40: -0.1481092902 | AJ40: -0.1501017017 | AK40: -0.1299675598 | AL40: -0.09630721088 | AM40: -0.06932185869
B41: 2017-11-16 | C41: -0.3581563063 | D41: -0.3581563063 | E41: -0.3002309471 | F41: -0.2539578913 | G41: -0.2130019903 | H41: -0.1790602323 | I41: -0.1231782262 | J41: -0.1255685943 | K41: -0.107973772 | L41: -0.08581226804 | M41: -0.06068543868 | O41: 2017-11-16 | P41: 0.9964184369 | Q41: 0.9964184369 | R41: 0.9951907137 | S41: 0.9942228932 | T41: 0.9934926003 | U41: 0.9929479885 | V41: 0.9928243485 | W41: 0.9925231193 | X41: 0.9923009016 | Y41: 0.9922153756 | Z41: 0.9922997217 | AB41: 2017-11-16 | AC41: -0.3581563063 | AD41: -0.3581563063 | AE41: -0.3034312706 | AF41: -0.2596950222 | AG41: -0.2205095921 | AH41: -0.1877381594 | AI41: -0.1310759994 | AJ41: -0.1354103719 | AK41: -0.118168065 | AL41: -0.09537844608 | AM41: -0.06855791221
B42: 2017-11-15 | C42: -0.3534158571 | D42: -0.3534158571 | E42: -0.3040307371 | F42: -0.2548881213 | G42: -0.2123726292 | H42: -0.178666137 | I42: -0.1295231702 | J42: -0.1263168843 | K42: -0.101905087 | L42: -0.07690630027 | M42: -0.06129445139 | O42: 2017-11-15 | P42: 0.9964658414 | Q42: 0.9964658414 | R42: 0.9951771083 | S42: 0.9942051876 | T42: 0.9934864827 | U42: 0.99294806 | V42: 0.9927631621 | W42: 0.9924642922 | X42: 0.9923111265 | Y42: 0.9923152293 | Z42: 0.9923869762 | AB42: 2017-11-15 | AC42: -0.3534158571 | AD42: -0.3534158571 | AE42: -0.3071938711 | AF42: -0.2605235342 | AG42: -0.2196981925 | AH42: -0.1871612005 | AI42: -0.1375766724 | AJ42: -0.1359789802 | AK42: -0.111291202 | AL42: -0.0852688387 | AM42: -0.0690089553
B43: 2017-11-14 | C43: -0.3487550075 | D43: -0.3487550075 | E43: -0.2977586618 | F43: -0.2514951128 | G43: -0.2042009151 | H43: -0.1742772698 | I43: -0.1309383125 | J43: -0.1250567633 | K43: -0.1026425685 | L43: -0.07939693841 | M43: -0.05589823684 | O43: 2017-11-14 | P43: 0.9965124499 | Q43: 0.9965124499 | R43: 0.9952630312 | S43: 0.9942964979 | T43: 0.9936363425 | U43: 0.9931117923 | V43: 0.9928856615 | W43: 0.992581353 | X43: 0.9924060477 | Y43: 0.9923741897 | Z43: 0.9924926302 | AB43: 2017-11-14 | AC43: -0.3487550075 | AD43: -0.3487550075 | AE43: -0.3009004314 | AF43: -0.2571211542 | AG43: -0.2113753998 | AH43: -0.1827419222 | AI43: -0.1392527685 | AJ43: -0.1348622167 | AK43: -0.112273518 | AL43: -0.08821505124 | AM43: -0.06310403752
B44: 2017-11-13 | C44: -0.353412393 | D44: -0.353412393 | E44: -0.3041242941 | F44: -0.2613099715 | G44: -0.225609574 | H44: -0.1969814055 | I44: -0.1469202875 | J44: -0.1530620475 | K44: -0.1326670707 | L44: -0.1008591609 | M44: -0.07628624151 | O44: 2017-11-13 | P44: 0.9964658761 | Q44: 0.9964658761 | R44: 0.9951758287 | S44: 0.9941394747 | T44: 0.9933034931 | U44: 0.9926158118 | V44: 0.9923074381 | W44: 0.9918008842 | X44: 0.9914144955 | Y44: 0.9912665585 | Z44: 0.9912784223 | AB44: 2017-11-13 | AC44: -0.353412393 | AD44: -0.353412393 | AE44: -0.3073520878 | AF44: -0.2672125123 | AG44: -0.2335784385 | AH44: -0.2066165949 | AI44: -0.1563732819 | AJ44: -0.1650677931 | AK44: -0.1453417736 | AL44: -0.112294843 | AM44: -0.08633163648
B45: 2017-11-10 | C45: -0.3370919413 | D45: -0.3370919413 | E45: -0.2841869772 | F45: -0.2392010965 | G45: -0.2027289843 | H45: -0.1792023639 | I45: -0.1326582007 | J45: -0.1378672117 | K45: -0.1203573987 | L45: -0.09247734474 | M45: -0.06081674068 | O45: 2017-11-10 | P45: 0.9966290806 | Q45: 0.9966290806 | R45: 0.9954576347 | S45: 0.994550482 | T45: 0.9938437162 | U45: 0.993230382 | V45: 0.9929681935 | W45: 0.9925251862 | X45: 0.9921791357 | Y45: 0.9920387211 | Z45: 0.9921365043 | AB45: 2017-11-10 | AC45: -0.3370919413 | AD45: -0.3370919413 | AE45: -0.2871572894 | AF45: -0.2445126375 | AG45: -0.2098141137 | AH45: -0.1878992458 | AI45: -0.1411161589 | AJ45: -0.1486778231 | AK45: -0.1317464947 | AL45: -0.1028772575 | AM45: -0.06879799874
B46: 2017-11-09 | C46: -0.3311519357 | D46: -0.3311519357 | E46: -0.2754775364 | F46: -0.2279573184 | G46: -0.1930588612 | H46: -0.1658672748 | I46: -0.1153813219 | J46: -0.1213777753 | K46: -0.1032648931 | L46: -0.02128638639 | M46: -0.05530931007 | O46: 2017-11-09 | P46: 0.9966884806 | Q46: 0.9966884806 | R46: 0.995574848 | S46: 0.9947420602 | T46: 0.9940861657 | U46: 0.9935605441 | V46: 0.9934199974 | W46: 0.9930828516 | X46: 0.9928448912 | Y46: 0.9933474726 | Z46: 0.9933865962 | AB46: 2017-11-09 | AC46: -0.3311519357 | AD46: -0.3311519357 | AE46: -0.2783183945 | AF46: -0.2329530887 | AG46: -0.1996826918 | AH46: -0.1737478733 | AI46: -0.1225859025 | AJ46: -0.1306627907 | AK46: -0.1127994478 | AL46: -0.02367611965 | AM46: -0.06230480587
B47: 2017-11-08 | C47: -0.3448032053 | D47: -0.3448032053 | E47: -0.2988465218 | F47: -0.2551341972 | G47: -0.2119375013 | H47: -0.1816629072 | I47: -0.145320504 | J47: -0.1286671985 | K47: -0.1095734051 | L47: -0.03777074744 | M47: -0.06258934569 | O47: 2017-11-08 | P47: 0.9965519679 | Q47: 0.9965519679 | R47: 0.9952724765 | S47: 0.9942672695 | T47: 0.9935380507 | U47: 0.9929604373 | V47: 0.9926164039 | W47: 0.9923136936 | X47: 0.9921014001 | Y47: 0.9925148425 | Z47: 0.9925559986 | AB47: 2017-11-08 | AC47: -0.3448032053 | AD47: -0.3448032053 | AE47: -0.3019327594 | AF47: -0.2607152718 | AG47: -0.2192169205 | AH47: -0.1902107973 | AI47: -0.1543113097 | AJ47: -0.1385044382 | AK47: -0.1196668709 | AL47: -0.04196946408 | AM47: -0.07045629029
B48: 2017-11-07 | C48: -0.3443687877 | D48: -0.3443687877 | E48: -0.3006518734 | F48: -0.2633283469 | G48: -0.2257995397 | H48: -0.1918338552 | I48: -0.1331446009 | J48: -0.1378382989 | K48: -0.1122690261 | L48: -0.02781981308 | M48: -0.05583980272 | O48: 2017-11-07 | P48: 0.9965563121 | Q48: 0.9965563121 | R48: 0.9952567202 | S48: 0.9941751124 | T48: 0.9933304928 | U48: 0.9926912912 | V48: 0.9925110944 | W48: 0.9921322689 | X48: 0.9919146272 | Y48: 0.9924459998 | Z48: 0.9925607864 | AB48: 2017-11-07 | AC48: -0.3443687877 | AD48: -0.3443687877 | AE48: -0.3037406219 | AF48: -0.2690438773 | AG48: -0.2334608838 | AH48: -0.2008521724 | AI48: -0.1413768851 | AJ48: -0.1481878841 | AK48: -0.1225206668 | AL48: -0.03090963302 | AM48: -0.06283684996
B49: 2017-11-06 | C49: -0.3137594458 | D49: -0.3137594458 | E49: -0.2672340109 | F49: -0.2303990656 | G49: -0.1889779428 | H49: -0.1555335754 | I49: -0.1128148693 | J49: -0.1129402363 | K49: -0.08747167539 | L49: -0.01892366785 | M49: -0.04299444741 | O49: 2017-11-06 | P49: 0.9968624055 | Q49: 0.9968624055 | R49: 0.9957450943 | S49: 0.9948326193 | T49: 0.9941959432 | U49: 0.9937529476 | V49: 0.9936086754 | W49: 0.9933315246 | X49: 0.993223124 | Y49: 0.9937127221 | Z49: 0.9938429931 | AB49: 2017-11-06 | AC49: -0.3137594458 | AD49: -0.3137594458 | AE49: -0.2699645302 | AF49: -0.2353878124 | AG49: -0.1953924565 | AH49: -0.1628405612 | AI49: -0.1197428576 | AJ49: -0.1214382848 | AK49: -0.09546556804 | AL49: -0.02100840954 | AM49: -0.04835761395
B50: 2017-11-03 | C50: -0.2899561266 | D50: -0.2899561266 | E50: -0.2387551252 | F50: -0.1984770356 | G50: -0.1608252786 | H50: -0.1304723693 | I50: -0.0837975576 | J50: -0.08905915007 | K50: -0.0715901907 | L50: -0.01333413764 | M50: -0.03187099109 | O50: 2017-11-03 | P50: 0.9971004387 | Q50: 0.9971004387 | R50: 0.9961496887 | S50: 0.9954235284 | T50: 0.994924421 | U50: 0.9945912619 | V50: 0.9946040427 | W50: 0.9944317017 | X50: 0.9943550189 | Y50: 0.9947868296 | Z50: 0.9949319702 | AB50: 2017-11-03 | AC50: -0.2899561266 | AD50: -0.2899561266 | AE50: -0.2412028339 | AF50: -0.2028031577 | AG50: -0.1663106997 | AH50: -0.1366940976 | AI50: -0.08898913436 | AJ50: -0.09585653677 | AK50: -0.07816713911 | AL50: -0.01480733266 | AM50: -0.03587736026
B51: 2017-11-02 | C51: -0.3112655164 | D51: -0.3112655164 | E51: -0.2561163194 | F51: -0.2115767202 | G51: -0.1851101307 | H51: -0.1532777911 | I51: -0.1056069439 | J51: -0.1116484661 | K51: -0.08732552756 | L51: -0.0273412471 | M51: -0.05098218054 | O51: 2017-11-02 | P51: 0.9968873448 | Q51: 0.9968873448 | R51: 0.9958686828 | S51: 0.9951034857 | T51: 0.9944395015 | U51: 0.9939718087 | V51: 0.9938639313 | W51: 0.9935645066 | X51: 0.9934295527 | Y51: 0.9938135867 | Z51: 0.9938541625 | AB51: 2017-11-02 | AC51: -0.3112655164 | AD51: -0.3112655164 | AE51: -0.2587468036 | AF51: -0.21620082 | AG51: -0.1914303943 | AH51: -0.1605584726 | AI51: -0.1122148202 | AJ51: -0.1202145282 | AK51: -0.09546631816 | AL51: -0.03039753134 | AM51: -0.0574517629
B52: 2017-11-01 | C52: -0.3127089001 | D52: -0.3127089001 | E52: -0.26829898 | F52: -0.2289728095 | G52: -0.18762289 | H52: -0.1595498691 | I52: -0.1062961239 | J52: -0.1172432972 | K52: -0.1004037813 | L52: -0.03496277054 | M52: -0.04956994651 | O52: 2017-11-01 | P52: 0.996872911 | Q52: 0.996872911 | R52: 0.9957396223 | S52: 0.9948427848 | T52: 0.9942163876 | U52: 0.9937283045 | V52: 0.9936511526 | W52: 0.9933235532 | X52: 0.9930854062 | Y52: 0.9934269245 | Z52: 0.9935147924 | AB52: 2017-11-01 | AC52: -0.3127089001 | AD52: -0.3127089001 | AE52: -0.2710630619 | AF52: -0.2339970479 | AG52: -0.194112853 | AH52: -0.1672119742 | AI52: -0.1130278013 | AJ52: -0.1263454131 | AK52: -0.1098266033 | AL52: -0.03892569133 | AM52: -0.05597443816
B53: 2017-10-31 | C53: -0.3126939789 | D53: -0.3126939789 | E53: -0.2749682034 | F53: -0.2425737156 | G53: -0.204661435 | H53: -0.1813517172 | I53: -0.129371166 | J53: -0.1324723466 | K53: -0.1125632832 | L53: -0.07741360229 | M53: -0.05052245821 | O53: 2017-10-31 | P53: 0.9968730602 | Q53: 0.9968730602 | R53: 0.995673199 | S53: 0.9946624027 | T53: 0.9939098008 | U53: 0.9932630365 | V53: 0.9930290209 | W53: 0.9926322957 | X53: 0.9923522676 | Y53: 0.9923449851 | Z53: 0.992518839 | AB53: 2017-10-31 | AC53: -0.3126939789 | AD53: -0.3126939789 | AE53: -0.2777756165 | AF53: -0.2478723309 | AG53: -0.2117204727 | AH53: -0.1900443674 | AI53: -0.1375505565 | AJ53: -0.1427688543 | AK53: -0.1231239398 | AL53: -0.0860775574 | AM53: -0.05709869216
B54: 2017-10-30 | C54: -0.2898776592 | D54: -0.2898776592 | E54: -0.2585852554 | F54: -0.2219461318 | G54: -0.1761942877 | H54: -0.1597257701 | I54: -0.1103000461 | J54: -0.1161524184 | K54: -0.09942014144 | L54: -0.07468229961 | M54: -0.04970345524 | O54: 2017-10-30 | P54: 0.9971012234 | Q54: 0.9971012234 | R54: 0.9959521702 | S54: 0.9950563793 | T54: 0.9944925101 | U54: 0.9939503026 | V54: 0.9937987719 | W54: 0.9934625559 | X54: 0.9932184314 | Y54: 0.9931520357 | Z54: 0.9932628408 | AB54: 2017-10-30 | AC54: -0.2898776592 | AD54: -0.2898776592 | AE54: -0.2611920376 | AF54: -0.2267534251 | AG54: -0.1822556193 | AH54: -0.1673165386 | AI54: -0.1172291834 | AJ54: -0.1251474407 | AK54: -0.1087273605 | AL54: -0.08297833039 | AM54: -0.05613786324
B55: 2017-10-27 | C55: -0.2866177389 | D55: -0.2866177389 | E55: -0.2553673733 | F55: -0.2189781108 | G55: -0.1795023115 | H55: -0.1574197812 | I55: -0.1215300928 | J55: -0.135628772 | K55: -0.1113674939 | L55: -0.1036254554 | M55: -0.07864510619 | O55: 2017-10-27 | P55: 0.9971338226 | Q55: 0.9971338226 | R55: 0.9960005332 | S55: 0.995118117 | T55: 0.9945057882 | U55: 0.9939825969 | V55: 0.9937134004 | W55: 0.993193945 | X55: 0.9928606657 | Y55: 0.9925411716 | Z55: 0.9924172582 | AB55: 2017-10-27 | AC55: -0.2866177389 | AD55: -0.2866177389 | AE55: -0.2579842472 | AF55: -0.2237984225 | AG55: -0.1857527105 | AH55: -0.1651290871 | AI55: -0.1292426063 | AJ55: -0.1461959866 | AK55: -0.1219275492 | AL55: -0.1152148193 | AM55: -0.08889316162
B56: 2017-10-26 | C56: -0.2774188527 | D56: -0.2774188527 | E56: -0.2501099761 | F56: -0.1908122098 | G56: -0.2002693875 | H56: -0.1715620889 | I56: -0.1234011248 | J56: -0.1374077357 | K56: -0.1265686562 | L56: -0.1059674661 | M56: -0.08029139318 | O56: 2017-10-26 | P56: 0.9972258115 | Q56: 0.9972258115 | R56: 0.996099256 | S56: 0.9954648977 | T56: 0.9945609032 | U56: 0.9938859147 | V56: 0.9936115935 | W56: 0.993086072 | X56: 0.9926120923 | Y56: 0.9922921126 | Z56: 0.9921716633 | AB56: 2017-10-26 | AC56: -0.2774188527 | AD56: -0.2774188527 | AE56: -0.2527128739 | AF56: -0.1951602127 | AG56: -0.2073067853 | AH56: -0.1799882306 | AI56: -0.1314605841 | AJ56: -0.148442675 | AK56: -0.1388373351 | AL56: -0.1181545933 | AM56: -0.09105483944
B57: 2017-10-25 | C57: -0.252969678 | D57: -0.252969678 | E57: -0.2267573649 | F57: -0.1917660627 | G57: -0.1505747572 | H57: -0.1411868917 | I57: -0.1006310591 | J57: -0.1142797974 | K57: -0.09959560303 | L57: -0.01361316996 | M57: -0.07478961857 | O57: 2017-10-25 | P57: 0.9974703032 | Q57: 0.9974703032 | R57: 0.9964561681 | S57: 0.9956964291 | T57: 0.9952323806 | U57: 0.9947319733 | V57: 0.9945529196 | W57: 0.9941339197 | X57: 0.9938096511 | Y57: 0.9942897037 | Z57: 0.9940487462 | AB57: 2017-10-25 | AC57: -0.252969678 | AD57: -0.252969678 | AE57: -0.2290839039 | AF57: -0.1960180319 | AG57: -0.155881456 | AH57: -0.1481406704 | AI57: -0.10709051 | AJ57: -0.1233173336 | AK57: -0.1091413886 | AL57: -0.01520496524 | AM57: -0.08456616658
B58: 2017-10-24 | C58: -0.2077317554 | D58: -0.2077317554 | E58: -0.1858454617 | F58: -0.1560476736 | G58: -0.1308220873 | H58: -0.102748073 | I58: -0.06808272964 | J58: -0.07905870715 | K58: -0.06968376799 | L58: 0.002749345624 | M58: -0.01862784232 | O58: 2017-10-24 | P58: 0.9979226824 | Q58: 0.9979226824 | R58: 0.9970933153 | S58: 0.9964823256 | T58: 0.9960256233 | U58: 0.9957576374 | V58: 0.9957424357 | W58: 0.9955169312 | X58: 0.9953329995 | Y58: 0.9958251656 | Z58: 0.9960080674 | AB58: 2017-10-24 | AC58: -0.2077317554 | AD58: -0.2077317554 | AE58: -0.1877502152 | AF58: -0.1594915843 | AG58: -0.1353831622 | AH58: -0.1077665391 | AI58: -0.07245194696 | AJ58: -0.08531242891 | AK58: -0.07633777213 | AL58: 0.003067780436 | AM58: -0.02108508365
B59: 2017-10-23 | C59: -0.2120661026 | D59: -0.2120661026 | E59: -0.1849938203 | F59: -0.1453105675 | G59: -0.115837127 | H59: -0.08816433529 | I59: -0.06711860742 | J59: -0.06119352493 | K59: -0.04978134826 | L59: -0.01661686287 | M59: -0.01677016726 | O59: 2017-10-23 | P59: 0.997879339 | Q59: 0.997879339 | R59: 0.9970801281 | S59: 0.9965809732 | T59: 0.9962505106 | U59: 0.9960859744 | V59: 0.9960300507 | W59: 0.9959455663 | X59: 0.9959122859 | Y59: 0.9961551874 | Z59: 0.9963286804 | AB59: 2017-10-23 | AC59: -0.2120661026 | AD59: -0.2120661026 | AE59: -0.186859171 | AF59: -0.1484768482 | AG59: -0.1198087195 | AH59: -0.09236625061 | AI59: -0.07129005779 | AJ59: -0.06592789968 | AK59: -0.05441482046 | AL59: -0.01846332812 | AM59: -0.01891385222
B60: 2017-10-20 | C60: -0.2146194662 | D60: -0.2146194662 | E60: -0.18753672 | F60: -0.1582161592 | G60: -0.1332863787 | H60: -0.1022953601 | I60: -0.08765125733 | J60: -0.08212379455 | K60: -0.06644725082 | L60: -0.0496830825 | M60: -0.01704700847 | O60: 2017-10-20 | P60: 0.9978538053 | Q60: 0.9978538053 | R60: 0.9970416693 | S60: 0.9964260064 | T60: 0.9959586184 | U60: 0.9957084533 | V60: 0.9955066233 | W60: 0.9952827609 | X60: 0.9951586163 | Y60: 0.9951469666 | Z60: 0.9954063846 | AB60: 2017-10-20 | AC60: -0.2146194662 | AD60: -0.2146194662 | AE60: -0.1894564149 | AF60: -0.1616878614 | AG60: -0.1378868939 | AH60: -0.1072226391 | AI60: -0.09313917684 | AJ60: -0.08848079447 | AK60: -0.07269797135 | AL60: -0.05520653661 | AM60: -0.01926116221
B61: 2017-10-19 | C61: -0.1690028034 | D61: -0.1690028034 | E61: -0.1344297218 | F61: -0.1027113065 | G61: -0.07137151147 | H61: -0.03778020476 | I61: -0.007548792328 | J61: -0.02449952242 | K61: -0.006056291419 | L61: 0.005140668864 | M61: 0.02090823639 | O61: 2017-10-19 | P61: 0.998309972 | Q61: 0.998309972 | R61: 0.9978028846 | S61: 0.9974935989 | T61: 0.9973867825 | U61: 0.9975086228 | V61: 0.9978244749 | W61: 0.9978688023 | X61: 0.9980523997 | Y61: 0.998299118 | Z61: 0.9986592198 | AB61: 2017-10-19 | AC61: -0.1690028034 | AD61: -0.1690028034 | AE61: -0.1357749936 | AF61: -0.1049024243 | AG61: -0.0737700162 | AH61: -0.03955069609 | AI61: -0.008011215852 | AJ61: -0.02633809677 | AK61: -0.006609458286 | AL61: 0.005694426525 | AM61: 0.02352334164
B62: 2017-10-18 | C62: -0.1676425764 | D62: -0.1676425764 | E62: -0.1370601461 | F62: -0.08981785604 | G62: -0.07999347823 | H62: -0.05128608169 | I62: -0.02267492074 | J62: -0.02189281633 | K62: -0.007529111583 | L62: 0.05678688996 | M62: 0.02419112023 | O62: 2017-10-18 | P62: 0.9983235742 | Q62: 0.9983235742 | R62: 0.9977832792 | S62: 0.9976087722 | T62: 0.9973876531 | U62: 0.9973741321 | V62: 0.9975597729 | W62: 0.9976649469 | X62: 0.9978569494 | Y62: 0.9986385083 | Z62: 0.9990011881 | AB62: 2017-10-18 | AC62: -0.1676425764 | AD62: -0.1676425764 | AE62: -0.1384611418 | AF62: -0.09179301163 | AG62: -0.08272069593 | AH62: -0.05371935118 | AI62: -0.02407801683 | AJ62: -0.02356453277 | AK62: -0.00822407215 | AL62: 0.06311857238 | AM62: 0.02723858649
B63: 2017-10-17 | C63: -0.1629132726 | D63: -0.1629132726 | E63: -0.1285455236 | F63: -0.09703269915 | G63: -0.04908062638 | H63: -0.02864010428 | O63: 2017-10-17 | P63: 0.9983708673 | Q63: 0.9983708673 | R63: 0.9978922824 | S63: 0.9976103878 | T63: 0.9976977808 | U63: 0.9978517254 | AB63: 2017-10-17 | AC63: -0.1629132726 | AD63: -0.1629132726 | AE63: -0.1298559148 | AF63: -0.09912393783 | AG63: -0.05074936849 | AH63: -0.0299652457 | AJ63: 0.001483038039 | AK63: 0.003992414446 | AL63: 0.02242924461 | AM63: 0.03946028254
B64: 2017-10-16 | C64: -0.1397986899 | D64: -0.1397986899 | E64: -0.1088022806 | F64: -0.07434956787 | G64: -0.03015135981 | H64: -0.01933954207 | I64: 0.01756824136 | J64: 0.006001453957 | K64: 0.01273445049 | L64: 0.111752985 | M64: 0.05187281085 | O64: 2017-10-16 | P64: 0.9986020131 | Q64: 0.9986020131 | R64: 0.9982063684 | S64: 0.9980486086 | T64: 0.998219225 | U64: 0.9983663605 | V64: 0.9987986634 | W64: 0.9990184158 | X64: 0.9992583316 | Y64: 1.000449708 | Z64: 1.000928488 | AB64: 2017-10-16 | AC64: -0.1397986899 | AD64: -0.1397986899 | AE64: -0.1099022203 | AF64: -0.07594838434 | AG64: -0.03116970683 | AH64: -0.0202350608 | AI64: 0.01863114517 | AJ64: 0.006446611044 | AK64: 0.01387327454 | AL64: 0.124091572 | AM64: 0.05824302133
B65: 2017-10-13 | C65: -0.1026628168 | D65: -0.1026628168 | E65: -0.06236800632 | F65: -0.02226566661 | G65: 0.004174780531 | H65: 0.03036802007 | I65: 0.06048107051 | J65: 0.04437470308 | K65: 0.05556255265 | L65: 0.08115466315 | M65: 0.08071885816 | O65: 2017-10-13 | P65: 0.9989733718 | Q65: 0.9989733718 | R65: 0.9988581698 | S65: 0.9990084326 | T65: 0.9992902373 | U65: 0.999729643 | V65: 1.000376927 | W65: 1.000770544 | X65: 1.001237865 | Y65: 1.001925401 | Z65: 1.002561563 | AB65: 2017-10-13 | AC65: -0.1026628168 | AD65: -0.1026628168 | AE65: -0.06298101366 | AF65: -0.0227300084 | AG65: 0.004310757505 | AH65: 0.03174115254 | AI65: 0.06406157569 | AJ65: 0.04759686146 | AK65: 0.06047698294 | AL65: 0.08968578297 | AM65: 0.09050315602
B66: 2017-10-12 | C66: -0.1002004008 | D66: -0.1002004008 | E66: -0.072653891 | F66: -0.03062255864 | G66: -0.005237324201 | H66: 0.01363606918 | I66: 0.02318422612 | J66: 0.03395914223 | K66: 0.0438620467 | L66: 0.06641890753 | M66: 0.07881751857 | O66: 2017-10-12 | P66: 0.998997996 | Q66: 0.998997996 | R66: 0.9987677268 | S66: 0.9988638505 | T66: 0.999086407 | U66: 0.9993973871 | V66: 0.999723952 | W66: 1.000100203 | X66: 1.000527353 | Y66: 1.00113877 | Z66: 1.001826072 | AB66: 2017-10-12 | AC66: -0.1002004008 | AD66: -0.1002004008 | AE66: -0.07337361182 | AF66: -0.0312723036 | AG66: -0.005411260854 | AH66: 0.01426446699 | AI66: 0.02456740445 | AJ66: 0.03649023285 | AK66: 0.04781569309 | AL66: 0.07353085207 | AM66: 0.08862368227
B67: 2017-10-11 | C67: -0.1075614063 | D67: -0.1075614063 | E67: -0.0681715162 | F67: -0.02934818103 | G67: -0.01495740826 | H67: 0.006597444525 | I67: 0.01450371232 | J67: 0.02769760278 | K67: 0.03791534317 | L67: 0.06073277024 | M67: 0.07447387662 | O67: 2017-10-11 | P67: 0.9989243859 | Q67: 0.9989243859 | R67: 0.9987753229 | S67: 0.9988816321 | T67: 0.9990027022 | U67: 0.9992593019 | V67: 0.999520717 | W67: 0.9998613007 | X67: 1.000256317 | Y67: 1.000838026 | Z67: 1.001508645 | AB67: 2017-10-11 | AC67: -0.1075614063 | AD67: -0.1075614063 | AE67: -0.06885497812 | AF67: -0.0299763419 | AG67: -0.01545550116 | AH67: 0.00690224185 | AI67: 0.01537911288 | AJ67: 0.02978782964 | AK67: 0.04137925771 | AL67: 0.06733410131 | AM67: 0.08388555703
B68: 2017-10-10 | C68: -0.1118657611 | D68: -0.1118657611 | E68: -0.07914611056 | F68: -0.04304911823 | G68: -0.01643178455 | H68: -0.001603200989 | I68: 0.006251464293 | J68: 0.02116019354 | K68: 0.03135323238 | L68: 0.05166116382 | M68: 0.0671767431 | O68: 2017-10-10 | P68: 0.9988813424 | Q68: 0.9988813424 | R68: 0.9986439041 | S68: 0.9986562067 | T68: 0.998816998 | U68: 0.9990270214 | V68: 0.9992423935 | W68: 0.9995545111 | X68: 0.9999189768 | Y68: 1.000443685 | Z68: 1.001076229 | AB68: 2017-10-10 | AC68: -0.1118657611 | AD68: -0.1118657611 | AE68: -0.07993606393 | AF68: -0.04396659106 | AG68: -0.01698395078 | AH68: -0.001678042732 | AI68: 0.006630942218 | AJ68: 0.02276852959 | AK68: 0.03423780929 | AL68: 0.05731062435 | AM68: 0.07573021361
B69: 2017-10-09 | C69: -0.1067644012 | D69: -0.1067644012 | E69: -0.07299728099 | F69: -0.04516321854 | G69: -0.01829415239 | H69: 0.001415953265 | I69: 0.00634640867 | J69: 0.01930157653 | K69: 0.03022370122 | O69: 2017-10-09 | P69: 0.998932356 | Q69: 0.998932356 | R69: 0.9987311202 | S69: 0.9986938062 | T69: 0.9988268974 | U69: 0.9990652284 | V69: 0.9992755526 | W69: 0.9995646803 | X69: 0.9999166862 | AB69: 2017-10-09 | AC69: -0.1067644012 | AD69: -0.1067644012 | AE69: -0.0737264848 | AF69: -0.04612649729 | AG69: -0.01890823841 | AH69: 0.001481909707 | AI69: 0.006731398378 | AJ69: 0.02077082633 | AK69: 0.03300701928
B70: 2017-10-06 | C70: -0.1021629819 | D70: -0.1021629819 | E70: -0.07589977509 | F70: -0.03296132646 | G70: -0.007915626585 | O70: 2017-10-06 | P70: 0.9989783702 | Q70: 0.9989783702 | R70: 0.9987253709 | S70: 0.9988118736 | T70: 0.9990201132 | AB70: 2017-10-06 | AC70: -0.1021629819 | AD70: -0.1021629819 | AE70: -0.07665161376 | AF70: -0.03366658626 | AG70: -0.008182024162 | AI70: 0.00492130897 | AJ70: 0.01834730901 | AK70: 0.03084504207 | AL70: 0.04629546085 | AM70: 0.05787442307
B71: 2017-10-05 | C71: -0.1305212893 | D71: -0.1305212893 | E71: -0.08356549611 | F71: -0.04171046354 | G71: -0.02870723489 | H71: -0.0149893878 | I71: -0.008134211659 | J71: 0.004334035587 | K71: 0.01421237543 | L71: 0.0328196018 | M71: 0.04681437284 | O71: 2017-10-05 | P71: 0.9986947871 | Q71: 0.9986947871 | R71: 0.9985055822 | S71: 0.9985764604 | T71: 0.9986340054 | U71: 0.9987453031 | V71: 0.9988612502 | W71: 0.999055842 | X71: 0.9993060467 | Y71: 0.9997036849 | Z71: 1.000198079 | AB71: 2017-10-05 | AC71: -0.1305212893 | AD71: -0.1305212893 | AE71: -0.08439693534 | AF71: -0.04259673357 | AG71: -0.02965903389 | AH71: -0.01568339055 | AI71: -0.008623692122 | AJ71: 0.004660822869 | AK71: 0.01551087647 | AL71: 0.0363886045 | AM71: 0.05271995622
B72: 2017-10-04 | C72: -0.1098108368 | D72: -0.1098108368 | E72: -0.05895150064 | F72: -0.01544168677 | G72: 0.008340938033 | H72: 0.03016785369 | I72: 0.03400593421 | J72: 0.04754909025 | K72: 0.05244042539 | L72: 0.05860230817 | M72: 0.06444838423 | O72: 2017-10-04 | P72: 0.9989018916 | Q72: 0.9989018916 | R72: 0.998856239 | S72: 0.9990752901 | T72: 0.9993824826 | U72: 0.9998021396 | V72: 1.000173289 | W72: 1.000625783 | X72: 1.001078611 | Y72: 1.001556666 | Z72: 1.002063151 | AB72: 2017-10-04 | AC72: -0.1098108368 | AD72: -0.1098108368 | AE72: -0.05953198768 | AF72: -0.01576608501 | AG72: 0.008615430315 | AH72: 0.03156070697 | AI72: 0.03603677114 | AJ72: 0.0511055674 | AK72: 0.05719540819 | AL72: 0.06488070379 | AM72: 0.0724628372
B73: 2017-10-03 | C73: -0.1013053576 | D73: -0.1013053576 | E73: -0.05354544614 | F73: -0.02152663451 | G73: 0.002519988686 | H73: 0.01347191909 | I73: 0.01926466437 | J73: 0.02914383224 | K73: 0.03740160733 | L73: 0.06462541438 | M73: 0.07820800186 | O73: 2017-10-03 | P73: 0.9989869464 | Q73: 0.9989869464 | R73: 0.9989532326 | S73: 0.9990798549 | T73: 0.9993277801 | U73: 0.9995910032 | V73: 0.9998479553 | W73: 1.000159588 | X73: 1.000515336 | Y73: 1.001110064 | Z73: 1.001793914 | AB73: 2017-10-03 | AC73: -0.1013053576 | AD73: -0.1013053576 | AE73: -0.05407083674 | AF73: -0.02197434333 | AG73: 0.00260260521 | AH73: 0.01409068694 | AI73: 0.02041082021 | AJ73: 0.03131744764 | AK73: 0.04078421135 | AL73: 0.07161144075 | AM73: 0.08803037463
B74: 2017-10-02 | C74: -0.1031339942 | D74: -0.1031339942 | E74: -0.04948953114 | F74: -0.01422651863 | G74: 0.01257126127 | H74: 0.02872388348 | I74: 0.03276929511 | J74: 0.04334612212 | K74: 0.04752802053 | L74: 0.05603302432 | M74: 0.06828934574 | O74: 2017-10-02 | P74: 0.9989686601 | Q74: 0.9989686601 | R74: 0.9989844967 | S74: 0.9991737986 | T74: 0.9994993774 | U74: 0.9998822879 | V74: 1.000228467 | W74: 1.000631627 | X74: 1.001034698 | Y74: 1.001491549 | Z74: 1.002042433 | AB74: 2017-10-02 | AC74: -0.1031339942 | AD74: -0.1031339942 | AE74: -0.04998051072 | AF74: -0.01452614794 | AG74: 0.01298915433 | AH74: 0.03004270441 | AI74: 0.03474754346 | AJ74: 0.04662485132 | AK74: 0.05187246717 | AL74: 0.06209901587 | AM74: 0.07689201502
B75: 2017-09-29 | C75: -0.08899935856 | D75: -0.08899935856 | E75: -0.05360928816 | F75: -0.02854087052 | G75: -0.00999500394 | H75: 0.001993812589 | I75: 0.007310178489 | J75: 0.01991225408 | K75: 0.02662470193 | L75: 0.05013648261 | M75: 0.05605342451 | O75: 2017-09-29 | P75: 0.9991100064 | Q75: 0.9991100064 | R75: 0.999014701 | S75: 0.9990510618 | T75: 0.9991808058 | U75: 0.9993574421 | V75: 0.9995315502 | W75: 0.9997928853 | X75: 1.000082848 | Y75: 1.000575924 | Z75: 1.001085428 | AB75: 2017-09-29 | AC75: -0.08899935856 | AD75: -0.08899935856 | AE75: -0.05413588503 | AF75: -0.02914041298 | AG75: -0.01032472269 | AH75: 0.002084582749 | AI75: 0.007749193485 | AJ75: 0.02140565708 | AK75: 0.02903558142 | AL75: 0.05555665751 | AM75: 0.06308233252
B76: 2017-09-28 | C76: -0.06195687158 | D76: -0.06195687158 | E76: -0.01793469032 | F76: 0.03677600955 | G76: 0.05761481768 | H76: 0.06741007658 | I76: 0.06598596495 | J76: 0.07253053532 | K76: 0.07637817663 | L76: 0.07243890785 | M76: 0.0862484333 | O76: 2017-09-28 | P76: 0.9993804313 | Q76: 0.9993804313 | R76: 0.9995079669 | S76: 1.000036359 | T76: 1.000603712 | U76: 1.001162471 | V76: 1.001639704 | W76: 1.002147426 | X76: 1.002665617 | Y76: 1.003123127 | Z76: 1.003708945 | AB76: 2017-09-28 | AC76: -0.06195687158 | AD76: -0.06195687158 | AE76: -0.01810591978 | AF76: 0.03753552822 | AG76: 0.05948986078 | AH76: 0.07046708063 | AI76: 0.0698810208 | AJ76: 0.07790175278 | AK76: 0.08323794612 | AL76: 0.08013460345 | AM76: 0.0969368494
B77: 2017-09-27 | C77: -0.06411797708 | D77: -0.06411797708 | O77: 2017-09-27 | P77: 0.9993588202 | Q77: 0.9993588202 | AB77: 2017-09-27 | AC77: -0.06411797708 | AD77: -0.06411797708 | AF77: 0.04646394106 | AG77: 0.06105650568 | AH77: 0.06755313562 | AI77: 0.0700064006 | AJ77: 0.08194941155 | AK77: 0.08530231374 | AL77: 0.1039278239 | AM77: 0.118584555
B78: 2017-09-26 | C78: -0.01400923152 | D78: -0.01400923152 | E78: 0.05011312586 | F78: 0.08695116011 | G78: 0.1165109173 | H78: 0.1181124559 | I78: 0.1220231867 | J78: 0.1278284321 | K78: 0.13001005 | L78: 0.1422409604 | M78: 0.1484292803 | O78: 2017-09-26 | P78: 0.9998599077 | Q78: 0.9998599077 | R78: 1.000430396 | S78: 1.001159439 | T78: 1.002044179 | U78: 1.002834533 | V78: 1.003609379 | W78: 1.004408471 | X78: 1.005203737 | Y78: 1.006105021 | Z78: 1.007047887 | AB78: 2017-09-26 | AC78: -0.01400923152 | AD78: -0.01400923152 | AE78: 0.05059858445 | AF78: 0.08872736242 | AG78: 0.1202380658 | AH78: 0.1232684817 | AI78: 0.1290133557 | AJ78: 0.1369830677 | AK78: 0.1412143976 | AL78: 0.1568301111 | AM78: 0.1661184711
B79: 2017-09-25 | C79: -0.01794519441 | D79: -0.01794519441 | E79: 0.05602851983 | F79: 0.09735167219 | G79: 0.1260910908 | H79: 0.1299171908 | I79: 0.130346822 | J79: 0.1349122421 | K79: 0.1345195127 | L79: 0.1294436834 | M79: 0.133203813 | O79: 2017-09-25 | P79: 0.9998205481 | Q79: 0.9998205481 | R79: 1.000469678 | S79: 1.001289902 | T79: 1.002238862 | U79: 1.003110173 | V79: 1.003924829 | W79: 1.004752619 | X79: 1.00555349 | Y79: 1.006290717 | Z79: 1.007063626 | AB79: 2017-09-25 | AC79: -0.01794519441 | AD79: -0.01794519441 | AE79: 0.05656794666 | AF79: 0.09932738516 | AG79: 0.1300910865 | AH79: 0.135594921 | AI79: 0.1377512402 | AJ79: 0.1444697501 | AK79: 0.1460662099 | AL79: 0.1425306892 | AM79: 0.1488654134
B80: 2017-09-22 | C80: -0.006483507578 | D80: -0.006483507578 | E80: 0.05918015843 | F80: 0.09507888544 | G80: 0.1087862035 | H80: 0.1118762861 | I80: 0.1146043643 | J80: 0.1219756896 | K80: 0.1267275755 | L80: 0.1182624501 | M80: 0.1245725297 | O80: 2017-09-22 | P80: 0.9999351649 | Q80: 0.9999351649 | R80: 1.000559064 | S80: 1.00132741 | T80: 1.002094227 | U80: 1.002812857 | V80: 1.003516938 | W80: 1.004269923 | X80: 1.005048768 | Y80: 1.005725392 | Z80: 1.006463005 | AB80: 2017-09-22 | AC80: -0.006483507578 | AD80: -0.006483507578 | AE80: 0.05975198398 | AF80: 0.09702337479 | AG80: 0.1122591612 | AH80: 0.116835028 | AI80: 0.1211979495 | AJ80: 0.1307768313 | AK80: 0.1378170602 | AL80: 0.1304283935 | AM80: 0.1394890998
B81: 2017-09-21 | C81: -0.01622454774 | D81: -0.01622454774 | E81: 0.04056468288 | F81: 0.0675170528 | G81: 0.08142824877 | H81: 0.07938865221 | I81: 0.08311683921 | J81: 0.09231916658 | K81: 0.09605003821 | L81: 0.1072376581 | M81: 0.1184575593 | O81: 2017-09-21 | P81: 0.9998377545 | Q81: 0.9998377545 | R81: 1.000323727 | S81: 1.000893238 | T81: 1.001491472 | U81: 1.002000282 | V81: 1.002517118 | W81: 1.003106254 | X81: 1.003711408 | Y81: 1.004412386 | Z81: 1.005206235 | AB81: 2017-09-21 | AC81: -0.01622454774 | AD81: -0.01622454774 | AE81: 0.04095859501 | AF81: 0.06890683547 | AG81: 0.08405879379 | AH81: 0.08293201592 | AI81: 0.08795972623 | AJ81: 0.09908036056 | AK81: 0.1045690279 | AL81: 0.1185068422 | AM81: 0.1329728876
B82: 2017-09-20 | C82: -0.01728475209 | D82: -0.01728475209 | E82: 0.04539992615 | F82: 0.07152321003 | G82: 0.08079640142 | H82: 0.08306896202 | I82: 0.07955531874 | J82: 0.09039850963 | K82: 0.09159469908 | L82: 0.09587828444 | M82: 0.1089002479 | O82: 2017-09-20 | P82: 0.9998271525 | Q82: 0.9998271525 | R82: 1.000366729 | S82: 1.000962247 | T82: 1.001537388 | U82: 1.002074192 | V82: 1.002543609 | W82: 1.003109867 | X82: 1.003669813 | Y82: 1.004260834 | Z82: 1.004971915 | AB82: 2017-09-20 | AC82: -0.01728475209 | AD82: -0.01728475209 | AE82: 0.04583871909 | AF82: 0.0729808887 | AG82: 0.08337777086 | AH82: 0.08675997833 | AI82: 0.08415017938 | AJ82: 0.09698034564 | AK82: 0.09966785704 | AL82: 0.1058559546 | AM82: 0.1221054169
B83: 2017-09-19 | C83: -0.01342336479 | D83: -0.01342336479 | E83: 0.05096373108 | F83: 0.0953493203 | G83: 0.1110814422 | H83: 0.1080328515 | I83: 0.1070683251 | J83: 0.1120996436 | K83: 0.1141896283 | L83: 0.1072836838 | M83: 0.1168709501 | O83: 2017-09-19 | P83: 0.9998657664 | Q83: 0.9998657664 | R83: 1.000441878 | S83: 1.001251111 | T83: 1.002059199 | U83: 1.002745792 | V83: 1.003384732 | W83: 1.004056194 | X83: 1.004733706 | Y83: 1.005331829 | Z83: 1.006027286 | AB83: 2017-09-19 | AC83: -0.01342336479 | AD83: -0.01342336479 | AE83: 0.05144299978 | AF83: 0.09725866896 | AG83: 0.1145727149 | AH83: 0.1127458063 | AI83: 0.1131677905 | AJ83: 0.1201439388 | AK83: 0.124133921 | AL83: 0.1183054377 | AM83: 0.1308972737
B84: 2017-09-18 | C84: 0.01057684485 | D84: 0.01057684485 | E84: 0.07405103161 | F84: 0.104922723 | G84: 0.1152829127 | H84: 0.1151210048 | I84: -0.003861981704 | J84: -0.003265102779 | K84: -0.0009384886236 | L84: 0.1414315833 | M84: 0.1435470127 | O84: 2017-09-18 | P84: 1.000105768 | Q84: 1.000105768 | R84: 1.000793903 | S84: 1.001583935 | T84: 1.002353443 | U84: 1.003054652 | V84: 1.002532709 | W84: 1.002161254 | X84: 1.001902569 | Y84: 1.003127083 | Z84: 1.004286139 | AB84: 2017-09-18 | AC84: 0.01057684485 | AD84: 0.01057684485 | AE84: 0.07474222502 | AF84: 0.1070099022 | AG84: 0.1188790535 | AH84: 0.1201243664 | AI84: -0.004068431029 | AJ84: -0.003487236731 | AK84: -0.001017040514 | AL84: 0.1565389022 | AM84: 0.1612205627
B85: 2017-09-15 | C85: 0.05328742417 | D85: 0.05328742417 | E85: 0.1331142201 | F85: 0.1502659332 | G85: 0.1597584854 | H85: 0.1581974594 | I85: 0.1500227805 | J85: 0.1512065075 | K85: 0.1496273113 | L85: 0.150367519 | M85: 0.1570990706 | O85: 2017-09-15 | P85: 1.000532874 | Q85: 1.000532874 | R85: 1.001600223 | S85: 1.00258051 | T85: 1.003553796 | U85: 1.004456451 | V85: 1.00525606 | W85: 1.006069683 | X85: 1.006870751 | Y85: 1.007685592 | Z85: 1.008574422 | AB85: 2017-09-15 | AC85: 0.05328742417 | AD85: 0.05328742417 | AE85: 0.1343580098 | AF85: 0.1532056152 | AG85: 0.1646812934 | AH85: 0.1649737123 | AI85: 0.1584137662 | AJ85: 0.1617687288 | AK85: 0.1623694751 | AL85: 0.1655479586 | AM85: 0.1756020868
B86: 2017-09-14 | C86: 0.05844636252 | D86: 0.05844636252 | E86: 0.1322834527 | F86: 0.1535398487 | G86: 0.1669120442 | H86: 0.1595669558 | I86: 0.1551689827 | J86: 0.1533242471 | K86: 0.148850669 | L86: 0.1488380876 | M86: 0.154033931 | O86: 2017-09-14 | P86: 1.000584464 | Q86: 1.000584464 | R86: 1.001617903 | S86: 1.00262499 | T86: 1.00365883 | U86: 1.004554768 | V86: 1.005389982 | W86: 1.006206664 | X86: 1.006983627 | Y86: 1.007771279 | Z86: 1.008621149 | AB86: 2017-09-14 | AC86: 0.05844636252 | AD86: 0.05844636252 | AE86: 0.1334908434 | AF86: 0.156488784 | AG86: 0.1719767308 | AH86: 0.1663180197 | AI86: 0.1637343942 | AJ86: 0.1639497887 | AK86: 0.1613851015 | AL86: 0.163740552 | AM86: 0.1720283678
B87: 2017-09-13 | C87: 0.06243838317 | D87: 0.06243838317 | E87: 0.145636725 | F87: 0.1663470248 | G87: 0.1872714971 | H87: 0.1887431581 | I87: 0.1774236255 | J87: 0.1694221765 | K87: 0.1634016985 | L87: 0.1660814492 | M87: 0.1688935753 | O87: 2017-09-13 | P87: 1.000624384 | Q87: 1.000624384 | R87: 1.001771578 | S87: 1.002856492 | T87: 1.004037988 | U87: 1.005153639 | V87: 1.006117551 | W87: 1.006998909 | X87: 1.007830834 | Y87: 1.008706412 | Z87: 1.009622365 | AB87: 2017-09-13 | AC87: 0.06243838317 | AD87: 0.06243838317 | AE87: 0.1469508508 | AF87: 0.1695011172 | AG87: 0.1929178543 | AH87: 0.1967269109 | AI87: 0.1871900517 | AJ87: 0.1811634881 | AK87: 0.1771247086 | AL87: 0.1826882131 | AM87: 0.1886225682
B88: 2017-09-12 | C88: 0.06770064008 | D88: 0.06770064008 | E88: 0.1381885332 | F88: 0.1688746231 | G88: 0.1829936384 | H88: 0.1836732332 | I88: 0.1746003454 | J88: 0.1701690604 | K88: 0.1656181039 | L88: 0.1644614201 | M88: 0.1688247705 | O88: 2017-09-12 | P88: 1.000677006 | Q88: 1.000677006 | R88: 1.001723581 | S88: 1.002849317 | T88: 1.003989366 | U88: 1.005062921 | V88: 1.006012159 | W88: 1.006914151 | X88: 1.007777249 | Y88: 1.008640972 | Z88: 1.00956098 | AB88: 2017-09-12 | AC88: 0.06770064008 | AD88: 0.06770064008 | AE88: 0.1394071774 | AF88: 0.1720327795 | AG88: 0.1884131698 | AH88: 0.1912903921 | AI88: 0.1840625898 | AJ88: 0.1817682217 | AK88: 0.1793538313 | AL88: 0.1806825417 | AM88: 0.1882866671
B89: 2017-09-11 | C89: 0.08290668869 | D89: 0.08290668869 | E89: 0.1660362551 | F89: 0.185078007 | G89: 0.2002048342 | H89: 0.1975007702 | I89: 0.1889609227 | J89: 0.1854121602 | K89: 0.1805399551 | L89: 0.1816085634 | M89: 0.1838386328 | O89: 2017-09-11 | P89: 1.000829067 | Q89: 1.000829067 | R89: 1.002078837 | S89: 1.003250421 | T89: 1.004465198 | U89: 1.005585499 | V89: 1.006595453 | W89: 1.007571741 | X89: 1.008507916 | Y89: 1.009469214 | Z89: 1.010464859 | AB89: 2017-09-11 | AC89: 0.08290668869 | AD89: 0.08290668869 | AE89: 0.1674897936 | AF89: 0.1884692331 | AG89: 0.2060099228 | AH89: 0.2055119406 | AI89: 0.1989800183 | AJ89: 0.1978310903 | AK89: 0.1952439722 | AL89: 0.1992487073 | AM89: 0.2046694657
B90: 2017-09-08 | C90: 0.100501686 | D90: 0.100501686 | E90: 0.1833293143 | F90: 0.2124865206 | G90: 0.2357498571 | H90: 0.2338694915 | I90: 0.2333023846 | J90: 0.2287463321 | K90: 0.2268455386 | L90: 0.2214466532 | M90: 0.2305249445 | O90: 2017-09-08 | P90: 1.001005017 | Q90: 1.001005017 | R90: 1.002340469 | S90: 1.003700389 | T90: 1.00516126 | U90: 1.006511295 | V90: 1.007818452 | W90: 1.009064456 | X90: 1.010291607 | Y90: 1.01147054 | Z90: 1.012754138 | AB90: 2017-09-08 | AC90: 0.100501686 | AD90: 0.100501686 | AE90: 0.1848772146 | AF90: 0.2162439491 | AG90: 0.2423530144 | AH90: 0.2429974366 | AI90: 0.2452902419 | AJ90: 0.2435344164 | AK90: 0.2447271319 | AL90: 0.2421783348 | AM90: 0.2558546656
B91: 2017-09-07 | C91: 0.05943045811 | D91: 0.05943045811 | E91: 0.1292505028 | F91: 0.1592701707 | G91: 0.195121141 | H91: 0.1992089046 | I91: 0.1997104864 | J91: 0.2030473629 | K91: 0.1992565097 | L91: 0.2023340266 | M91: 0.2076801391 | O91: 2017-09-07 | P91: 1.000594305 | Q91: 1.000594305 | R91: 1.001592315 | S91: 1.00266426 | T91: 1.00396952 | U91: 1.00520068 | V91: 1.00637751 | W91: 1.007557677 | X91: 1.008680851 | Y91: 1.009829944 | Z91: 1.011029859 | AB91: 2017-09-07 | AC91: 0.05943045811 | AD91: 0.05943045811 | AE91: 0.1303319066 | AF91: 0.1620703858 | AG91: 0.2005924956 | AH91: 0.206982905 | AI91: 0.2099283183 | AJ91: 0.2161512261 | AK91: 0.2148955101 | AL91: 0.2212626425 | AM91: 0.2304068978
B92: 2017-09-06 | C92: -0.001226893506 | D92: -0.001226893506 | E92: 0.07376975152 | F92: 0.1478036552 | G92: 0.1364982076 | H92: 0.1435846526 | I92: 0.1713555606 | J92: 0.1437628688 | K92: 0.1859281118 | L92: 0.1539543495 | O92: 2017-09-06 | P92: 0.9999877311 | Q92: 0.9999877311 | R92: 1.000731509 | S92: 1.001970509 | T92: 1.00285752 | U92: 1.003745439 | V92: 1.004869019 | W92: 1.00565733 | X92: 1.006868099 | Y92: 1.007716335 | AB92: 2017-09-06 | AC92: -0.001226893506 | AD92: -0.001226893506 | AE92: 0.07440385967 | AF92: 0.1505448285 | AG92: 0.1403878805 | AH92: 0.1493162276 | AI92: 0.1804912063 | AJ92: 0.1532975386 | AK92: 0.2013198864 | AL92: 0.1688031894
B93: 2017-09-05 | C93: -0.1082915791 | D93: -0.1082915791 | E93: -0.02725143851 | F93: 0.04549230678 | G93: 0.07164480481 | H93: 0.0935835751 | I93: 0.1072144167 | J93: 0.1184451123 | K93: 0.1224676614 | L93: 0.1333956781 | M93: 0.148300992 | O93: 2017-09-05 | P93: 0.9989170842 | Q93: 0.9989170842 | R93: 0.9991815835 | S93: 0.999904358 | T93: 1.000644036 | U93: 1.001456191 | V93: 1.002298349 | W93: 1.00317587 | X93: 1.004034836 | Y93: 1.004961699 | Z93: 1.006001638 | AB93: 2017-09-05 | AC93: -0.1082915791 | AD93: -0.1082915791 | AE93: -0.02748074379 | AF93: 0.0463122589 | AG93: 0.07366190168 | AH93: 0.09727299632 | AI93: 0.112821758 | AJ93: 0.1262267628 | AK93: 0.1323255591 | AL93: 0.1460469028 | AM93: 0.164845799
B94: 2017-09-04 | C94: -0.1145296392 | D94: -0.1145296392 | E94: -0.05272280057 | F94: -0.005273530823 | G94: 0.02883774014 | H94: 0.05357600422 | I94: 0.07310280988 | J94: 0.08512273741 | K94: 0.08964284695 | L94: 0.1036530928 | M94: 0.1198256437 | O94: 2017-09-04 | P94: 0.9988547036 | Q94: 0.9988547036 | R94: 0.998895444 | S94: 0.9992043191 | T94: 0.9996858443 | U94: 1.000281828 | V94: 1.000968446 | W94: 1.00169044 | X94: 1.002392902 | Y94: 1.003189218 | Z94: 1.004103186 | AB94: 2017-09-04 | AC94: -0.1145296392 | AD94: -0.1145296392 | AE94: -0.05317135246 | AF94: -0.00536970414 | AG94: 0.02968635937 | AH94: 0.05583323673 | AI94: 0.077170552 | AJ94: 0.0908785141 | AK94: 0.09732408471 | AL94: 0.1142034283 | AM94: 0.1336170472
B95: 2017-09-01 | C95: -0.1407132483 | D95: -0.1407132483 | E95: -0.06040651036 | F95: -0.01967516493 | G95: 0.01373109149 | H95: 0.03968220682 | I95: 0.04922459686 | J95: 0.06136205186 | K95: 0.06624137766 | L95: 0.08136750914 | M95: 0.1011741325 | O95: 2017-09-01 | P95: 0.9985928675 | Q95: 0.9985928675 | R95: 0.9986864776 | S95: 0.9989196692 | T95: 0.9993192541 | U95: 0.9998466555 | V95: 1.000363094 | W95: 1.000928312 | X95: 1.001483998 | Y95: 1.002148434 | Z95: 1.002969109 | AB95: 2017-09-01 | AC95: -0.1407132483 | AD95: -0.1407132483 | AE95: -0.06093513799 | AF95: -0.02004059282 | AG95: 0.01413690834 | AH95: 0.04134066366 | AI95: 0.05193349431 | AJ95: 0.06562827113 | AK95: 0.07183984237 | AL95: 0.08957848689 | AM95: 0.1131864783
B96: 2017-08-31 | C96: -0.1778561128 | D96: -0.1778561128 | E96: -0.1291825148 | F96: -0.07217458965 | G96: -0.02287446232 | H96: 0.006155850563 | I96: -0.003803883186 | J96: -0.003218871277 | K96: -0.0009261866302 | L96: 0.05838758428 | O96: 2017-08-31 | P96: 0.9982214389 | Q96: 0.9982214389 | R96: 0.9978120297 | S96: 0.9978070495 | T96: 0.9981111807 | U96: 0.9985355688 | V96: 0.9987293009 | W96: 0.9988672925 | X96: 0.9989889791 | Y96: 0.9996747673 | AB96: 2017-08-31 | AC96: -0.1778561128 | AD96: -0.1778561128 | AE96: -0.1302723243 | AF96: -0.07349308472 | AG96: -0.02354220102 | AH96: 0.006408407884 | AI96: -0.00400616952 | AJ96: -0.003433869415 | AK96: -0.001001477179 | AL96: 0.06419426086
B97: 2017-08-30 | C97: -0.2384914032 | D97: -0.2384914032 | E97: -0.174168721 | F97: -0.1155441315 | G97: -0.06645438253 | H97: -0.03891193658 | I97: -0.02017464766 | J97: -0.0008473138318 | K97: 0.01151097419 | L97: 0.02352029381 | M97: 0.04612889416 | O97: 2017-08-30 | P97: 0.997615086 | Q97: 0.997615086 | R97: 0.9970568025 | S97: 0.9968658586 | T97: 0.9969632479 | U97: 0.9971578357 | V97: 0.9974055824 | W97: 0.9977439163 | X97: 0.9981191561 | Y97: 0.9985442665 | Z97: 0.9991356425 | AB97: 2017-08-30 | AC97: -0.2384914032 | AD97: -0.2384914032 | AE97: -0.175655423 | AF97: -0.1176673879 | AG97: -0.06840864762 | AH97: -0.04052090099 | AI97: -0.02127217095 | AJ97: -0.000905544878 | AK97: 0.01247375416 | AL97: 0.02585603043 | AM97: 0.05150079634
B98: 2017-08-29 | C98: -0.2413682864 | D98: -0.2413682864 | E98: -0.1038808117 | F98: -0.09247393315 | G98: -0.05929100183 | H98: -0.01766325115 | I98: -0.004549707469 | J98: 0.01794455023 | K98: 0.03306484648 | L98: 0.05037316358 | M98: 0.07296021739 | O98: 2017-08-29 | P98: 0.9975863171 | Q98: 0.9975863171 | R98: 0.9977444569 | S98: 0.9975590206 | T98: 0.997559828 | U98: 0.9978521384 | V98: 0.9981462776 | W98: 0.9985734623 | X98: 0.9990685033 | Y98: 0.9996661699 | Z98: 1.000425562 | AB98: 2017-08-29 | AC98: -0.2413682864 | AD98: -0.2413682864 | AE98: -0.1047943594 | AF98: -0.09413163184 | AG98: -0.0609972835 | AH98: -0.01838911489 | AI98: -0.004795971416 | AJ98: 0.01917055685 | AK98: 0.03582062776 | AL98: 0.05537943943 | AM98: 0.08146223501
B99: 2017-08-28 | C99: -0.2334505916 | D99: -0.2334505916 | E99: -0.1615120526 | F99: -0.1034614113 | G99: -0.06958186807 | H99: -0.04841295502 | I99: -0.03364319318 | J99: -0.0115754571 | K99: 0.003501888113 | L99: 0.02129345078 | M99: 0.04425144667 | O99: 2017-08-28 | P99: 0.9976654941 | Q99: 0.9976654941 | R99: 0.9972085641 | S99: 0.9970884776 | T99: 0.9971004761 | U99: 0.9971737448 | V99: 0.9972844233 | W99: 0.997531713 | X99: 0.997851245 | Y99: 0.9982809583 | Z99: 0.998876938 | AB99: 2017-08-28 | AC99: -0.2334505916 | AD99: -0.2334505916 | AE99: -0.1629085194 | AF99: -0.1053769672 | AG99: -0.07163113385 | AH99: -0.05041857967 | AI99: -0.03547543029 | AJ99: -0.01237381895 | AK99: 0.003797064898 | AL99: 0.02342968759 | AM99: 0.04945805653
B100: 2017-08-25 | C100: -0.2515824053 | D100: -0.2515824053 | E100: -0.1872357216 | F100: -0.109151531 | G100: -0.09790593874 | H100: -0.05214292226 | I100: -0.003792539676 | J100: -0.00320931216 | K100: -0.0009233735113 | O100: 2017-08-25 | P100: 0.9974841759 | Q100: 0.9974841759 | R100: 0.9968600569 | S100: 0.9967968128 | T100: 0.9965966946 | U100: 0.9967290012 | V100: 0.9972071815 | W100: 0.9975479801 | X100: 0.9978213325 | AB100: 2017-08-25 | AC100: -0.2515824053 | AD100: -0.2515824053 | AE100: -0.1888651542 | AF100: -0.1112258748 | AG100: -0.1008053158 | AH100: -0.054349567 | AI100: -0.004006490533 | AJ100: -0.003434144571 | AK100: -0.001001557422
B101: 2017-08-24 | C101: -0.2595846645 | D101: -0.2595846645 | E101: -0.2007202182 | F101: -0.1478508856 | G101: -0.1109611133 | H101: -0.08381985001 | I101: -0.06478282862 | J101: -0.04338468335 | K101: -0.02922264777 | L101: -0.00898160623 | M101: 0.0166039862 | O101: 2017-08-24 | P101: 0.9974041534 | Q101: 0.9974041534 | R101: 0.9966848894 | S101: 0.9962925006 | T101: 0.9960841285 | U101: 0.9959985695 | V101: 0.9959833892 | W101: 0.9960862527 | X101: 0.9962450225 | Y101: 0.9965339025 | Z101: 0.9970091866 | AB101: 2017-08-24 | AC101: -0.2595846645 | AD101: -0.2595846645 | AE101: -0.2024813513 | AF101: -0.1506528339 | AG101: -0.1143132757 | AH101: -0.08737299475 | AI101: -0.06840761823 | AJ101: -0.04644760148 | AK101: -0.03173450655 | AL101: -0.009899197524 | AM101: 0.01859465667
B102: 2017-08-23 | C102: -0.2644575434 | D102: -0.2644575434 | E102: -0.1928693406 | F102: -0.1376828885 | G102: -0.09955461884 | H102: -0.07109693635 | I102: -0.05532127109 | J102: -0.03589664327 | K102: -0.01910913543 | L102: 0.001285862994 | M102: 0.02302320668 | O102: 2017-08-23 | P102: 0.9973554246 | Q102: 0.9973554246 | R102: 0.996738875 | S102: 0.9964306262 | T102: 0.9963029855 | U102: 0.9963027148 | V102: 0.996334417 | W102: 0.9964656233 | X102: 0.9966821681 | Y102: 0.9970297695 | Z102: 0.9975253789 | AB102: 2017-08-23 | AC102: -0.2644575434 | AD102: -0.2644575434 | AE102: -0.194549611 | AF102: -0.1402582323 | AG102: -0.1025153475 | AH102: -0.07407812637 | AI102: -0.05836665742 | AJ102: -0.03839281163 | AK102: -0.02072555849 | AL102: 0.001416024442 | AM102: 0.02573884686
B103: 2017-08-22 | C103: -0.2705929168 | D103: -0.2705929168 | E103: -0.2140585459 | F103: -0.1495799521 | G103: -0.1174206379 | H103: -0.08700486707 | I103: -0.08016075978 | J103: -0.05752304294 | K103: -0.03812697292 | L103: -0.01407125357 | M103: 0.01283697206 | O103: 2017-08-22 | P103: 0.9972940708 | Q103: 0.9972940708 | R103: 0.9964960404 | S103: 0.9961479568 | T103: 0.9959100383 | U103: 0.9958256533 | V103: 0.9956840905 | W103: 0.9956854664 | X103: 0.9958010582 | Y103: 0.9960833628 | Z103: 0.9965607602 | AB103: 2017-08-22 | AC103: -0.2705929168 | AD103: -0.2705929168 | AE103: -0.2159514401 | AF103: -0.1524540844 | AG103: -0.1209913924 | AH103: -0.09074951831 | AI103: -0.08467300042 | AJ103: -0.06162252921 | AK103: -0.04144486794 | AL103: -0.01552894207 | AM103: 0.01439576422
B104: 2017-08-21 | C104: -0.2802994107 | D104: -0.2802994107 | E104: -0.2139655063 | F104: -0.1646839139 | G104: -0.1193672904 | H104: -0.09661900368 | I104: -0.07904579149 | J104: -0.06467465075 | K104: -0.04247556686 | L104: -0.01566422722 | M104: 0.01150390115 | O104: 2017-08-21 | P104: 0.9971970059 | Q104: 0.9971970059 | R104: 0.9964482254 | S104: 0.9959654793 | T104: 0.9957527966 | U104: 0.9956032956 | V104: 0.9955083628 | W104: 0.9954626108 | X104: 0.995561159 | Y104: 0.9958522965 | Z104: 0.9963374418 | AB104: 2017-08-21 | AC104: -0.2802994107 | AD104: -0.2802994107 | AE104: -0.2158325362 | AF104: -0.1677708284 | AG104: -0.1229571213 | AH104: -0.1006963 | AI104: -0.08345416766 | AJ104: -0.06919450263 | AK104: -0.04611073957 | AL104: -0.0172651968 | AM104: 0.01288470701
B105: 2017-08-18 | C105: -0.2812872467 | D105: -0.2812872467 | E105: -0.234468854 | F105: -0.1705482746 | G105: -0.1424349998 | H105: -0.1155924946 | I105: -0.0965640698 | J105: -0.08030273799 | K105: -0.06140148641 | L105: -0.03238078097 | M105: -0.003211569329 | O105: 2017-08-18 | P105: 0.9971871275 | Q105: 0.9971871275 | R105: 0.9962383686 | S105: 0.9957655237 | T105: 0.9953710905 | U105: 0.9951052939 | V105: 0.9949141759 | W105: 0.9947914642 | X105: 0.9947781705 | Y105: 0.9949810852 | Z105: 0.9953967675 | AB105: 2017-08-18 | AC105: -0.2812872467 | AD105: -0.2812872467 | AE105: -0.2365133042 | AF105: -0.1737888059 | AG105: -0.1467270665 | AH105: -0.120512603 | AI105: -0.1019679665 | AJ105: -0.08598115647 | AK105: -0.06670299471 | AL105: -0.03571955783 | AM105: -0.00360010642
B106: 2017-08-17 | C106: -0.2901750513 | D106: -0.2901750513 | E106: -0.2315669167 | F106: -0.1967442839 | G106: -0.156550141 | H106: -0.1225449844 | I106: -0.1083523388 | J106: -0.08827215871 | K106: -0.06796927956 | L106: -0.0381934333 | M106: -0.001336580562 | O106: 2017-08-17 | P106: 0.9970982495 | Q106: 0.9970982495 | R106: 0.9962225368 | S106: 0.9954936209 | T106: 0.9950245441 | U106: 0.9947560786 | V106: 0.9945027165 | W106: 0.9943556829 | X106: 0.9943273053 | Y106: 0.9945178039 | Z106: 0.9949935226 | AB106: 2017-08-17 | AC106: -0.2901750513 | AD106: -0.2901750513 | AE106: -0.2335956544 | AF106: -0.2004224504 | AG106: -0.1612475011 | AH106: -0.1277506844 | AI106: -0.114399119 | AJ106: -0.09449550023 | AK106: -0.07381841589 | AL106: -0.04212526705 | AM106: -0.001498287421
B107: 2017-08-16 | C107: -0.3059121889 | D107: -0.3059121889 | E107: -0.237902435 | F107: -0.1934908088 | G107: -0.1605469148 | H107: -0.1357785088 | I107: -0.1193626588 | J107: -0.09971283459 | K107: -0.07745724691 | L107: -0.04855859803 | M107: -0.01709073567 | O107: 2017-08-16 | P107: 0.9969408781 | Q107: 0.9969408781 | R107: 0.9960797106 | S107: 0.995429535 | T107: 0.9949355618 | U107: 0.9945515887 | V107: 0.9942199317 | W107: 0.9939956351 | X107: 0.9939130908 | Y107: 0.9940409135 | Z107: 0.9944010319 | AB107: 2017-08-16 | AC107: -0.3059121889 | AD107: -0.3059121889 | AE107: -0.2400249437 | AF107: -0.1971974042 | AG107: -0.1654521671 | AH107: -0.1416274176 | AI107: -0.126143424 | AJ107: -0.1068792318 | AK107: -0.0842550177 | AL107: -0.05365404215 | AM107: -0.01919552329
B108: 2017-08-15 | C108: -0.2876851924 | D108: -0.2876851924 | E108: -0.2482366577 | F108: -0.1964624939 | G108: -0.1651807121 | H108: -0.1421557342 | I108: -0.1257080431 | J108: -0.1092720526 | K108: -0.08804020116 | L108: -0.0625981285 | M108: -0.03488819457 | O108: 2017-08-15 | P108: 0.9971231481 | Q108: 0.9971231481 | R108: 0.9960682784 | S108: 0.9953917533 | T108: 0.9948599629 | U108: 0.9944258376 | V108: 0.9940498855 | W108: 0.9937516441 | X108: 0.9935902696 | Y108: 0.993609271 | Z108: 0.993829138 | AB108: 2017-08-15 | AC108: -0.2876851924 | AD108: -0.2876851924 | AE108: -0.2504508076 | AF108: -0.200291154 | AG108: -0.1703414671 | AH108: -0.1484371964 | AI108: -0.1329829396 | AJ108: -0.1173227359 | AK108: -0.09595541242 | AL108: -0.0693129535 | AM108: -0.03927133481
B109: 2017-08-14 | C109: -0.2790441754 | D109: -0.2790441754 | E109: -0.2281845739 | F109: -0.1743730017 | G109: -0.1389372809 | H109: -0.1097333389 | I109: -0.09431840487 | J109: -0.07349712411 | K109: -0.05370604076 | L109: -0.03095190236 | M109: -0.002940119752 | O109: 2017-08-14 | P109: 0.9972095582 | Q109: 0.9972095582 | R109: 0.9963124223 | S109: 0.9957770267 | T109: 0.9954143883 | U109: 0.9951982167 | V109: 0.9950141564 | W109: 0.9949451731 | X109: 0.9949900338 | Y109: 0.9951850608 | Z109: 0.9955844666 | AB109: 2017-08-14 | AC109: -0.2790441754 | AD109: -0.2790441754 | AE109: -0.2301815976 | AF109: -0.1776985919 | AG109: -0.1431699285 | AH109: -0.1144733852 | AI109: -0.09968213453 | AJ109: -0.07878998457 | AK109: -0.05843370523 | AL109: -0.03419580493 | AM109: -0.003301858268
B110: 2017-08-11 | C110: -0.2721464069 | D110: -0.2721464069 | E110: -0.2290348953 | F110: -0.1698538944 | G110: -0.1329332603 | H110: -0.1043964462 | I110: -0.0882046836 | J110: -0.0666349889 | K110: -0.04762258951 | L110: -0.02504404473 | M110: 0.00288282343 | O110: 2017-08-11 | P110: 0.9972785359 | Q110: 0.9972785359 | R110: 0.9963389056 | S110: 0.9958402459 | T110: 0.9955224568 | U110: 0.9953391651 | V110: 0.9951942625 | W110: 0.9951702479 | X110: 0.995250468 | Y110: 0.9954787251 | Z110: 0.9959105594 | AB110: 2017-08-11 | AC110: -0.2721464069 | AD110: -0.2721464069 | AE110: -0.2309996274 | AF110: -0.1730531071 | AG110: -0.1369458819 | AH110: -0.10885866 | AI110: -0.09316722166 | AJ110: -0.07137273525 | AK110: -0.05176205464 | AL110: -0.02763959396 | AM110: 0.003233733069
B111: 2017-08-10 | C111: -0.2934714375 | D111: -0.2934714375 | E111: -0.2388765848 | F111: -0.1980220679 | G111: -0.1535902876 | H111: -0.1272696626 | I111: -0.1024395764 | J111: -0.08371026399 | K111: -0.06039240929 | L111: -0.03714238924 | M111: -0.008047557558 | O111: 2017-08-10 | P111: 0.9970652856 | Q111: 0.9970652856 | R111: 0.9961327519 | S111: 0.9954199807 | T111: 0.9949977079 | U111: 0.9946863076 | V111: 0.9945017389 | W111: 0.9943996695 | X111: 0.9944405088 | Y111: 0.9946295841 | Z111: 0.9950280473 | AB111: 2017-08-10 | AC111: -0.2934714375 | AD111: -0.2934714375 | AE111: -0.2409918921 | AF111: -0.2018089615 | AG111: -0.1582929045 | AH111: -0.132806773 | AI111: -0.1083175856 | AJ111: -0.08969485517 | AK111: -0.06572104761 | AL111: -0.04100147643 | AM111: -0.009027520806
B112: 2017-08-09 | C112: -0.2901574803 | D112: -0.2901574803 | E112: -0.2478110185 | F112: -0.1994250102 | G112: -0.1528696373 | H112: -0.1159314954 | I112: -0.09852646155 | J112: -0.08341933205 | K112: -0.06369234932 | L112: -0.04010421599 | M112: -0.01057204887 | O112: 2017-08-09 | P112: 0.9970984252 | Q112: 0.9970984252 | R112: 0.9960599865 | S112: 0.995356663 | T112: 0.9949562245 | U112: 0.9947651106 | V112: 0.9946063878 | W112: 0.9944918583 | X112: 0.9944882676 | Y112: 0.9946414713 | Z112: 0.9950122163 | AB112: 2017-08-09 | AC112: -0.2901574803 | AD112: -0.2901574803 | AE112: -0.250037002 | AF112: -0.2033001686 | AG112: -0.1576559036 | AH112: -0.1210802553 | AI112: -0.1042740741 | AJ112: -0.08955407495 | AK112: -0.06941051579 | AL112: -0.04439195508 | AM112: -0.01189613007
B113: 2017-08-08 | C113: -0.2897292177 | D113: -0.2897292177 | E113: -0.2514771564 | F113: -0.1965346249 | G113: -0.144571544 | H113: -0.1013869096 | I113: -0.09313410144 | J113: -0.07156059574 | K113: -0.04732066842 | L113: -0.01267137115 | M113: 0.02392398395 | O113: 2017-08-08 | P113: 0.9971027078 | Q113: 0.9971027078 | R113: 0.9960255082 | S113: 0.9953620716 | T113: 0.9950427993 | U113: 0.994979845 | V113: 0.9948408017 | W113: 0.9948129306 | X113: 0.9949347834 | Y113: 0.9953162004 | Z113: 0.9959704702 | AB113: 2017-08-08 | AC113: -0.2897292177 | AD113: -0.2897292177 | AE113: -0.2537362944 | AF113: -0.2003960545 | AG113: -0.1491452061 | AH113: -0.1059319384 | AI113: -0.09859538192 | AJ113: -0.07686673913 | AK113: -0.05165443303 | AL113: -0.01404260359 | AM113: 0.0269665422
B114: 2017-08-07 | C114: -0.3016561514 | D114: -0.3016561514 | E114: -0.260242769 | F114: -0.1937436893 | G114: -0.1480965298 | H114: -0.1066096325 | I114: -0.09366784848 | J114: -0.0738753404 | K114: -0.05377822365 | L114: -0.02756743806 | M114: 0.001051117476 | O114: 2017-08-07 | P114: 0.9969834385 | Q114: 0.9969834385 | R114: 0.9958778959 | S114: 0.9952906789 | T114: 0.9949537582 | U114: 0.9948559459 | V114: 0.9947311791 | W114: 0.9946949897 | X114: 0.994766732 | Y114: 0.995016723 | Z114: 0.9954700206 | AB114: 2017-08-07 | AC114: -0.3016561514 | AD114: -0.3016561514 | AE114: -0.2625686863 | AF114: -0.1975508898 | AG114: -0.1527550179 | AH114: -0.1113676528 | AI114: -0.09915450882 | AJ114: -0.07933458152 | AK114: -0.05862765322 | AL114: -0.03053147691 | AM114: 0.001182902331
B115: 2017-08-04 | C115: -0.3028865164 | D115: -0.3028865164 | E115: -0.2538782225 | F115: -0.190895527 | G115: -0.1519832905 | H115: -0.118727858 | I115: -0.1009537473 | J115: -0.08117095004 | K115: -0.06455203253 | L115: -0.04378252106 | M115: -0.02208530131 | O115: 2017-08-04 | P115: 0.9969711348 | Q115: 0.9969711348 | R115: 0.9959352175 | S115: 0.9953575882 | T115: 0.994965542 | U115: 0.9947443039 | V115: 0.9945640881 | W115: 0.9944769833 | X115: 0.9944659767 | Y115: 0.9945841953 | Z115: 0.9948450188 | AB115: 2017-08-04 | AC115: -0.3028865164 | AD115: -0.3028865164 | AE115: -0.2561604356 | AF115: -0.1946583619 | AG115: -0.15677398 | AH115: -0.1240559331 | AI115: -0.1069151255 | AJ115: -0.08721878755 | AK115: -0.0704085344 | AL115: -0.04851017344 | AM115: -0.02485974126
B116: 2017-08-03 | C116: -0.2860320992 | D116: -0.2860320992 | E116: -0.2265106895 | F116: -0.1737421643 | G116: -0.1359282583 | H116: -0.09633477357 | I116: -0.09149927674 | J116: -0.07489166772 | K116: -0.05562806051 | L116: -0.03402200941 | M116: -0.005020619253 | O116: 2017-08-03 | P116: 0.997139679 | Q116: 0.997139679 | R116: 0.9962937132 | S116: 0.995770465 | T116: 0.9954390033 | U116: 0.9953512207 | V116: 0.995170601 | W116: 0.9950664615 | X116: 0.9950778295 | Y116: 0.995232951 | Z116: 0.9956070089 | AB116: 2017-08-03 | AC116: -0.2860320992 | AD116: -0.2860320992 | AE116: -0.2285306371 | AF116: -0.1770971769 | AG116: -0.1401321955 | AH116: -0.1005675588 | AI116: -0.09676964071 | AJ116: -0.08032770695 | AK116: -0.06056243052 | AL116: -0.03762034534 | AM116: -0.00564262117
B117: 2017-08-02 | C117: -0.2788385044 | D117: -0.2788385044 | E117: -0.2269392318 | F117: -0.1732567193 | G117: -0.1371903993 | H117: -0.1033530299 | I117: -0.09050121211 | J117: -0.07258379648 | K117: -0.05679841881 | L117: -0.03255004443 | M117: -0.006782544728 | O117: 2017-08-02 | P117: 0.997211615 | Q117: 0.997211615 | R117: 0.9963255653 | S117: 0.9957963544 | T117: 0.9954454528 | U117: 0.9952856716 | V117: 0.9951244904 | W117: 0.995048515 | X117: 0.995049339 | Y117: 0.9952210362 | Z117: 0.9955776255 | AB117: 2017-08-02 | AC117: -0.2788385044 | AD117: -0.2788385044 | AE117: -0.2289813349 | AF117: -0.1766576925 | AG117: -0.1415093184 | AH117: -0.1079815564 | AI117: -0.09582726312 | AJ117: -0.07797509763 | AK117: -0.06193800304 | AL117: -0.03606364771 | AM117: -0.007639857503
B118: 2017-08-01 | C118: -0.2771574414 | D118: -0.2771574414 | E118: -0.2144622345 | F118: -0.1609163756 | G118: -0.1264337009 | H118: -0.0910700269 | I118: -0.07426329484 | J118: -0.05411957693 | K118: -0.03536353238 | L118: -0.01000990533 | M118: 0.01925446018 | O118: 2017-08-01 | P118: 0.9972284256 | Q118: 0.9972284256 | R118: 0.9964588148 | S118: 0.9960094866 | T118: 0.9957146308 | U118: 0.9956263152 | V118: 0.9955739188 | W118: 0.9956227668 | X118: 0.9957719327 | Y118: 0.9960963458 | Z118: 0.9966353575 | AB118: 2017-08-01 | AC118: -0.2771574414 | AD118: -0.2771574414 | AE118: -0.2163770206 | AF118: -0.1640377462 | AG118: -0.1303591636 | AH118: -0.09509214757 | AI118: -0.07858246323 | AJ118: -0.05809628075 | AK118: -0.03853494458 | AL118: -0.01108234717 | AM118: 0.02167290071
B119: 2017-07-31 | C119: -0.2523237179 | D119: -0.2523237179 | E119: -0.1927600875 | F119: -0.1288889919 | G119: -0.08708636073 | H119: -0.04603035488 | I119: -0.02856456587 | J119: -0.008464432845 | K119: 0.01091084063 | L119: 0.036844738 | M119: 0.06848327095 | O119: 2017-07-31 | P119: 0.9974767628 | Q119: 0.9974767628 | R119: 0.9968007115 | S119: 0.9965588544 | T119: 0.9965228048 | U119: 0.9967283365 | V119: 0.9969576142 | W119: 0.9972772288 | X119: 0.9976978938 | Y119: 0.9982964629 | Z119: 0.9991317051 | AB119: 2017-07-31 | AC119: -0.2523237179 | AD119: -0.2523237179 | AE119: -0.1945000488 | AF119: -0.1314494232 | AG119: -0.08986465202 | AH119: -0.04812321767 | AI119: -0.03027129698 | AJ119: -0.009102760155 | AK119: 0.01191410123 | AL119: 0.04088748067 | AM119: 0.07729469651
B120: 2017-07-28 | C120: -0.2368696212 | D120: -0.2368696212 | E120: -0.1680155596 | F120: -0.1234783165 | G120: -0.08274314091 | H120: -0.05609736023 | I120: -0.04104543431 | J120: -0.02364234581 | K120: -0.008478477619 | L120: 0.0150592125 | M120: 0.04645798635 | O120: 2017-07-28 | P120: 0.9976313038 | Q120: 0.9976313038 | R120: 0.9971259009 | S120: 0.9968319139 | T120: 0.9967731509 | U120: 0.9968304722 | V120: 0.9969192359 | W120: 0.9970925754 | X120: 0.9973409212 | Y120: 0.9977577499 | Z120: 0.9984206684 | AB120: 2017-07-28 | AC120: -0.2368696212 | AD120: -0.2368696212 | AE120: -0.1695316241 | AF120: -0.1258990757 | AG120: -0.08536622609 | AH120: -0.05862254039 | AI120: -0.04348003525 | AJ120: -0.02541261651 | AK120: -0.009252573536 | AL120: 0.01670063666 | AM120: 0.05239779374
B121: 2017-07-27 | C121: -0.2700334555 | D121: -0.2700334555 | E121: -0.2113868937 | F121: -0.1557935942 | G121: -0.1148098536 | H121: -0.08854051549 | I121: -0.07353143984 | J121: -0.05579073612 | K121: -0.03581388212 | L121: -0.01323652825 | M121: 0.01416492731 | O121: 2017-07-27 | P121: 0.9972996654 | Q121: 0.9972996654 | R121: 0.9965252387 | S121: 0.9961047173 | T121: 0.9959017973 | U121: 0.9958017898 | V121: 0.9957278108 | W121: 0.9957382278 | X121: 0.9958682736 | Y121: 0.9961495075 | Z121: 0.9966318133 | AB121: 2017-07-27 | AC121: -0.2700334555 | AD121: -0.2700334555 | AE121: -0.2133069959 | AF121: -0.1589003335 | AG121: -0.118499457 | AH121: -0.09257206157 | AI121: -0.07794899257 | AJ121: -0.06002057214 | AK121: -0.03913473086 | AL121: -0.01470072724 | AM121: 0.01599930928
B122: 2017-07-26 | C122: -0.2643631981 | D122: -0.2643631981 | E122: -0.2212589728 | F122: -0.1545456632 | G122: -0.1223190481 | H122: -0.08182772584 | I122: -0.07011443993 | J122: -0.05070211476 | K122: -0.0306753475 | L122: -0.01563238287 | M122: 0.007551445095 | O122: 2017-07-26 | P122: 0.997356368 | Q122: 0.997356368 | R122: 0.9964553855 | S122: 0.9960703426 | T122: 0.9958012131 | U122: 0.9957878715 | V122: 0.995750755 | W122: 0.9958093925 | X122: 0.9959830547 | Y122: 0.9962295539 | Z122: 0.9966393494 | AB122: 2017-07-26 | AC122: -0.2643631981 | AD122: -0.2643631981 | AE122: -0.2232302757 | AF122: -0.1576073166 | AG122: -0.1261928672 | AH122: -0.08551374451 | AI122: -0.07426389679 | AJ122: -0.05449986241 | AK122: -0.0334863881 | AL122: -0.01733266732 | AM122: 0.008514214025
B123: 2017-07-25 | C123: -0.2805979695 | D123: -0.2805979695 | E123: -0.2224305488 | F123: -0.1694016825 | G123: -0.1317735792 | H123: -0.08415580859 | I123: -0.07119724142 | J123: -0.04788807968 | K123: -0.02963102931 | L123: 0.002794960376 | M123: 0.02590619084 | O123: 2017-07-25 | P123: 0.9971940203 | Q123: 0.9971940203 | R123: 0.9963613926 | S123: 0.9958581673 | T123: 0.9955451723 | U123: 0.9955562723 | V123: 0.9955435246 | W123: 0.9956565665 | X123: 0.995857143 | Y123: 0.9962989304 | Z123: 0.9968847963 | AB123: 2017-07-25 | AC123: -0.2805979695 | AD123: -0.2805979695 | AE123: -0.2244905282 | AF123: -0.1728410041 | AG123: -0.1360797359 | AH123: -0.08809175206 | AI123: -0.0755549398 | AJ123: -0.05158553641 | AK123: -0.03241343704 | AL123: 0.003108486187 | AM123: 0.0293002132
B124: 2017-07-24 | C124: -0.2925659472 | D124: -0.2925659472 | E124: -0.2469025089 | F124: -0.1891574738 | G124: -0.1368358592 | H124: -0.09480914739 | I124: -0.07531697235 | J124: -0.04960831495 | K124: -0.03220053028 | L124: -0.009145282814 | M124: 0.01667024417 | O124: 2017-07-24 | P124: 0.9970743405 | Q124: 0.9970743405 | R124: 0.9960569832 | S124: 0.9954568406 | T124: 0.9951916105 | U124: 0.9951655966 | V124: 0.9951747782 | W124: 0.9953212986 | X124: 0.9955362491 | Y124: 0.995892767 | Z124: 0.9964239553 | AB124: 2017-07-24 | AC124: -0.2925659472 | AD124: -0.2925659472 | AE124: -0.2491112413 | AF124: -0.1928844615 | AG124: -0.1411860112 | AH124: -0.09907702601 | AI124: -0.07976186411 | AJ124: -0.05329972134 | AK124: -0.03511506953 | AL124: -0.01012933632 | AM124: 0.01876911151
B125: 2017-07-21 | C125: -0.3086370524 | D125: -0.3086370524 | E125: -0.2533437206 | F125: -0.2007356157 | G125: -0.1601716986 | H125: -0.1132512465 | I125: -0.105425378 | J125: -0.07797492729 | K125: -0.05767145326 | L125: -0.03262960224 | M125: -0.00170082974 | O125: 2017-07-21 | P125: 0.9969136295 | Q125: 0.9969136295 | R125: 0.9959116515 | S125: 0.9952436772 | T125: 0.9947977455 | U125: 0.9946635438 | V125: 0.9944521114 | W125: 0.9944123791 | X125: 0.9944780565 | Y125: 0.9947068617 | Z125: 0.9951602084 | AB125: 2017-07-21 | AC125: -0.3086370524 | AD125: -0.3086370524 | AE125: -0.2556101983 | AF125: -0.2046613395 | AG125: -0.1651947571 | AH125: -0.1183113615 | AI125: -0.1115635894 | AJ125: -0.08372085694 | AK125: -0.0628424097 | AL125: -0.03611738887 | AM125: -0.00191419311
B126: 2017-07-20 | C126: -0.3153546747 | D126: -0.3153546747 | E126: -0.262109661 | F126: -0.2123613113 | G126: -0.1706208025 | H126: -0.1420018495 | I126: -0.1191490841 | J126: -0.09316940702 | K126: -0.07216176136 | L126: -0.04324407542 | M126: -0.008884327965 | O126: 2017-07-20 | P126: 0.9968464533 | Q126: 0.9968464533 | R126: 0.9957901316 | S126: 0.9950457748 | T126: 0.9945433456 | U126: 0.9941710876 | V126: 0.9938999316 | W126: 0.9937817485 | X126: 0.9937747338 | Y126: 0.9939675758 | Z126: 0.994414205 | AB126: 2017-07-20 | AC126: -0.3153546747 | AD126: -0.3153546747 | AE126: -0.2644691891 | AF126: -0.2165301558 | AG126: -0.1760142536 | AH126: -0.1483463834 | AI126: -0.1261684691 | AJ126: -0.1001038056 | AK126: -0.07870762324 | AL126: -0.0479289618 | AM126: -0.01001324851
B127: 2017-07-19 | C127: -0.2989052832 | D127: -0.2989052832 | E127: -0.242046069 | F127: -0.1987930792 | G127: -0.1512456604 | H127: -0.1148984192 | I127: -0.0951023164 | J127: -0.0735152092 | K127: -0.0525472827 | L127: -0.02698600861 | M127: 0.00358826069 | O127: 2017-07-19 | P127: 0.9970109472 | Q127: 0.9970109472 | R127: 0.9960734614 | S127: 0.9953717854 | T127: 0.9949834265 | U127: 0.9947968334 | V127: 0.9946665822 | W127: 0.9946420919 | X127: 0.9947317209 | Y127: 0.9949905313 | Z127: 0.9954707205 | AB127: 2017-07-19 | AC127: -0.2989052832 | AD127: -0.2989052832 | AE127: -0.2442297019 | AF127: -0.2026952022 | AG127: -0.1560447044 | AH127: -0.1200722305 | AI127: -0.1007345983 | AJ127: -0.07900434746 | AK127: -0.05732972093 | AL127: -0.02991572439 | AM127: 0.004044956173
B128: 2017-07-18 | C128: -0.2937915743 | D128: -0.2937915743 | E128: -0.2440603984 | F128: -0.193287912 | G128: -0.1567501958 | H128: -0.1220197206 | I128: -0.1048741679 | J128: -0.08039823185 | K128: -0.06585351429 | L128: -0.04214763528 | M128: -0.01418972534 | O128: 2017-07-18 | P128: 0.9970620843 | Q128: 0.9970620843 | R128: 0.9960793197 | S128: 0.9954309711 | T128: 0.994973859 | U128: 0.9947187216 | V128: 0.9945041202 | W128: 0.9944333568 | X128: 0.9944150997 | Y128: 0.9945555343 | Z128: 0.9948980373 | AB128: 2017-07-18 | AC128: -0.2937915743 | AD128: -0.2937915743 | AE128: -0.2462248947 | AF128: -0.1970409369 | AG128: -0.1616403038 | AH128: -0.1274228293 | AI128: -0.1109741989 | AJ128: -0.08631304534 | AK128: -0.07174706149 | AL128: -0.04663248429 | AM128: -0.01596014326
B129: 2017-07-17 | C129: -0.2992832953 | D129: -0.2992832953 | E129: -0.2520546231 | F129: -0.2076765633 | G129: -0.1704592981 | H129: -0.1400887934 | I129: -0.1170307542 | J129: -0.09232721255 | K129: -0.07172198286 | L129: -0.04257305007 | M129: -0.01753189541 | O129: 2017-07-17 | P129: 0.997007167 | Q129: 0.997007167 | R129: 0.9959715938 | S129: 0.9952143786 | T129: 0.9946722575 | U129: 0.9942936452 | V129: 0.9940234754 | W129: 0.9938963569 | X129: 0.9938796169 | Y129: 0.9940676847 | Z129: 0.9944184805 | AB129: 2017-07-17 | AC129: -0.2992832953 | AD129: -0.2992832953 | AE129: -0.2543204015 | AF129: -0.2117842201 | AG129: -0.1758987035 | AH129: -0.1464470517 | AI129: -0.1240352392 | AJ129: -0.0993063785 | AK129: -0.0783332744 | AL129: -0.04725697786 | AM129: -0.01978605691
B130: 2017-07-14 | C130: -0.2965833597 | D130: -0.2965833597 | E130: -0.268259509 | F130: -0.2098078927 | G130: -0.1852120619 | H130: -0.1578581792 | I130: -0.1348049885 | J130: -0.1132152978 | K130: -0.0960586064 | L130: -0.0693428984 | M130: -0.04557654678 | O130: 2017-07-14 | P130: 0.9970341664 | Q130: 0.9970341664 | R130: 0.9958233682 | S130: 0.9950931676 | T130: 0.9944330516 | U130: 0.9939228737 | V130: 0.9935334823 | W130: 0.9932628261 | X130: 0.9930756555 | Y130: 0.9930768568 | Z130: 0.9932353483 | AB130: 2017-07-14 | AC130: -0.2965833597 | AD130: -0.2965833597 | AE130: -0.2706525659 | AF130: -0.2139976422 | AG130: -0.1911516252 | AH130: -0.1650488273 | AI130: -0.1429357131 | AJ130: -0.1218459449 | AK130: -0.1049799839 | AL130: -0.0770410925 | AM130: -0.05148736696
B131: 2017-07-13 | C131: -0.2892626945 | D131: -0.2892626945 | E131: -0.2457946737 | F131: -0.2098000231 | G131: -0.1776904771 | H131: -0.1431564529 | I131: -0.1327255613 | J131: -0.1139364596 | K131: -0.09646881216 | L131: -0.07162120528 | M131: -0.04668971317 | O131: 2017-07-13 | P131: 0.9971073731 | Q131: 0.9971073731 | R131: 0.996084496 | S131: 0.9952687997 | T131: 0.9946406864 | U131: 0.994236551 | V131: 0.9938179586 | W131: 0.9935018248 | X131: 0.9932828174 | Y131: 0.993240294 | Z131: 0.9933731242 | AB131: 2017-07-13 | AC131: -0.2892626945 | AD131: -0.2892626945 | AE131: -0.2480280738 | AF131: -0.2139984747 | AG131: -0.1834550129 | AH131: -0.1497956901 | AI131: -0.1408028341 | AJ131: -0.1226797972 | AK131: -0.1054722468 | AL131: -0.07959933614 | AM131: -0.05275041467
B132: 2017-07-12 | C132: -0.2889969414 | D132: -0.2889969414 | E132: -0.250396796 | F132: -0.2248209469 | G132: -0.1964570757 | H132: -0.1629141339 | I132: -0.1526665899 | J132: -0.1324085182 | K132: -0.1115872158 | L132: -0.08256808855 | M132: -0.05708363418 | O132: 2017-07-12 | P132: 0.9971100306 | Q132: 0.9971100306 | R132: 0.9960399588 | S132: 0.9950891457 | T132: 0.9943177669 | U132: 0.993778543 | V132: 0.9932341163 | W132: 0.9928123312 | X132: 0.9925225466 | Y132: 0.9924480542 | Z132: 0.9925483852 | AB132: 2017-07-12 | AC132: -0.2889969414 | AD132: -0.2889969414 | AE132: -0.2526523163 | AF132: -0.2292654543 | AG132: -0.2027568304 | AH132: -0.1704490982 | AI132: -0.1618170385 | AJ132: -0.1424448883 | AK132: -0.121881695 | AL132: -0.09165713708 | AM132: -0.06441666385
B133: 2017-07-11 | C133: -0.360123887 | D133: -0.360123887 | E133: -0.3497524938 | F133: -0.323655466 | G133: -0.2888128216 | H133: -0.2571844108 | I133: -0.2348580383 | J133: -0.2046276807 | K133: -0.1767731532 | L133: -0.1429690386 | M133: -0.1036562104 | O133: 2017-07-11 | P133: 0.9963987611 | Q133: 0.9963987611 | R133: 0.9946888173 | S133: 0.9931935018 | T133: 0.9919604165 | U133: 0.9909330357 | V133: 0.9900168428 | W133: 0.9893023759 | X133: 0.9887643999 | Y133: 0.988463432 | Z133: 0.9884510234 | AB133: 2017-07-11 | AC133: -0.360123887 | AD133: -0.360123887 | AE133: -0.3529263079 | AF133: -0.3301635997 | AG133: -0.2982733944 | AH133: -0.2691961121 | AI133: -0.2493227963 | AJ133: -0.2205793516 | AK133: -0.1935240947 | AL133: -0.1591371635 | AM133: -0.1173815458
B134: 2017-07-10 | C134: -0.347529284 | D134: -0.347529284 | E134: -0.331072354 | F134: -0.3088593641 | G134: -0.2818712081 | H134: -0.252005958 | I134: -0.2256448965 | J134: -0.1957136703 | K134: -0.1688764985 | L134: -0.131106296 | M134: -0.09581581308 | O134: 2017-07-10 | P134: 0.9965247072 | Q134: 0.9965247072 | R134: 0.9949386396 | S134: 0.9935086334 | T134: 0.9922676498 | U134: 0.9912321872 | V134: 0.9903595533 | W134: 0.9896872722 | X134: 0.9891826145 | Y134: 0.9889565586 | Z134: 0.9889776133 | AB134: 2017-07-10 | AC134: -0.347529284 | AD134: -0.347529284 | AE134: -0.3341242489 | AF134: -0.3151649244 | AG134: -0.2912004577 | AH134: -0.2638978982 | AI134: -0.2397118986 | AJ134: -0.2111132802 | AK134: -0.1850432067 | AL134: -0.1460855686 | AM134: -0.1085889736
B135: 2017-07-07 | C135: -0.3417986952 | D135: -0.3417986952 | E135: -0.3353224522 | F135: -0.3091804977 | G135: -0.2882405194 | H135: -0.2656115341 | I135: -0.2431412054 | J135: -0.2149149939 | K135: -0.1890915492 | L135: -0.1552175957 | M135: -0.1214121846 | O135: 2017-07-07 | P135: 0.996582013 | Q135: 0.996582013 | R135: 0.9949250576 | S135: 0.9934960828 | T135: 0.992194356 | U135: 0.9910371409 | V135: 0.9900207515 | W135: 0.9892021258 | X135: 0.9885513068 | Y135: 0.9881483598 | Z135: 0.987986112 | AB135: 2017-07-07 | AC135: -0.3417986952 | AD135: -0.3417986952 | AE135: -0.338410446 | AF135: -0.3155332417 | AG135: -0.2978291357 | AH135: -0.278182114 | AI135: -0.2583418698 | AJ135: -0.2318802103 | AK135: -0.2073072069 | AL135: -0.1730021098 | AM135: -0.1376466166
B136: 2017-07-06 | C136: -0.3737093543 | D136: -0.3737093543 | E136: -0.3594882637 | F136: -0.3301725858 | G136: -0.3117414891 | H136: -0.2872360402 | I136: -0.2685597502 | J136: -0.2436094091 | K136: -0.2189228421 | L136: -0.1851684346 | M136: -0.1490518572 | O136: 2017-07-06 | P136: 0.9962629065 | Q136: 0.9962629065 | R136: 0.9945228303 | S136: 0.9930160996 | T136: 0.9915967215 | U136: 0.9903390681 | V136: 0.989180195 | W136: 0.9881886741 | X136: 0.9873586239 | Y136: 0.9867785466 | Z136: 0.9864639137 | AB136: 2017-07-06 | AC136: -0.3737093543 | AD136: -0.3737093543 | AE136: -0.3628094866 | AF136: -0.3369588665 | AG136: -0.3220952983 | AH136: -0.3007713176 | AI136: -0.2852623767 | AJ136: -0.2627225496 | AK136: -0.2398094629 | AL136: -0.2062271944 | AM136: -0.1688687969
B137: 2017-07-05 | C137: -0.3828046616 | D137: -0.3828046616 | E137: -0.3692902889 | F137: -0.345390315 | G137: -0.3217203812 | H137: -0.2908315614 | I137: -0.2783163454 | J137: -0.2461816539 | K137: -0.2201717387 | L137: -0.1886095492 | M137: -0.1472576836 | O137: 2017-07-05 | P137: 0.9961719534 | Q137: 0.9961719534 | R137: 0.9943791333 | S137: 0.9927680601 | T137: 0.9913102123 | U137: 0.990072599 | V137: 0.9888602845 | W137: 0.9878877049 | X137: 0.9870820899 | Y137: 0.9864983446 | Z137: 0.9862290092 | AB137: 2017-07-05 | AC137: -0.3828046616 | AD137: -0.3828046616 | AE137: -0.3726941961 | AF137: -0.3524019468 | AG137: -0.3322651328 | AH137: -0.3043865598 | AI137: -0.2953209292 | AJ137: -0.2651680754 | AK137: -0.240790101 | AL137: -0.2096160334 | AM137: -0.1664805561
B138: 2017-07-04 | C138: -0.3903532504 | D138: -0.3903532504 | E138: -0.3706499748 | F138: -0.3136203075 | G138: -0.2910374048 | H138: -0.2630967514 | I138: -0.246093982 | J138: -0.2028768474 | K138: -0.1888377927 | L138: -0.1619513407 | M138: -0.1026748941 | O138: 2017-07-04 | P138: 0.9960964675 | Q138: 0.9960964675 | R138: 0.9943274301 | S138: 0.9930497018 | T138: 0.9918298265 | U138: 0.9907681975 | V138: 0.9897655288 | W138: 0.9891034139 | X138: 0.9884677559 | Y138: 0.9880082016 | Z138: 0.9880454986 | AB138: 2017-07-04 | AC138: -0.3903532504 | AD138: -0.3903532504 | AE138: -0.3740861132 | AF138: -0.320108396 | AG138: -0.3004937318 | AH138: -0.2754563035 | AI138: -0.2613575223 | AJ138: -0.2184674631 | AK138: -0.2068127721 | AL138: -0.1801945272 | AM138: -0.1163216144
B139: 2017-07-03 | C139: -0.4117013916 | D139: -0.4117013916 | E139: -0.4211684683 | F139: -0.3869486148 | G139: -0.3658002698 | H139: -0.3079396157 | I139: -0.3108433187 | J139: -0.2849622266 | K139: -0.2655161229 | L139: -0.2351063154 | M139: -0.1980114622 | O139: 2017-07-03 | P139: 0.9958829861 | Q139: 0.9958829861 | R139: 0.9937156788 | S139: 0.9919074011 | T139: 0.9902194314 | U139: 0.9890198242 | V139: 0.9876496204 | W139: 0.9864525875 | X139: 0.98536116 | Y139: 0.9844884978 | Z139: 0.983894107 | AB139: 2017-07-03 | AC139: -0.4117013916 | AD139: -0.4117013916 | AE139: -0.4249823921 | AF139: -0.3948064587 | AG139: -0.377798695 | AH139: -0.3225164774 | AI139: -0.3299697352 | AJ139: -0.3070456692 | AK139: -0.2904735059 | AL139: -0.2613803233 | AM139: -0.2238922132
B140: 2017-06-30 | C140: -0.397253934 | D140: -0.397253934 | E140: -0.3733390649 | F140: -0.3376850007 | G140: -0.3326561769 | H140: -0.2893500288 | I140: -0.2801256386 | J140: -0.253832604 | K140: -0.2325602462 | L140: -0.1997071119 | M140: -0.1602639202 | O140: 2017-06-30 | P140: 0.9960274607 | Q140: 0.9960274607 | R140: 0.9942662684 | S140: 0.9927696307 | T140: 0.9912037331 | U140: 0.990002334 | V140: 0.9887844624 | W140: 0.9877476339 | X140: 0.9868378917 | Y140: 0.9861698665 | Z140: 0.9858020505 | AB140: 2017-06-30 | AC140: -0.397253934 | AD140: -0.397253934 | AE140: -0.3767123378 | AF140: -0.3444433033 | AG140: -0.3432863186 | AH140: -0.3026595963 | AI140: -0.2969870226 | AJ140: -0.2730871057 | AK140: -0.2538052075 | AL140: -0.2217099219 | AM140: -0.1809636325
B141: 2017-06-29 | C141: -0.4221777914 | D141: -0.4221777914 | E141: -0.3847095627 | F141: -0.3494520702 | G141: -0.3232788484 | H141: -0.2918552906 | I141: -0.2821720725 | J141: -0.2572825087 | K141: -0.232880869 | L141: -0.2048947612 | M141: -0.178154315 | O141: 2017-06-29 | P141: 0.9957782221 | Q141: 0.9957782221 | R141: 0.9940274595 | S141: 0.992492568 | T141: 0.9910883212 | U141: 0.9898857689 | V141: 0.9886678862 | W141: 0.9876143507 | X141: 0.9867177103 | Y141: 0.9860128575 | Z141: 0.9854848647 | AB141: 2017-06-29 | AC141: -0.4221777914 | AD141: -0.4221777914 | AE141: -0.3881340461 | AF141: -0.3562868642 | AG141: -0.3334854608 | AH141: -0.304992236 | AI141: -0.2987985547 | AJ141: -0.2764282619 | AK141: -0.2539960168 | AL141: -0.2270242288 | AM141: -0.2005859002
B142: 2017-06-28 | C142: -0.4310146484 | D142: -0.4310146484 | E142: -0.389714214 | F142: -0.3562227351 | G142: -0.3486657518 | H142: -0.3135813939 | I142: -0.299429145 | J142: -0.2736559953 | K142: -0.2538667391 | L142: -0.2291485573 | M142: -0.1945750769 | O142: 2017-06-28 | P142: 0.9956898535 | Q142: 0.9956898535 | R142: 0.9939332449 | S142: 0.9923624517 | T142: 0.9907385745 | U142: 0.9893889871 | V142: 0.9880801357 | W142: 0.9869449488 | X142: 0.9859199212 | Y142: 0.9850579096 | Z142: 0.9844550226 | AB142: 2017-06-28 | AC142: -0.4310146484 | AD142: -0.4310146484 | AE142: -0.3931341497 | AF142: -0.3630517777 | AG142: -0.3593214134 | AH142: -0.3273139984 | AI142: -0.3166822785 | AJ142: -0.2935679984 | AK142: -0.2763564643 | AL142: -0.253338195 | AM142: -0.2186430537
B143: 2017-06-27 | C143: -0.4889006743 | D143: -0.4889006743 | E143: -0.438819149 | F143: -0.404354464 | G143: -0.3639636791 | H143: -0.3215664826 | I143: -0.3299809301 | J143: -0.3021362184 | K143: -0.277651816 | L143: -0.247470095 | M143: -0.2115882922 | O143: 2017-06-27 | P143: 0.9951109933 | Q143: 0.9951109933 | R143: 0.9931513609 | S143: 0.9913571515 | T143: 0.9898251223 | U143: 0.9885719133 | V143: 0.9870900039 | W143: 0.9858061955 | X143: 0.984678375 | Y143: 0.9837622511 | Z143: 0.9831087363 | AB143: 2017-06-27 | AC143: -0.4889006743 | AD143: -0.4889006743 | AE143: -0.4426799565 | AF143: -0.4120803951 | AG143: -0.3752411384 | AH143: -0.3356957836 | AI143: -0.3487599977 | AJ143: -0.3238242312 | AK143: -0.3019637478 | AL143: -0.2732748697 | AM143: -0.2374635413
B144: 2017-06-26 | C144: -0.5067200242 | D144: -0.5067200242 | E144: -0.4678800078 | F144: -0.438067627 | G144: -0.4123190283 | H144: -0.3829739861 | I144: -0.3679539144 | J144: -0.3345865021 | K144: -0.308065144 | L144: -0.2724531674 | M144: -0.2385292967 | O144: 2017-06-26 | P144: 0.9949327998 | Q144: 0.9949327998 | R144: 0.9927719971 | S144: 0.9907672524 | T144: 0.9888998902 | U144: 0.9872174024 | V144: 0.985576545 | W144: 0.9841775009 | X144: 0.982941044 | Y144: 0.9819578142 | Z144: 0.9812042631 | AB144: 2017-06-26 | AC144: -0.5067200242 | AD144: -0.5067200242 | AE144: -0.4718926341 | AF144: -0.446214428 | AG144: -0.4245856054 | AH144: -0.3991262283 | AI144: -0.3882629926 | AJ144: -0.357943479 | AK144: -0.3342702012 | AL144: -0.3001488026 | AM144: -0.266925573
B145: 2017-06-23 | C145: -0.5095349363 | D145: -0.5095349363 | E145: -0.4631517924 | F145: -0.4298360027 | G145: -0.4004510316 | H145: -0.3761968458 | I145: -0.3502795367 | J145: -0.3194935957 | K145: -0.2919979317 | L145: -0.2581073941 | M145: -0.2235374856 | O145: 2017-06-23 | P145: 0.9949046506 | Q145: 0.9949046506 | R145: 0.9928049992 | S145: 0.9908715071 | T145: 0.9890967765 | U145: 0.9874440339 | V145: 0.9859425956 | W145: 0.9846440767 | X145: 0.9835126684 | Y145: 0.9826133862 | Z145: 0.9819490957 | AB145: 2017-06-23 | AC145: -0.5095349363 | AD145: -0.5095349363 | AE145: -0.4671346406 | AF145: -0.437832874 | AG145: -0.4123955563 | AH145: -0.3919961477 | AI145: -0.3696590459 | AJ145: -0.3418111759 | AK145: -0.3168634267 | AL145: -0.2843618107 | AM145: -0.2501785292
B146: 2017-06-22 | C146: -0.469734754 | D146: -0.469734754 | E146: -0.4186252935 | F146: -0.3786150003 | G146: -0.3559091775 | H146: -0.3197609011 | I146: -0.3111571427 | J146: -0.2845222295 | K146: -0.2576111493 | L146: -0.2273396015 | M146: -0.1933203605 | O146: 2017-06-22 | P146: 0.9953026525 | Q146: 0.9953026525 | R146: 0.9934501886 | S146: 0.9918159039 | T146: 0.9902549985 | U146: 0.9889402644 | V146: 0.9875903537 | W146: 0.9864186036 | X146: 0.9854234568 | Y146: 0.9846363124 | Z146: 0.9840909447 | AB146: 2017-06-22 | AC146: -0.469734754 | AD146: -0.469734754 | AE146: -0.4221864537 | AF146: -0.3856258197 | AG146: -0.3664390826 | AH146: -0.3332038142 | AI146: -0.3282570069 | AJ146: -0.3041725749 | AK146: -0.2793444655 | AL146: -0.2502292563 | AM146: -0.2160998252
B147: 2017-06-21 | C147: -0.5047247638 | D147: -0.5047247638 | E147: -0.4558770113 | F147: -0.4221873667 | G147: -0.3959850976 | H147: -0.3727723264 | I147: -0.3524662179 | J147: -0.3200584639 | K147: -0.2926690326 | L147: -0.2614376675 | M147: -0.2303597141 | O147: 2017-06-21 | P147: 0.9949527524 | Q147: 0.9949527524 | R147: 0.9929017902 | S147: 0.9910126072 | T147: 0.9892476693 | U147: 0.9875991118 | V147: 0.9860507638 | W147: 0.9847313797 | X147: 0.9835822851 | Y147: 0.9826423472 | Z147: 0.9819073305 | AB147: 2017-06-21 | AC147: -0.5047247638 | AD147: -0.5047247638 | AE147: -0.4598091848 | AF147: -0.430075587 | AG147: -0.4078429939 | AH147: -0.3885636459 | AI147: -0.3720499807 | AJ147: -0.3425365314 | AK147: -0.3177456004 | AL147: -0.2881173298 | AM147: -0.2578844643
B148: 2017-06-20 | C148: -0.4865842629 | D148: -0.4865842629 | E148: -0.4548157916 | F148: -0.4297871795 | G148: -0.4048319757 | H148: -0.3715856135 | I148: -0.3588985994 | J148: -0.3255456785 | K148: -0.2955041149 | L148: -0.2638578952 | M148: -0.2302525176 | O148: 2017-06-20 | P148: 0.9951341574 | Q148: 0.9951341574 | R148: 0.9930036946 | S148: 0.9910052952 | T148: 0.9891540356 | U148: 0.9875351501 | V148: 0.9859329743 | W148: 0.9845744974 | X148: 0.9834148999 | Y148: 0.9824671253 | Z148: 0.981747892 | AB148: 2017-06-20 | AC148: -0.4865842629 | AD148: -0.4865842629 | AE148: -0.4587323093 | AF148: -0.4377997296 | AG148: -0.416943163 | AH148: -0.3873730332 | AI148: -0.3788463958 | AJ148: -0.3484907122 | AK148: -0.3209338006 | AL148: -0.2909387167 | AM148: -0.2579480451
B149: 2017-06-19 | C149: -0.4841516 | D149: -0.4841516 | E149: -0.4377931665 | F149: -0.4115312753 | G149: -0.3926775401 | H149: -0.3710883228 | I149: -0.349639934 | J149: -0.3213852562 | K149: -0.2978013115 | L149: -0.2687294726 | M149: -0.239482507 | O149: 2017-06-19 | P149: 0.995158484 | Q149: 0.995158484 | R149: 0.9931855963 | S149: 0.9913088448 | T149: 0.9895035877 | U149: 0.9878210391 | V149: 0.9862633283 | W149: 0.9848997852 | X149: 0.9836776144 | Y149: 0.9826526643 | Z149: 0.9818233123 | AB149: 2017-06-19 | AC149: -0.4841516 | AD149: -0.4841516 | AE149: -0.4416287846 | AF149: -0.41933673 | AG149: -0.4046164343 | AH149: -0.3870530126 | AI149: -0.3694725911 | AJ149: -0.3443891355 | AK149: -0.3237813271 | AL149: -0.2966771199 | AM149: -0.2685989948
B150: 2017-06-16 | C150: -0.4925452206 | D150: -0.4925452206 | E150: -0.4484588634 | F150: -0.41538268 | G150: -0.3877753543 | H150: -0.3620301051 | I150: -0.3366491863 | J150: -0.3045393811 | K150: -0.2765085312 | L150: -0.2423273957 | M150: -0.2123663073 | O150: 2017-06-16 | P150: 0.9950745478 | Q150: 0.9950745478 | R150: 0.9930373976 | S150: 0.9911718285 | T150: 0.9894500658 | U150: 0.9878696051 | V150: 0.9864353519 | W150: 0.9852182113 | X150: 0.9841730423 | Y150: 0.9833621098 | Z150: 0.9827405655 | AB150: 2017-06-16 | AC150: -0.4925452206 | AD150: -0.4925452206 | AE150: -0.4522829218 | AF150: -0.4230897779 | AG150: -0.3993433058 | AH150: -0.3773163078 | AI150: -0.3553840025 | AJ150: -0.3259583689 | AK150: -0.3001910784 | AL150: -0.2671387958 | AM150: -0.2377504645
B151: 2017-06-15 | C151: -0.507121863 | D151: -0.507121863 | E151: -0.469788752 | F151: -0.4383930774 | G151: -0.4178888093 | H151: -0.3846654225 | I151: -0.3638260762 | J151: -0.3260748295 | K151: -0.2980594968 | L151: -0.2616587765 | M151: -0.219916067 | O151: 2017-06-15 | P151: 0.9949287814 | Q151: 0.9949287814 | R151: 0.992750789 | S151: 0.9907492839 | T151: 0.9888300836 | U151: 0.9871429996 | V151: 0.9855532062 | W151: 0.9842397088 | X151: 0.9830929234 | Y151: 0.982198769 | Z151: 0.9816048361 | AB151: 2017-06-15 | AC151: -0.507121863 | AD151: -0.507121863 | AE151: -0.4738409925 | AF151: -0.4466372929 | AG151: -0.4304600679 | AH151: -0.4011251084 | AI151: -0.3842588423 | AJ151: -0.3492337766 | AK151: -0.3238482611 | AL151: -0.2886882207 | AM151: -0.2465952019
B152: 2017-06-14 | C152: -0.5404997358 | D152: -0.5404997358 | E152: -0.4990256648 | F152: -0.465413772 | G152: -0.4332381755 | H152: -0.3982669891 | I152: -0.3655320614 | J152: -0.3362303331 | K152: -0.3092307369 | L152: -0.2777457745 | M152: -0.2376128219 | O152: 2017-06-14 | P152: 0.9945950026 | Q152: 0.9945950026 | R152: 0.99229123 | S152: 0.9901718741 | T152: 0.988241735 | U152: 0.9865347349 | V152: 0.9850263208 | W152: 0.98368503 | X152: 0.9824940686 | Y152: 0.9815042751 | Z152: 0.980800603 | AB152: 2017-06-14 | AC152: -0.5404997358 | AD152: -0.5404997358 | AE152: -0.5032668405 | AF152: -0.4740486068 | AG152: -0.4460953452 | AH152: -0.4149950357 | AI152: -0.3858010673 | AJ152: -0.3597348048 | AK152: -0.3355943491 | AL152: -0.3059237627 | AM152: -0.2659365136
B153: 2017-06-13 | C153: -0.5678900468 | D153: -0.5678900468 | E153: -0.5112783392 | F153: -0.4877407223 | G153: -0.4482822874 | H153: -0.4134982325 | I153: -0.3880571553 | J153: -0.3537401553 | K153: -0.3259299153 | L153: -0.2850839351 | M153: -0.2484439176 | O153: 2017-06-13 | P153: 0.9943210995 | Q153: 0.9943210995 | R153: 0.9920299902 | S153: 0.9897722066 | T153: 0.9877868645 | U153: 0.986012403 | V153: 0.9843585169 | W153: 0.982927433 | X153: 0.9816526365 | Y153: 0.9806682157 | Z153: 0.9799252751 | AB153: 2017-06-13 | AC153: -0.5678900468 | AD153: -0.5678900468 | AE153: -0.5158297219 | AF153: -0.4971053144 | AG153: -0.4621502343 | AH153: -0.4315903455 | AI153: -0.4104722431 | AJ153: -0.3795617844 | AK153: -0.3548711676 | AL153: -0.3153311977 | AM153: -0.2792728448
B154: 2017-06-12 | C154: -0.6282647853 | D154: -0.6282647853 | E154: -0.579990691 | F154: -0.5543497292 | G154: -0.5367170576 | H154: -0.5067055326 | I154: -0.4708678574 | J154: -0.4339683033 | K154: -0.393485686 | L154: -0.3443661159 | M154: -0.3032213503 | O154: 2017-06-12 | P154: 0.9937173521 | Q154: 0.9937173521 | R154: 0.9910407016 | S154: 0.9884448557 | T154: 0.9859051738 | U154: 0.9835698259 | V154: 0.9814843904 | W154: 0.9796470059 | X154: 0.9780857836 | Y154: 0.9768785492 | Z154: 0.97593659 | AB154: 2017-06-12 | AC154: -0.6282647853 | AD154: -0.6282647853 | AE154: -0.5850573023 | AF154: -0.5648274441 | AG154: -0.5529215497 | AH154: -0.5284467057 | AI154: -0.4976828404 | AJ154: -0.465173318 | AK154: -0.4281084064 | AL154: -0.3806744442 | AM154: -0.3405825004
B155: 2017-06-09 | C155: -0.70155902 | D155: -0.70155902 | E155: -0.7023978145 | F155: -0.6738263437 | G155: -0.655183052 | H155: -0.6128235699 | I155: -0.5857274751 | J155: -0.5329244103 | K155: -0.4827544656 | L155: -0.4188070606 | M155: -0.3665318652 | O155: 2017-06-09 | P155: 0.9929844098 | Q155: 0.9929844098 | R155: 0.9894511807 | S155: 0.9861882615 | T155: 0.9830228167 | U155: 0.9801920427 | V155: 0.9775079621 | W155: 0.9752274135 | X155: 0.9732976699 | Y155: 0.9718414942 | Z155: 0.9707266017 | AB155: 2017-06-09 | AC155: -0.70155902 | AD155: -0.70155902 | AE155: -0.7083364682 | AF155: -0.6864634784 | AG155: -0.6748594953 | AH155: -0.6391501269 | AI155: -0.61887539 | AJ155: -0.5713727062 | AK155: -0.5254304189 | AL155: -0.4633328094 | AM155: -0.4122410143
B156: 2017-06-08 | C156: -0.7056863616 | D156: -0.7056863616 | E156: -0.7018501812 | F156: -0.6817480916 | G156: -0.6517023604 | H156: -0.6157242297 | I156: -0.5748574123 | J156: -0.5230410733 | K156: -0.475681472 | L156: -0.4241014478 | M156: -0.3683151351 | O156: 2017-06-08 | P156: 0.9929431364 | Q156: 0.9929431364 | R156: 0.989436096 | S156: 0.9860999734 | T156: 0.9829909312 | U156: 0.9801385238 | V156: 0.9775707455 | W156: 0.9753794558 | X156: 0.9735022336 | Y156: 0.971974186 | Z156: 0.9708306723 | AB156: 2017-06-08 | AC156: -0.7056863616 | AD156: -0.7056863616 | AE156: -0.7077466412 | AF156: -0.6943805509 | AG156: -0.6712478848 | AH156: -0.6419824705 | AI156: -0.6074016907 | AJ156: -0.5607950776 | AK156: -0.5176679856 | AL156: -0.4689490704 | AM156: -0.4140802098
B157: 2017-06-07 | C157: -0.695832408 | D157: -0.695832408 | E157: -0.6937941366 | F157: -0.6706114076 | G157: -0.6418301903 | H157: -0.5966837826 | I157: -0.5669814309 | J157: -0.5152314067 | K157: -0.4682686692 | L157: -0.4179478351 | M157: -0.3628982727 | O157: 2017-06-07 | P157: 0.9930416759 | Q157: 0.9930416759 | R157: 0.989566259 | S157: 0.9862985691 | T157: 0.9832399402 | U157: 0.9805284315 | V157: 0.9779780399 | W157: 0.975810994 | X157: 0.9739590504 | Y157: 0.9724477272 | Z157: 0.9713175339 | AB157: 2017-06-07 | AC157: -0.695832408 | AD157: -0.695832408 | AE157: -0.6995748657 | AF157: -0.6829670443 | AG157: -0.6609016066 | AH157: -0.6220973113 | AI157: -0.5987448336 | AJ157: -0.5520298106 | AK157: -0.5091574437 | AL157: -0.4616713463 | AM157: -0.4075337716
B158: 2017-06-06 | C158: -0.6786324786 | D158: -0.6786324786 | E158: -0.6648658922 | F158: -0.6490904437 | G158: -0.6077951807 | H158: -0.5646843512 | I158: -0.5334639355 | J158: -0.4859998462 | K158: -0.4436682673 | L158: -0.3983509334 | M158: -0.340058786 | O158: 2017-06-06 | P158: 0.9932136752 | Q158: 0.9932136752 | R158: 0.9899414848 | S158: 0.9867655299 | T158: 0.9839318816 | U158: 0.9814059236 | V158: 0.9790497213 | W158: 0.977030207 | X158: 0.9752826689 | Y158: 0.9738341814 | Z158: 0.9728080772 | AB158: 2017-06-06 | AC158: -0.6786324786 | AD158: -0.6786324786 | AE158: -0.6704002857 | AF158: -0.6608671855 | AG158: -0.6256918211 | AH158: -0.5883465615 | AI158: -0.5629229226 | AJ158: -0.5201231482 | AK158: -0.4817539006 | AL158: -0.4391992841 | AM158: -0.3812037854
B159: 2017-06-05 | C159: -0.6844058487 | D159: -0.6844058487 | E159: -0.6776087044 | F159: -0.6475362094 | G159: -0.610839008 | H159: -0.5706211284 | I159: -0.5366098965 | J159: -0.4886901845 | K159: -0.4477525036 | L159: -0.4002325809 | M159: -0.3431008472 | O159: 2017-06-05 | P159: 0.9931559415 | Q159: 0.9931559415 | R159: 0.9897852555 | S159: 0.9866753028 | T159: 0.9838320622 | U159: 0.9812647084 | V159: 0.9788973118 | W159: 0.9768687249 | X159: 0.9750965319 | Y159: 0.9736447817 | Z159: 0.97260212 | AB159: 2017-06-05 | AC159: -0.6844058487 | AD159: -0.6844058487 | AE159: -0.6832515538 | AF159: -0.6594769737 | AG159: -0.6291025169 | AH159: -0.5948779694 | AI159: -0.5667413373 | AJ159: -0.5235749103 | AK159: -0.4867622612 | AL159: -0.4419339345 | AM159: -0.3852186365
B160: 2017-06-02 | C160: -0.6828798102 | D160: -0.6828798102 | E160: -0.6946585771 | F160: -0.657280631 | G160: -0.6187356949 | H160: -0.5702188979 | I160: -0.5262040372 | J160: -0.4766010096 | K160: -0.4289722664 | L160: -0.3786304579 | M160: -0.3239123442 | O160: 2017-06-02 | P160: 0.9931712019 | Q160: 0.9931712019 | R160: 0.9896231848 | S160: 0.9864699996 | T160: 0.9835995152 | U160: 0.9810823925 | V160: 0.9788482418 | W160: 0.9769476008 | X160: 0.9753527819 | Y160: 0.9740892917 | Z160: 0.9731978541 | AB160: 2017-06-02 | AC160: -0.6828798102 | AD160: -0.6828798102 | AE160: -0.700346696 | AF160: -0.6693074756 | AG160: -0.6370394567 | AH160: -0.594253037 | AI160: -0.5555952707 | AJ160: -0.5103479143 | AK160: -0.4662195332 | AL160: -0.4179320554 | AM160: -0.3633771189
B161: 2017-06-01 | C161: -0.6947835738 | D161: -0.6947835738 | E161: -0.6828896586 | F161: -0.6571659169 | G161: -0.6257004364 | H161: -0.5795233753 | I161: -0.5387211678 | J161: -0.4883257211 | K161: -0.4424329222 | L161: -0.3962997559 | M161: -0.3445033546 | O161: 2017-06-01 | P161: 0.9930521643 | Q161: 0.9930521643 | R161: 0.9896800514 | S161: 0.9865081559 | T161: 0.9835571973 | U161: 0.9809528526 | V161: 0.978611518 | W161: 0.9766220295 | X161: 0.9749268711 | Y161: 0.9735271768 | Z161: 0.9724777989 | AB161: 2017-06-01 | AC161: -0.6947835738 | AD161: -0.6947835738 | AE161: -0.6886456741 | AF161: -0.6694113058 | AG161: -0.6445701023 | AH161: -0.6045273147 | AI161: -0.5695224875 | AJ161: -0.5237763459 | AK161: -0.4817789646 | AL161: -0.4383217993 | AM161: -0.3873713885
B162: 2017-05-31 | C162: -0.6587407407 | D162: -0.6587407407 | E162: -0.6580234258 | F162: -0.633517192 | G162: -0.6063987536 | H162: -0.5623284192 | I162: -0.5209702302 | J162: -0.4754808478 | K162: -0.4350763272 | L162: -0.386552861 | M162: -0.3327982461 | O162: 2017-05-31 | P162: 0.9934125926 | Q162: 0.9934125926 | R162: 0.9901097609 | S162: 0.9870322856 | T162: 0.9841457503 | U162: 0.9815990634 | V162: 0.9793312932 | W162: 0.9773731173 | X162: 0.9756655458 | Y162: 0.9742885233 | Z162: 0.9732866768 | AB162: 2017-05-31 | AC162: -0.6587407407 | AD162: -0.6587407407 | AE162: -0.6634974406 | AF162: -0.6452658355 | AG162: -0.6245299475 | AH162: -0.5863924693 | AI162: -0.5506102984 | AJ162: -0.5097397324 | AK162: -0.473322977 | AL162: -0.4272286564 | AM162: -0.3740867826
B163: 2017-05-30 | C163: -0.6568095698 | D163: -0.6568095698 | E163: -0.6546510771 | F163: -0.6366380643 | G163: -0.6053085954 | H163: -0.5666683336 | I163: -0.5324023547 | J163: -0.4914294971 | K163: -0.4533968905 | L163: -0.4089667627 | M163: -0.356852635 | O163: 2017-05-30 | P163: 0.9934319043 | Q163: 0.9934319043 | R163: 0.9901531042 | S163: 0.9870306006 | T163: 0.9841547731 | U163: 0.9815631077 | V163: 0.9791880006 | W163: 0.9770915905 | X163: 0.9752356536 | Y163: 0.973681514 | Z163: 0.9724979786 | AB163: 2017-05-30 | AC163: -0.6568095698 | AD163: -0.6568095698 | AE163: -0.6601027438 | AF163: -0.6483734117 | AG163: -0.6235167334 | AH163: -0.5909388636 | AI163: -0.5626258611 | AJ163: -0.526757444 | AK163: -0.4932371249 | AL163: -0.451900019 | AM163: -0.400945827
B164: 2017-05-29 | C164: -0.6608682724 | D164: -0.6608682724 | E164: -0.6758928756 | F164: -0.6499485559 | G164: -0.6456379839 | H164: -0.6186362093 | I164: -0.5858416514 | J164: -0.5471360843 | K164: -0.5120283835 | L164: -0.4654747046 | M164: -0.4145427818 | O164: 2017-05-29 | P164: 0.9933913173 | Q164: 0.9933913173 | R164: 0.9899203161 | S164: 0.9867401437 | T164: 0.9835332975 | U164: 0.9805441859 | V164: 0.977799625 | W164: 0.975334638 | X164: 0.9731016795 | Y164: 0.9712043915 | Z164: 0.969670816 | AB164: 2017-05-29 | AC164: -0.6608682724 | AD164: -0.6608682724 | AE164: -0.6815898471 | AF164: -0.6622710843 | AG164: -0.6652470332 | AH164: -0.6455086729 | AI164: -0.6195887108 | AJ164: -0.5874361606 | AK164: -0.5575172775 | AL164: -0.5149920349 | AM164: -0.4667133719
B165: 2017-05-26 | C165: -0.663394318 | D165: -0.663394318 | E165: -0.6730389232 | F165: -0.6506800898 | G165: -0.631798752 | H165: -0.597132472 | I165: -0.5648999312 | J165: -0.523083295 | K165: -0.4770740076 | L165: -0.4267758773 | M165: -0.3743381923 | O165: 2017-05-26 | P165: 0.9933660568 | Q165: 0.9933660568 | R165: 0.9899361113 | S165: 0.9867437998 | T165: 0.9836730332 | U165: 0.9808688967 | V165: 0.9782794418 | W165: 0.9759884509 | X165: 0.9740217847 | Y165: 0.972409189 | Z165: 0.9711613011 | AB165: 2017-05-26 | AC165: -0.663394318 | AD165: -0.663394318 | AE165: -0.678712595 | AF165: -0.6629454208 | AG165: -0.6511334888 | AH165: -0.6233713157 | AI165: -0.5975692922 | AJ165: -0.5614721111 | AK165: -0.5200206786 | AL165: -0.4727981616 | AM165: -0.4217943145
B166: 2017-05-25 | C166: -0.6774193548 | D166: -0.6774193548 | E166: -0.6769598823 | F166: -0.6656223719 | G166: -0.6528440491 | H166: -0.6106631328 | I166: -0.5749368837 | J166: -0.5320334859 | K166: -0.4877327854 | L166: -0.4336932483 | M166: -0.3760410253 | O166: 2017-05-25 | P166: 0.9932258065 | Q166: 0.9932258065 | R166: 0.9898262504 | S166: 0.9865211731 | T166: 0.9832957869 | U166: 0.9804303367 | V166: 0.9778105897 | W166: 0.9754934107 | X166: 0.9734784824 | Y166: 0.9718517929 | Z166: 0.9706361699 | AB166: 2017-05-25 | AC166: -0.6774193548 | AD166: -0.6774193548 | AE166: -0.6827161201 | AF166: -0.6781767776 | AG166: -0.6727768268 | AH166: -0.6375170217 | AI166: -0.6083621815 | AJ166: -0.5712742961 | AK166: -0.5317612454 | AL166: -0.4806924403 | AM166: -0.4239405354
B167: 2017-05-24 | C167: -0.6579398822 | D167: -0.6579398822 | E167: -0.6717390411 | F167: -0.6623104418 | G167: -0.6412243634 | H167: -0.6125099757 | I167: -0.5772624879 | J167: -0.5311338874 | K167: -0.4848043701 | L167: -0.4287046221 | M167: -0.3753395398 | O167: 2017-05-24 | P167: 0.9934206012 | Q167: 0.9934206012 | R167: 0.989976918 | S167: 0.9866562596 | T167: 0.9835141053 | U167: 0.9805894989 | V167: 0.9779226177 | W167: 0.975600083 | X167: 0.9736023969 | Y167: 0.9720131458 | Z167: 0.9707904747 | AB167: 2017-05-24 | AC167: -0.6579398822 | AD167: -0.6579398822 | AE167: -0.6773142849 | AF167: -0.6745884478 | AG167: -0.6606540686 | AH167: -0.639131379 | AI167: -0.6105464592 | AJ167: -0.5701342621 | AK167: -0.5284295698 | AL167: -0.4750178609 | AM167: -0.4230450082
B168: 2017-05-23 | C168: -0.6939470179 | D168: -0.6939470179 | E168: -0.7189472656 | F168: -0.6922234561 | G168: -0.6527532003 | H168: -0.61292122 | I168: -0.5814139241 | J168: -0.5290635519 | K168: -0.4797870282 | L168: -0.4209212725 | M168: -0.3572909372 | O168: 2017-05-23 | P168: 0.9930605298 | Q168: 0.9930605298 | R168: 0.9893242134 | S168: 0.9859184881 | T168: 0.9828390431 | U168: 0.9800374172 | V168: 0.9774138915 | W168: 0.9751764865 | X168: 0.9732734317 | Y168: 0.9717902283 | Z168: 0.9707604276 | AB168: 2017-05-23 | AC168: -0.6939470179 | AD168: -0.6939470179 | AE168: -0.7250273167 | AF168: -0.7054733377 | AG168: -0.6732061472 | AH168: -0.6403371302 | AI168: -0.6156840756 | AJ168: -0.5687143601 | AK168: -0.5237837826 | AL168: -0.4671723261 | AM168: -0.4035808947
B169: 2017-05-22 | C169: -0.6969562319 | D169: -0.6969562319 | E169: -0.722658156 | F169: -0.7158211055 | G169: -0.6850716106 | H169: -0.6453456058 | I169: -0.5978302679 | J169: -0.5461327511 | K169: -0.4949540352 | L169: -0.434070262 | M169: -0.3723380698 | O169: 2017-05-22 | P169: 0.9930304377 | Q169: 0.9930304377 | R169: 0.9892724826 | S169: 0.985650139 | T169: 0.9823172102 | U169: 0.9792975063 | V169: 0.9766311522 | W169: 0.9743330395 | X169: 0.972380907 | Y169: 0.9708619305 | Z169: 0.9697714922 | AB169: 2017-05-22 | AC169: -0.6969562319 | AD169: -0.6969562319 | AE169: -0.7286787099 | AF169: -0.7292178658 | AG169: -0.7060842267 | AH169: -0.6736831463 | AI169: -0.6327498204 | AJ169: -0.5866025944 | AK169: -0.5398817965 | AL169: -0.4812364327 | AM169: -0.4199027086
B170: 2017-05-19 | C170: -0.6913625934 | D170: -0.6913625934 | E170: -0.7183458647 | F170: -0.6928215918 | G170: -0.6665208649 | H170: -0.6204273431 | I170: -0.5775651816 | J170: -0.5280502417 | K170: -0.4765458041 | L170: -0.4162136301 | M170: -0.3535830228 | O170: 2017-05-19 | P170: 0.9930863741 | Q170: 0.9930863741 | R170: 0.9893439763 | S170: 0.9859273948 | T170: 0.9827120003 | U170: 0.9798638704 | V170: 0.9773094558 | W170: 0.9751007824 | X170: 0.9732432939 | Y170: 0.9718149027 | Z170: 0.9708258389 | AB170: 2017-05-19 | AC170: -0.6913625934 | AD170: -0.6913625934 | AE170: -0.7242569647 | AF170: -0.7057562137 | AG170: -0.6867663126 | AH170: -0.6475142607 | AI170: -0.6109889275 | AJ170: -0.566764059 | AK170: -0.5193917967 | AL170: -0.4610470371 | AM170: -0.3983771366
B171: 2017-05-18 | C171: -0.6829375873 | D171: -0.6829375873 | E171: -0.6984545164 | F171: -0.677199092 | G171: -0.6626109889 | H171: -0.6227466249 | I171: -0.5842634792 | J171: -0.5331018299 | K171: -0.4786704479 | L171: -0.4193889576 | M171: -0.3636405529 | O171: 2017-05-18 | P171: 0.9931706241 | Q171: 0.9931706241 | R171: 0.9895850535 | S171: 0.9862456871 | T171: 0.982993032 | U171: 0.9800695402 | V171: 0.9774185644 | W171: 0.9751475423 | X171: 0.9732658401 | Y171: 0.9718057199 | Z171: 0.9707208309 | AB171: 2017-05-18 | AC171: -0.6829375873 | AD171: -0.6829375873 | AE171: -0.7041626776 | AF171: -0.6896430817 | AG171: -0.6823548909 | AH171: -0.6494907247 | AI171: -0.617532164 | AJ171: -0.5717214369 | AK171: -0.5212942196 | AL171: -0.4642276981 | AM171: -0.4092793761
B172: 2017-05-17 | C172: -0.6631377739 | D172: -0.6631377739 | E172: -0.6844884611 | F172: -0.6652516586 | G172: -0.6446103151 | H172: -0.6114777546 | I172: -0.5745016023 | J172: -0.5248530348 | K172: -0.4754972969 | L172: -0.4196631742 | M172: -0.3596553102 | O172: 2017-05-17 | P172: 0.9933686223 | Q172: 0.9933686223 | R172: 0.9898245053 | S172: 0.9865262889 | T172: 0.9833847272 | U172: 0.9804987942 | V172: 0.977877157 | W172: 0.9756266545 | X172: 0.9737215384 | Y172: 0.9722136367 | Z172: 0.9711315447 | AB172: 2017-05-17 | AC172: -0.6631377739 | AD172: -0.6631377739 | AE172: -0.6899629528 | AF172: -0.6772718075 | AG172: -0.663649774 | AH172: -0.6373929883 | AI172: -0.6069647065 | AJ172: -0.562690001 | AK172: -0.5176161453 | AL172: -0.4642624712 | AM172: -0.4047339863
B173: 2017-05-16 | C173: -0.6916801411 | D173: -0.6916801411 | E173: -0.7223875997 | F173: -0.6935940246 | G173: -0.6639584738 | H173: -0.6238803527 | I173: -0.5805191601 | J173: -0.5276908674 | K173: -0.4730275621 | L173: -0.4137225716 | M173: -0.3530880755 | O173: 2017-05-16 | P173: 0.9930831986 | Q173: 0.9930831986 | R173: 0.9893015452 | S173: 0.9858895753 | T173: 0.9827054262 | U173: 0.9798194894 | V173: 0.9772367105 | W173: 0.9750330436 | X173: 0.973208775 | Y173: 0.9717981943 | Z173: 0.9708044812 | AB173: 2017-05-16 | AC173: -0.6916801411 | AD173: -0.6916801411 | AE173: -0.7284358367 | AF173: -0.7068812596 | AG173: -0.6848287526 | AH173: -0.6520615279 | AI173: -0.6153092483 | AJ173: -0.5679531462 | AK173: -0.5172706363 | AL173: -0.4600556052 | AM173: -0.3995828726
B174: 2017-05-15 | C174: -0.7049072104 | D174: -0.7049072104 | E174: -0.7310125385 | F174: -0.7018751222 | G174: -0.6634604396 | H174: -0.6179315453 | I174: -0.5770688288 | J174: -0.5232122117 | K174: -0.4671248295 | L174: -0.4057649236 | M174: -0.3470906885 | O174: 2017-05-15 | P174: 0.9929509279 | Q174: 0.9929509279 | R174: 0.9891489326 | S174: 0.9857043712 | T174: 0.9825696541 | U174: 0.9797678608 | V174: 0.9772260977 | W174: 0.9750668055 | X174: 0.9732956921 | Y174: 0.9719530347 | Z174: 0.9710028321 | AB174: 2017-05-15 | AC174: -0.7049072104 | AD174: -0.7049072104 | AE174: -0.7371480963 | AF174: -0.7153919675 | AG174: -0.6844879561 | AH174: -0.6460854178 | AI174: -0.6119284774 | AJ174: -0.5633939223 | AK174: -0.5110469049 | AL174: -0.4515195874 | AM174: -0.3930757653
B175: 2017-05-12 | C175: -0.7010211524 | D175: -0.7010211524 | E175: -0.74726104 | F175: -0.7118996449 | G175: -0.6893648341 | H175: -0.6417852384 | I175: -0.5976217624 | J175: -0.5417639828 | K175: -0.4848960234 | L175: -0.4220452093 | M175: -0.357886025 | O175: 2017-05-12 | P175: 0.9929897885 | Q175: 0.9929897885 | R175: 0.9890064293 | S175: 0.9855087233 | T175: 0.9821650966 | U175: 0.9792053116 | V175: 0.97655 | W175: 0.9742989241 | X175: 0.9724417133 | Y175: 0.971025673 | Z175: 0.9700527323 | AB175: 2017-05-12 | AC175: -0.7010211524 | AD175: -0.7010211524 | AE175: -0.7534952305 | AF175: -0.7256517028 | AG175: -0.7110490697 | AH175: -0.6709415893 | AI175: -0.6336464613 | AJ175: -0.583254813 | AK175: -0.5304406422 | AL175: -0.4695379997 | AM175: -0.4052315016
B176: 2017-05-11 | C176: -0.7223479594 | D176: -0.7223479594 | E176: -0.7705769672 | F176: -0.7434722278 | G176: -0.7209444513 | H176: -0.6675734009 | I176: -0.6259236573 | J176: -0.5688526856 | K176: -0.5113952742 | L176: -0.4463290986 | M176: -0.373827115 | O176: 2017-05-11 | P176: 0.9927765204 | Q176: 0.9927765204 | R176: 0.9886653233 | S176: 0.9849630136 | T176: 0.9814349097 | U176: 0.9783556714 | V176: 0.9755500512 | W176: 0.9731597172 | X176: 0.9711666963 | Y176: 0.9696338899 | Z176: 0.9686210157 | AB176: 2017-05-11 | AC176: -0.7223479594 | AD176: -0.7223479594 | AE176: -0.7772779416 | AF176: -0.7583340615 | AG176: -0.7444737913 | AH176: -0.6989032914 | AI176: -0.6647424382 | AJ176: -0.6136065553 | AK176: -0.5606337911 | AL176: -0.4977368423 | AM176: -0.4245337279
B177: 2017-05-10 | C177: -0.7221001757 | D177: -0.7221001757 | E177: -0.7653143689 | F177: -0.729001123 | G177: -0.6966132514 | H177: -0.6433456763 | I177: -0.600249525 | J177: -0.5435774616 | K177: -0.4837770732 | L177: -0.416839277 | M177: -0.3497417697 | O177: 2017-05-10 | P177: 0.9927789982 | Q177: 0.9927789982 | R177: 0.9887186967 | S177: 0.9851419629 | T177: 0.9818102807 | U177: 0.9788967864 | V177: 0.9762571061 | W177: 0.974019113 | X177: 0.9721965673 | Y177: 0.9708473243 | Z177: 0.9699609769 | AB177: 2017-05-10 | AC177: -0.7221001757 | AD177: -0.7221001757 | AE177: -0.7720562181 | AF177: -0.7437774628 | AG177: -0.7196902141 | AH177: -0.6739318689 | AI177: -0.6378936687 | AJ177: -0.5867943798 | AK177: -0.5308201136 | AL177: -0.4653478197 | AM177: -0.397523976
B178: 2017-05-09 | C178: -0.7120991254 | D178: -0.7120991254 | E178: -0.756179998 | F178: -0.7394990663 | G178: -0.7088614465 | H178: -0.6572288085 | I178: -0.6119511094 | J178: -0.5561640086 | K178: -0.495340514 | L178: -0.4248530054 | M178: -0.3593863345 | O178: 2017-05-09 | P178: 0.9928790087 | Q178: 0.9928790087 | R178: 0.9888598762 | S178: 0.9851322082 | T178: 0.9816812764 | U178: 0.9786548338 | V178: 0.9759375697 | W178: 0.9736182051 | X178: 0.9717280594 | Y178: 0.9703470545 | Z178: 0.9694106278 | AB178: 2017-05-09 | AC178: -0.7120991254 | AD178: -0.7120991254 | AE178: -0.7628954702 | AF178: -0.7544630584 | AG178: -0.7323126058 | AH178: -0.6884971501 | AI178: -0.6503640375 | AJ178: -0.6003553991 | AK178: -0.54348076 | AL178: -0.4743197785 | AM178: -0.4084465058
B179: 2017-05-08 | C179: -0.7179899204 | D179: -0.7179899204 | E179: -0.7673213809 | F179: -0.7502917661 | G179: -0.7218328469 | H179: -0.6701834642 | I179: -0.6183805905 | J179: -0.5650319173 | K179: -0.5064938777 | L179: -0.441951634 | M179: -0.3780227383 | O179: 2017-05-08 | P179: 0.9928201008 | Q179: 0.9928201008 | R179: 0.9887191196 | S179: 0.9849303033 | T179: 0.981400137 | U179: 0.9782999211 | V179: 0.9755756438 | W179: 0.9732175916 | X179: 0.9712643248 | Y179: 0.9697631144 | Z179: 0.9686969224 | AB179: 2017-05-08 | AC179: -0.7179899204 | AD179: -0.7179899204 | AE179: -0.7741233526 | AF179: -0.7654675654 | AG179: -0.745644099 | AH179: -0.7019935116 | AI179: -0.6571737087 | AJ179: -0.6098749545 | AK179: -0.5556146836 | AL179: -0.4931459319 | AM179: -0.4293538249
B180: 2017-05-05 | C180: -0.7061236449 | D180: -0.7061236449 | E180: -0.759203122 | F180: -0.746649401 | G180: -0.717970842 | H180: -0.671599527 | I180: -0.6187241439 | J180: -0.5620348188 | K180: -0.5045577211 | L180: -0.4421312612 | M180: -0.3766395185 | O180: 2017-05-05 | P180: 0.9929387636 | Q180: 0.9929387636 | R180: 0.9888602792 | S180: 0.9850626073 | T180: 0.9815404659 | U180: 0.978402306 | V180: 0.9756617276 | W180: 0.9733256762 | X180: 0.9713835305 | Y180: 0.969873533 | Z180: 0.9688162452 | AB180: 2017-05-05 | AC180: -0.7061236449 | AD180: -0.7061236449 | AE180: -0.7658243184 | AF180: -0.7614727214 | AG180: -0.7412437607 | AH180: -0.7028219988 | AI180: -0.6568743529 | AJ180: -0.6058967113 | AK180: -0.5526638592 | AL180: -0.4924661975 | AM180: -0.4269499124
B181: 2017-05-04 | C181: -0.6960506219 | D181: -0.6960506219 | E181: -0.7476531922 | F181: -0.7438030861 | G181: -0.7200148193 | H181: -0.6725179559 | I181: -0.6267752342 | J181: -0.5731700539 | K181: -0.516708114 | L181: -0.4526784731 | M181: -0.3898521578 | O181: 2017-05-04 | P181: 0.9930394938 | Q181: 0.9930394938 | R181: 0.9890261957 | S181: 0.985202469 | T181: 0.9816255688 | U181: 0.9784614508 | V181: 0.9756305868 | W181: 0.973187866 | X181: 0.9711405833 | Y181: 0.9695494436 | Z181: 0.9683899275 | AB181: 2017-05-04 | AC181: -0.6960506219 | AD181: -0.6960506219 | AE181: -0.7541712406 | AF181: -0.7585210145 | AG181: -0.7433928624 | AH181: -0.7038527913 | AI181: -0.665632521 | AJ181: -0.6180351908 | AK181: -0.5661792363 | AL181: -0.5045229818 | AM181: -0.4421060403
B182: 2017-05-03 | C182: -0.676620539 | D182: -0.676620539 | E182: -0.7145341462 | F182: -0.7021644764 | G182: -0.6794995105 | H182: -0.6360995367 | I182: -0.5902491393 | J182: -0.534265143 | K182: -0.4783951 | L182: -0.4163819531 | M182: -0.3538483515 | O182: 2017-05-03 | P182: 0.9932337946 | Q182: 0.9932337946 | R182: 0.9894545902 | S182: 0.9859051218 | T182: 0.982560627 | U182: 0.9795790264 | V182: 0.9769352538 | W182: 0.9747047247 | X182: 0.9728635402 | Y182: 0.971460167 | Z182: 0.9704884393 | AB182: 2017-05-03 | AC182: -0.676620539 | AD182: -0.676620539 | AE182: -0.7207327482 | AF182: -0.7159659879 | AG182: -0.7012604959 | AH182: -0.6653126887 | AI182: -0.6261939524 | AJ182: -0.5754950199 | AK182: -0.523512916 | AL182: -0.4632965203 | AM182: -0.4005896521
B183: 2017-05-02 | C183: -0.6658399592 | D183: -0.6658399592 | E183: -0.7186944442 | F183: -0.7032600757 | G183: -0.6785591914 | H183: -0.6330839474 | I183: -0.596643436 | J183: -0.5427607272 | K183: -0.4878947184 | L183: -0.4262777407 | M183: -0.3643318635 | O183: 2017-05-02 | P183: 0.9933416004 | Q183: 0.9933416004 | R183: 0.9894679099 | S183: 0.9859043833 | T183: 0.9825712035 | U183: 0.9796198014 | V183: 0.9769094953 | W183: 0.9746017296 | X183: 0.9726820642 | Y183: 0.971202683 | Z183: 0.9701537333 | AB183: 2017-05-02 | AC183: -0.6658399592 | AD183: -0.6658399592 | AE183: -0.7247798592 | AF183: -0.7168240001 | AG183: -0.6999248875 | AH183: -0.6617008855 | AI183: -0.6323129625 | AJ183: -0.5839996711 | AK183: -0.5332722152 | AL183: -0.4737395121 | AM183: -0.4119595501
B184: 2017-05-01 | C184: -0.6528031577 | D184: -0.6528031577 | E184: -0.6926631382 | F184: -0.6828160901 | G184: -0.6619664943 | H184: -0.6191263043 | I184: -0.5802565032 | J184: -0.5303025534 | K184: -0.4728376576 | L184: -0.4065030753 | M184: -0.3446393921 | O184: 2017-05-01 | P184: 0.9934719684 | Q184: 0.9934719684 | R184: 0.9897926727 | S184: 0.9863249643 | T184: 0.9830524911 | U184: 0.9801438699 | V184: 0.9775090636 | W184: 0.9752401269 | X184: 0.9733904158 | Y184: 0.9720288141 | Z184: 0.9710940268 | AB184: 2017-05-01 | AC184: -0.6528031577 | AD184: -0.6528031577 | AE184: -0.6986616772 | AF184: -0.6961835666 | AG184: -0.6830874751 | AH184: -0.6476147035 | AI184: -0.6155898754 | AJ184: -0.5712690789 | AK184: -0.5176515068 | AL184: -0.4526853542 | AM184: -0.3906119365
B185: 2017-04-28 | C185: -0.6452794258 | D185: -0.6452794258 | E185: -0.6789940015 | F185: -0.6678482781 | G185: -0.6451575604 | H185: -0.6045521798 | I185: -0.5681011094 | J185: -0.5201196422 | K185: -0.465499715 | L185: -0.4068707555 | M185: -0.3457356319 | O185: 2017-04-28 | P185: 0.9935472057 | Q185: 0.9935472057 | R185: 0.9899671483 | S185: 0.9865918203 | T185: 0.983422272 | U185: 0.9805890648 | V185: 0.9780065665 | W185: 0.9757748468 | X185: 0.9739394115 | Y185: 0.9725230809 | Z185: 0.9715383218 | AB185: 2017-04-28 | AC185: -0.6452794258 | AD185: -0.6452794258 | AE185: -0.6848323421 | AF185: -0.6807881767 | AG185: -0.6655357538 | AH185: -0.6319161297 | AI185: -0.6021461829 | AJ185: -0.5596323476 | AK185: -0.5089088217 | AL185: -0.4522805633 | AM185: -0.3910100235
B186: 2017-04-27 | C186: -0.6368370865 | D186: -0.6368370865 | E186: -0.658442652 | F186: -0.6395992382 | G186: -0.625759882 | H186: -0.5879943625 | I186: -0.5586704687 | J186: -0.5148782726 | K186: -0.4605594962 | L186: -0.4021618234 | M186: -0.3432208769 | O186: 2017-04-27 | P186: 0.9936316291 | Q186: 0.9936316291 | R186: 0.9902146445 | S186: 0.9870390687 | T186: 0.983952831 | U186: 0.981180491 | V186: 0.9785965317 | W186: 0.9763363882 | X186: 0.9744835356 | Y186: 0.9730571944 | Z186: 0.9720479895 | AB186: 2017-04-27 | AC186: -0.6368370865 | AD186: -0.6368370865 | AE186: -0.6641286085 | AF186: -0.6520579037 | AG186: -0.6455739978 | AH186: -0.614774415 | AI186: -0.5922724448 | AJ186: -0.5541282385 | AK186: -0.5036834141 | AL186: -0.4472527519 | AM186: -0.3883648851
B187: 2017-04-26 | C187: -0.6378056841 | D187: -0.6378056841 | E187: -0.6717221394 | F187: -0.6678288845 | G187: -0.6449576959 | H187: -0.6188759461 | I187: -0.5809994584 | J187: -0.5343541865 | K187: -0.4842513557 | L187: -0.4245239433 | M187: -0.3692893117 | O187: 2017-04-26 | P187: 0.9936219432 | Q187: 0.9936219432 | R187: 0.9900770474 | S187: 0.9866652781 | T187: 0.983478747 | U187: 0.9804913777 | V187: 0.9777949977 | W187: 0.9754487711 | X187: 0.9734640166 | Y187: 0.9719194406 | Z187: 0.97075486 | AB187: 2017-04-26 | AC187: -0.6378056841 | AD187: -0.6378056841 | AE187: -0.6775542665 | AF187: -0.6808632626 | AG187: -0.665533593 | AH187: -0.6470806266 | AI187: -0.61612989 | AJ187: -0.5753585254 | AK187: -0.5297489168 | AL187: -0.4722979231 | AM187: -0.4179217603
B188: 2017-04-25 | C188: -0.6396257 | D188: -0.6396257 | E188: -0.660222155 | F188: -0.6749607411 | G188: -0.6675734618 | H188: -0.6266206118 | I188: -0.6023908224 | J188: -0.5555429546 | K188: -0.5044162559 | L188: -0.445089326 | M188: -0.3829722714 | O188: 2017-04-25 | P188: 0.993603743 | Q188: 0.993603743 | R188: 0.9901820922 | S188: 0.986664163 | T188: 0.9832522527 | U188: 0.9802293095 | V188: 0.9773605488 | W188: 0.9748603831 | X188: 0.9727416709 | Y188: 0.971064246 | Z188: 0.9698365883 | AB188: 2017-04-25 | AC188: -0.6396257 | AD188: -0.6396257 | AE188: -0.6660851316 | AF188: -0.6882409696 | AG188: -0.689006962 | AH188: -0.6556985226 | AI188: -0.6392429968 | AJ188: -0.5987280871 | AK188: -0.552395185 | AL188: -0.4957682694 | AM188: -0.4342656725
B189: 2017-04-24 | C189: -0.6181023628 | D189: -0.6181023628 | E189: -0.6476333031 | F189: -0.6375081303 | G189: -0.6370429038 | H189: -0.601395381 | I189: -0.577681223 | J189: -0.5313360261 | K189: -0.4827878459 | L189: -0.4251654032 | M189: -0.3691981058 | O189: 2017-04-24 | P189: 0.9938189764 | Q189: 0.9938189764 | R189: 0.9904168754 | S189: 0.9871959787 | T189: 0.9839602993 | U189: 0.9810552825 | V189: 0.9783049972 | W189: 0.9759236372 | X189: 0.9739026375 | Y189: 0.9723122552 | Z189: 0.9711182066 | AB189: 2017-04-24 | AC189: -0.6181023628 | AD189: -0.6181023628 | AE189: -0.6531962107 | AF189: -0.6498450258 | AG189: -0.6569528692 | AH189: -0.6283947531 | AI189: -0.6119576704 | AJ189: -0.5713520881 | AK189: -0.5272755833 | AL189: -0.4720745424 | AM189: -0.4169663259
B190: 2017-04-21 | C190: -0.5936435027 | D190: -0.5936435027 | E190: -0.6298068077 | F190: -0.642969004 | G190: -0.6353390324 | H190: -0.6076614753 | I190: -0.5700138768 | J190: -0.5184645377 | K190: -0.4692662861 | L190: -0.41162969 | M190: -0.3481263692 | O190: 2017-04-21 | P190: 0.994063565 | Q190: 0.994063565 | R190: 0.9907184764 | S190: 0.9873458052 | T190: 0.9840920985 | U190: 0.981101577 | V190: 0.9784219068 | W190: 0.9761541738 | X190: 0.9742426413 | Y190: 0.9727546724 | Z190: 0.9717311945 | AB190: 2017-04-21 | AC190: -0.5936435027 | AD190: -0.5936435027 | AE190: -0.6350733399 | AF190: -0.6549944971 | AG190: -0.6548334662 | AH190: -0.6344631311 | AI190: -0.6034396179 | AJ190: -0.5571379525 | AK190: -0.5120275391 | AL190: -0.456460642 | AM190: -0.3927792032
B191: 2017-04-20 | C191: -0.587645705 | D191: -0.587645705 | E191: -0.6159817902 | F191: -0.6197416827 | G191: -0.610519354 | H191: -0.5885669124 | I191: -0.5489753253 | J191: -0.4999910766 | K191: -0.4498849875 | L191: -0.3872590187 | M191: -0.3300613189 | O191: 2017-04-20 | P191: 0.994123543 | Q191: 0.994123543 | R191: 0.9908866842 | S191: 0.987690119 | T191: 0.9845993745 | U191: 0.9817012751 | V191: 0.9791357383 | W191: 0.9769561379 | X191: 0.9751441131 | Y191: 0.9738056922 | Z191: 0.972867134 | AB191: 2017-04-20 | AC191: -0.587645705 | AD191: -0.587645705 | AE191: -0.6211286476 | AF191: -0.6313441109 | AG191: -0.629196549 | AH191: -0.6143019176 | AI191: -0.5809209767 | AJ191: -0.5369826572 | AK191: -0.4906550361 | AL191: -0.4293389726 | AM191: -0.3721981317
B192: 2017-04-19 | C192: -0.5706340378 | D192: -0.5706340378 | E192: -0.5955677313 | F192: -0.5996225284 | G192: -0.5930016554 | H192: -0.5713278091 | I192: -0.5283268119 | J192: -0.4847305823 | K192: -0.4330349791 | L192: -0.3752332653 | M192: -0.3173209025 | O192: 2017-04-19 | P192: 0.9942936596 | Q192: 0.9942936596 | R192: 0.9911765662 | S192: 0.9880864708 | T192: 0.9850752059 | U192: 0.9822586634 | V192: 0.9798119735 | W192: 0.9776962116 | X192: 0.9759686287 | Y192: 0.9746693772 | Z192: 0.9737829101 | AB192: 2017-04-19 | AC192: -0.5706340378 | AD192: -0.5706340378 | AE192: -0.6004306904 | AF192: -0.6105674531 | AG192: -0.6106881566 | AH192: -0.5957852476 | AI192: -0.5584749219 | AJ192: -0.5198221665 | AK192: -0.4715586137 | AL192: -0.4152688639 | AM192: -0.3571885891
B193: 2017-04-18 | C193: -0.5597907324 | D193: -0.5597907324 | E193: -0.5893376673 | F193: -0.5546206094 | G193: -0.5787597622 | H193: -0.5399677538 | I193: -0.5251711048 | J193: -0.4802973812 | K193: -0.4256253803 | L193: -0.3664800597 | M193: -0.3158926905 | O193: 2017-04-18 | P193: 0.9944020927 | Q193: 0.9944020927 | R193: 0.9912936618 | S193: 0.9886135812 | T193: 0.9856171901 | U193: 0.9830094326 | V193: 0.9804785315 | W193: 0.9783211156 | X193: 0.9765986406 | Y193: 0.9753259318 | Z193: 0.9743996854 | AB193: 2017-04-18 | AC193: -0.5597907324 | AD193: -0.5597907324 | AE193: -0.5940665183 | AF193: -0.5647680796 | AG193: -0.5955456653 | AH193: -0.5626334241 | AI193: -0.5542091338 | AJ193: -0.5141626636 | AK193: -0.4626255365 | AL193: -0.4048503489 | AM193: -0.3547118359
B194: 2017-04-17 | C194: -0.5782083052 | D194: -0.5782083052 | E194: -0.5911863614 | F194: -0.5747124446 | G194: -0.5502984255 | H194: -0.5270159699 | I194: -0.5076241873 | J194: -0.4689748809 | K194: -0.4260509955 | L194: -0.3757299275 | M194: -0.3214275902 | O194: 2017-04-17 | P194: 0.9942179169 | Q194: 0.9942179169 | R194: 0.9911813281 | S194: 0.9883358901 | T194: 0.9856855131 | U194: 0.9831879691 | V194: 0.9807959468 | W194: 0.9787005266 | X194: 0.9769219898 | Y194: 0.9755174417 | Z194: 0.9745108 | AB194: 2017-04-17 | AC194: -0.5782083052 | AD194: -0.5782083052 | AE194: -0.5962054794 | AF194: -0.5856362137 | AG194: -0.5673427847 | AH194: -0.5501977482 | AI194: -0.5370584947 | AJ194: -0.5034699101 | AK194: -0.464510817 | AL194: -0.4163692207 | AM194: -0.3623121057
B195: 2017-04-14 | C195: -0.5692307692 | D195: -0.5692307692 | O195: 2017-04-14 | P195: 0.9943076923 | Q195: 0.9943076923 | AB195: 2017-04-14 | AC195: -0.5692307692 | AD195: -0.5692307692 | AE195: -0.6084552163 | AF195: -0.5809798459 | AG195: -0.5757792818 | AH195: -0.5531015647 | AI195: -0.5242720903 | AJ195: -0.4901286334 | AK195: -0.4510530831 | AL195: -0.4026729012 | AM195: -0.3481430449
B196: 2017-04-13 | C196: -0.5758121389 | D196: -0.5758121389 | E196: -0.6008699995 | F196: -0.5602908738 | G196: -0.5569685821 | H196: -0.5249663835 | I196: -0.4904488211 | J196: -0.4565538111 | K196: -0.4138384532 | L196: -0.3633049471 | M196: -0.308636057 | O196: 2017-04-13 | P196: 0.9942418786 | Q196: 0.9942418786 | R196: 0.9910970408 | S196: 0.9884227468 | T196: 0.9856854093 | U196: 0.9832094261 | V196: 0.9809833959 | W196: 0.9789849331 | X196: 0.9772941883 | Y196: 0.9759754453 | Z196: 0.9750536151 | AB196: 2017-04-13 | AC196: -0.5758121389 | AD196: -0.5758121389 | AE196: -0.605894359 | AF196: -0.5710138843 | AG196: -0.5740783212 | AH196: -0.5478255684 | AI196: -0.5191068873 | AJ196: -0.4903105096 | AK196: -0.4512059447 | AL196: -0.4024639939 | AM196: -0.3479594951
B197: 2017-04-12 | C197: -0.5629998491 | D197: -0.5629998491 | E197: -0.5834765727 | F197: -0.5493422086 | G197: -0.5551613505 | H197: -0.5089324917 | I197: -0.4778489601 | J197: -0.4393894675 | K197: -0.3987498422 | L197: -0.3459399085 | M197: -0.2989451837 | O197: 2017-04-12 | P197: 0.9943700015 | Q197: 0.9943700015 | R197: 0.9913351729 | S197: 0.9886919178 | T197: 0.9859073843 | U197: 0.983546695 | V197: 0.9813923688 | W197: 0.9795092402 | X197: 0.9779068159 | Y197: 0.9766965106 | Z197: 0.9758065026 | AB197: 2017-04-12 | AC197: -0.5629998491 | AD197: -0.5629998491 | AE197: -0.5883461172 | AF197: -0.5598153738 | AG197: -0.5720776612 | AH197: -0.5313138734 | AI197: -0.5056963863 | AJ197: -0.4718227202 | AK197: -0.4347787013 | AL197: -0.3834076895 | AM197: -0.3368858882
B198: 2017-04-11 | C198: -0.5818386492 | D198: -0.5818386492 | E198: -0.6169243189 | F198: -0.5846917888 | G198: -0.5851361027 | H198: -0.5423168358 | I198: -0.519084271 | J198: -0.4775107169 | K198: -0.4295588246 | L198: -0.3755542232 | M198: -0.3165161517 | O198: 2017-04-11 | P198: 0.9941816135 | Q198: 0.9941816135 | R198: 0.9909059059 | S198: 0.9880497964 | T198: 0.9851211143 | U198: 0.9825768246 | V198: 0.9801640497 | W198: 0.9780640758 | X198: 0.9763194507 | Y198: 0.9749720293 | Z198: 0.9740565995 | AB198: 2017-04-11 | AC198: -0.5818386492 | AD198: -0.5818386492 | AE198: -0.6221983179 | AF198: -0.5961674815 | AG198: -0.6035662565 | AH198: -0.5669629497 | AI198: -0.5500990834 | AJ198: -0.5136642454 | AK198: -0.4693647339 | AL198: -0.4172358561 | AM198: -0.3578272537
B199: 2017-04-10 | C199: -0.5879483716 | D199: -0.5879483716 | E199: -0.6206110839 | F199: -0.6131604074 | G199: -0.5970970113 | H199: -0.545339109 | I199: -0.5189036924 | J199: -0.4794628261 | K199: -0.4304496318 | L199: -0.3756357815 | M199: -0.3189517904 | O199: 2017-04-10 | P199: 0.9941205163 | Q199: 0.9941205163 | R199: 0.9908374519 | S199: 0.9877186027 | T199: 0.984748002 | U199: 0.982240502 | V199: 0.9798765246 | W199: 0.977788746 | X199: 0.9760591803 | Y199: 0.9747287557 | Z199: 0.973802442 | AB199: 2017-04-10 | AC199: -0.5879483716 | AD199: -0.5879483716 | AE199: -0.6261158912 | AF199: -0.6254961727 | AG199: -0.6167050205 | AH199: -0.5711731919 | AI199: -0.5512143562 | AJ199: -0.5171635779 | AK199: -0.4718496391 | AL199: -0.4188422104 | AM199: -0.3619858391
B200: 2017-04-07 | C200: -0.5929989551 | D200: -0.5929989551 | E200: -0.6337915933 | F200: -0.6183561961 | G200: -0.6203242668 | H200: -0.5774198912 | I200: -0.5523533141 | J200: -0.5109362202 | K200: -0.4642492561 | L200: -0.408452368 | M200: -0.3475544137 | O200: 2017-04-07 | P200: 0.9940700104 | Q200: 0.9940700104 | R200: 0.9906802644 | S200: 0.9875602882 | T200: 0.9843965206 | U200: 0.9816372764 | V200: 0.9790361528 | W200: 0.9767478739 | X200: 0.9748026677 | Y200: 0.9732731007 | Z200: 0.9721922981 | AB200: 2017-04-07 | AC200: -0.5929989551 | AD200: -0.5929989551 | AE200: -0.6394530696 | AF200: -0.6310072117 | AG200: -0.6408367415 | AH200: -0.6049463525 | AI200: -0.5869913948 | AJ200: -0.5514443936 | AK200: -0.5092459759 | AL200: -0.4558016664 | AM200: -0.3948356432
B201: 2017-04-06 | C201: -0.5860732126 | D201: -0.5860732126 | E201: -0.6257868404 | F201: -0.6095704018 | G201: -0.6038761038 | H201: -0.5609162617 | I201: -0.5353794448 | J201: -0.4944499872 | K201: -0.4469646661 | L201: -0.3919725894 | M201: -0.3343510605 | O201: 2017-04-06 | P201: 0.9941392679 | Q201: 0.9941392679 | R201: 0.9907958555 | S201: 0.9877274104 | T201: 0.9846891142 | U201: 0.98204059 | V201: 0.9795470156 | W201: 0.9773567365 | X201: 0.9755153467 | Y201: 0.9740797729 | Z201: 0.973060196 | AB201: 2017-04-06 | AC201: -0.5860732126 | AD201: -0.5860732126 | AE201: -0.6311950479 | AF201: -0.6216400988 | AG201: -0.6233013404 | AH201: -0.5870047388 | AI201: -0.5682902717 | AJ201: -0.5329915132 | AK201: -0.4896526387 | AL201: -0.4368237663 | AM201: -0.3793318964
B202: 2017-04-05 | C202: -0.5784145888 | D202: -0.5784145888 | E202: -0.6277019159 | F202: -0.6257521285 | G202: -0.5861498295 | H202: -0.5407250479 | I202: -0.5301148364 | J202: -0.488038929 | K202: -0.4382740542 | L202: -0.3788800707 | M202: -0.3233146229 | O202: 2017-04-05 | P202: 0.9942158541 | Q202: 0.9942158541 | R202: 0.9908154473 | S202: 0.9875800141 | T202: 0.9847531553 | U202: 0.9822920388 | V202: 0.9798110547 | W202: 0.9776488366 | X202: 0.9758593647 | Y202: 0.9745179243 | Z202: 0.9735679321 | AB202: 2017-04-05 | AC202: -0.5784145888 | AD202: -0.5784145888 | AE202: -0.6330794972 | AF202: -0.6379778899 | AG202: -0.6052115678 | AH202: -0.5660444534 | AI202: -0.56262442 | AJ202: -0.5260671944 | AK202: -0.4801736722 | AL202: -0.4223145094 | AM202: -0.3668455717
B203: 2017-04-04 | C203: -0.5879719445 | D203: -0.5879719445 | E203: -0.6491475545 | F203: -0.6310688109 | G203: -0.6191519807 | H203: -0.5823099945 | I203: -0.5455362041 | J203: -0.4886938075 | K203: -0.4457604084 | L203: -0.3952384782 | M203: -0.3444754142 | O203: 2017-04-04 | P203: 0.9941202806 | Q203: 0.9941202806 | R203: 0.9905528262 | S203: 0.9873488012 | T203: 0.9842485083 | U203: 0.981470254 | V203: 0.9789632291 | W203: 0.9769037031 | X203: 0.9751227071 | Y203: 0.9736913607 | Z203: 0.972604557 | AB203: 2017-04-04 | AC203: -0.5879719445 | AD203: -0.5879719445 | AE203: -0.6548076468 | AF203: -0.6438167493 | AG203: -0.6395976942 | AH203: -0.6098708624 | AI203: -0.5797708006 | AJ203: -0.5277134186 | AK203: -0.4890962324 | AL203: -0.4410531377 | AM203: -0.3911595505
... 66 more rows

Sheet >discounts
B2: TAB: TEMPLATE TESTING TAB (DISCOUNT FACTORS)
B4: Output data frequency | E4: =config!B17 -> data-frequency | G4: =config!B20 -> monthly-frequency
B5: =_xll.AC.finance.irb.get(calc!E10, config!B7, _xll.AC.data.map(E4:E4, G4:G4)) -> java.util.ArrayList@Sun, 24 Jun 2018 23:12:40:608..7671817516124633526 | E5: =_xll.AC.data.size($B$5, 1) -> 13 | F5: =_xll.AC.data.size($B$5, 2) -> 22
B7: =_xll.AC.data._get(B5, "", 0) -> Date | C7: 0 | D7: 0.5 | E7: 1 | F7: 1.5 | G7: 2 | H7: 2.5 | I7: 3 | J7: 3.5 | K7: 4 | L7: 4.5 | M7: 5 | N7: 5.5 | O7: 6 | P7: 6.5 | Q7: 7 | R7: 7.5 | S7: 8 | T7: 8.5 | U7: 9 | V7: 9.5 | W7: 10
B8: 2017-12-15 | C8: 1 | D8: 0.9908109433 | E8: 0.9817063704 | F8: 0.9713848424 | G8: 0.9603096459 | H8: 0.949497691 | I8: 0.9383507962 | J8: 0.9275201563 | K8: 0.9165448887 | L8: 0.9057135074 | M8: 0.8948058904 | N8: 0.8839484055 | O8: 0.8730426779 | P8: 0.8621637465 | Q8: 0.8512531762 | R8: 0.8404190887 | S8: 0.8295713845 | T8: 0.8187886151 | U8: 0.8080049375 | V8: 0.797308756 | W8: 0.7866235931
B9: 2017-11-15 | C9: 1 | D9: 0.9915166465 | E9: 0.9831052999 | F9: 0.9735125047 | G9: 0.9631825103 | H9: 0.952953433 | I9: 0.9423365356 | J9: 0.9318997755 | K9: 0.921245506 | L9: 0.9106561027 | M9: 0.8999195223 | N9: 0.889127854 | O9: 0.8782148887 | P9: 0.867320353 | Q9: 0.8563333425 | R9: 0.8454041236 | S9: 0.8344084044 | T9: 0.8235086109 | U9: 0.8125659321 | V9: 0.8017217251 | W9: 0.7908533559
B10: 2017-10-16 | C10: 1 | D10: 0.9920095091 | E10: 0.9840828765 | F10: 0.9749151433 | G10: 0.9649675993 | H10: 0.9550346559 | I10: 0.9446557771 | J10: 0.9343699254 | K10: 0.923803092 | L10: 0.9132320543 | M10: 0.9024521488 | N10: 0.8916187324 | O10: 0.8806154437 | P10: 0.8695800239 | Q10: 0.8584059251 | R10: 0.8473197654 | S10: 0.8361319789 | T10: 0.8250496649 | U10: 0.8138956973 | V10: 0.802918488 | W10: 0.7918988914
B11: 2017-09-15 | C11: 1 | D11: 0.992578726 | E11: 0.9852125979 | F11: 0.9769605685 | G11: 0.968153614 | H11: 0.959218985 | I11: 0.9499134291 | J11: 0.9405122773 | K11: 0.9308303894 | L11: 0.9210170424 | M11: 0.9109678375 | N11: 0.9007489122 | O11: 0.8903187475 | P11: 0.8798909803 | Q11: 0.8692941484 | R11: 0.858620461 | S11: 0.8478003972 | T11: 0.8371699526 | U11: 0.8264371974 | V11: 0.815857492 | W11: 0.8052064382
B12: 2017-08-15 | C12: 1 | D12: 0.9927715902 | E12: 0.9855954337 | F12: 0.9775958331 | G12: 0.9690801613 | H12: 0.9603305763 | I12: 0.9511917683 | J12: 0.9418559684 | K12: 0.9321995124 | L12: 0.9223392277 | M12: 0.9121983233 | N12: 0.9018926825 | O12: 0.8913412246 | P12: 0.8807281026 | Q12: 0.8699093183 | R12: 0.8591247957 | S12: 0.8481760025 | T12: 0.8374317624 | U12: 0.8265714562 | V12: 0.8158069945 | W12: 0.8049547465
B13: 2017-07-17 | C13: 1 | D13: 0.9927686293 | E13: 0.9855895544 | F13: 0.9773152393 | G13: 0.9683491192 | H13: 0.9590558356 | I13: 0.9492362276 | J13: 0.9392618106 | K13: 0.9288841569 | L13: 0.9183474858 | M13: 0.9074783921 | N13: 0.8965750315 | O13: 0.8854071306 | P13: 0.8742793411 | Q13: 0.8629450482 | R13: 0.8516748621 | S13: 0.8402439194 | T13: 0.8290087184 | U13: 0.8176602918 | V13: 0.8064922588 | W13: 0.7952464935
B14: 2017-06-15 | C14: 1 | D14: 0.993028952 | E14: 0.9861065144 | F14: 0.9781971551 | G14: 0.969664106 | H14: 0.9608192966 | I14: 0.9514927187 | J14: 0.9420222016 | K14: 0.9321811758 | L14: 0.9222477994 | M14: 0.9120189597 | N14: 0.9017207368 | O14: 0.8911804012 | P14: 0.880648959 | Q14: 0.8699241652 | R14: 0.8592907462 | S14: 0.8485095395 | T14: 0.8377880672 | U14: 0.8269506411 | V14: 0.8162696892 | W14: 0.8055059752
B15: 2017-05-15 | C15: 1 | D15: 0.9931872254 | E15: 0.9864208794 | F15: 0.9783927757 | G15: 0.9695620619 | H15: 0.9603348594 | I15: 0.9504898952 | J15: 0.940530897 | K15: 0.9301160501 | L15: 0.9196634282 | M15: 0.9088630558 | N15: 0.8981199192 | O15: 0.8871145366 | P15: 0.8761363634 | Q15: 0.8649515744 | R15: 0.8539507387 | S15: 0.8428019556 | T15: 0.8317803452 | U15: 0.8206495337 | V15: 0.8096442611 | W15: 0.7985599481
B16: 2017-04-17 | C16: 1 | D16: 0.9931836673 | E16: 0.9864138079 | F16: 0.9783245183 | G16: 0.9694005474 | H16: 0.960058648 | I16: 0.9500708412 | J16: 0.9399618147 | K16: 0.9293758635 | L16: 0.9188040789 | M16: 0.9078794469 | N16: 0.8969841755 | O16: 0.8858184173 | P16: 0.8747354169 | Q16: 0.8634466494 | R16: 0.8523404696 | S16: 0.841087059 | T16: 0.8300022258 | U16: 0.8188128636 | V16: 0.8077580682 | W16: 0.7966290841
B17: 2017-03-15 | C17: 1 | D17: 0.9931158574 | E17: 0.9862791131 | F17: 0.9775815881 | G17: 0.9676952765 | H17: 0.957317245 | I17: 0.9460637182 | J17: 0.9348768484 | K17: 0.9231069736 | L17: 0.9115368902 | M17: 0.8995736785 | N17: 0.887809173 | O17: 0.8757711877 | P17: 0.8639234407 | Q17: 0.8518829711 | R17: 0.8400673403 | S17: 0.828121137 | T17: 0.8164001157 | U17: 0.804594991 | V17: 0.7929865107 | W17: 0.7813273532
B18: 2017-02-15 | C18: 1 | D18: 0.9936325832 | E18: 0.9873057391 | F18: 0.9791898988 | G18: 0.9699269889 | H18: 0.9601950881 | I18: 0.9496180927 | J18: 0.938951245 | K18: 0.9276792632 | L18: 0.9165309181 | M18: 0.9049565392 | N18: 0.8934436775 | O18: 0.8816088676 | P18: 0.8699470873 | Q18: 0.8580504584 | R18: 0.8463899327 | S18: 0.834564664 | T18: 0.822966113 | U18: 0.811254405 | V18: 0.799767203 | W18: 0.7882063908
B19: 2017-01-16 | C19: 1 | D19: 0.9938794454 | E19: 0.9877963671 | F19: 0.9798661911 | G19: 0.9707492562 | H19: 0.9611103775 | I19: 0.9505826014 | J19: 0.9400282624 | K19: 0.9288550223 | L19: 0.9178196604 | M19: 0.9063505664 | N19: 0.8950308886 | O19: 0.8833968811 | P19: 0.8719530784 | Q19: 0.8602825202 | R19: 0.8488565695 | S19: 0.8372731984 | T19: 0.825952025 | U19: 0.8145268572 | V19: 0.8033497339 | W19: 0.7921083841

Sheet curves
B2: TAB: BLOOMBERG SWAP CURVES AND FORWARD RATES
H3: =config!B11 -> curve-fx | U3: =config!B12 -> curve-swap
B4: FX Forward rates | H4: CRNCY_FROM | J4: USD | O4: USD Float-to-Fixed swap rate | U4: CRNCY | W4: USD
B5: Currency | C5: CAD | E5: =_xll.AC.finance.irb.size(B6, 1) -> 260 | F5: =_xll.AC.finance.irb.size(B6, 2) -> 11 | H5: CRNCY_TO | J5: CAD | O5: Curve name | P5: USSW | R5: =_xll.AC.finance.irb.size(O6, 1) -> 258 | S5: =_xll.AC.finance.irb.size(O6, 2) -> 10 | U5: CPN_FREQ | W5: 2
B6: =_xll.AC.finance.irb.curve(C5, H3, B10:B800,C9:M9, C10:M800, H6) -> jeconkr.finance.FSTP.lib.model.fx.data.CurveFX@Sun, 24 Jun 2018 23:12:52:901..1325459906523674912 | H6: =_xll.AC.data.map(H4:H5, J4:J5) -> java.util.LinkedHashMap@Sun, 24 Jun 2018 23:12:40:396..5123630796006960860 | O6: =_xll.AC.finance.irb.curve(P5, U3, O10:O800,P9:Y9, P10:Y800, U6) -> jeconkr.finance.FSTP.lib.model.swap.data.CurveSwap@Sun, 24 Jun 2018 23:12:52:905..514408064112231720 | U6: =_xll.AC.data.map(U4:U5, W4:W5) -> java.util.LinkedHashMap@Sun, 24 Jun 2018 23:12:40:397..8145265143495689158
C8: =CAD!B4 -> CAD | D8: =CAD!D4 -> CAD12M | E8: =CAD!F4 -> CAD2Y | F8: =CAD!H4 -> CAD3Y | G8: =CAD!J4 -> CAD4Y | H8: =CAD!L4 -> CAD5Y | I8: =CAD!N4 -> CAD6Y | J8: =CAD!P4 -> CAD7Y | K8: =CAD!R4 -> CAD8Y | L8: =CAD!T4 -> CAD9Y | M8: =CAD!V4 -> CAD10Y | P8: =USSW!B4 -> USSW1 | Q8: =USSW!D4 -> USSW2 | R8: =USSW!F4 -> USSW3 | S8: =USSW!H4 -> USSW4 | T8: =USSW!J4 -> USSW5 | U8: =USSW!L4 -> USSW6 | V8: =USSW!N4 -> USSW7 | W8: =USSW!P4 -> USSW8 | X8: =USSW!R4 -> USSW9 | Y8: =USSW!T4 -> USSW10
B9: Date | C9: 0 | D9: 1 | E9: 2 | F9: 3 | G9: 4 | H9: 5 | I9: 6 | J9: 7 | K9: 8 | L9: 9 | M9: 10 | O9: Date | P9: 1 | Q9: 2 | R9: 3 | S9: 4 | T9: 5 | U9: 6 | V9: 7 | W9: 8 | X9: 9 | Y9: 10
B10: =IF(CAD!B7="", "", CAD!B7) -> 2017-12-29 | C10: =IF($B10="", "", CAD!C7) -> 1.2571 | D10: =IF($B10="", "",VLOOKUP($B10, CAD!$D$7:$E$2000, 2, FALSE)) -> 1.25329 | E10: =IF($B10="", "",VLOOKUP($B10, CAD!$F$7:$G$2000, 2, FALSE)) -> 1.2513 | F10: =IF($B10="", "",VLOOKUP($B10, CAD!$H$7:$I$2000, 2, FALSE)) -> 1.24903 | G10: =IF($B10="", "",VLOOKUP($B10, CAD!$J$7:$K$2000, 2, FALSE)) -> 1.248935 | H10: =IF($B10="", "", VLOOKUP($B10, CAD!$L$7:$M$2000, 2, FALSE)) -> 1.24937 | I10: =IF($B10="", "", VLOOKUP($B10, CAD!$N$7:$O$2000, 2, FALSE)) -> 1.2524 | J10: =IF($B10="", "", VLOOKUP($B10, CAD!$P$7:$Q$2000, 2, FALSE)) -> 1.24952 | K10: =IF($B10="", "", VLOOKUP($B10, CAD!$R$7:$S$2000, 2, FALSE)) -> 1.25009 | L10: =IF($B10="", "", VLOOKUP($B10, CAD!$T$7:$U$2000, 2, FALSE)) ->  | M10: =IF($B10="", "", VLOOKUP($B10, CAD!$V$7:$W$2000, 2, FALSE)) ->  | O10: =IF(USSW!B7="", "", USSW!B7) -> 2017-12-29 | P10: =IF($O10="", "", USSW!C7) -> 1.8992 | Q10: =IF($O10="", "", VLOOKUP($O10, USSW!$D$7:$E$2000, 2, FALSE)) -> 2.078 | R10: =IF($O10="", "", VLOOKUP($O10, USSW!$F$7:$G$2000, 2, FALSE)) -> 2.169 | S10: =IF($O10="", "", VLOOKUP($O10, USSW!$H$7:$I$2000, 2, FALSE)) -> 2.2105 | T10: =IF($O10="", "", VLOOKUP($O10, USSW!$J$7:$K$2000, 2, FALSE)) -> 2.2437 | U10: =IF($O10="", "", VLOOKUP($O10, USSW!$L$7:$M$2000, 2, FALSE)) -> 2.2765 | V10: =IF($O10="", "", VLOOKUP($O10, USSW!$N$7:$O$2000, 2, FALSE)) -> 2.3106 | W10: =IF($O10="", "", VLOOKUP($O10, USSW!$P$7:$Q$2000, 2, FALSE)) -> 2.3412 | X10: =IF($O10="", "", VLOOKUP($O10, USSW!$R$7:$S$2000, 2, FALSE)) -> 2.37 | Y10: =IF($O10="", "", VLOOKUP($O10, USSW!$T$7:$U$2000, 2, FALSE)) -> 2.398
B11: =IF(CAD!B8="", "", CAD!B8) -> 2017-12-28 | C11: =IF($B11="", "", CAD!C8) -> 1.257 | D11: =IF($B11="", "",VLOOKUP($B11, CAD!$D$7:$E$2000, 2, FALSE)) -> 1.252556 | E11: =IF($B11="", "",VLOOKUP($B11, CAD!$F$7:$G$2000, 2, FALSE)) -> 1.25035 | F11: =IF($B11="", "",VLOOKUP($B11, CAD!$H$7:$I$2000, 2, FALSE)) -> 1.2486 | G11: =IF($B11="", "",VLOOKUP($B11, CAD!$J$7:$K$2000, 2, FALSE)) -> 1.24788 | H11: =IF($B11="", "", VLOOKUP($B11, CAD!$L$7:$M$2000, 2, FALSE)) -> 1.24756 | I11: =IF($B11="", "", VLOOKUP($B11, CAD!$N$7:$O$2000, 2, FALSE)) -> 1.25025 | J11: =IF($B11="", "", VLOOKUP($B11, CAD!$P$7:$Q$2000, 2, FALSE)) -> 1.246575 | K11: =IF($B11="", "", VLOOKUP($B11, CAD!$R$7:$S$2000, 2, FALSE)) -> 1.2467 | L11: =IF($B11="", "", VLOOKUP($B11, CAD!$T$7:$U$2000, 2, FALSE)) -> 1.249201 | M11: =IF($B11="", "", VLOOKUP($B11, CAD!$V$7:$W$2000, 2, FALSE)) -> 1.24963 | O11: =IF(USSW!B8="", "", USSW!B8) -> 2017-12-28 | P11: =IF($O11="", "", USSW!C8) -> 1.9055 | Q11: =IF($O11="", "", VLOOKUP($O11, USSW!$D$7:$E$2000, 2, FALSE)) -> 2.0867 | R11: =IF($O11="", "", VLOOKUP($O11, USSW!$F$7:$G$2000, 2, FALSE)) -> 2.1814 | S11: =IF($O11="", "", VLOOKUP($O11, USSW!$H$7:$I$2000, 2, FALSE)) -> 2.2318 | T11: =IF($O11="", "", VLOOKUP($O11, USSW!$J$7:$K$2000, 2, FALSE)) -> 2.2706 | U11: =IF($O11="", "", VLOOKUP($O11, USSW!$L$7:$M$2000, 2, FALSE)) -> 2.3039 | V11: =IF($O11="", "", VLOOKUP($O11, USSW!$N$7:$O$2000, 2, FALSE)) -> 2.3362 | W11: =IF($O11="", "", VLOOKUP($O11, USSW!$P$7:$Q$2000, 2, FALSE)) -> 2.3654 | X11: =IF($O11="", "", VLOOKUP($O11, USSW!$R$7:$S$2000, 2, FALSE)) -> 2.3914 | Y11: =IF($O11="", "", VLOOKUP($O11, USSW!$T$7:$U$2000, 2, FALSE)) -> 2.4189
B12: =IF(CAD!B9="", "", CAD!B9) -> 2017-12-27 | C12: =IF($B12="", "", CAD!C9) -> 1.2655 | D12: =IF($B12="", "",VLOOKUP($B12, CAD!$D$7:$E$2000, 2, FALSE)) -> 1.260807 | E12: =IF($B12="", "",VLOOKUP($B12, CAD!$F$7:$G$2000, 2, FALSE)) -> 1.25845 | F12: =IF($B12="", "",VLOOKUP($B12, CAD!$H$7:$I$2000, 2, FALSE)) -> 1.256445 | G12: =IF($B12="", "",VLOOKUP($B12, CAD!$J$7:$K$2000, 2, FALSE)) -> 1.25458 | H12: =IF($B12="", "", VLOOKUP($B12, CAD!$L$7:$M$2000, 2, FALSE)) -> 1.25355 | I12: =IF($B12="", "", VLOOKUP($B12, CAD!$N$7:$O$2000, 2, FALSE)) -> 1.25535 | J12: =IF($B12="", "", VLOOKUP($B12, CAD!$P$7:$Q$2000, 2, FALSE)) -> 1.251835 | K12: =IF($B12="", "", VLOOKUP($B12, CAD!$R$7:$S$2000, 2, FALSE)) -> 1.25186 | L12: =IF($B12="", "", VLOOKUP($B12, CAD!$T$7:$U$2000, 2, FALSE)) -> 1.25341 | M12: =IF($B12="", "", VLOOKUP($B12, CAD!$V$7:$W$2000, 2, FALSE)) -> 1.25453 | O12: =IF(USSW!B9="", "", USSW!B9) -> 2017-12-27 | P12: =IF($O12="", "", USSW!C9) -> 1.8996 | Q12: =IF($O12="", "", VLOOKUP($O12, USSW!$D$7:$E$2000, 2, FALSE)) -> 2.0719 | R12: =IF($O12="", "", VLOOKUP($O12, USSW!$F$7:$G$2000, 2, FALSE)) -> 2.1637 | S12: =IF($O12="", "", VLOOKUP($O12, USSW!$H$7:$I$2000, 2, FALSE)) -> 2.2125 | T12: =IF($O12="", "", VLOOKUP($O12, USSW!$J$7:$K$2000, 2, FALSE)) -> 2.247 | U12: =IF($O12="", "", VLOOKUP($O12, USSW!$L$7:$M$2000, 2, FALSE)) -> 2.281 | V12: =IF($O12="", "", VLOOKUP($O12, USSW!$N$7:$O$2000, 2, FALSE)) -> 2.313 | W12: =IF($O12="", "", VLOOKUP($O12, USSW!$P$7:$Q$2000, 2, FALSE)) -> 2.342 | X12: =IF($O12="", "", VLOOKUP($O12, USSW!$R$7:$S$2000, 2, FALSE)) -> 2.3694 | Y12: =IF($O12="", "", VLOOKUP($O12, USSW!$T$7:$U$2000, 2, FALSE)) -> 2.3955
B13: =IF(CAD!B10="", "", CAD!B10) -> 2017-12-26 | C13: =IF($B13="", "", CAD!C10) -> 1.2687 | D13: =IF($B13="", "",VLOOKUP($B13, CAD!$D$7:$E$2000, 2, FALSE)) -> 1.26367 | E13: =IF($B13="", "",VLOOKUP($B13, CAD!$F$7:$G$2000, 2, FALSE)) -> 1.26095 | F13: =IF($B13="", "",VLOOKUP($B13, CAD!$H$7:$I$2000, 2, FALSE)) -> 1.258265 | G13: =IF($B13="", "",VLOOKUP($B13, CAD!$J$7:$K$2000, 2, FALSE)) -> 1.25671 | H13: =IF($B13="", "", VLOOKUP($B13, CAD!$L$7:$M$2000, 2, FALSE)) -> 1.255755 | I13: =IF($B13="", "", VLOOKUP($B13, CAD!$N$7:$O$2000, 2, FALSE)) -> 1.257183 | J13: =IF($B13="", "", VLOOKUP($B13, CAD!$P$7:$Q$2000, 2, FALSE)) -> 1.25422 | K13: =IF($B13="", "", VLOOKUP($B13, CAD!$R$7:$S$2000, 2, FALSE)) -> 1.25417 | L13: =IF($B13="", "", VLOOKUP($B13, CAD!$T$7:$U$2000, 2, FALSE)) ->  | M13: =IF($B13="", "", VLOOKUP($B13, CAD!$V$7:$W$2000, 2, FALSE)) ->  | O13: =IF(USSW!B10="", "", USSW!B10) -> 2017-12-26 | P13: =IF($O13="", "", USSW!C10) -> 1.913 | Q13: =IF($O13="", "", VLOOKUP($O13, USSW!$D$7:$E$2000, 2, FALSE)) -> 2.0973 | R13: =IF($O13="", "", VLOOKUP($O13, USSW!$F$7:$G$2000, 2, FALSE)) -> 2.1926 | S13: =IF($O13="", "", VLOOKUP($O13, USSW!$H$7:$I$2000, 2, FALSE)) -> 2.2472 | T13: =IF($O13="", "", VLOOKUP($O13, USSW!$J$7:$K$2000, 2, FALSE)) -> 2.2864 | U13: =IF($O13="", "", VLOOKUP($O13, USSW!$L$7:$M$2000, 2, FALSE)) -> 2.3266 | V13: =IF($O13="", "", VLOOKUP($O13, USSW!$N$7:$O$2000, 2, FALSE)) -> 2.3592 | W13: =IF($O13="", "", VLOOKUP($O13, USSW!$P$7:$Q$2000, 2, FALSE)) -> 2.3901 | X13: =IF($O13="", "", VLOOKUP($O13, USSW!$R$7:$S$2000, 2, FALSE)) -> 2.4188 | Y13: =IF($O13="", "", VLOOKUP($O13, USSW!$T$7:$U$2000, 2, FALSE)) -> 2.4483
B14: =IF(CAD!B11="", "", CAD!B11) -> 2017-12-25 | C14: =IF($B14="", "", CAD!C11) -> 1.2727 | D14: =IF($B14="", "",VLOOKUP($B14, CAD!$D$7:$E$2000, 2, FALSE)) -> 1.26765 | E14: =IF($B14="", "",VLOOKUP($B14, CAD!$F$7:$G$2000, 2, FALSE)) -> 1.26495 | F14: =IF($B14="", "",VLOOKUP($B14, CAD!$H$7:$I$2000, 2, FALSE)) -> 1.26208 | G14: =IF($B14="", "",VLOOKUP($B14, CAD!$J$7:$K$2000, 2, FALSE)) -> 1.260128 | H14: =IF($B14="", "", VLOOKUP($B14, CAD!$L$7:$M$2000, 2, FALSE)) -> 1.259245 | I14: =IF($B14="", "", VLOOKUP($B14, CAD!$N$7:$O$2000, 2, FALSE)) -> 1.2603 | J14: =IF($B14="", "", VLOOKUP($B14, CAD!$P$7:$Q$2000, 2, FALSE)) -> 1.25672 | K14: =IF($B14="", "", VLOOKUP($B14, CAD!$R$7:$S$2000, 2, FALSE)) -> 1.25697 | L14: =IF($B14="", "", VLOOKUP($B14, CAD!$T$7:$U$2000, 2, FALSE)) ->  | M14: =IF($B14="", "", VLOOKUP($B14, CAD!$V$7:$W$2000, 2, FALSE)) ->  | O14: =IF(USSW!B11="", "", USSW!B11) -> 2017-12-22 | P14: =IF($O14="", "", USSW!C11) -> 1.9156 | Q14: =IF($O14="", "", VLOOKUP($O14, USSW!$D$7:$E$2000, 2, FALSE)) -> 2.1 | R14: =IF($O14="", "", VLOOKUP($O14, USSW!$F$7:$G$2000, 2, FALSE)) -> 2.197 | S14: =IF($O14="", "", VLOOKUP($O14, USSW!$H$7:$I$2000, 2, FALSE)) -> 2.2536 | T14: =IF($O14="", "", VLOOKUP($O14, USSW!$J$7:$K$2000, 2, FALSE)) -> 2.2949 | U14: =IF($O14="", "", VLOOKUP($O14, USSW!$L$7:$M$2000, 2, FALSE)) -> 2.3355 | V14: =IF($O14="", "", VLOOKUP($O14, USSW!$N$7:$O$2000, 2, FALSE)) -> 2.3719 | W14: =IF($O14="", "", VLOOKUP($O14, USSW!$P$7:$Q$2000, 2, FALSE)) -> 2.403 | X14: =IF($O14="", "", VLOOKUP($O14, USSW!$R$7:$S$2000, 2, FALSE)) -> 2.4335 | Y14: =IF($O14="", "", VLOOKUP($O14, USSW!$T$7:$U$2000, 2, FALSE)) -> 2.4615
B15: =IF(CAD!B12="", "", CAD!B12) -> 2017-12-22 | C15: =IF($B15="", "", CAD!C12) -> 1.2729 | D15: =IF($B15="", "",VLOOKUP($B15, CAD!$D$7:$E$2000, 2, FALSE)) -> 1.267843 | E15: =IF($B15="", "",VLOOKUP($B15, CAD!$F$7:$G$2000, 2, FALSE)) -> 1.2651 | F15: =IF($B15="", "",VLOOKUP($B15, CAD!$H$7:$I$2000, 2, FALSE)) -> 1.26207 | G15: =IF($B15="", "",VLOOKUP($B15, CAD!$J$7:$K$2000, 2, FALSE)) -> 1.260472 | H15: =IF($B15="", "", VLOOKUP($B15, CAD!$L$7:$M$2000, 2, FALSE)) -> 1.25941 | I15: =IF($B15="", "", VLOOKUP($B15, CAD!$N$7:$O$2000, 2, FALSE)) -> 1.25813 | J15: =IF($B15="", "", VLOOKUP($B15, CAD!$P$7:$Q$2000, 2, FALSE)) -> 1.2571 | K15: =IF($B15="", "", VLOOKUP($B15, CAD!$R$7:$S$2000, 2, FALSE)) -> 1.257095 | L15: =IF($B15="", "", VLOOKUP($B15, CAD!$T$7:$U$2000, 2, FALSE)) -> 1.257093 | M15: =IF($B15="", "", VLOOKUP($B15, CAD!$V$7:$W$2000, 2, FALSE)) -> 1.2588 | O15: =IF(USSW!B12="", "", USSW!B12) -> 2017-12-21 | P15: =IF($O15="", "", USSW!C12) -> 1.9043 | Q15: =IF($O15="", "", VLOOKUP($O15, USSW!$D$7:$E$2000, 2, FALSE)) -> 2.0852 | R15: =IF($O15="", "", VLOOKUP($O15, USSW!$F$7:$G$2000, 2, FALSE)) -> 2.186 | S15: =IF($O15="", "", VLOOKUP($O15, USSW!$H$7:$I$2000, 2, FALSE)) -> 2.2458 | T15: =IF($O15="", "", VLOOKUP($O15, USSW!$J$7:$K$2000, 2, FALSE)) -> 2.2938 | U15: =IF($O15="", "", VLOOKUP($O15, USSW!$L$7:$M$2000, 2, FALSE)) -> 2.334 | V15: =IF($O15="", "", VLOOKUP($O15, USSW!$N$7:$O$2000, 2, FALSE)) -> 2.3723 | W15: =IF($O15="", "", VLOOKUP($O15, USSW!$P$7:$Q$2000, 2, FALSE)) -> 2.4062 | X15: =IF($O15="", "", VLOOKUP($O15, USSW!$R$7:$S$2000, 2, FALSE)) -> 2.4389 | Y15: =IF($O15="", "", VLOOKUP($O15, USSW!$T$7:$U$2000, 2, FALSE)) -> 2.4677
B16: =IF(CAD!B13="", "", CAD!B13) -> 2017-12-21 | C16: =IF($B16="", "", CAD!C13) -> 1.274 | D16: =IF($B16="", "",VLOOKUP($B16, CAD!$D$7:$E$2000, 2, FALSE)) -> 1.269151 | E16: =IF($B16="", "",VLOOKUP($B16, CAD!$F$7:$G$2000, 2, FALSE)) -> 1.26645 | F16: =IF($B16="", "",VLOOKUP($B16, CAD!$H$7:$I$2000, 2, FALSE)) -> 1.264515 | G16: =IF($B16="", "",VLOOKUP($B16, CAD!$J$7:$K$2000, 2, FALSE)) -> 1.26316 | H16: =IF($B16="", "", VLOOKUP($B16, CAD!$L$7:$M$2000, 2, FALSE)) -> 1.26189 | I16: =IF($B16="", "", VLOOKUP($B16, CAD!$N$7:$O$2000, 2, FALSE)) -> 1.2636 | J16: =IF($B16="", "", VLOOKUP($B16, CAD!$P$7:$Q$2000, 2, FALSE)) -> 1.25927 | K16: =IF($B16="", "", VLOOKUP($B16, CAD!$R$7:$S$2000, 2, FALSE)) -> 1.25873 | L16: =IF($B16="", "", VLOOKUP($B16, CAD!$T$7:$U$2000, 2, FALSE)) -> 1.25888 | M16: =IF($B16="", "", VLOOKUP($B16, CAD!$V$7:$W$2000, 2, FALSE)) -> 1.25964 | O16: =IF(USSW!B13="", "", USSW!B13) -> 2017-12-20 | P16: =IF($O16="", "", USSW!C13) -> 1.8896 | Q16: =IF($O16="", "", VLOOKUP($O16, USSW!$D$7:$E$2000, 2, FALSE)) -> 2.071 | R16: =IF($O16="", "", VLOOKUP($O16, USSW!$F$7:$G$2000, 2, FALSE)) -> 2.1699 | S16: =IF($O16="", "", VLOOKUP($O16, USSW!$H$7:$I$2000, 2, FALSE)) -> 2.2341 | T16: =IF($O16="", "", VLOOKUP($O16, USSW!$J$7:$K$2000, 2, FALSE)) -> 2.2842 | U16: =IF($O16="", "", VLOOKUP($O16, USSW!$L$7:$M$2000, 2, FALSE)) -> 2.3288 | V16: =IF($O16="", "", VLOOKUP($O16, USSW!$N$7:$O$2000, 2, FALSE)) -> 2.3693 | W16: =IF($O16="", "", VLOOKUP($O16, USSW!$P$7:$Q$2000, 2, FALSE)) -> 2.4079 | X16: =IF($O16="", "", VLOOKUP($O16, USSW!$R$7:$S$2000, 2, FALSE)) -> 2.4432 | Y16: =IF($O16="", "", VLOOKUP($O16, USSW!$T$7:$U$2000, 2, FALSE)) -> 2.4743
B17: =IF(CAD!B14="", "", CAD!B14) -> 2017-12-20 | C17: =IF($B17="", "", CAD!C14) -> 1.2835 | D17: =IF($B17="", "",VLOOKUP($B17, CAD!$D$7:$E$2000, 2, FALSE)) -> 1.27853 | E17: =IF($B17="", "",VLOOKUP($B17, CAD!$F$7:$G$2000, 2, FALSE)) -> 1.27527 | F17: =IF($B17="", "",VLOOKUP($B17, CAD!$H$7:$I$2000, 2, FALSE)) -> 1.2725 | G17: =IF($B17="", "",VLOOKUP($B17, CAD!$J$7:$K$2000, 2, FALSE)) -> 1.27027 | H17: =IF($B17="", "", VLOOKUP($B17, CAD!$L$7:$M$2000, 2, FALSE)) -> 1.26854 | I17: =IF($B17="", "", VLOOKUP($B17, CAD!$N$7:$O$2000, 2, FALSE)) -> 1.27 | J17: =IF($B17="", "", VLOOKUP($B17, CAD!$P$7:$Q$2000, 2, FALSE)) -> 1.264735 | K17: =IF($B17="", "", VLOOKUP($B17, CAD!$R$7:$S$2000, 2, FALSE)) -> 1.26318 | L17: =IF($B17="", "", VLOOKUP($B17, CAD!$T$7:$U$2000, 2, FALSE)) -> 1.26232 | M17: =IF($B17="", "", VLOOKUP($B17, CAD!$V$7:$W$2000, 2, FALSE)) -> 1.26242 | O17: =IF(USSW!B14="", "", USSW!B14) -> 2017-12-19 | P17: =IF($O17="", "", USSW!C14) -> 1.8845 | Q17: =IF($O17="", "", VLOOKUP($O17, USSW!$D$7:$E$2000, 2, FALSE)) -> 2.0624 | R17: =IF($O17="", "", VLOOKUP($O17, USSW!$F$7:$G$2000, 2, FALSE)) -> 2.1574 | S17: =IF($O17="", "", VLOOKUP($O17, USSW!$H$7:$I$2000, 2, FALSE)) -> 2.2191 | T17: =IF($O17="", "", VLOOKUP($O17, USSW!$J$7:$K$2000, 2, FALSE)) -> 2.2676 | U17: =IF($O17="", "", VLOOKUP($O17, USSW!$L$7:$M$2000, 2, FALSE)) -> 2.3079 | V17: =IF($O17="", "", VLOOKUP($O17, USSW!$N$7:$O$2000, 2, FALSE)) -> 2.346 | W17: =IF($O17="", "", VLOOKUP($O17, USSW!$P$7:$Q$2000, 2, FALSE)) -> 2.3812 | X17: =IF($O17="", "", VLOOKUP($O17, USSW!$R$7:$S$2000, 2, FALSE)) -> 2.414 | Y17: =IF($O17="", "", VLOOKUP($O17, USSW!$T$7:$U$2000, 2, FALSE)) -> 2.4445
B18: =IF(CAD!B15="", "", CAD!B15) -> 2017-12-19 | C18: =IF($B18="", "", CAD!C15) -> 1.2878 | D18: =IF($B18="", "",VLOOKUP($B18, CAD!$D$7:$E$2000, 2, FALSE)) -> 1.282418 | E18: =IF($B18="", "",VLOOKUP($B18, CAD!$F$7:$G$2000, 2, FALSE)) -> 1.27868 | F18: =IF($B18="", "",VLOOKUP($B18, CAD!$H$7:$I$2000, 2, FALSE)) -> 1.27559 | G18: =IF($B18="", "",VLOOKUP($B18, CAD!$J$7:$K$2000, 2, FALSE)) -> 1.27271 | H18: =IF($B18="", "", VLOOKUP($B18, CAD!$L$7:$M$2000, 2, FALSE)) -> 1.270562 | I18: =IF($B18="", "", VLOOKUP($B18, CAD!$N$7:$O$2000, 2, FALSE)) -> 1.27165 | J18: =IF($B18="", "", VLOOKUP($B18, CAD!$P$7:$Q$2000, 2, FALSE)) -> 1.2661 | K18: =IF($B18="", "", VLOOKUP($B18, CAD!$R$7:$S$2000, 2, FALSE)) -> 1.26473 | L18: =IF($B18="", "", VLOOKUP($B18, CAD!$T$7:$U$2000, 2, FALSE)) -> 1.26459 | M18: =IF($B18="", "", VLOOKUP($B18, CAD!$V$7:$W$2000, 2, FALSE)) -> 1.2649 | O18: =IF(USSW!B15="", "", USSW!B15) -> 2017-12-18 | P18: =IF($O18="", "", USSW!C15) -> 1.8641 | Q18: =IF($O18="", "", VLOOKUP($O18, USSW!$D$7:$E$2000, 2, FALSE)) -> 2.0339 | R18: =IF($O18="", "", VLOOKUP($O18, USSW!$F$7:$G$2000, 2, FALSE)) -> 2.1224 | S18: =IF($O18="", "", VLOOKUP($O18, USSW!$H$7:$I$2000, 2, FALSE)) -> 2.1779 | T18: =IF($O18="", "", VLOOKUP($O18, USSW!$J$7:$K$2000, 2, FALSE)) -> 2.2194 | U18: =IF($O18="", "", VLOOKUP($O18, USSW!$L$7:$M$2000, 2, FALSE)) -> 2.2557 | V18: =IF($O18="", "", VLOOKUP($O18, USSW!$N$7:$O$2000, 2, FALSE)) -> 2.2921 | W18: =IF($O18="", "", VLOOKUP($O18, USSW!$P$7:$Q$2000, 2, FALSE)) -> 2.3241 | X18: =IF($O18="", "", VLOOKUP($O18, USSW!$R$7:$S$2000, 2, FALSE)) -> 2.3555 | Y18: =IF($O18="", "", VLOOKUP($O18, USSW!$T$7:$U$2000, 2, FALSE)) -> 2.385
B19: =IF(CAD!B16="", "", CAD!B16) -> 2017-12-18 | C19: =IF($B19="", "", CAD!C16) -> 1.2862 | D19: =IF($B19="", "",VLOOKUP($B19, CAD!$D$7:$E$2000, 2, FALSE)) -> 1.280347 | E19: =IF($B19="", "",VLOOKUP($B19, CAD!$F$7:$G$2000, 2, FALSE)) -> 1.276645 | F19: =IF($B19="", "",VLOOKUP($B19, CAD!$H$7:$I$2000, 2, FALSE)) -> 1.27325 | G19: =IF($B19="", "",VLOOKUP($B19, CAD!$J$7:$K$2000, 2, FALSE)) -> 1.27021 | H19: =IF($B19="", "", VLOOKUP($B19, CAD!$L$7:$M$2000, 2, FALSE)) -> 1.26755 | I19: =IF($B19="", "", VLOOKUP($B19, CAD!$N$7:$O$2000, 2, FALSE)) -> 1.2691 | J19: =IF($B19="", "", VLOOKUP($B19, CAD!$P$7:$Q$2000, 2, FALSE)) -> 1.26373 | K19: =IF($B19="", "", VLOOKUP($B19, CAD!$R$7:$S$2000, 2, FALSE)) -> 1.26188 | L19: =IF($B19="", "", VLOOKUP($B19, CAD!$T$7:$U$2000, 2, FALSE)) -> 1.261291 | M19: =IF($B19="", "", VLOOKUP($B19, CAD!$V$7:$W$2000, 2, FALSE)) -> 1.26081 | O19: =IF(USSW!B16="", "", USSW!B16) -> 2017-12-15 | P19: =IF($O19="", "", USSW!C16) -> 1.8568 | Q19: =IF($O19="", "", VLOOKUP($O19, USSW!$D$7:$E$2000, 2, FALSE)) -> 2.0252 | R19: =IF($O19="", "", VLOOKUP($O19, USSW!$F$7:$G$2000, 2, FALSE)) -> 2.1139 | S19: =IF($O19="", "", VLOOKUP($O19, USSW!$H$7:$I$2000, 2, FALSE)) -> 2.164 | T19: =IF($O19="", "", VLOOKUP($O19, USSW!$J$7:$K$2000, 2, FALSE)) -> 2.2002 | U19: =IF($O19="", "", VLOOKUP($O19, USSW!$L$7:$M$2000, 2, FALSE)) -> 2.232 | V19: =IF($O19="", "", VLOOKUP($O19, USSW!$N$7:$O$2000, 2, FALSE)) -> 2.2606 | W19: =IF($O19="", "", VLOOKUP($O19, USSW!$P$7:$Q$2000, 2, FALSE)) -> 2.2888 | X19: =IF($O19="", "", VLOOKUP($O19, USSW!$R$7:$S$2000, 2, FALSE)) -> 2.3176 | Y19: =IF($O19="", "", VLOOKUP($O19, USSW!$T$7:$U$2000, 2, FALSE)) -> 2.3433
B20: =IF(CAD!B17="", "", CAD!B17) -> 2017-12-15 | C20: =IF($B20="", "", CAD!C17) -> 1.2866 | D20: =IF($B20="", "",VLOOKUP($B20, CAD!$D$7:$E$2000, 2, FALSE)) -> 1.280451 | E20: =IF($B20="", "",VLOOKUP($B20, CAD!$F$7:$G$2000, 2, FALSE)) -> 1.27665 | F20: =IF($B20="", "",VLOOKUP($B20, CAD!$H$7:$I$2000, 2, FALSE)) -> 1.27329 | G20: =IF($B20="", "",VLOOKUP($B20, CAD!$J$7:$K$2000, 2, FALSE)) -> 1.270165 | H20: =IF($B20="", "", VLOOKUP($B20, CAD!$L$7:$M$2000, 2, FALSE)) -> 1.267525 | I20: =IF($B20="", "", VLOOKUP($B20, CAD!$N$7:$O$2000, 2, FALSE)) -> 1.2692 | J20: =IF($B20="", "", VLOOKUP($B20, CAD!$P$7:$Q$2000, 2, FALSE)) -> 1.26285 | K20: =IF($B20="", "", VLOOKUP($B20, CAD!$R$7:$S$2000, 2, FALSE)) -> 1.26239 | L20: =IF($B20="", "", VLOOKUP($B20, CAD!$T$7:$U$2000, 2, FALSE)) -> 1.26238 | M20: =IF($B20="", "", VLOOKUP($B20, CAD!$V$7:$W$2000, 2, FALSE)) -> 1.2628 | O20: =IF(USSW!B17="", "", USSW!B17) -> 2017-12-14 | P20: =IF($O20="", "", USSW!C17) -> 1.8443 | Q20: =IF($O20="", "", VLOOKUP($O20, USSW!$D$7:$E$2000, 2, FALSE)) -> 2.013 | R20: =IF($O20="", "", VLOOKUP($O20, USSW!$F$7:$G$2000, 2, FALSE)) -> 2.1025 | S20: =IF($O20="", "", VLOOKUP($O20, USSW!$H$7:$I$2000, 2, FALSE)) -> 2.1525 | T20: =IF($O20="", "", VLOOKUP($O20, USSW!$J$7:$K$2000, 2, FALSE)) -> 2.195 | U20: =IF($O20="", "", VLOOKUP($O20, USSW!$L$7:$M$2000, 2, FALSE)) -> 2.2272 | V20: =IF($O20="", "", VLOOKUP($O20, USSW!$N$7:$O$2000, 2, FALSE)) -> 2.2585 | W20: =IF($O20="", "", VLOOKUP($O20, USSW!$P$7:$Q$2000, 2, FALSE)) -> 2.2898 | X20: =IF($O20="", "", VLOOKUP($O20, USSW!$R$7:$S$2000, 2, FALSE)) -> 2.3183 | Y20: =IF($O20="", "", VLOOKUP($O20, USSW!$T$7:$U$2000, 2, FALSE)) -> 2.3457
B21: =IF(CAD!B18="", "", CAD!B18) -> 2017-12-14 | C21: =IF($B21="", "", CAD!C18) -> 1.2797 | D21: =IF($B21="", "",VLOOKUP($B21, CAD!$D$7:$E$2000, 2, FALSE)) -> 1.273923 | E21: =IF($B21="", "",VLOOKUP($B21, CAD!$F$7:$G$2000, 2, FALSE)) -> 1.270315 | F21: =IF($B21="", "",VLOOKUP($B21, CAD!$H$7:$I$2000, 2, FALSE)) -> 1.267325 | G21: =IF($B21="", "",VLOOKUP($B21, CAD!$J$7:$K$2000, 2, FALSE)) -> 1.26426 | H21: =IF($B21="", "", VLOOKUP($B21, CAD!$L$7:$M$2000, 2, FALSE)) -> 1.26192 | I21: =IF($B21="", "", VLOOKUP($B21, CAD!$N$7:$O$2000, 2, FALSE)) -> 1.2632 | J21: =IF($B21="", "", VLOOKUP($B21, CAD!$P$7:$Q$2000, 2, FALSE)) -> 1.25916 | K21: =IF($B21="", "", VLOOKUP($B21, CAD!$R$7:$S$2000, 2, FALSE)) -> 1.25831 | L21: =IF($B21="", "", VLOOKUP($B21, CAD!$T$7:$U$2000, 2, FALSE)) -> 1.257861 | M21: =IF($B21="", "", VLOOKUP($B21, CAD!$V$7:$W$2000, 2, FALSE)) -> 1.258043 | O21: =IF(USSW!B18="", "", USSW!B18) -> 2017-12-13 | P21: =IF($O21="", "", USSW!C18) -> 1.8245 | Q21: =IF($O21="", "", VLOOKUP($O21, USSW!$D$7:$E$2000, 2, FALSE)) -> 1.9834 | R21: =IF($O21="", "", VLOOKUP($O21, USSW!$F$7:$G$2000, 2, FALSE)) -> 2.0706 | S21: =IF($O21="", "", VLOOKUP($O21, USSW!$H$7:$I$2000, 2, FALSE)) -> 2.126 | T21: =IF($O21="", "", VLOOKUP($O21, USSW!$J$7:$K$2000, 2, FALSE)) -> 2.1675 | U21: =IF($O21="", "", VLOOKUP($O21, USSW!$L$7:$M$2000, 2, FALSE)) -> 2.2084 | V21: =IF($O21="", "", VLOOKUP($O21, USSW!$N$7:$O$2000, 2, FALSE)) -> 2.2461 | W21: =IF($O21="", "", VLOOKUP($O21, USSW!$P$7:$Q$2000, 2, FALSE)) -> 2.2797 | X21: =IF($O21="", "", VLOOKUP($O21, USSW!$R$7:$S$2000, 2, FALSE)) -> 2.314 | Y21: =IF($O21="", "", VLOOKUP($O21, USSW!$T$7:$U$2000, 2, FALSE)) -> 2.3465
B22: =IF(CAD!B19="", "", CAD!B19) -> 2017-12-13 | C22: =IF($B22="", "", CAD!C19) -> 1.2817 | D22: =IF($B22="", "",VLOOKUP($B22, CAD!$D$7:$E$2000, 2, FALSE)) -> 1.275893 | E22: =IF($B22="", "",VLOOKUP($B22, CAD!$F$7:$G$2000, 2, FALSE)) -> 1.27169 | F22: =IF($B22="", "",VLOOKUP($B22, CAD!$H$7:$I$2000, 2, FALSE)) -> 1.26862 | G22: =IF($B22="", "",VLOOKUP($B22, CAD!$J$7:$K$2000, 2, FALSE)) -> 1.26545 | H22: =IF($B22="", "", VLOOKUP($B22, CAD!$L$7:$M$2000, 2, FALSE)) -> 1.263 | I22: =IF($B22="", "", VLOOKUP($B22, CAD!$N$7:$O$2000, 2, FALSE)) -> 1.2641 | J22: =IF($B22="", "", VLOOKUP($B22, CAD!$P$7:$Q$2000, 2, FALSE)) -> 1.259015 | K22: =IF($B22="", "", VLOOKUP($B22, CAD!$R$7:$S$2000, 2, FALSE)) -> 1.25874 | L22: =IF($B22="", "", VLOOKUP($B22, CAD!$T$7:$U$2000, 2, FALSE)) -> 1.258911 | M22: =IF($B22="", "", VLOOKUP($B22, CAD!$V$7:$W$2000, 2, FALSE)) -> 1.259319 | O22: =IF(USSW!B19="", "", USSW!B19) -> 2017-12-12 | P22: =IF($O22="", "", USSW!C19) -> 1.8467 | Q22: =IF($O22="", "", VLOOKUP($O22, USSW!$D$7:$E$2000, 2, FALSE)) -> 2.0259 | R22: =IF($O22="", "", VLOOKUP($O22, USSW!$F$7:$G$2000, 2, FALSE)) -> 2.1233 | S22: =IF($O22="", "", VLOOKUP($O22, USSW!$H$7:$I$2000, 2, FALSE)) -> 2.1851 | T22: =IF($O22="", "", VLOOKUP($O22, USSW!$J$7:$K$2000, 2, FALSE)) -> 2.2337 | U22: =IF($O22="", "", VLOOKUP($O22, USSW!$L$7:$M$2000, 2, FALSE)) -> 2.2733 | V22: =IF($O22="", "", VLOOKUP($O22, USSW!$N$7:$O$2000, 2, FALSE)) -> 2.3111 | W22: =IF($O22="", "", VLOOKUP($O22, USSW!$P$7:$Q$2000, 2, FALSE)) -> 2.3452 | X22: =IF($O22="", "", VLOOKUP($O22, USSW!$R$7:$S$2000, 2, FALSE)) -> 2.3788 | Y22: =IF($O22="", "", VLOOKUP($O22, USSW!$T$7:$U$2000, 2, FALSE)) -> 2.4082
B23: =IF(CAD!B20="", "", CAD!B20) -> 2017-12-12 | C23: =IF($B23="", "", CAD!C20) -> 1.2866 | D23: =IF($B23="", "",VLOOKUP($B23, CAD!$D$7:$E$2000, 2, FALSE)) -> 1.280622 | E23: =IF($B23="", "",VLOOKUP($B23, CAD!$F$7:$G$2000, 2, FALSE)) -> 1.275975 | F23: =IF($B23="", "",VLOOKUP($B23, CAD!$H$7:$I$2000, 2, FALSE)) -> 1.27236 | G23: =IF($B23="", "",VLOOKUP($B23, CAD!$J$7:$K$2000, 2, FALSE)) -> 1.26916 | H23: =IF($B23="", "", VLOOKUP($B23, CAD!$L$7:$M$2000, 2, FALSE)) -> 1.26663 | I23: =IF($B23="", "", VLOOKUP($B23, CAD!$N$7:$O$2000, 2, FALSE)) -> 1.26387 | J23: =IF($B23="", "", VLOOKUP($B23, CAD!$P$7:$Q$2000, 2, FALSE)) -> 1.26218 | K23: =IF($B23="", "", VLOOKUP($B23, CAD!$R$7:$S$2000, 2, FALSE)) -> 1.261035 | L23: =IF($B23="", "", VLOOKUP($B23, CAD!$T$7:$U$2000, 2, FALSE)) -> 1.26046 | M23: =IF($B23="", "", VLOOKUP($B23, CAD!$V$7:$W$2000, 2, FALSE)) -> 1.25995 | O23: =IF(USSW!B20="", "", USSW!B20) -> 2017-12-11 | P23: =IF($O23="", "", USSW!C20) -> 1.8348 | Q23: =IF($O23="", "", VLOOKUP($O23, USSW!$D$7:$E$2000, 2, FALSE)) -> 2.0149 | R23: =IF($O23="", "", VLOOKUP($O23, USSW!$F$7:$G$2000, 2, FALSE)) -> 2.1106 | S23: =IF($O23="", "", VLOOKUP($O23, USSW!$H$7:$I$2000, 2, FALSE)) -> 2.1731 | T23: =IF($O23="", "", VLOOKUP($O23, USSW!$J$7:$K$2000, 2, FALSE)) -> 2.2197 | U23: =IF($O23="", "", VLOOKUP($O23, USSW!$L$7:$M$2000, 2, FALSE)) -> 2.262 | V23: =IF($O23="", "", VLOOKUP($O23, USSW!$N$7:$O$2000, 2, FALSE)) -> 2.3005 | W23: =IF($O23="", "", VLOOKUP($O23, USSW!$P$7:$Q$2000, 2, FALSE)) -> 2.3374 | X23: =IF($O23="", "", VLOOKUP($O23, USSW!$R$7:$S$2000, 2, FALSE)) -> 2.3717 | Y23: =IF($O23="", "", VLOOKUP($O23, USSW!$T$7:$U$2000, 2, FALSE)) -> 2.4003
B24: =IF(CAD!B21="", "", CAD!B21) -> 2017-12-11 | C24: =IF($B24="", "", CAD!C21) -> 1.2856 | D24: =IF($B24="", "",VLOOKUP($B24, CAD!$D$7:$E$2000, 2, FALSE)) -> 1.2798 | E24: =IF($B24="", "",VLOOKUP($B24, CAD!$F$7:$G$2000, 2, FALSE)) -> 1.27542 | F24: =IF($B24="", "",VLOOKUP($B24, CAD!$H$7:$I$2000, 2, FALSE)) -> 1.271895 | G24: =IF($B24="", "",VLOOKUP($B24, CAD!$J$7:$K$2000, 2, FALSE)) -> 1.26865 | H24: =IF($B24="", "", VLOOKUP($B24, CAD!$L$7:$M$2000, 2, FALSE)) -> 1.26639 | I24: =IF($B24="", "", VLOOKUP($B24, CAD!$N$7:$O$2000, 2, FALSE)) -> 1.268 | J24: =IF($B24="", "", VLOOKUP($B24, CAD!$P$7:$Q$2000, 2, FALSE)) -> 1.263445 | K24: =IF($B24="", "", VLOOKUP($B24, CAD!$R$7:$S$2000, 2, FALSE)) -> 1.26275 | L24: =IF($B24="", "", VLOOKUP($B24, CAD!$T$7:$U$2000, 2, FALSE)) -> 1.261642 | M24: =IF($B24="", "", VLOOKUP($B24, CAD!$V$7:$W$2000, 2, FALSE)) -> 1.262212 | O24: =IF(USSW!B21="", "", USSW!B21) -> 2017-12-08 | P24: =IF($O24="", "", USSW!C21) -> 1.8211 | Q24: =IF($O24="", "", VLOOKUP($O24, USSW!$D$7:$E$2000, 2, FALSE)) -> 1.997 | R24: =IF($O24="", "", VLOOKUP($O24, USSW!$F$7:$G$2000, 2, FALSE)) -> 2.0935 | S24: =IF($O24="", "", VLOOKUP($O24, USSW!$H$7:$I$2000, 2, FALSE)) -> 2.1538 | T24: =IF($O24="", "", VLOOKUP($O24, USSW!$J$7:$K$2000, 2, FALSE)) -> 2.2029 | U24: =IF($O24="", "", VLOOKUP($O24, USSW!$L$7:$M$2000, 2, FALSE)) -> 2.2458 | V24: =IF($O24="", "", VLOOKUP($O24, USSW!$N$7:$O$2000, 2, FALSE)) -> 2.2861 | W24: =IF($O24="", "", VLOOKUP($O24, USSW!$P$7:$Q$2000, 2, FALSE)) -> 2.324 | X24: =IF($O24="", "", VLOOKUP($O24, USSW!$R$7:$S$2000, 2, FALSE)) -> 2.357 | Y24: =IF($O24="", "", VLOOKUP($O24, USSW!$T$7:$U$2000, 2, FALSE)) -> 2.3882
B25: =IF(CAD!B22="", "", CAD!B22) -> 2017-12-08 | C25: =IF($B25="", "", CAD!C22) -> 1.2848 | D25: =IF($B25="", "",VLOOKUP($B25, CAD!$D$7:$E$2000, 2, FALSE)) -> 1.279073 | E25: =IF($B25="", "",VLOOKUP($B25, CAD!$F$7:$G$2000, 2, FALSE)) -> 1.2749 | F25: =IF($B25="", "",VLOOKUP($B25, CAD!$H$7:$I$2000, 2, FALSE)) -> 1.271675 | G25: =IF($B25="", "",VLOOKUP($B25, CAD!$J$7:$K$2000, 2, FALSE)) -> 1.26877 | H25: =IF($B25="", "", VLOOKUP($B25, CAD!$L$7:$M$2000, 2, FALSE)) -> 1.26655 | I25: =IF($B25="", "", VLOOKUP($B25, CAD!$N$7:$O$2000, 2, FALSE)) -> 1.266045 | J25: =IF($B25="", "", VLOOKUP($B25, CAD!$P$7:$Q$2000, 2, FALSE)) -> 1.26303 | K25: =IF($B25="", "", VLOOKUP($B25, CAD!$R$7:$S$2000, 2, FALSE)) -> 1.26193 | L25: =IF($B25="", "", VLOOKUP($B25, CAD!$T$7:$U$2000, 2, FALSE)) -> 1.261688 | M25: =IF($B25="", "", VLOOKUP($B25, CAD!$V$7:$W$2000, 2, FALSE)) -> 1.26168 | O25: =IF(USSW!B22="", "", USSW!B22) -> 2017-12-07 | P25: =IF($O25="", "", USSW!C22) -> 1.812 | Q25: =IF($O25="", "", VLOOKUP($O25, USSW!$D$7:$E$2000, 2, FALSE)) -> 1.9914 | R25: =IF($O25="", "", VLOOKUP($O25, USSW!$F$7:$G$2000, 2, FALSE)) -> 2.087 | S25: =IF($O25="", "", VLOOKUP($O25, USSW!$H$7:$I$2000, 2, FALSE)) -> 2.1498 | T25: =IF($O25="", "", VLOOKUP($O25, USSW!$J$7:$K$2000, 2, FALSE)) -> 2.2 | U25: =IF($O25="", "", VLOOKUP($O25, USSW!$L$7:$M$2000, 2, FALSE)) -> 2.2415 | V25: =IF($O25="", "", VLOOKUP($O25, USSW!$N$7:$O$2000, 2, FALSE)) -> 2.28 | W25: =IF($O25="", "", VLOOKUP($O25, USSW!$P$7:$Q$2000, 2, FALSE)) -> 2.3147 | X25: =IF($O25="", "", VLOOKUP($O25, USSW!$R$7:$S$2000, 2, FALSE)) -> 2.3483 | Y25: =IF($O25="", "", VLOOKUP($O25, USSW!$T$7:$U$2000, 2, FALSE)) -> 2.3785
B26: =IF(CAD!B23="", "", CAD!B23) -> 2017-12-07 | C26: =IF($B26="", "", CAD!C23) -> 1.2854 | D26: =IF($B26="", "",VLOOKUP($B26, CAD!$D$7:$E$2000, 2, FALSE)) -> 1.27962 | E26: =IF($B26="", "",VLOOKUP($B26, CAD!$F$7:$G$2000, 2, FALSE)) -> 1.2754 | F26: =IF($B26="", "",VLOOKUP($B26, CAD!$H$7:$I$2000, 2, FALSE)) -> 1.272143 | G26: =IF($B26="", "",VLOOKUP($B26, CAD!$J$7:$K$2000, 2, FALSE)) -> 1.269355 | H26: =IF($B26="", "", VLOOKUP($B26, CAD!$L$7:$M$2000, 2, FALSE)) -> 1.266715 | I26: =IF($B26="", "", VLOOKUP($B26, CAD!$N$7:$O$2000, 2, FALSE)) -> 1.2686 | J26: =IF($B26="", "", VLOOKUP($B26, CAD!$P$7:$Q$2000, 2, FALSE)) -> 1.26335 | K26: =IF($B26="", "", VLOOKUP($B26, CAD!$R$7:$S$2000, 2, FALSE)) -> 1.262165 | L26: =IF($B26="", "", VLOOKUP($B26, CAD!$T$7:$U$2000, 2, FALSE)) -> 1.26199 | M26: =IF($B26="", "", VLOOKUP($B26, CAD!$V$7:$W$2000, 2, FALSE)) -> 1.26209 | O26: =IF(USSW!B23="", "", USSW!B23) -> 2017-12-06 | P26: =IF($O26="", "", USSW!C23) -> 1.8048 | Q26: =IF($O26="", "", VLOOKUP($O26, USSW!$D$7:$E$2000, 2, FALSE)) -> 1.9848 | R26: =IF($O26="", "", VLOOKUP($O26, USSW!$F$7:$G$2000, 2, FALSE)) -> 2.0799 | S26: =IF($O26="", "", VLOOKUP($O26, USSW!$H$7:$I$2000, 2, FALSE)) -> 2.141 | T26: =IF($O26="", "", VLOOKUP($O26, USSW!$J$7:$K$2000, 2, FALSE)) -> 2.1873 | U26: =IF($O26="", "", VLOOKUP($O26, USSW!$L$7:$M$2000, 2, FALSE)) -> 2.2261 | V26: =IF($O26="", "", VLOOKUP($O26, USSW!$N$7:$O$2000, 2, FALSE)) -> 2.264 | W26: =IF($O26="", "", VLOOKUP($O26, USSW!$P$7:$Q$2000, 2, FALSE)) -> 2.2977 | X26: =IF($O26="", "", VLOOKUP($O26, USSW!$R$7:$S$2000, 2, FALSE)) -> 2.33 | Y26: =IF($O26="", "", VLOOKUP($O26, USSW!$T$7:$U$2000, 2, FALSE)) -> 2.3594
B27: =IF(CAD!B24="", "", CAD!B24) -> 2017-12-06 | C27: =IF($B27="", "", CAD!C24) -> 1.2789 | D27: =IF($B27="", "",VLOOKUP($B27, CAD!$D$7:$E$2000, 2, FALSE)) -> 1.273297 | E27: =IF($B27="", "",VLOOKUP($B27, CAD!$F$7:$G$2000, 2, FALSE)) -> 1.26907 | F27: =IF($B27="", "",VLOOKUP($B27, CAD!$H$7:$I$2000, 2, FALSE)) -> 1.26625 | G27: =IF($B27="", "",VLOOKUP($B27, CAD!$J$7:$K$2000, 2, FALSE)) -> 1.26378 | H27: =IF($B27="", "", VLOOKUP($B27, CAD!$L$7:$M$2000, 2, FALSE)) -> 1.2617 | I27: =IF($B27="", "", VLOOKUP($B27, CAD!$N$7:$O$2000, 2, FALSE)) -> 1.2633 | J27: =IF($B27="", "", VLOOKUP($B27, CAD!$P$7:$Q$2000, 2, FALSE)) -> 1.25845 | K27: =IF($B27="", "", VLOOKUP($B27, CAD!$R$7:$S$2000, 2, FALSE)) -> 1.25728 | L27: =IF($B27="", "", VLOOKUP($B27, CAD!$T$7:$U$2000, 2, FALSE)) -> 1.25901 | M27: =IF($B27="", "", VLOOKUP($B27, CAD!$V$7:$W$2000, 2, FALSE)) -> 1.25999 | O27: =IF(USSW!B24="", "", USSW!B24) -> 2017-12-05 | P27: =IF($O27="", "", USSW!C24) -> 1.8061 | Q27: =IF($O27="", "", VLOOKUP($O27, USSW!$D$7:$E$2000, 2, FALSE)) -> 1.995 | R27: =IF($O27="", "", VLOOKUP($O27, USSW!$F$7:$G$2000, 2, FALSE)) -> 2.0961 | S27: =IF($O27="", "", VLOOKUP($O27, USSW!$H$7:$I$2000, 2, FALSE)) -> 2.1553 | T27: =IF($O27="", "", VLOOKUP($O27, USSW!$J$7:$K$2000, 2, FALSE)) -> 2.1995 | U27: =IF($O27="", "", VLOOKUP($O27, USSW!$L$7:$M$2000, 2, FALSE)) -> 2.2385 | V27: =IF($O27="", "", VLOOKUP($O27, USSW!$N$7:$O$2000, 2, FALSE)) -> 2.275 | W27: =IF($O27="", "", VLOOKUP($O27, USSW!$P$7:$Q$2000, 2, FALSE)) -> 2.307 | X27: =IF($O27="", "", VLOOKUP($O27, USSW!$R$7:$S$2000, 2, FALSE)) -> 2.3385 | Y27: =IF($O27="", "", VLOOKUP($O27, USSW!$T$7:$U$2000, 2, FALSE)) -> 2.3673
B28: =IF(CAD!B25="", "", CAD!B25) -> 2017-12-05 | C28: =IF($B28="", "", CAD!C25) -> 1.2691 | D28: =IF($B28="", "",VLOOKUP($B28, CAD!$D$7:$E$2000, 2, FALSE)) -> 1.26415 | E28: =IF($B28="", "",VLOOKUP($B28, CAD!$F$7:$G$2000, 2, FALSE)) -> 1.2608 | F28: =IF($B28="", "",VLOOKUP($B28, CAD!$H$7:$I$2000, 2, FALSE)) -> 1.25764 | G28: =IF($B28="", "",VLOOKUP($B28, CAD!$J$7:$K$2000, 2, FALSE)) -> 1.25534 | H28: =IF($B28="", "", VLOOKUP($B28, CAD!$L$7:$M$2000, 2, FALSE)) -> 1.25377 | I28: =IF($B28="", "", VLOOKUP($B28, CAD!$N$7:$O$2000, 2, FALSE)) -> 1.2552 | J28: =IF($B28="", "", VLOOKUP($B28, CAD!$P$7:$Q$2000, 2, FALSE)) -> 1.25094 | K28: =IF($B28="", "", VLOOKUP($B28, CAD!$R$7:$S$2000, 2, FALSE)) -> 1.24999 | L28: =IF($B28="", "", VLOOKUP($B28, CAD!$T$7:$U$2000, 2, FALSE)) -> 1.25156 | M28: =IF($B28="", "", VLOOKUP($B28, CAD!$V$7:$W$2000, 2, FALSE)) -> 1.25282 | O28: =IF(USSW!B25="", "", USSW!B25) -> 2017-12-04 | P28: =IF($O28="", "", USSW!C25) -> 1.7958 | Q28: =IF($O28="", "", VLOOKUP($O28, USSW!$D$7:$E$2000, 2, FALSE)) -> 1.9884 | R28: =IF($O28="", "", VLOOKUP($O28, USSW!$F$7:$G$2000, 2, FALSE)) -> 2.094 | S28: =IF($O28="", "", VLOOKUP($O28, USSW!$H$7:$I$2000, 2, FALSE)) -> 2.1568 | T28: =IF($O28="", "", VLOOKUP($O28, USSW!$J$7:$K$2000, 2, FALSE)) -> 2.2035 | U28: =IF($O28="", "", VLOOKUP($O28, USSW!$L$7:$M$2000, 2, FALSE)) -> 2.2471 | V28: =IF($O28="", "", VLOOKUP($O28, USSW!$N$7:$O$2000, 2, FALSE)) -> 2.2875 | W28: =IF($O28="", "", VLOOKUP($O28, USSW!$P$7:$Q$2000, 2, FALSE)) -> 2.3249 | X28: =IF($O28="", "", VLOOKUP($O28, USSW!$R$7:$S$2000, 2, FALSE)) -> 2.358 | Y28: =IF($O28="", "", VLOOKUP($O28, USSW!$T$7:$U$2000, 2, FALSE)) -> 2.3896
B29: =IF(CAD!B26="", "", CAD!B26) -> 2017-12-04 | C29: =IF($B29="", "", CAD!C26) -> 1.2673 | D29: =IF($B29="", "",VLOOKUP($B29, CAD!$D$7:$E$2000, 2, FALSE)) -> 1.26281 | E29: =IF($B29="", "",VLOOKUP($B29, CAD!$F$7:$G$2000, 2, FALSE)) -> 1.2597 | F29: =IF($B29="", "",VLOOKUP($B29, CAD!$H$7:$I$2000, 2, FALSE)) -> 1.25685 | G29: =IF($B29="", "",VLOOKUP($B29, CAD!$J$7:$K$2000, 2, FALSE)) -> 1.25485 | H29: =IF($B29="", "", VLOOKUP($B29, CAD!$L$7:$M$2000, 2, FALSE)) -> 1.25365 | I29: =IF($B29="", "", VLOOKUP($B29, CAD!$N$7:$O$2000, 2, FALSE)) -> 1.2548 | J29: =IF($B29="", "", VLOOKUP($B29, CAD!$P$7:$Q$2000, 2, FALSE)) -> 1.25126 | K29: =IF($B29="", "", VLOOKUP($B29, CAD!$R$7:$S$2000, 2, FALSE)) -> 1.25076 | L29: =IF($B29="", "", VLOOKUP($B29, CAD!$T$7:$U$2000, 2, FALSE)) -> 1.252031 | M29: =IF($B29="", "", VLOOKUP($B29, CAD!$V$7:$W$2000, 2, FALSE)) -> 1.253398 | O29: =IF(USSW!B26="", "", USSW!B26) -> 2017-12-01 | P29: =IF($O29="", "", USSW!C26) -> 1.775 | Q29: =IF($O29="", "", VLOOKUP($O29, USSW!$D$7:$E$2000, 2, FALSE)) -> 1.9592 | R29: =IF($O29="", "", VLOOKUP($O29, USSW!$F$7:$G$2000, 2, FALSE)) -> 2.0648 | S29: =IF($O29="", "", VLOOKUP($O29, USSW!$H$7:$I$2000, 2, FALSE)) -> 2.1268 | T29: =IF($O29="", "", VLOOKUP($O29, USSW!$J$7:$K$2000, 2, FALSE)) -> 2.1736 | U29: =IF($O29="", "", VLOOKUP($O29, USSW!$L$7:$M$2000, 2, FALSE)) -> 2.2169 | V29: =IF($O29="", "", VLOOKUP($O29, USSW!$N$7:$O$2000, 2, FALSE)) -> 2.259 | W29: =IF($O29="", "", VLOOKUP($O29, USSW!$P$7:$Q$2000, 2, FALSE)) -> 2.2973 | X29: =IF($O29="", "", VLOOKUP($O29, USSW!$R$7:$S$2000, 2, FALSE)) -> 2.3295 | Y29: =IF($O29="", "", VLOOKUP($O29, USSW!$T$7:$U$2000, 2, FALSE)) -> 2.3636
B30: =IF(CAD!B27="", "", CAD!B27) -> 2017-12-01 | C30: =IF($B30="", "", CAD!C27) -> 1.2685 | D30: =IF($B30="", "",VLOOKUP($B30, CAD!$D$7:$E$2000, 2, FALSE)) -> 1.264047 | E30: =IF($B30="", "",VLOOKUP($B30, CAD!$F$7:$G$2000, 2, FALSE)) -> 1.26056 | F30: =IF($B30="", "",VLOOKUP($B30, CAD!$H$7:$I$2000, 2, FALSE)) -> 1.25775 | G30: =IF($B30="", "",VLOOKUP($B30, CAD!$J$7:$K$2000, 2, FALSE)) -> 1.25559 | H30: =IF($B30="", "", VLOOKUP($B30, CAD!$L$7:$M$2000, 2, FALSE)) -> 1.253895 | I30: =IF($B30="", "", VLOOKUP($B30, CAD!$N$7:$O$2000, 2, FALSE)) -> 1.2555 | J30: =IF($B30="", "", VLOOKUP($B30, CAD!$P$7:$Q$2000, 2, FALSE)) -> 1.25205 | K30: =IF($B30="", "", VLOOKUP($B30, CAD!$R$7:$S$2000, 2, FALSE)) -> 1.252355 | L30: =IF($B30="", "", VLOOKUP($B30, CAD!$T$7:$U$2000, 2, FALSE)) -> 1.25357 | M30: =IF($B30="", "", VLOOKUP($B30, CAD!$V$7:$W$2000, 2, FALSE)) -> 1.25792 | O30: =IF(USSW!B27="", "", USSW!B27) -> 2017-11-30 | P30: =IF($O30="", "", USSW!C27) -> 1.7832 | Q30: =IF($O30="", "", VLOOKUP($O30, USSW!$D$7:$E$2000, 2, FALSE)) -> 1.9705 | R30: =IF($O30="", "", VLOOKUP($O30, USSW!$F$7:$G$2000, 2, FALSE)) -> 2.0781 | S30: =IF($O30="", "", VLOOKUP($O30, USSW!$H$7:$I$2000, 2, FALSE)) -> 2.1462 | T30: =IF($O30="", "", VLOOKUP($O30, USSW!$J$7:$K$2000, 2, FALSE)) -> 2.199 | U30: =IF($O30="", "", VLOOKUP($O30, USSW!$L$7:$M$2000, 2, FALSE)) -> 2.2468 | V30: =IF($O30="", "", VLOOKUP($O30, USSW!$N$7:$O$2000, 2, FALSE)) -> 2.292 | W30: =IF($O30="", "", VLOOKUP($O30, USSW!$P$7:$Q$2000, 2, FALSE)) -> 2.334 | X30: =IF($O30="", "", VLOOKUP($O30, USSW!$R$7:$S$2000, 2, FALSE)) -> 2.3708 | Y30: =IF($O30="", "", VLOOKUP($O30, USSW!$T$7:$U$2000, 2, FALSE)) -> 2.4055
B31: =IF(CAD!B28="", "", CAD!B28) -> 2017-11-30 | C31: =IF($B31="", "", CAD!C28) -> 1.2897 | D31: =IF($B31="", "",VLOOKUP($B31, CAD!$D$7:$E$2000, 2, FALSE)) -> 1.283787 | E31: =IF($B31="", "",VLOOKUP($B31, CAD!$F$7:$G$2000, 2, FALSE)) -> 1.27892 | F31: =IF($B31="", "",VLOOKUP($B31, CAD!$H$7:$I$2000, 2, FALSE)) -> 1.275025 | G31: =IF($B31="", "",VLOOKUP($B31, CAD!$J$7:$K$2000, 2, FALSE)) -> 1.27219 | H31: =IF($B31="", "", VLOOKUP($B31, CAD!$L$7:$M$2000, 2, FALSE)) -> 1.26945 | I31: =IF($B31="", "", VLOOKUP($B31, CAD!$N$7:$O$2000, 2, FALSE)) -> 1.268435 | J31: =IF($B31="", "", VLOOKUP($B31, CAD!$P$7:$Q$2000, 2, FALSE)) -> 1.26591 | K31: =IF($B31="", "", VLOOKUP($B31, CAD!$R$7:$S$2000, 2, FALSE)) -> 1.26515 | L31: =IF($B31="", "", VLOOKUP($B31, CAD!$T$7:$U$2000, 2, FALSE)) -> 1.26605 | M31: =IF($B31="", "", VLOOKUP($B31, CAD!$V$7:$W$2000, 2, FALSE)) -> 1.26734 | O31: =IF(USSW!B28="", "", USSW!B28) -> 2017-11-29 | P31: =IF($O31="", "", USSW!C28) -> 1.7685 | Q31: =IF($O31="", "", VLOOKUP($O31, USSW!$D$7:$E$2000, 2, FALSE)) -> 1.9438 | R31: =IF($O31="", "", VLOOKUP($O31, USSW!$F$7:$G$2000, 2, FALSE)) -> 2.0463 | S31: =IF($O31="", "", VLOOKUP($O31, USSW!$H$7:$I$2000, 2, FALSE)) -> 2.1143 | T31: =IF($O31="", "", VLOOKUP($O31, USSW!$J$7:$K$2000, 2, FALSE)) -> 2.1694 | U31: =IF($O31="", "", VLOOKUP($O31, USSW!$L$7:$M$2000, 2, FALSE)) -> 2.2184 | V31: =IF($O31="", "", VLOOKUP($O31, USSW!$N$7:$O$2000, 2, FALSE)) -> 2.2643 | W31: =IF($O31="", "", VLOOKUP($O31, USSW!$P$7:$Q$2000, 2, FALSE)) -> 2.3057 | X31: =IF($O31="", "", VLOOKUP($O31, USSW!$R$7:$S$2000, 2, FALSE)) -> 2.3448 | Y31: =IF($O31="", "", VLOOKUP($O31, USSW!$T$7:$U$2000, 2, FALSE)) -> 2.381
B32: =IF(CAD!B29="", "", CAD!B29) -> 2017-11-29 | C32: =IF($B32="", "", CAD!C29) -> 1.2865 | D32: =IF($B32="", "",VLOOKUP($B32, CAD!$D$7:$E$2000, 2, FALSE)) -> 1.280869 | E32: =IF($B32="", "",VLOOKUP($B32, CAD!$F$7:$G$2000, 2, FALSE)) -> 1.27655 | F32: =IF($B32="", "",VLOOKUP($B32, CAD!$H$7:$I$2000, 2, FALSE)) -> 1.273195 | G32: =IF($B32="", "",VLOOKUP($B32, CAD!$J$7:$K$2000, 2, FALSE)) -> 1.27014 | H32: =IF($B32="", "", VLOOKUP($B32, CAD!$L$7:$M$2000, 2, FALSE)) -> 1.26825 | I32: =IF($B32="", "", VLOOKUP($B32, CAD!$N$7:$O$2000, 2, FALSE)) -> 1.2688 | J32: =IF($B32="", "", VLOOKUP($B32, CAD!$P$7:$Q$2000, 2, FALSE)) -> 1.26473 | K32: =IF($B32="", "", VLOOKUP($B32, CAD!$R$7:$S$2000, 2, FALSE)) -> 1.26404 | L32: =IF($B32="", "", VLOOKUP($B32, CAD!$T$7:$U$2000, 2, FALSE)) -> 1.26565 | M32: =IF($B32="", "", VLOOKUP($B32, CAD!$V$7:$W$2000, 2, FALSE)) -> 1.26708 | O32: =IF(USSW!B29="", "", USSW!B29) -> 2017-11-28 | P32: =IF($O32="", "", USSW!C29) -> 1.7543 | Q32: =IF($O32="", "", VLOOKUP($O32, USSW!$D$7:$E$2000, 2, FALSE)) -> 1.9198 | R32: =IF($O32="", "", VLOOKUP($O32, USSW!$F$7:$G$2000, 2, FALSE)) -> 2.0143 | S32: =IF($O32="", "", VLOOKUP($O32, USSW!$H$7:$I$2000, 2, FALSE)) -> 2.0755 | T32: =IF($O32="", "", VLOOKUP($O32, USSW!$J$7:$K$2000, 2, FALSE)) -> 2.1253 | U32: =IF($O32="", "", VLOOKUP($O32, USSW!$L$7:$M$2000, 2, FALSE)) -> 2.1689 | V32: =IF($O32="", "", VLOOKUP($O32, USSW!$N$7:$O$2000, 2, FALSE)) -> 2.21 | W32: =IF($O32="", "", VLOOKUP($O32, USSW!$P$7:$Q$2000, 2, FALSE)) -> 2.2507 | X32: =IF($O32="", "", VLOOKUP($O32, USSW!$R$7:$S$2000, 2, FALSE)) -> 2.2875 | Y32: =IF($O32="", "", VLOOKUP($O32, USSW!$T$7:$U$2000, 2, FALSE)) -> 2.3214
B33: =IF(CAD!B30="", "", CAD!B30) -> 2017-11-28 | C33: =IF($B33="", "", CAD!C30) -> 1.2815 | D33: =IF($B33="", "",VLOOKUP($B33, CAD!$D$7:$E$2000, 2, FALSE)) -> 1.275926 | E33: =IF($B33="", "",VLOOKUP($B33, CAD!$F$7:$G$2000, 2, FALSE)) -> 1.271736 | F33: =IF($B33="", "",VLOOKUP($B33, CAD!$H$7:$I$2000, 2, FALSE)) -> 1.2683 | G33: =IF($B33="", "",VLOOKUP($B33, CAD!$J$7:$K$2000, 2, FALSE)) -> 1.26566 | H33: =IF($B33="", "", VLOOKUP($B33, CAD!$L$7:$M$2000, 2, FALSE)) -> 1.263665 | I33: =IF($B33="", "", VLOOKUP($B33, CAD!$N$7:$O$2000, 2, FALSE)) -> 1.263425 | J33: =IF($B33="", "", VLOOKUP($B33, CAD!$P$7:$Q$2000, 2, FALSE)) -> 1.26105 | K33: =IF($B33="", "", VLOOKUP($B33, CAD!$R$7:$S$2000, 2, FALSE)) -> 1.261 | L33: =IF($B33="", "", VLOOKUP($B33, CAD!$T$7:$U$2000, 2, FALSE)) -> 1.26313 | M33: =IF($B33="", "", VLOOKUP($B33, CAD!$V$7:$W$2000, 2, FALSE)) -> 1.26319 | O33: =IF(USSW!B30="", "", USSW!B30) -> 2017-11-27 | P33: =IF($O33="", "", USSW!C30) -> 1.7548 | Q33: =IF($O33="", "", VLOOKUP($O33, USSW!$D$7:$E$2000, 2, FALSE)) -> 1.9197 | R33: =IF($O33="", "", VLOOKUP($O33, USSW!$F$7:$G$2000, 2, FALSE)) -> 2.0105 | S33: =IF($O33="", "", VLOOKUP($O33, USSW!$H$7:$I$2000, 2, FALSE)) -> 2.0731 | T33: =IF($O33="", "", VLOOKUP($O33, USSW!$J$7:$K$2000, 2, FALSE)) -> 2.1134 | U33: =IF($O33="", "", VLOOKUP($O33, USSW!$L$7:$M$2000, 2, FALSE)) -> 2.1649 | V33: =IF($O33="", "", VLOOKUP($O33, USSW!$N$7:$O$2000, 2, FALSE)) -> 2.2034 | W33: =IF($O33="", "", VLOOKUP($O33, USSW!$P$7:$Q$2000, 2, FALSE)) -> 2.2491 | X33: =IF($O33="", "", VLOOKUP($O33, USSW!$R$7:$S$2000, 2, FALSE)) -> 2.2847 | Y33: =IF($O33="", "", VLOOKUP($O33, USSW!$T$7:$U$2000, 2, FALSE)) -> 2.3205
B34: =IF(CAD!B31="", "", CAD!B31) -> 2017-11-27 | C34: =IF($B34="", "", CAD!C31) -> 1.2769 | D34: =IF($B34="", "",VLOOKUP($B34, CAD!$D$7:$E$2000, 2, FALSE)) -> 1.271426 | E34: =IF($B34="", "",VLOOKUP($B34, CAD!$F$7:$G$2000, 2, FALSE)) -> 1.267173 | F34: =IF($B34="", "",VLOOKUP($B34, CAD!$H$7:$I$2000, 2, FALSE)) -> 1.26461 | G34: =IF($B34="", "",VLOOKUP($B34, CAD!$J$7:$K$2000, 2, FALSE)) -> 1.262305 | H34: =IF($B34="", "", VLOOKUP($B34, CAD!$L$7:$M$2000, 2, FALSE)) -> 1.260935 | I34: =IF($B34="", "", VLOOKUP($B34, CAD!$N$7:$O$2000, 2, FALSE)) -> 1.2617 | J34: =IF($B34="", "", VLOOKUP($B34, CAD!$P$7:$Q$2000, 2, FALSE)) -> 1.2588 | K34: =IF($B34="", "", VLOOKUP($B34, CAD!$R$7:$S$2000, 2, FALSE)) -> 1.25894 | L34: =IF($B34="", "", VLOOKUP($B34, CAD!$T$7:$U$2000, 2, FALSE)) -> 1.259888 | M34: =IF($B34="", "", VLOOKUP($B34, CAD!$V$7:$W$2000, 2, FALSE)) -> 1.260951 | O34: =IF(USSW!B31="", "", USSW!B31) -> 2017-11-24 | P34: =IF($O34="", "", USSW!C31) -> 1.7528 | Q34: =IF($O34="", "", VLOOKUP($O34, USSW!$D$7:$E$2000, 2, FALSE)) -> 1.9243 | R34: =IF($O34="", "", VLOOKUP($O34, USSW!$F$7:$G$2000, 2, FALSE)) -> 2.0233 | S34: =IF($O34="", "", VLOOKUP($O34, USSW!$H$7:$I$2000, 2, FALSE)) -> 2.084 | T34: =IF($O34="", "", VLOOKUP($O34, USSW!$J$7:$K$2000, 2, FALSE)) -> 2.1326 | U34: =IF($O34="", "", VLOOKUP($O34, USSW!$L$7:$M$2000, 2, FALSE)) -> 2.1827 | V34: =IF($O34="", "", VLOOKUP($O34, USSW!$N$7:$O$2000, 2, FALSE)) -> 2.2269 | W34: =IF($O34="", "", VLOOKUP($O34, USSW!$P$7:$Q$2000, 2, FALSE)) -> 2.2687 | X34: =IF($O34="", "", VLOOKUP($O34, USSW!$R$7:$S$2000, 2, FALSE)) -> 2.3072 | Y34: =IF($O34="", "", VLOOKUP($O34, USSW!$T$7:$U$2000, 2, FALSE)) -> 2.3405
B35: =IF(CAD!B32="", "", CAD!B32) -> 2017-11-24 | C35: =IF($B35="", "", CAD!C32) -> 1.2712 | D35: =IF($B35="", "",VLOOKUP($B35, CAD!$D$7:$E$2000, 2, FALSE)) -> 1.2659 | E35: =IF($B35="", "",VLOOKUP($B35, CAD!$F$7:$G$2000, 2, FALSE)) -> 1.261662 | F35: =IF($B35="", "",VLOOKUP($B35, CAD!$H$7:$I$2000, 2, FALSE)) -> 1.25885 | G35: =IF($B35="", "",VLOOKUP($B35, CAD!$J$7:$K$2000, 2, FALSE)) -> 1.256537 | H35: =IF($B35="", "", VLOOKUP($B35, CAD!$L$7:$M$2000, 2, FALSE)) -> 1.25468 | I35: =IF($B35="", "", VLOOKUP($B35, CAD!$N$7:$O$2000, 2, FALSE)) -> 1.2554 | J35: =IF($B35="", "", VLOOKUP($B35, CAD!$P$7:$Q$2000, 2, FALSE)) -> 1.25255 | K35: =IF($B35="", "", VLOOKUP($B35, CAD!$R$7:$S$2000, 2, FALSE)) ->  | L35: =IF($B35="", "", VLOOKUP($B35, CAD!$T$7:$U$2000, 2, FALSE)) -> 1.25306 | M35: =IF($B35="", "", VLOOKUP($B35, CAD!$V$7:$W$2000, 2, FALSE)) -> 1.25448 | O35: =IF(USSW!B32="", "", USSW!B32) -> 2017-11-23 | P35: =IF($O35="", "", USSW!C32) -> 1.7431 | Q35: =IF($O35="", "", VLOOKUP($O35, USSW!$D$7:$E$2000, 2, FALSE)) -> 1.909 | R35: =IF($O35="", "", VLOOKUP($O35, USSW!$F$7:$G$2000, 2, FALSE)) -> 2.0055 | S35: =IF($O35="", "", VLOOKUP($O35, USSW!$H$7:$I$2000, 2, FALSE)) -> 2.0631 | T35: =IF($O35="", "", VLOOKUP($O35, USSW!$J$7:$K$2000, 2, FALSE)) -> 2.1138 | U35: =IF($O35="", "", VLOOKUP($O35, USSW!$L$7:$M$2000, 2, FALSE)) -> 2.1643 | V35: =IF($O35="", "", VLOOKUP($O35, USSW!$N$7:$O$2000, 2, FALSE)) -> 2.2118 | W35: =IF($O35="", "", VLOOKUP($O35, USSW!$P$7:$Q$2000, 2, FALSE)) -> 2.2472 | X35: =IF($O35="", "", VLOOKUP($O35, USSW!$R$7:$S$2000, 2, FALSE)) -> 2.284 | Y35: =IF($O35="", "", VLOOKUP($O35, USSW!$T$7:$U$2000, 2, FALSE)) -> 2.3236
B36: =IF(CAD!B33="", "", CAD!B33) -> 2017-11-23 | C36: =IF($B36="", "", CAD!C33) -> 1.2713 | D36: =IF($B36="", "",VLOOKUP($B36, CAD!$D$7:$E$2000, 2, FALSE)) -> 1.266103 | E36: =IF($B36="", "",VLOOKUP($B36, CAD!$F$7:$G$2000, 2, FALSE)) -> 1.26232 | F36: =IF($B36="", "",VLOOKUP($B36, CAD!$H$7:$I$2000, 2, FALSE)) -> 1.258943 | G36: =IF($B36="", "",VLOOKUP($B36, CAD!$J$7:$K$2000, 2, FALSE)) -> 1.257655 | H36: =IF($B36="", "", VLOOKUP($B36, CAD!$L$7:$M$2000, 2, FALSE)) -> 1.256375 | I36: =IF($B36="", "", VLOOKUP($B36, CAD!$N$7:$O$2000, 2, FALSE)) -> 1.256315 | J36: =IF($B36="", "", VLOOKUP($B36, CAD!$P$7:$Q$2000, 2, FALSE)) -> 1.254015 | K36: =IF($B36="", "", VLOOKUP($B36, CAD!$R$7:$S$2000, 2, FALSE)) -> 1.25722 | L36: =IF($B36="", "", VLOOKUP($B36, CAD!$T$7:$U$2000, 2, FALSE)) -> 1.25651 | M36: =IF($B36="", "", VLOOKUP($B36, CAD!$V$7:$W$2000, 2, FALSE)) -> 1.25741 | O36: =IF(USSW!B33="", "", USSW!B33) -> 2017-11-22 | P36: =IF($O36="", "", USSW!C33) -> 1.7377 | Q36: =IF($O36="", "", VLOOKUP($O36, USSW!$D$7:$E$2000, 2, FALSE)) -> 1.9038 | R36: =IF($O36="", "", VLOOKUP($O36, USSW!$F$7:$G$2000, 2, FALSE)) -> 1.9991 | S36: =IF($O36="", "", VLOOKUP($O36, USSW!$H$7:$I$2000, 2, FALSE)) -> 2.0629 | T36: =IF($O36="", "", VLOOKUP($O36, USSW!$J$7:$K$2000, 2, FALSE)) -> 2.1136 | U36: =IF($O36="", "", VLOOKUP($O36, USSW!$L$7:$M$2000, 2, FALSE)) -> 2.1608 | V36: =IF($O36="", "", VLOOKUP($O36, USSW!$N$7:$O$2000, 2, FALSE)) -> 2.2065 | W36: =IF($O36="", "", VLOOKUP($O36, USSW!$P$7:$Q$2000, 2, FALSE)) -> 2.2465 | X36: =IF($O36="", "", VLOOKUP($O36, USSW!$R$7:$S$2000, 2, FALSE)) -> 2.2849 | Y36: =IF($O36="", "", VLOOKUP($O36, USSW!$T$7:$U$2000, 2, FALSE)) -> 2.3199
B37: =IF(CAD!B34="", "", CAD!B34) -> 2017-11-22 | C37: =IF($B37="", "", CAD!C34) -> 1.2696 | D37: =IF($B37="", "",VLOOKUP($B37, CAD!$D$7:$E$2000, 2, FALSE)) -> 1.264549 | E37: =IF($B37="", "",VLOOKUP($B37, CAD!$F$7:$G$2000, 2, FALSE)) -> 1.260855 | F37: =IF($B37="", "",VLOOKUP($B37, CAD!$H$7:$I$2000, 2, FALSE)) -> 1.25835 | G37: =IF($B37="", "",VLOOKUP($B37, CAD!$J$7:$K$2000, 2, FALSE)) -> 1.256165 | H37: =IF($B37="", "", VLOOKUP($B37, CAD!$L$7:$M$2000, 2, FALSE)) -> 1.25535 | I37: =IF($B37="", "", VLOOKUP($B37, CAD!$N$7:$O$2000, 2, FALSE)) -> 1.255745 | J37: =IF($B37="", "", VLOOKUP($B37, CAD!$P$7:$Q$2000, 2, FALSE)) -> 1.254655 | K37: =IF($B37="", "", VLOOKUP($B37, CAD!$R$7:$S$2000, 2, FALSE)) -> 1.25571 | L37: =IF($B37="", "", VLOOKUP($B37, CAD!$T$7:$U$2000, 2, FALSE)) -> 1.25563 | M37: =IF($B37="", "", VLOOKUP($B37, CAD!$V$7:$W$2000, 2, FALSE)) -> 1.25724 | O37: =IF(USSW!B34="", "", USSW!B34) -> 2017-11-21 | P37: =IF($O37="", "", USSW!C34) -> 1.7563 | Q37: =IF($O37="", "", VLOOKUP($O37, USSW!$D$7:$E$2000, 2, FALSE)) -> 1.9429 | R37: =IF($O37="", "", VLOOKUP($O37, USSW!$F$7:$G$2000, 2, FALSE)) -> 2.0486 | S37: =IF($O37="", "", VLOOKUP($O37, USSW!$H$7:$I$2000, 2, FALSE)) -> 2.1129 | T37: =IF($O37="", "", VLOOKUP($O37, USSW!$J$7:$K$2000, 2, FALSE)) -> 2.1638 | U37: =IF($O37="", "", VLOOKUP($O37, USSW!$L$7:$M$2000, 2, FALSE)) -> 2.2068 | V37: =IF($O37="", "", VLOOKUP($O37, USSW!$N$7:$O$2000, 2, FALSE)) -> 2.2513 | W37: =IF($O37="", "", VLOOKUP($O37, USSW!$P$7:$Q$2000, 2, FALSE)) -> 2.2896 | X37: =IF($O37="", "", VLOOKUP($O37, USSW!$R$7:$S$2000, 2, FALSE)) -> 2.3271 | Y37: =IF($O37="", "", VLOOKUP($O37, USSW!$T$7:$U$2000, 2, FALSE)) -> 2.3599
B38: =IF(CAD!B35="", "", CAD!B35) -> 2017-11-21 | C38: =IF($B38="", "", CAD!C35) -> 1.2778 | D38: =IF($B38="", "",VLOOKUP($B38, CAD!$D$7:$E$2000, 2, FALSE)) -> 1.27254 | E38: =IF($B38="", "",VLOOKUP($B38, CAD!$F$7:$G$2000, 2, FALSE)) -> 1.2683 | F38: =IF($B38="", "",VLOOKUP($B38, CAD!$H$7:$I$2000, 2, FALSE)) -> 1.264825 | G38: =IF($B38="", "",VLOOKUP($B38, CAD!$J$7:$K$2000, 2, FALSE)) -> 1.262493 | H38: =IF($B38="", "", VLOOKUP($B38, CAD!$L$7:$M$2000, 2, FALSE)) -> 1.260999 | I38: =IF($B38="", "", VLOOKUP($B38, CAD!$N$7:$O$2000, 2, FALSE)) -> 1.2623 | J38: =IF($B38="", "", VLOOKUP($B38, CAD!$P$7:$Q$2000, 2, FALSE)) -> 1.2599 | K38: =IF($B38="", "", VLOOKUP($B38, CAD!$R$7:$S$2000, 2, FALSE)) -> 1.259975 | L38: =IF($B38="", "", VLOOKUP($B38, CAD!$T$7:$U$2000, 2, FALSE)) -> 1.261666 | M38: =IF($B38="", "", VLOOKUP($B38, CAD!$V$7:$W$2000, 2, FALSE)) -> 1.2633 | O38: =IF(USSW!B35="", "", USSW!B35) -> 2017-11-20 | P38: =IF($O38="", "", USSW!C35) -> 1.7404 | Q38: =IF($O38="", "", VLOOKUP($O38, USSW!$D$7:$E$2000, 2, FALSE)) -> 1.9195 | R38: =IF($O38="", "", VLOOKUP($O38, USSW!$F$7:$G$2000, 2, FALSE)) -> 2.0247 | S38: =IF($O38="", "", VLOOKUP($O38, USSW!$H$7:$I$2000, 2, FALSE)) -> 2.0933 | T38: =IF($O38="", "", VLOOKUP($O38, USSW!$J$7:$K$2000, 2, FALSE)) -> 2.149 | U38: =IF($O38="", "", VLOOKUP($O38, USSW!$L$7:$M$2000, 2, FALSE)) -> 2.1983 | V38: =IF($O38="", "", VLOOKUP($O38, USSW!$N$7:$O$2000, 2, FALSE)) -> 2.2468 | W38: =IF($O38="", "", VLOOKUP($O38, USSW!$P$7:$Q$2000, 2, FALSE)) -> 2.2887 | X38: =IF($O38="", "", VLOOKUP($O38, USSW!$R$7:$S$2000, 2, FALSE)) -> 2.329 | Y38: =IF($O38="", "", VLOOKUP($O38, USSW!$T$7:$U$2000, 2, FALSE)) -> 2.3637
B39: =IF(CAD!B36="", "", CAD!B36) -> 2017-11-20 | C39: =IF($B39="", "", CAD!C36) -> 1.282 | D39: =IF($B39="", "",VLOOKUP($B39, CAD!$D$7:$E$2000, 2, FALSE)) -> 1.27701 | E39: =IF($B39="", "",VLOOKUP($B39, CAD!$F$7:$G$2000, 2, FALSE)) -> 1.27328 | F39: =IF($B39="", "",VLOOKUP($B39, CAD!$H$7:$I$2000, 2, FALSE)) -> 1.270425 | G39: =IF($B39="", "",VLOOKUP($B39, CAD!$J$7:$K$2000, 2, FALSE)) -> 1.268725 | H39: =IF($B39="", "", VLOOKUP($B39, CAD!$L$7:$M$2000, 2, FALSE)) -> 1.267655 | I39: =IF($B39="", "", VLOOKUP($B39, CAD!$N$7:$O$2000, 2, FALSE)) -> 1.267925 | J39: =IF($B39="", "", VLOOKUP($B39, CAD!$P$7:$Q$2000, 2, FALSE)) -> 1.26669 | K39: =IF($B39="", "", VLOOKUP($B39, CAD!$R$7:$S$2000, 2, FALSE)) -> 1.267605 | L39: =IF($B39="", "", VLOOKUP($B39, CAD!$T$7:$U$2000, 2, FALSE)) -> 1.270729 | M39: =IF($B39="", "", VLOOKUP($B39, CAD!$V$7:$W$2000, 2, FALSE)) -> 1.273016 | O39: =IF(USSW!B36="", "", USSW!B36) -> 2017-11-17 | P39: =IF($O39="", "", USSW!C36) -> 1.718 | Q39: =IF($O39="", "", VLOOKUP($O39, USSW!$D$7:$E$2000, 2, FALSE)) -> 1.8888 | R39: =IF($O39="", "", VLOOKUP($O39, USSW!$F$7:$G$2000, 2, FALSE)) -> 1.9896 | S39: =IF($O39="", "", VLOOKUP($O39, USSW!$H$7:$I$2000, 2, FALSE)) -> 2.0595 | T39: =IF($O39="", "", VLOOKUP($O39, USSW!$J$7:$K$2000, 2, FALSE)) -> 2.1183 | U39: =IF($O39="", "", VLOOKUP($O39, USSW!$L$7:$M$2000, 2, FALSE)) -> 2.1686 | V39: =IF($O39="", "", VLOOKUP($O39, USSW!$N$7:$O$2000, 2, FALSE)) -> 2.2181 | W39: =IF($O39="", "", VLOOKUP($O39, USSW!$P$7:$Q$2000, 2, FALSE)) -> 2.2615 | X39: =IF($O39="", "", VLOOKUP($O39, USSW!$R$7:$S$2000, 2, FALSE)) -> 2.3017 | Y39: =IF($O39="", "", VLOOKUP($O39, USSW!$T$7:$U$2000, 2, FALSE)) -> 2.3385
B40: =IF(CAD!B37="", "", CAD!B37) -> 2017-11-17 | C40: =IF($B40="", "", CAD!C37) -> 1.2763 | D40: =IF($B40="", "",VLOOKUP($B40, CAD!$D$7:$E$2000, 2, FALSE)) -> 1.271469 | E40: =IF($B40="", "",VLOOKUP($B40, CAD!$F$7:$G$2000, 2, FALSE)) -> 1.268157 | F40: =IF($B40="", "",VLOOKUP($B40, CAD!$H$7:$I$2000, 2, FALSE)) -> 1.265643 | G40: =IF($B40="", "",VLOOKUP($B40, CAD!$J$7:$K$2000, 2, FALSE)) -> 1.264193 | H40: =IF($B40="", "", VLOOKUP($B40, CAD!$L$7:$M$2000, 2, FALSE)) -> 1.26335 | I40: =IF($B40="", "", VLOOKUP($B40, CAD!$N$7:$O$2000, 2, FALSE)) -> 1.265 | J40: =IF($B40="", "", VLOOKUP($B40, CAD!$P$7:$Q$2000, 2, FALSE)) -> 1.26295 | K40: =IF($B40="", "", VLOOKUP($B40, CAD!$R$7:$S$2000, 2, FALSE)) -> 1.26309 | L40: =IF($B40="", "", VLOOKUP($B40, CAD!$T$7:$U$2000, 2, FALSE)) -> 1.26528 | M40: =IF($B40="", "", VLOOKUP($B40, CAD!$V$7:$W$2000, 2, FALSE)) -> 1.26748 | O40: =IF(USSW!B37="", "", USSW!B37) -> 2017-11-16 | P40: =IF($O40="", "", USSW!C37) -> 1.7151 | Q40: =IF($O40="", "", VLOOKUP($O40, USSW!$D$7:$E$2000, 2, FALSE)) -> 1.8898 | R40: =IF($O40="", "", VLOOKUP($O40, USSW!$F$7:$G$2000, 2, FALSE)) -> 1.9984 | S40: =IF($O40="", "", VLOOKUP($O40, USSW!$H$7:$I$2000, 2, FALSE)) -> 2.0708 | T40: =IF($O40="", "", VLOOKUP($O40, USSW!$J$7:$K$2000, 2, FALSE)) -> 2.125 | U40: =IF($O40="", "", VLOOKUP($O40, USSW!$L$7:$M$2000, 2, FALSE)) -> 2.1886 | V40: =IF($O40="", "", VLOOKUP($O40, USSW!$N$7:$O$2000, 2, FALSE)) -> 2.2396 | W40: =IF($O40="", "", VLOOKUP($O40, USSW!$P$7:$Q$2000, 2, FALSE)) -> 2.2872 | X40: =IF($O40="", "", VLOOKUP($O40, USSW!$R$7:$S$2000, 2, FALSE)) -> 2.33 | Y40: =IF($O40="", "", VLOOKUP($O40, USSW!$T$7:$U$2000, 2, FALSE)) -> 2.3705
B41: =IF(CAD!B38="", "", CAD!B38) -> 2017-11-16 | C41: =IF($B41="", "", CAD!C38) -> 1.2757 | D41: =IF($B41="", "",VLOOKUP($B41, CAD!$D$7:$E$2000, 2, FALSE)) -> 1.271131 | E41: =IF($B41="", "",VLOOKUP($B41, CAD!$F$7:$G$2000, 2, FALSE)) -> 1.26797 | F41: =IF($B41="", "",VLOOKUP($B41, CAD!$H$7:$I$2000, 2, FALSE)) -> 1.265787 | G41: =IF($B41="", "",VLOOKUP($B41, CAD!$J$7:$K$2000, 2, FALSE)) -> 1.264485 | H41: =IF($B41="", "", VLOOKUP($B41, CAD!$L$7:$M$2000, 2, FALSE)) -> 1.26377 | I41: =IF($B41="", "", VLOOKUP($B41, CAD!$N$7:$O$2000, 2, FALSE)) -> 1.2657 | J41: =IF($B41="", "", VLOOKUP($B41, CAD!$P$7:$Q$2000, 2, FALSE)) -> 1.263657 | K41: =IF($B41="", "", VLOOKUP($B41, CAD!$R$7:$S$2000, 2, FALSE)) -> 1.26369 | L41: =IF($B41="", "", VLOOKUP($B41, CAD!$T$7:$U$2000, 2, FALSE)) -> 1.264791 | M41: =IF($B41="", "", VLOOKUP($B41, CAD!$V$7:$W$2000, 2, FALSE)) -> 1.266981 | O41: =IF(USSW!B38="", "", USSW!B38) -> 2017-11-15 | P41: =IF($O41="", "", USSW!C38) -> 1.6928 | Q41: =IF($O41="", "", VLOOKUP($O41, USSW!$D$7:$E$2000, 2, FALSE)) -> 1.8578 | R41: =IF($O41="", "", VLOOKUP($O41, USSW!$F$7:$G$2000, 2, FALSE)) -> 1.9607 | S41: =IF($O41="", "", VLOOKUP($O41, USSW!$H$7:$I$2000, 2, FALSE)) -> 2.0295 | T41: =IF($O41="", "", VLOOKUP($O41, USSW!$J$7:$K$2000, 2, FALSE)) -> 2.0849 | U41: =IF($O41="", "", VLOOKUP($O41, USSW!$L$7:$M$2000, 2, FALSE)) -> 2.1378 | V41: =IF($O41="", "", VLOOKUP($O41, USSW!$N$7:$O$2000, 2, FALSE)) -> 2.1902 | W41: =IF($O41="", "", VLOOKUP($O41, USSW!$P$7:$Q$2000, 2, FALSE)) -> 2.2327 | X41: =IF($O41="", "", VLOOKUP($O41, USSW!$R$7:$S$2000, 2, FALSE)) -> 2.2731 | Y41: =IF($O41="", "", VLOOKUP($O41, USSW!$T$7:$U$2000, 2, FALSE)) -> 2.3119
B42: =IF(CAD!B39="", "", CAD!B39) -> 2017-11-15 | C42: =IF($B42="", "", CAD!C39) -> 1.2764 | D42: =IF($B42="", "",VLOOKUP($B42, CAD!$D$7:$E$2000, 2, FALSE)) -> 1.271889 | E42: =IF($B42="", "",VLOOKUP($B42, CAD!$F$7:$G$2000, 2, FALSE)) -> 1.26857 | F42: =IF($B42="", "",VLOOKUP($B42, CAD!$H$7:$I$2000, 2, FALSE)) -> 1.26645 | G42: =IF($B42="", "",VLOOKUP($B42, CAD!$J$7:$K$2000, 2, FALSE)) -> 1.26522 | H42: =IF($B42="", "", VLOOKUP($B42, CAD!$L$7:$M$2000, 2, FALSE)) -> 1.2645 | I42: =IF($B42="", "", VLOOKUP($B42, CAD!$N$7:$O$2000, 2, FALSE)) -> 1.2659 | J42: =IF($B42="", "", VLOOKUP($B42, CAD!$P$7:$Q$2000, 2, FALSE)) -> 1.2643 | K42: =IF($B42="", "", VLOOKUP($B42, CAD!$R$7:$S$2000, 2, FALSE)) -> 1.26508 | L42: =IF($B42="", "", VLOOKUP($B42, CAD!$T$7:$U$2000, 2, FALSE)) -> 1.266638 | M42: =IF($B42="", "", VLOOKUP($B42, CAD!$V$7:$W$2000, 2, FALSE)) -> 1.267619 | O42: =IF(USSW!B39="", "", USSW!B39) -> 2017-11-14 | P42: =IF($O42="", "", USSW!C39) -> 1.6968 | Q42: =IF($O42="", "", VLOOKUP($O42, USSW!$D$7:$E$2000, 2, FALSE)) -> 1.8734 | R42: =IF($O42="", "", VLOOKUP($O42, USSW!$F$7:$G$2000, 2, FALSE)) -> 1.9803 | S42: =IF($O42="", "", VLOOKUP($O42, USSW!$H$7:$I$2000, 2, FALSE)) -> 2.0556 | T42: =IF($O42="", "", VLOOKUP($O42, USSW!$J$7:$K$2000, 2, FALSE)) -> 2.1192 | U42: =IF($O42="", "", VLOOKUP($O42, USSW!$L$7:$M$2000, 2, FALSE)) -> 2.1775 | V42: =IF($O42="", "", VLOOKUP($O42, USSW!$N$7:$O$2000, 2, FALSE)) -> 2.2341 | W42: =IF($O42="", "", VLOOKUP($O42, USSW!$P$7:$Q$2000, 2, FALSE)) -> 2.2725 | X42: =IF($O42="", "", VLOOKUP($O42, USSW!$R$7:$S$2000, 2, FALSE)) -> 2.3174 | Y42: =IF($O42="", "", VLOOKUP($O42, USSW!$T$7:$U$2000, 2, FALSE)) -> 2.356
B43: =IF(CAD!B40="", "", CAD!B40) -> 2017-11-14 | C43: =IF($B43="", "", CAD!C40) -> 1.2731 | D43: =IF($B43="", "",VLOOKUP($B43, CAD!$D$7:$E$2000, 2, FALSE)) -> 1.26866 | E43: =IF($B43="", "",VLOOKUP($B43, CAD!$F$7:$G$2000, 2, FALSE)) -> 1.26545 | F43: =IF($B43="", "",VLOOKUP($B43, CAD!$H$7:$I$2000, 2, FALSE)) -> 1.263305 | G43: =IF($B43="", "",VLOOKUP($B43, CAD!$J$7:$K$2000, 2, FALSE)) -> 1.26237 | H43: =IF($B43="", "", VLOOKUP($B43, CAD!$L$7:$M$2000, 2, FALSE)) -> 1.26151 | I43: =IF($B43="", "", VLOOKUP($B43, CAD!$N$7:$O$2000, 2, FALSE)) -> 1.2625 | J43: =IF($B43="", "", VLOOKUP($B43, CAD!$P$7:$Q$2000, 2, FALSE)) -> 1.26113 | K43: =IF($B43="", "", VLOOKUP($B43, CAD!$R$7:$S$2000, 2, FALSE)) -> 1.26171 | L43: =IF($B43="", "", VLOOKUP($B43, CAD!$T$7:$U$2000, 2, FALSE)) -> 1.263028 | M43: =IF($B43="", "", VLOOKUP($B43, CAD!$V$7:$W$2000, 2, FALSE)) -> 1.265089 | O43: =IF(USSW!B40="", "", USSW!B40) -> 2017-11-13 | P43: =IF($O43="", "", USSW!C40) -> 1.6972 | Q43: =IF($O43="", "", VLOOKUP($O43, USSW!$D$7:$E$2000, 2, FALSE)) -> 1.8806 | R43: =IF($O43="", "", VLOOKUP($O43, USSW!$F$7:$G$2000, 2, FALSE)) -> 1.9954 | S43: =IF($O43="", "", VLOOKUP($O43, USSW!$H$7:$I$2000, 2, FALSE)) -> 2.0737 | T43: =IF($O43="", "", VLOOKUP($O43, USSW!$J$7:$K$2000, 2, FALSE)) -> 2.1391 | U43: =IF($O43="", "", VLOOKUP($O43, USSW!$L$7:$M$2000, 2, FALSE)) -> 2.2008 | V43: =IF($O43="", "", VLOOKUP($O43, USSW!$N$7:$O$2000, 2, FALSE)) -> 2.2504 | W43: =IF($O43="", "", VLOOKUP($O43, USSW!$P$7:$Q$2000, 2, FALSE)) -> 2.3085 | X43: =IF($O43="", "", VLOOKUP($O43, USSW!$R$7:$S$2000, 2, FALSE)) -> 2.3534 | Y43: =IF($O43="", "", VLOOKUP($O43, USSW!$T$7:$U$2000, 2, FALSE)) -> 2.3939
B44: =IF(CAD!B41="", "", CAD!B41) -> 2017-11-13 | C44: =IF($B44="", "", CAD!C41) -> 1.2733 | D44: =IF($B44="", "",VLOOKUP($B44, CAD!$D$7:$E$2000, 2, FALSE)) -> 1.2688 | E44: =IF($B44="", "",VLOOKUP($B44, CAD!$F$7:$G$2000, 2, FALSE)) -> 1.265485 | F44: =IF($B44="", "",VLOOKUP($B44, CAD!$H$7:$I$2000, 2, FALSE)) -> 1.26312 | G44: =IF($B44="", "",VLOOKUP($B44, CAD!$J$7:$K$2000, 2, FALSE)) -> 1.261445 | H44: =IF($B44="", "", VLOOKUP($B44, CAD!$L$7:$M$2000, 2, FALSE)) -> 1.2602 | I44: =IF($B44="", "", VLOOKUP($B44, CAD!$N$7:$O$2000, 2, FALSE)) -> 1.2614 | J44: =IF($B44="", "", VLOOKUP($B44, CAD!$P$7:$Q$2000, 2, FALSE)) -> 1.25866 | K44: =IF($B44="", "", VLOOKUP($B44, CAD!$R$7:$S$2000, 2, FALSE)) -> 1.25857 | L44: =IF($B44="", "", VLOOKUP($B44, CAD!$T$7:$U$2000, 2, FALSE)) -> 1.260489 | M44: =IF($B44="", "", VLOOKUP($B44, CAD!$V$7:$W$2000, 2, FALSE)) -> 1.26235 | O44: =IF(USSW!B41="", "", USSW!B41) -> 2017-11-10 | P44: =IF($O44="", "", USSW!C41) -> 1.6852 | Q44: =IF($O44="", "", VLOOKUP($O44, USSW!$D$7:$E$2000, 2, FALSE)) -> 1.8567 | R44: =IF($O44="", "", VLOOKUP($O44, USSW!$F$7:$G$2000, 2, FALSE)) -> 1.9649 | S44: =IF($O44="", "", VLOOKUP($O44, USSW!$H$7:$I$2000, 2, FALSE)) -> 2.0475 | T44: =IF($O44="", "", VLOOKUP($O44, USSW!$J$7:$K$2000, 2, FALSE)) -> 2.1185 | U44: =IF($O44="", "", VLOOKUP($O44, USSW!$L$7:$M$2000, 2, FALSE)) -> 2.1805 | V44: =IF($O44="", "", VLOOKUP($O44, USSW!$N$7:$O$2000, 2, FALSE)) -> 2.2392 | W44: =IF($O44="", "", VLOOKUP($O44, USSW!$P$7:$Q$2000, 2, FALSE)) -> 2.2892 | X44: =IF($O44="", "", VLOOKUP($O44, USSW!$R$7:$S$2000, 2, FALSE)) -> 2.337 | Y44: =IF($O44="", "", VLOOKUP($O44, USSW!$T$7:$U$2000, 2, FALSE)) -> 2.3788
B45: =IF(CAD!B42="", "", CAD!B42) -> 2017-11-10 | C45: =IF($B45="", "", CAD!C42) -> 1.2682 | D45: =IF($B45="", "",VLOOKUP($B45, CAD!$D$7:$E$2000, 2, FALSE)) -> 1.263925 | E45: =IF($B45="", "",VLOOKUP($B45, CAD!$F$7:$G$2000, 2, FALSE)) -> 1.260927 | F45: =IF($B45="", "",VLOOKUP($B45, CAD!$H$7:$I$2000, 2, FALSE)) -> 1.25892 | G45: =IF($B45="", "",VLOOKUP($B45, CAD!$J$7:$K$2000, 2, FALSE)) -> 1.25759 | H45: =IF($B45="", "", VLOOKUP($B45, CAD!$L$7:$M$2000, 2, FALSE)) -> 1.25633 | I45: =IF($B45="", "", VLOOKUP($B45, CAD!$N$7:$O$2000, 2, FALSE)) -> 1.2575 | J45: =IF($B45="", "", VLOOKUP($B45, CAD!$P$7:$Q$2000, 2, FALSE)) -> 1.25506 | K45: =IF($B45="", "", VLOOKUP($B45, CAD!$R$7:$S$2000, 2, FALSE)) -> 1.254895 | L45: =IF($B45="", "", VLOOKUP($B45, CAD!$T$7:$U$2000, 2, FALSE)) -> 1.256506 | M45: =IF($B45="", "", VLOOKUP($B45, CAD!$V$7:$W$2000, 2, FALSE)) -> 1.259502 | O45: =IF(USSW!B42="", "", USSW!B42) -> 2017-11-09 | P45: =IF($O45="", "", USSW!C42) -> 1.675 | Q45: =IF($O45="", "", VLOOKUP($O45, USSW!$D$7:$E$2000, 2, FALSE)) -> 1.8364 | R45: =IF($O45="", "", VLOOKUP($O45, USSW!$F$7:$G$2000, 2, FALSE)) -> 1.9405 | S45: =IF($O45="", "", VLOOKUP($O45, USSW!$H$7:$I$2000, 2, FALSE)) -> 2.0167 | T45: =IF($O45="", "", VLOOKUP($O45, USSW!$J$7:$K$2000, 2, FALSE)) -> 2.0803 | U45: =IF($O45="", "", VLOOKUP($O45, USSW!$L$7:$M$2000, 2, FALSE)) -> 2.1383 | V45: =IF($O45="", "", VLOOKUP($O45, USSW!$N$7:$O$2000, 2, FALSE)) -> 2.1919 | W45: =IF($O45="", "", VLOOKUP($O45, USSW!$P$7:$Q$2000, 2, FALSE)) -> 2.24 | X45: =IF($O45="", "", VLOOKUP($O45, USSW!$R$7:$S$2000, 2, FALSE)) -> 2.2842 | Y45: =IF($O45="", "", VLOOKUP($O45, USSW!$T$7:$U$2000, 2, FALSE)) -> 2.3235
B46: =IF(CAD!B43="", "", CAD!B43) -> 2017-11-09 | C46: =IF($B46="", "", CAD!C43) -> 1.2683 | D46: =IF($B46="", "",VLOOKUP($B46, CAD!$D$7:$E$2000, 2, FALSE)) -> 1.2641 | E46: =IF($B46="", "",VLOOKUP($B46, CAD!$F$7:$G$2000, 2, FALSE)) -> 1.26125 | F46: =IF($B46="", "",VLOOKUP($B46, CAD!$H$7:$I$2000, 2, FALSE)) -> 1.259457 | G46: =IF($B46="", "",VLOOKUP($B46, CAD!$J$7:$K$2000, 2, FALSE)) -> 1.2582 | H46: =IF($B46="", "", VLOOKUP($B46, CAD!$L$7:$M$2000, 2, FALSE)) -> 1.25732 | I46: =IF($B46="", "", VLOOKUP($B46, CAD!$N$7:$O$2000, 2, FALSE)) -> 1.259 | J46: =IF($B46="", "", VLOOKUP($B46, CAD!$P$7:$Q$2000, 2, FALSE)) -> 1.256745 | K46: =IF($B46="", "", VLOOKUP($B46, CAD!$R$7:$S$2000, 2, FALSE)) -> 1.2569 | L46: =IF($B46="", "", VLOOKUP($B46, CAD!$T$7:$U$2000, 2, FALSE)) -> 1.2656 | M46: =IF($B46="", "", VLOOKUP($B46, CAD!$V$7:$W$2000, 2, FALSE)) -> 1.26042 | O46: =IF(USSW!B43="", "", USSW!B43) -> 2017-11-08 | P46: =IF($O46="", "", USSW!C43) -> 1.6771 | Q46: =IF($O46="", "", VLOOKUP($O46, USSW!$D$7:$E$2000, 2, FALSE)) -> 1.844 | R46: =IF($O46="", "", VLOOKUP($O46, USSW!$F$7:$G$2000, 2, FALSE)) -> 1.9454 | S46: =IF($O46="", "", VLOOKUP($O46, USSW!$H$7:$I$2000, 2, FALSE)) -> 2.0186 | T46: =IF($O46="", "", VLOOKUP($O46, USSW!$J$7:$K$2000, 2, FALSE)) -> 2.0693 | U46: =IF($O46="", "", VLOOKUP($O46, USSW!$L$7:$M$2000, 2, FALSE)) -> 2.1333 | V46: =IF($O46="", "", VLOOKUP($O46, USSW!$N$7:$O$2000, 2, FALSE)) -> 2.183 | W46: =IF($O46="", "", VLOOKUP($O46, USSW!$P$7:$Q$2000, 2, FALSE)) -> 2.2296 | X46: =IF($O46="", "", VLOOKUP($O46, USSW!$R$7:$S$2000, 2, FALSE)) -> 2.271 | Y46: =IF($O46="", "", VLOOKUP($O46, USSW!$T$7:$U$2000, 2, FALSE)) -> 2.309
B47: =IF(CAD!B44="", "", CAD!B44) -> 2017-11-08 | C47: =IF($B47="", "", CAD!C44) -> 1.2729 | D47: =IF($B47="", "",VLOOKUP($B47, CAD!$D$7:$E$2000, 2, FALSE)) -> 1.268511 | E47: =IF($B47="", "",VLOOKUP($B47, CAD!$F$7:$G$2000, 2, FALSE)) -> 1.265225 | F47: =IF($B47="", "",VLOOKUP($B47, CAD!$H$7:$I$2000, 2, FALSE)) -> 1.26297 | G47: =IF($B47="", "",VLOOKUP($B47, CAD!$J$7:$K$2000, 2, FALSE)) -> 1.261775 | H47: =IF($B47="", "", VLOOKUP($B47, CAD!$L$7:$M$2000, 2, FALSE)) -> 1.26084 | I47: =IF($B47="", "", VLOOKUP($B47, CAD!$N$7:$O$2000, 2, FALSE)) -> 1.26116 | J47: =IF($B47="", "", VLOOKUP($B47, CAD!$P$7:$Q$2000, 2, FALSE)) -> 1.26061 | K47: =IF($B47="", "", VLOOKUP($B47, CAD!$R$7:$S$2000, 2, FALSE)) -> 1.260765 | L47: =IF($B47="", "", VLOOKUP($B47, CAD!$T$7:$U$2000, 2, FALSE)) -> 1.2681 | M47: =IF($B47="", "", VLOOKUP($B47, CAD!$V$7:$W$2000, 2, FALSE)) -> 1.26396 | O47: =IF(USSW!B44="", "", USSW!B44) -> 2017-11-07 | P47: =IF($O47="", "", USSW!C44) -> 1.6718 | Q47: =IF($O47="", "", VLOOKUP($O47, USSW!$D$7:$E$2000, 2, FALSE)) -> 1.8372 | R47: =IF($O47="", "", VLOOKUP($O47, USSW!$F$7:$G$2000, 2, FALSE)) -> 1.9377 | S47: =IF($O47="", "", VLOOKUP($O47, USSW!$H$7:$I$2000, 2, FALSE)) -> 2.0068 | T47: =IF($O47="", "", VLOOKUP($O47, USSW!$J$7:$K$2000, 2, FALSE)) -> 2.0649 | U47: =IF($O47="", "", VLOOKUP($O47, USSW!$L$7:$M$2000, 2, FALSE)) -> 2.1182 | V47: =IF($O47="", "", VLOOKUP($O47, USSW!$N$7:$O$2000, 2, FALSE)) -> 2.1614 | W47: =IF($O47="", "", VLOOKUP($O47, USSW!$P$7:$Q$2000, 2, FALSE)) -> 2.2125 | X47: =IF($O47="", "", VLOOKUP($O47, USSW!$R$7:$S$2000, 2, FALSE)) -> 2.2557 | Y47: =IF($O47="", "", VLOOKUP($O47, USSW!$T$7:$U$2000, 2, FALSE)) -> 2.294
B48: =IF(CAD!B45="", "", CAD!B45) -> 2017-11-07 | C48: =IF($B48="", "", CAD!C45) -> 1.2777 | D48: =IF($B48="", "",VLOOKUP($B48, CAD!$D$7:$E$2000, 2, FALSE)) -> 1.2733 | E48: =IF($B48="", "",VLOOKUP($B48, CAD!$F$7:$G$2000, 2, FALSE)) -> 1.26995 | F48: =IF($B48="", "",VLOOKUP($B48, CAD!$H$7:$I$2000, 2, FALSE)) -> 1.267415 | G48: =IF($B48="", "",VLOOKUP($B48, CAD!$J$7:$K$2000, 2, FALSE)) -> 1.26581 | H48: =IF($B48="", "", VLOOKUP($B48, CAD!$L$7:$M$2000, 2, FALSE)) -> 1.26492 | I48: =IF($B48="", "", VLOOKUP($B48, CAD!$N$7:$O$2000, 2, FALSE)) -> 1.2669 | J48: =IF($B48="", "", VLOOKUP($B48, CAD!$P$7:$Q$2000, 2, FALSE)) -> 1.264505 | K48: =IF($B48="", "", VLOOKUP($B48, CAD!$R$7:$S$2000, 2, FALSE)) -> 1.26523 | L48: =IF($B48="", "", VLOOKUP($B48, CAD!$T$7:$U$2000, 2, FALSE)) -> 1.27415 | M48: =IF($B48="", "", VLOOKUP($B48, CAD!$V$7:$W$2000, 2, FALSE)) -> 1.269694 | O48: =IF(USSW!B45="", "", USSW!B45) -> 2017-11-06 | P48: =IF($O48="", "", USSW!C45) -> 1.6643 | Q48: =IF($O48="", "", VLOOKUP($O48, USSW!$D$7:$E$2000, 2, FALSE)) -> 1.8262 | R48: =IF($O48="", "", VLOOKUP($O48, USSW!$F$7:$G$2000, 2, FALSE)) -> 1.9295 | S48: =IF($O48="", "", VLOOKUP($O48, USSW!$H$7:$I$2000, 2, FALSE)) -> 1.9999 | T48: =IF($O48="", "", VLOOKUP($O48, USSW!$J$7:$K$2000, 2, FALSE)) -> 2.0582 | U48: =IF($O48="", "", VLOOKUP($O48, USSW!$L$7:$M$2000, 2, FALSE)) -> 2.1133 | V48: =IF($O48="", "", VLOOKUP($O48, USSW!$N$7:$O$2000, 2, FALSE)) -> 2.1622 | W48: =IF($O48="", "", VLOOKUP($O48, USSW!$P$7:$Q$2000, 2, FALSE)) -> 2.2121 | X48: =IF($O48="", "", VLOOKUP($O48, USSW!$R$7:$S$2000, 2, FALSE)) -> 2.2533 | Y48: =IF($O48="", "", VLOOKUP($O48, USSW!$T$7:$U$2000, 2, FALSE)) -> 2.292
B49: =IF(CAD!B46="", "", CAD!B46) -> 2017-11-06 | C49: =IF($B49="", "", CAD!C46) -> 1.2704 | D49: =IF($B49="", "",VLOOKUP($B49, CAD!$D$7:$E$2000, 2, FALSE)) -> 1.266414 | E49: =IF($B49="", "",VLOOKUP($B49, CAD!$F$7:$G$2000, 2, FALSE)) -> 1.26355 | F49: =IF($B49="", "",VLOOKUP($B49, CAD!$H$7:$I$2000, 2, FALSE)) -> 1.26145 | G49: =IF($B49="", "",VLOOKUP($B49, CAD!$J$7:$K$2000, 2, FALSE)) -> 1.2605 | H49: =IF($B49="", "", VLOOKUP($B49, CAD!$L$7:$M$2000, 2, FALSE)) -> 1.26009 | I49: =IF($B49="", "", VLOOKUP($B49, CAD!$N$7:$O$2000, 2, FALSE)) -> 1.2613 | J49: =IF($B49="", "", VLOOKUP($B49, CAD!$P$7:$Q$2000, 2, FALSE)) -> 1.25964 | K49: =IF($B49="", "", VLOOKUP($B49, CAD!$R$7:$S$2000, 2, FALSE)) -> 1.26073 | L49: =IF($B49="", "", VLOOKUP($B49, CAD!$T$7:$U$2000, 2, FALSE)) -> 1.268 | M49: =IF($B49="", "", VLOOKUP($B49, CAD!$V$7:$W$2000, 2, FALSE)) -> 1.26427 | O49: =IF(USSW!B46="", "", USSW!B46) -> 2017-11-03 | P49: =IF($O49="", "", USSW!C46) -> 1.6575 | Q49: =IF($O49="", "", VLOOKUP($O49, USSW!$D$7:$E$2000, 2, FALSE)) -> 1.8235 | R49: =IF($O49="", "", VLOOKUP($O49, USSW!$F$7:$G$2000, 2, FALSE)) -> 1.9314 | S49: =IF($O49="", "", VLOOKUP($O49, USSW!$H$7:$I$2000, 2, FALSE)) -> 2.0046 | T49: =IF($O49="", "", VLOOKUP($O49, USSW!$J$7:$K$2000, 2, FALSE)) -> 2.0763 | U49: =IF($O49="", "", VLOOKUP($O49, USSW!$L$7:$M$2000, 2, FALSE)) -> 2.1251 | V49: =IF($O49="", "", VLOOKUP($O49, USSW!$N$7:$O$2000, 2, FALSE)) -> 2.1834 | W49: =IF($O49="", "", VLOOKUP($O49, USSW!$P$7:$Q$2000, 2, FALSE)) -> 2.2287 | X49: =IF($O49="", "", VLOOKUP($O49, USSW!$R$7:$S$2000, 2, FALSE)) -> 2.272 | Y49: =IF($O49="", "", VLOOKUP($O49, USSW!$T$7:$U$2000, 2, FALSE)) -> 2.312
B50: =IF(CAD!B47="", "", CAD!B47) -> 2017-11-03 | C50: =IF($B50="", "", CAD!C47) -> 1.2764 | D50: =IF($B50="", "",VLOOKUP($B50, CAD!$D$7:$E$2000, 2, FALSE)) -> 1.272699 | E50: =IF($B50="", "",VLOOKUP($B50, CAD!$F$7:$G$2000, 2, FALSE)) -> 1.27025 | F50: =IF($B50="", "",VLOOKUP($B50, CAD!$H$7:$I$2000, 2, FALSE)) -> 1.26865 | G50: =IF($B50="", "",VLOOKUP($B50, CAD!$J$7:$K$2000, 2, FALSE)) -> 1.26793 | H50: =IF($B50="", "", VLOOKUP($B50, CAD!$L$7:$M$2000, 2, FALSE)) -> 1.2677 | I50: =IF($B50="", "", VLOOKUP($B50, CAD!$N$7:$O$2000, 2, FALSE)) -> 1.2696 | J50: =IF($B50="", "", VLOOKUP($B50, CAD!$P$7:$Q$2000, 2, FALSE)) -> 1.26786 | K50: =IF($B50="", "", VLOOKUP($B50, CAD!$R$7:$S$2000, 2, FALSE)) -> 1.26844 | L50: =IF($B50="", "", VLOOKUP($B50, CAD!$T$7:$U$2000, 2, FALSE)) -> 1.2747 | M50: =IF($B50="", "", VLOOKUP($B50, CAD!$V$7:$W$2000, 2, FALSE)) -> 1.271828 | O50: =IF(USSW!B47="", "", USSW!B47) -> 2017-11-02 | P50: =IF($O50="", "", USSW!C47) -> 1.6515 | Q50: =IF($O50="", "", VLOOKUP($O50, USSW!$D$7:$E$2000, 2, FALSE)) -> 1.8205 | R50: =IF($O50="", "", VLOOKUP($O50, USSW!$F$7:$G$2000, 2, FALSE)) -> 1.9296 | S50: =IF($O50="", "", VLOOKUP($O50, USSW!$H$7:$I$2000, 2, FALSE)) -> 2.0088 | T50: =IF($O50="", "", VLOOKUP($O50, USSW!$J$7:$K$2000, 2, FALSE)) -> 2.0743 | U50: =IF($O50="", "", VLOOKUP($O50, USSW!$L$7:$M$2000, 2, FALSE)) -> 2.137 | V50: =IF($O50="", "", VLOOKUP($O50, USSW!$N$7:$O$2000, 2, FALSE)) -> 2.1923 | W50: =IF($O50="", "", VLOOKUP($O50, USSW!$P$7:$Q$2000, 2, FALSE)) -> 2.2453 | X50: =IF($O50="", "", VLOOKUP($O50, USSW!$R$7:$S$2000, 2, FALSE)) -> 2.2868 | Y50: =IF($O50="", "", VLOOKUP($O50, USSW!$T$7:$U$2000, 2, FALSE)) -> 2.3282
B51: =IF(CAD!B48="", "", CAD!B48) -> 2017-11-02 | C51: =IF($B51="", "", CAD!C48) -> 1.2809 | D51: =IF($B51="", "",VLOOKUP($B51, CAD!$D$7:$E$2000, 2, FALSE)) -> 1.276913 | E51: =IF($B51="", "",VLOOKUP($B51, CAD!$F$7:$G$2000, 2, FALSE)) -> 1.27428 | F51: =IF($B51="", "",VLOOKUP($B51, CAD!$H$7:$I$2000, 2, FALSE)) -> 1.27261 | G51: =IF($B51="", "",VLOOKUP($B51, CAD!$J$7:$K$2000, 2, FALSE)) -> 1.27112 | H51: =IF($B51="", "", VLOOKUP($B51, CAD!$L$7:$M$2000, 2, FALSE)) -> 1.27065 | I51: =IF($B51="", "", VLOOKUP($B51, CAD!$N$7:$O$2000, 2, FALSE)) -> 1.2723 | J51: =IF($B51="", "", VLOOKUP($B51, CAD!$P$7:$Q$2000, 2, FALSE)) -> 1.27016 | K51: =IF($B51="", "", VLOOKUP($B51, CAD!$R$7:$S$2000, 2, FALSE)) -> 1.27115 | L51: =IF($B51="", "", VLOOKUP($B51, CAD!$T$7:$U$2000, 2, FALSE)) -> 1.2774 | M51: =IF($B51="", "", VLOOKUP($B51, CAD!$V$7:$W$2000, 2, FALSE)) -> 1.27356 | O51: =IF(USSW!B48="", "", USSW!B48) -> 2017-11-01 | P51: =IF($O51="", "", USSW!C48) -> 1.6529 | Q51: =IF($O51="", "", VLOOKUP($O51, USSW!$D$7:$E$2000, 2, FALSE)) -> 1.8298 | R51: =IF($O51="", "", VLOOKUP($O51, USSW!$F$7:$G$2000, 2, FALSE)) -> 1.9418 | S51: =IF($O51="", "", VLOOKUP($O51, USSW!$H$7:$I$2000, 2, FALSE)) -> 2.0225 | T51: =IF($O51="", "", VLOOKUP($O51, USSW!$J$7:$K$2000, 2, FALSE)) -> 2.0909 | U51: =IF($O51="", "", VLOOKUP($O51, USSW!$L$7:$M$2000, 2, FALSE)) -> 2.1537 | V51: =IF($O51="", "", VLOOKUP($O51, USSW!$N$7:$O$2000, 2, FALSE)) -> 2.2128 | W51: =IF($O51="", "", VLOOKUP($O51, USSW!$P$7:$Q$2000, 2, FALSE)) -> 2.265 | X51: =IF($O51="", "", VLOOKUP($O51, USSW!$R$7:$S$2000, 2, FALSE)) -> 2.3119 | Y51: =IF($O51="", "", VLOOKUP($O51, USSW!$T$7:$U$2000, 2, FALSE)) -> 2.354
B52: =IF(CAD!B49="", "", CAD!B49) -> 2017-11-01 | C52: =IF($B52="", "", CAD!C49) -> 1.2865 | D52: =IF($B52="", "",VLOOKUP($B52, CAD!$D$7:$E$2000, 2, FALSE)) -> 1.282477 | E52: =IF($B52="", "",VLOOKUP($B52, CAD!$F$7:$G$2000, 2, FALSE)) -> 1.279535 | F52: =IF($B52="", "",VLOOKUP($B52, CAD!$H$7:$I$2000, 2, FALSE)) -> 1.27749 | G52: =IF($B52="", "",VLOOKUP($B52, CAD!$J$7:$K$2000, 2, FALSE)) -> 1.27654 | H52: =IF($B52="", "", VLOOKUP($B52, CAD!$L$7:$M$2000, 2, FALSE)) -> 1.27578 | I52: =IF($B52="", "", VLOOKUP($B52, CAD!$N$7:$O$2000, 2, FALSE)) -> 1.2778 | J52: =IF($B52="", "", VLOOKUP($B52, CAD!$P$7:$Q$2000, 2, FALSE)) -> 1.275165 | K52: =IF($B52="", "", VLOOKUP($B52, CAD!$R$7:$S$2000, 2, FALSE)) -> 1.27524 | L52: =IF($B52="", "", VLOOKUP($B52, CAD!$T$7:$U$2000, 2, FALSE)) -> 1.282 | M52: =IF($B52="", "", VLOOKUP($B52, CAD!$V$7:$W$2000, 2, FALSE)) -> 1.279317 | O52: =IF(USSW!B49="", "", USSW!B49) -> 2017-10-31 | P52: =IF($O52="", "", USSW!C49) -> 1.6403 | Q52: =IF($O52="", "", VLOOKUP($O52, USSW!$D$7:$E$2000, 2, FALSE)) -> 1.8178 | R52: =IF($O52="", "", VLOOKUP($O52, USSW!$F$7:$G$2000, 2, FALSE)) -> 1.9356 | S52: =IF($O52="", "", VLOOKUP($O52, USSW!$H$7:$I$2000, 2, FALSE)) -> 2.019 | T52: =IF($O52="", "", VLOOKUP($O52, USSW!$J$7:$K$2000, 2, FALSE)) -> 2.0905 | U52: =IF($O52="", "", VLOOKUP($O52, USSW!$L$7:$M$2000, 2, FALSE)) -> 2.1538 | V52: =IF($O52="", "", VLOOKUP($O52, USSW!$N$7:$O$2000, 2, FALSE)) -> 2.2118 | W52: =IF($O52="", "", VLOOKUP($O52, USSW!$P$7:$Q$2000, 2, FALSE)) -> 2.2614 | X52: =IF($O52="", "", VLOOKUP($O52, USSW!$R$7:$S$2000, 2, FALSE)) -> 2.3102 | Y52: =IF($O52="", "", VLOOKUP($O52, USSW!$T$7:$U$2000, 2, FALSE)) -> 2.3517
B53: =IF(CAD!B50="", "", CAD!B50) -> 2017-10-31 | C53: =IF($B53="", "", CAD!C50) -> 1.2888 | D53: =IF($B53="", "",VLOOKUP($B53, CAD!$D$7:$E$2000, 2, FALSE)) -> 1.28477 | E53: =IF($B53="", "",VLOOKUP($B53, CAD!$F$7:$G$2000, 2, FALSE)) -> 1.28165 | F53: =IF($B53="", "",VLOOKUP($B53, CAD!$H$7:$I$2000, 2, FALSE)) -> 1.27924 | G53: =IF($B53="", "",VLOOKUP($B53, CAD!$J$7:$K$2000, 2, FALSE)) -> 1.27792 | H53: =IF($B53="", "", VLOOKUP($B53, CAD!$L$7:$M$2000, 2, FALSE)) -> 1.2766 | I53: =IF($B53="", "", VLOOKUP($B53, CAD!$N$7:$O$2000, 2, FALSE)) -> 1.2782 | J53: =IF($B53="", "", VLOOKUP($B53, CAD!$P$7:$Q$2000, 2, FALSE)) -> 1.275975 | K53: =IF($B53="", "", VLOOKUP($B53, CAD!$R$7:$S$2000, 2, FALSE)) -> 1.27616 | L53: =IF($B53="", "", VLOOKUP($B53, CAD!$T$7:$U$2000, 2, FALSE)) -> 1.27885 | M53: =IF($B53="", "", VLOOKUP($B53, CAD!$V$7:$W$2000, 2, FALSE)) -> 1.28146 | O53: =IF(USSW!B50="", "", USSW!B50) -> 2017-10-30 | P53: =IF($O53="", "", USSW!C50) -> 1.6294 | Q53: =IF($O53="", "", VLOOKUP($O53, USSW!$D$7:$E$2000, 2, FALSE)) -> 1.8027 | R53: =IF($O53="", "", VLOOKUP($O53, USSW!$F$7:$G$2000, 2, FALSE)) -> 1.9185 | S53: =IF($O53="", "", VLOOKUP($O53, USSW!$H$7:$I$2000, 2, FALSE)) -> 2.0034 | T53: =IF($O53="", "", VLOOKUP($O53, USSW!$J$7:$K$2000, 2, FALSE)) -> 2.0734 | U53: =IF($O53="", "", VLOOKUP($O53, USSW!$L$7:$M$2000, 2, FALSE)) -> 2.1395 | V53: =IF($O53="", "", VLOOKUP($O53, USSW!$N$7:$O$2000, 2, FALSE)) -> 2.2016 | W53: =IF($O53="", "", VLOOKUP($O53, USSW!$P$7:$Q$2000, 2, FALSE)) -> 2.2544 | X53: =IF($O53="", "", VLOOKUP($O53, USSW!$R$7:$S$2000, 2, FALSE)) -> 2.3025 | Y53: =IF($O53="", "", VLOOKUP($O53, USSW!$T$7:$U$2000, 2, FALSE)) -> 2.3462
B54: =IF(CAD!B51="", "", CAD!B51) -> 2017-10-30 | C54: =IF($B54="", "", CAD!C51) -> 1.2833 | D54: =IF($B54="", "",VLOOKUP($B54, CAD!$D$7:$E$2000, 2, FALSE)) -> 1.27958 | E54: =IF($B54="", "",VLOOKUP($B54, CAD!$F$7:$G$2000, 2, FALSE)) -> 1.276605 | F54: =IF($B54="", "",VLOOKUP($B54, CAD!$H$7:$I$2000, 2, FALSE)) -> 1.27459 | G54: =IF($B54="", "",VLOOKUP($B54, CAD!$J$7:$K$2000, 2, FALSE)) -> 1.27397 | H54: =IF($B54="", "", VLOOKUP($B54, CAD!$L$7:$M$2000, 2, FALSE)) -> 1.2726 | I54: =IF($B54="", "", VLOOKUP($B54, CAD!$N$7:$O$2000, 2, FALSE)) -> 1.2743 | J54: =IF($B54="", "", VLOOKUP($B54, CAD!$P$7:$Q$2000, 2, FALSE)) -> 1.2721 | K54: =IF($B54="", "", VLOOKUP($B54, CAD!$R$7:$S$2000, 2, FALSE)) -> 1.27218 | L54: =IF($B54="", "", VLOOKUP($B54, CAD!$T$7:$U$2000, 2, FALSE)) -> 1.273748 | M54: =IF($B54="", "", VLOOKUP($B54, CAD!$V$7:$W$2000, 2, FALSE)) -> 1.276114 | O54: =IF(USSW!B51="", "", USSW!B51) -> 2017-10-27 | P54: =IF($O54="", "", USSW!C51) -> 1.6357 | Q54: =IF($O54="", "", VLOOKUP($O54, USSW!$D$7:$E$2000, 2, FALSE)) -> 1.8222 | R54: =IF($O54="", "", VLOOKUP($O54, USSW!$F$7:$G$2000, 2, FALSE)) -> 1.9432 | S54: =IF($O54="", "", VLOOKUP($O54, USSW!$H$7:$I$2000, 2, FALSE)) -> 2.0299 | T54: =IF($O54="", "", VLOOKUP($O54, USSW!$J$7:$K$2000, 2, FALSE)) -> 2.1172 | U54: =IF($O54="", "", VLOOKUP($O54, USSW!$L$7:$M$2000, 2, FALSE)) -> 2.1726 | V54: =IF($O54="", "", VLOOKUP($O54, USSW!$N$7:$O$2000, 2, FALSE)) -> 2.2333 | W54: =IF($O54="", "", VLOOKUP($O54, USSW!$P$7:$Q$2000, 2, FALSE)) -> 2.2882 | X54: =IF($O54="", "", VLOOKUP($O54, USSW!$R$7:$S$2000, 2, FALSE)) -> 2.3382 | Y54: =IF($O54="", "", VLOOKUP($O54, USSW!$T$7:$U$2000, 2, FALSE)) -> 2.3804
B55: =IF(CAD!B52="", "", CAD!B52) -> 2017-10-27 | C55: =IF($B55="", "", CAD!C52) -> 1.2808 | D55: =IF($B55="", "",VLOOKUP($B55, CAD!$D$7:$E$2000, 2, FALSE)) -> 1.277129 | E55: =IF($B55="", "",VLOOKUP($B55, CAD!$F$7:$G$2000, 2, FALSE)) -> 1.2742 | F55: =IF($B55="", "",VLOOKUP($B55, CAD!$H$7:$I$2000, 2, FALSE)) -> 1.27222 | G55: =IF($B55="", "",VLOOKUP($B55, CAD!$J$7:$K$2000, 2, FALSE)) -> 1.27131 | H55: =IF($B55="", "", VLOOKUP($B55, CAD!$L$7:$M$2000, 2, FALSE)) -> 1.27026 | I55: =IF($B55="", "", VLOOKUP($B55, CAD!$N$7:$O$2000, 2, FALSE)) -> 1.2709 | J55: =IF($B55="", "", VLOOKUP($B55, CAD!$P$7:$Q$2000, 2, FALSE)) -> 1.26775 | K55: =IF($B55="", "", VLOOKUP($B55, CAD!$R$7:$S$2000, 2, FALSE)) -> 1.26836 | L55: =IF($B55="", "", VLOOKUP($B55, CAD!$T$7:$U$2000, 2, FALSE)) -> 1.26758 | M55: =IF($B55="", "", VLOOKUP($B55, CAD!$V$7:$W$2000, 2, FALSE)) -> 1.26946 | O55: =IF(USSW!B52="", "", USSW!B52) -> 2017-10-26 | P55: =IF($O55="", "", USSW!C52) -> 1.6451 | Q55: =IF($O55="", "", VLOOKUP($O55, USSW!$D$7:$E$2000, 2, FALSE)) -> 1.8445 | R55: =IF($O55="", "", VLOOKUP($O55, USSW!$F$7:$G$2000, 2, FALSE)) -> 1.9783 | S55: =IF($O55="", "", VLOOKUP($O55, USSW!$H$7:$I$2000, 2, FALSE)) -> 2.0726 | T55: =IF($O55="", "", VLOOKUP($O55, USSW!$J$7:$K$2000, 2, FALSE)) -> 2.1458 | U55: =IF($O55="", "", VLOOKUP($O55, USSW!$L$7:$M$2000, 2, FALSE)) -> 2.2212 | V55: =IF($O55="", "", VLOOKUP($O55, USSW!$N$7:$O$2000, 2, FALSE)) -> 2.2864 | W55: =IF($O55="", "", VLOOKUP($O55, USSW!$P$7:$Q$2000, 2, FALSE)) -> 2.3415 | X55: =IF($O55="", "", VLOOKUP($O55, USSW!$R$7:$S$2000, 2, FALSE)) -> 2.3922 | Y55: =IF($O55="", "", VLOOKUP($O55, USSW!$T$7:$U$2000, 2, FALSE)) -> 2.4362
B56: =IF(CAD!B53="", "", CAD!B53) -> 2017-10-26 | C56: =IF($B56="", "", CAD!C53) -> 1.2847 | D56: =IF($B56="", "",VLOOKUP($B56, CAD!$D$7:$E$2000, 2, FALSE)) -> 1.281136 | E56: =IF($B56="", "",VLOOKUP($B56, CAD!$F$7:$G$2000, 2, FALSE)) -> 1.278215 | F56: =IF($B56="", "",VLOOKUP($B56, CAD!$H$7:$I$2000, 2, FALSE)) -> 1.277193 | G56: =IF($B56="", "",VLOOKUP($B56, CAD!$J$7:$K$2000, 2, FALSE)) -> 1.27408 | H56: =IF($B56="", "", VLOOKUP($B56, CAD!$L$7:$M$2000, 2, FALSE)) -> 1.27318 | I56: =IF($B56="", "", VLOOKUP($B56, CAD!$N$7:$O$2000, 2, FALSE)) -> 1.2746 | J56: =IF($B56="", "", VLOOKUP($B56, CAD!$P$7:$Q$2000, 2, FALSE)) -> 1.27141 | K56: =IF($B56="", "", VLOOKUP($B56, CAD!$R$7:$S$2000, 2, FALSE)) -> 1.2705 | L56: =IF($B56="", "", VLOOKUP($B56, CAD!$T$7:$U$2000, 2, FALSE)) -> 1.271103 | M56: =IF($B56="", "", VLOOKUP($B56, CAD!$V$7:$W$2000, 2, FALSE)) -> 1.27305 | O56: =IF(USSW!B53="", "", USSW!B53) -> 2017-10-25 | P56: =IF($O56="", "", USSW!C53) -> 1.6334 | Q56: =IF($O56="", "", VLOOKUP($O56, USSW!$D$7:$E$2000, 2, FALSE)) -> 1.8245 | R56: =IF($O56="", "", VLOOKUP($O56, USSW!$F$7:$G$2000, 2, FALSE)) -> 1.9524 | S56: =IF($O56="", "", VLOOKUP($O56, USSW!$H$7:$I$2000, 2, FALSE)) -> 2.045 | T56: =IF($O56="", "", VLOOKUP($O56, USSW!$J$7:$K$2000, 2, FALSE)) -> 2.134 | U56: =IF($O56="", "", VLOOKUP($O56, USSW!$L$7:$M$2000, 2, FALSE)) -> 2.1928 | V56: =IF($O56="", "", VLOOKUP($O56, USSW!$N$7:$O$2000, 2, FALSE)) -> 2.2579 | W56: =IF($O56="", "", VLOOKUP($O56, USSW!$P$7:$Q$2000, 2, FALSE)) -> 2.3142 | X56: =IF($O56="", "", VLOOKUP($O56, USSW!$R$7:$S$2000, 2, FALSE)) -> 2.3631 | Y56: =IF($O56="", "", VLOOKUP($O56, USSW!$T$7:$U$2000, 2, FALSE)) -> 2.4086
B57: =IF(CAD!B54="", "", CAD!B54) -> 2017-10-25 | C57: =IF($B57="", "", CAD!C54) -> 1.2796 | D57: =IF($B57="", "",VLOOKUP($B57, CAD!$D$7:$E$2000, 2, FALSE)) -> 1.276363 | E57: =IF($B57="", "",VLOOKUP($B57, CAD!$F$7:$G$2000, 2, FALSE)) -> 1.273744 | F57: =IF($B57="", "",VLOOKUP($B57, CAD!$H$7:$I$2000, 2, FALSE)) -> 1.27209 | G57: =IF($B57="", "",VLOOKUP($B57, CAD!$J$7:$K$2000, 2, FALSE)) -> 1.27164 | H57: =IF($B57="", "", VLOOKUP($B57, CAD!$L$7:$M$2000, 2, FALSE)) -> 1.27015 | I57: =IF($B57="", "", VLOOKUP($B57, CAD!$N$7:$O$2000, 2, FALSE)) -> 1.2714 | J57: =IF($B57="", "", VLOOKUP($B57, CAD!$P$7:$Q$2000, 2, FALSE)) -> 1.268595 | K57: =IF($B57="", "", VLOOKUP($B57, CAD!$R$7:$S$2000, 2, FALSE)) -> 1.26847 | L57: =IF($B57="", "", VLOOKUP($B57, CAD!$T$7:$U$2000, 2, FALSE)) -> 1.27785 | M57: =IF($B57="", "", VLOOKUP($B57, CAD!$V$7:$W$2000, 2, FALSE)) -> 1.26882 | O57: =IF(USSW!B54="", "", USSW!B54) -> 2017-10-24 | P57: =IF($O57="", "", USSW!C54) -> 1.6273 | Q57: =IF($O57="", "", VLOOKUP($O57, USSW!$D$7:$E$2000, 2, FALSE)) -> 1.8221 | R57: =IF($O57="", "", VLOOKUP($O57, USSW!$F$7:$G$2000, 2, FALSE)) -> 1.9484 | S57: =IF($O57="", "", VLOOKUP($O57, USSW!$H$7:$I$2000, 2, FALSE)) -> 2.0404 | T57: =IF($O57="", "", VLOOKUP($O57, USSW!$J$7:$K$2000, 2, FALSE)) -> 2.1182 | U57: =IF($O57="", "", VLOOKUP($O57, USSW!$L$7:$M$2000, 2, FALSE)) -> 2.188 | V57: =IF($O57="", "", VLOOKUP($O57, USSW!$N$7:$O$2000, 2, FALSE)) -> 2.2524 | W57: =IF($O57="", "", VLOOKUP($O57, USSW!$P$7:$Q$2000, 2, FALSE)) -> 2.3071 | X57: =IF($O57="", "", VLOOKUP($O57, USSW!$R$7:$S$2000, 2, FALSE)) -> 2.3554 | Y57: =IF($O57="", "", VLOOKUP($O57, USSW!$T$7:$U$2000, 2, FALSE)) -> 2.4002
B58: =IF(CAD!B55="", "", CAD!B55) -> 2017-10-24 | C58: =IF($B58="", "", CAD!C55) -> 1.2675 | D58: =IF($B58="", "",VLOOKUP($B58, CAD!$D$7:$E$2000, 2, FALSE)) -> 1.264867 | E58: =IF($B58="", "",VLOOKUP($B58, CAD!$F$7:$G$2000, 2, FALSE)) -> 1.262745 | F58: =IF($B58="", "",VLOOKUP($B58, CAD!$H$7:$I$2000, 2, FALSE)) -> 1.261445 | G58: =IF($B58="", "",VLOOKUP($B58, CAD!$J$7:$K$2000, 2, FALSE)) -> 1.26065 | H58: =IF($B58="", "", VLOOKUP($B58, CAD!$L$7:$M$2000, 2, FALSE)) -> 1.260685 | I58: =IF($B58="", "", VLOOKUP($B58, CAD!$N$7:$O$2000, 2, FALSE)) -> 1.262 | J58: =IF($B58="", "", VLOOKUP($B58, CAD!$P$7:$Q$2000, 2, FALSE)) -> 1.25995 | K58: =IF($B58="", "", VLOOKUP($B58, CAD!$R$7:$S$2000, 2, FALSE)) -> 1.25978 | L58: =IF($B58="", "", VLOOKUP($B58, CAD!$T$7:$U$2000, 2, FALSE)) -> 1.26785 | M58: =IF($B58="", "", VLOOKUP($B58, CAD!$V$7:$W$2000, 2, FALSE)) -> 1.26483 | O58: =IF(USSW!B55="", "", USSW!B55) -> 2017-10-23 | P58: =IF($O58="", "", USSW!C55) -> 1.6165 | Q58: =IF($O58="", "", VLOOKUP($O58, USSW!$D$7:$E$2000, 2, FALSE)) -> 1.7978 | R58: =IF($O58="", "", VLOOKUP($O58, USSW!$F$7:$G$2000, 2, FALSE)) -> 1.919 | S58: =IF($O58="", "", VLOOKUP($O58, USSW!$H$7:$I$2000, 2, FALSE)) -> 2.0045 | T58: =IF($O58="", "", VLOOKUP($O58, USSW!$J$7:$K$2000, 2, FALSE)) -> 2.0731 | U58: =IF($O58="", "", VLOOKUP($O58, USSW!$L$7:$M$2000, 2, FALSE)) -> 2.1389 | V58: =IF($O58="", "", VLOOKUP($O58, USSW!$N$7:$O$2000, 2, FALSE)) -> 2.2019 | W58: =IF($O58="", "", VLOOKUP($O58, USSW!$P$7:$Q$2000, 2, FALSE)) -> 2.251 | X58: =IF($O58="", "", VLOOKUP($O58, USSW!$R$7:$S$2000, 2, FALSE)) -> 2.2998 | Y58: =IF($O58="", "", VLOOKUP($O58, USSW!$T$7:$U$2000, 2, FALSE)) -> 2.3413
B59: =IF(CAD!B56="", "", CAD!B56) -> 2017-10-23 | C59: =IF($B59="", "", CAD!C56) -> 1.2647 | D59: =IF($B59="", "",VLOOKUP($B59, CAD!$D$7:$E$2000, 2, FALSE)) -> 1.262018 | E59: =IF($B59="", "",VLOOKUP($B59, CAD!$F$7:$G$2000, 2, FALSE)) -> 1.259978 | F59: =IF($B59="", "",VLOOKUP($B59, CAD!$H$7:$I$2000, 2, FALSE)) -> 1.259075 | G59: =IF($B59="", "",VLOOKUP($B59, CAD!$J$7:$K$2000, 2, FALSE)) -> 1.25865 | H59: =IF($B59="", "", VLOOKUP($B59, CAD!$L$7:$M$2000, 2, FALSE)) -> 1.25887 | I59: =IF($B59="", "", VLOOKUP($B59, CAD!$N$7:$O$2000, 2, FALSE)) -> 1.2593 | J59: =IF($B59="", "", VLOOKUP($B59, CAD!$P$7:$Q$2000, 2, FALSE)) -> 1.258875 | K59: =IF($B59="", "", VLOOKUP($B59, CAD!$R$7:$S$2000, 2, FALSE)) -> 1.259205 | L59: =IF($B59="", "", VLOOKUP($B59, CAD!$T$7:$U$2000, 2, FALSE)) -> 1.2626 | M59: =IF($B59="", "", VLOOKUP($B59, CAD!$V$7:$W$2000, 2, FALSE)) -> 1.26231 | O59: =IF(USSW!B56="", "", USSW!B56) -> 2017-10-20 | P59: =IF($O59="", "", USSW!C56) -> 1.6234 | Q59: =IF($O59="", "", VLOOKUP($O59, USSW!$D$7:$E$2000, 2, FALSE)) -> 1.8163 | R59: =IF($O59="", "", VLOOKUP($O59, USSW!$F$7:$G$2000, 2, FALSE)) -> 1.9391 | S59: =IF($O59="", "", VLOOKUP($O59, USSW!$H$7:$I$2000, 2, FALSE)) -> 2.0257 | T59: =IF($O59="", "", VLOOKUP($O59, USSW!$J$7:$K$2000, 2, FALSE)) -> 2.096 | U59: =IF($O59="", "", VLOOKUP($O59, USSW!$L$7:$M$2000, 2, FALSE)) -> 2.1621 | V59: =IF($O59="", "", VLOOKUP($O59, USSW!$N$7:$O$2000, 2, FALSE)) -> 2.2172 | W59: =IF($O59="", "", VLOOKUP($O59, USSW!$P$7:$Q$2000, 2, FALSE)) -> 2.2741 | X59: =IF($O59="", "", VLOOKUP($O59, USSW!$R$7:$S$2000, 2, FALSE)) -> 2.3205 | Y59: =IF($O59="", "", VLOOKUP($O59, USSW!$T$7:$U$2000, 2, FALSE)) -> 2.3613
B60: =IF(CAD!B57="", "", CAD!B57) -> 2017-10-20 | C60: =IF($B60="", "", CAD!C57) -> 1.2627 | D60: =IF($B60="", "",VLOOKUP($B60, CAD!$D$7:$E$2000, 2, FALSE)) -> 1.25999 | E60: =IF($B60="", "",VLOOKUP($B60, CAD!$F$7:$G$2000, 2, FALSE)) -> 1.25792 | F60: =IF($B60="", "",VLOOKUP($B60, CAD!$H$7:$I$2000, 2, FALSE)) -> 1.256585 | G60: =IF($B60="", "",VLOOKUP($B60, CAD!$J$7:$K$2000, 2, FALSE)) -> 1.25575 | H60: =IF($B60="", "", VLOOKUP($B60, CAD!$L$7:$M$2000, 2, FALSE)) -> 1.255945 | I60: =IF($B60="", "", VLOOKUP($B60, CAD!$N$7:$O$2000, 2, FALSE)) -> 1.25566 | J60: =IF($B60="", "", VLOOKUP($B60, CAD!$P$7:$Q$2000, 2, FALSE)) -> 1.2549 | K60: =IF($B60="", "", VLOOKUP($B60, CAD!$R$7:$S$2000, 2, FALSE)) -> 1.255375 | L60: =IF($B60="", "", VLOOKUP($B60, CAD!$T$7:$U$2000, 2, FALSE)) -> 1.25644 | M60: =IF($B60="", "", VLOOKUP($B60, CAD!$V$7:$W$2000, 2, FALSE)) -> 1.26027 | O60: =IF(USSW!B57="", "", USSW!B57) -> 2017-10-19 | P60: =IF($O60="", "", USSW!C57) -> 1.6064 | Q60: =IF($O60="", "", VLOOKUP($O60, USSW!$D$7:$E$2000, 2, FALSE)) -> 1.781 | R60: =IF($O60="", "", VLOOKUP($O60, USSW!$F$7:$G$2000, 2, FALSE)) -> 1.8918 | S60: =IF($O60="", "", VLOOKUP($O60, USSW!$H$7:$I$2000, 2, FALSE)) -> 1.9722 | T60: =IF($O60="", "", VLOOKUP($O60, USSW!$J$7:$K$2000, 2, FALSE)) -> 2.038 | U60: =IF($O60="", "", VLOOKUP($O60, USSW!$L$7:$M$2000, 2, FALSE)) -> 2.1003 | V60: =IF($O60="", "", VLOOKUP($O60, USSW!$N$7:$O$2000, 2, FALSE)) -> 2.1573 | W60: =IF($O60="", "", VLOOKUP($O60, USSW!$P$7:$Q$2000, 2, FALSE)) -> 2.2117 | X60: =IF($O60="", "", VLOOKUP($O60, USSW!$R$7:$S$2000, 2, FALSE)) -> 2.2568 | Y60: =IF($O60="", "", VLOOKUP($O60, USSW!$T$7:$U$2000, 2, FALSE)) -> 2.2972
B61: =IF(CAD!B58="", "", CAD!B58) -> 2017-10-19 | C61: =IF($B61="", "", CAD!C58) -> 1.2485 | D61: =IF($B61="", "",VLOOKUP($B61, CAD!$D$7:$E$2000, 2, FALSE)) -> 1.24639 | E61: =IF($B61="", "",VLOOKUP($B61, CAD!$F$7:$G$2000, 2, FALSE)) -> 1.245112 | F61: =IF($B61="", "",VLOOKUP($B61, CAD!$H$7:$I$2000, 2, FALSE)) -> 1.244575 | G61: =IF($B61="", "",VLOOKUP($B61, CAD!$J$7:$K$2000, 2, FALSE)) -> 1.24482 | H61: =IF($B61="", "", VLOOKUP($B61, CAD!$L$7:$M$2000, 2, FALSE)) -> 1.246033 | I61: =IF($B61="", "", VLOOKUP($B61, CAD!$N$7:$O$2000, 2, FALSE)) -> 1.2479 | J61: =IF($B61="", "", VLOOKUP($B61, CAD!$P$7:$Q$2000, 2, FALSE)) -> 1.2462 | K61: =IF($B61="", "", VLOOKUP($B61, CAD!$R$7:$S$2000, 2, FALSE)) -> 1.24784 | L61: =IF($B61="", "", VLOOKUP($B61, CAD!$T$7:$U$2000, 2, FALSE)) -> 1.24914 | M61: =IF($B61="", "", VLOOKUP($B61, CAD!$V$7:$W$2000, 2, FALSE)) -> 1.25144 | O61: =IF(USSW!B58="", "", USSW!B58) -> 2017-10-18 | P61: =IF($O61="", "", USSW!C58) -> 1.6208 | Q61: =IF($O61="", "", VLOOKUP($O61, USSW!$D$7:$E$2000, 2, FALSE)) -> 1.8113 | R61: =IF($O61="", "", VLOOKUP($O61, USSW!$F$7:$G$2000, 2, FALSE)) -> 1.9288 | S61: =IF($O61="", "", VLOOKUP($O61, USSW!$H$7:$I$2000, 2, FALSE)) -> 2.0105 | T61: =IF($O61="", "", VLOOKUP($O61, USSW!$J$7:$K$2000, 2, FALSE)) -> 2.0757 | U61: =IF($O61="", "", VLOOKUP($O61, USSW!$L$7:$M$2000, 2, FALSE)) -> 2.1352 | V61: =IF($O61="", "", VLOOKUP($O61, USSW!$N$7:$O$2000, 2, FALSE)) -> 2.1897 | W61: =IF($O61="", "", VLOOKUP($O61, USSW!$P$7:$Q$2000, 2, FALSE)) -> 2.2398 | X61: =IF($O61="", "", VLOOKUP($O61, USSW!$R$7:$S$2000, 2, FALSE)) -> 2.2842 | Y61: =IF($O61="", "", VLOOKUP($O61, USSW!$T$7:$U$2000, 2, FALSE)) -> 2.3235
B62: =IF(CAD!B59="", "", CAD!B59) -> 2017-10-18 | C62: =IF($B62="", "", CAD!C59) -> 1.2467 | D62: =IF($B62="", "",VLOOKUP($B62, CAD!$D$7:$E$2000, 2, FALSE)) -> 1.24461 | E62: =IF($B62="", "",VLOOKUP($B62, CAD!$F$7:$G$2000, 2, FALSE)) -> 1.24325 | F62: =IF($B62="", "",VLOOKUP($B62, CAD!$H$7:$I$2000, 2, FALSE)) -> 1.24327 | G62: =IF($B62="", "",VLOOKUP($B62, CAD!$J$7:$K$2000, 2, FALSE)) -> 1.24258 | H62: =IF($B62="", "", VLOOKUP($B62, CAD!$L$7:$M$2000, 2, FALSE)) -> 1.243355 | I62: =IF($B62="", "", VLOOKUP($B62, CAD!$N$7:$O$2000, 2, FALSE)) -> 1.2449 | J62: =IF($B62="", "", VLOOKUP($B62, CAD!$P$7:$Q$2000, 2, FALSE)) -> 1.244645 | K62: =IF($B62="", "", VLOOKUP($B62, CAD!$R$7:$S$2000, 2, FALSE)) -> 1.24588 | L62: =IF($B62="", "", VLOOKUP($B62, CAD!$T$7:$U$2000, 2, FALSE)) -> 1.2538 | M62: =IF($B62="", "", VLOOKUP($B62, CAD!$V$7:$W$2000, 2, FALSE)) -> 1.2501 | O62: =IF(USSW!B59="", "", USSW!B59) -> 2017-10-17 | P62: =IF($O62="", "", USSW!C59) -> 1.62 | Q62: =IF($O62="", "", VLOOKUP($O62, USSW!$D$7:$E$2000, 2, FALSE)) -> 1.8062 | R62: =IF($O62="", "", VLOOKUP($O62, USSW!$F$7:$G$2000, 2, FALSE)) -> 1.9132 | S62: =IF($O62="", "", VLOOKUP($O62, USSW!$H$7:$I$2000, 2, FALSE)) -> 1.9869 | T62: =IF($O62="", "", VLOOKUP($O62, USSW!$J$7:$K$2000, 2, FALSE)) -> 2.0354 | U62: =IF($O62="", "", VLOOKUP($O62, USSW!$L$7:$M$2000, 2, FALSE)) -> 2.0978 | V62: =IF($O62="", "", VLOOKUP($O62, USSW!$N$7:$O$2000, 2, FALSE)) -> 2.1511 | W62: =IF($O62="", "", VLOOKUP($O62, USSW!$P$7:$Q$2000, 2, FALSE)) -> 2.1962 | X62: =IF($O62="", "", VLOOKUP($O62, USSW!$R$7:$S$2000, 2, FALSE)) -> 2.2424 | Y62: =IF($O62="", "", VLOOKUP($O62, USSW!$T$7:$U$2000, 2, FALSE)) -> 2.2822
B63: =IF(CAD!B60="", "", CAD!B60) -> 2017-10-17 | C63: =IF($B63="", "", CAD!C60) -> 1.2522 | D63: =IF($B63="", "",VLOOKUP($B63, CAD!$D$7:$E$2000, 2, FALSE)) -> 1.25016 | E63: =IF($B63="", "",VLOOKUP($B63, CAD!$F$7:$G$2000, 2, FALSE)) -> 1.24895 | F63: =IF($B63="", "",VLOOKUP($B63, CAD!$H$7:$I$2000, 2, FALSE)) -> 1.24848 | G63: =IF($B63="", "",VLOOKUP($B63, CAD!$J$7:$K$2000, 2, FALSE)) -> 1.24966 | H63: =IF($B63="", "", VLOOKUP($B63, CAD!$L$7:$M$2000, 2, FALSE)) -> 1.250325 | I63: =IF($B63="", "", VLOOKUP($B63, CAD!$N$7:$O$2000, 2, FALSE)) ->  | J63: =IF($B63="", "", VLOOKUP($B63, CAD!$P$7:$Q$2000, 2, FALSE)) -> 1.25233 | K63: =IF($B63="", "", VLOOKUP($B63, CAD!$R$7:$S$2000, 2, FALSE)) -> 1.2526 | L63: =IF($B63="", "", VLOOKUP($B63, CAD!$T$7:$U$2000, 2, FALSE)) -> 1.25473 | M63: =IF($B63="", "", VLOOKUP($B63, CAD!$V$7:$W$2000, 2, FALSE)) -> 1.25715 | O63: =IF(USSW!B60="", "", USSW!B60) -> 2017-10-16 | P63: =IF($O63="", "", USSW!C60) -> 1.6162 | Q63: =IF($O63="", "", VLOOKUP($O63, USSW!$D$7:$E$2000, 2, FALSE)) -> 1.7975 | R63: =IF($O63="", "", VLOOKUP($O63, USSW!$F$7:$G$2000, 2, FALSE)) -> 1.9061 | S63: =IF($O63="", "", VLOOKUP($O63, USSW!$H$7:$I$2000, 2, FALSE)) -> 1.9773 | T63: =IF($O63="", "", VLOOKUP($O63, USSW!$J$7:$K$2000, 2, FALSE)) -> 2.0374 | U63: =IF($O63="", "", VLOOKUP($O63, USSW!$L$7:$M$2000, 2, FALSE)) -> 2.0912 | V63: =IF($O63="", "", VLOOKUP($O63, USSW!$N$7:$O$2000, 2, FALSE)) -> 2.1434 | W63: =IF($O63="", "", VLOOKUP($O63, USSW!$P$7:$Q$2000, 2, FALSE)) -> 2.1915 | X63: =IF($O63="", "", VLOOKUP($O63, USSW!$R$7:$S$2000, 2, FALSE)) -> 2.2385 | Y63: =IF($O63="", "", VLOOKUP($O63, USSW!$T$7:$U$2000, 2, FALSE)) -> 2.2762
